Workbook

Sheet T1
B2: D A F T A R N I L A I
B4: MATA PELAJARAN | F4: : | G4: =RTM!X5 -> TEMA 1 | AQ4: ۩MENU↗
B5: KELAS | F5: : | G5: =UPPER(MN!D22) -> V B | U5: TEMA 1 | X5: TEMA 2 | AA5: TEMA 3 | AD5: TEMA 4 | AG5: TEMA 5 | AJ5: TEMA 6 | AM5: REKAP
B6: TAHUN PELAJARAN | F6: : | G6: =MN!D18 -> 2019 - 2020
B9: No | E9: Nama Siswa | F9: NILAI PG | R9: 0.5 | X9: NILAI ESSAY | AJ9: =100%-R9 -> 0.5 | AP9: JUMLAH
C10: No. Induk | D10: NISN | F10: BIN | H10: MTK | J10: IPA | L10: PPKn | N10: IPS | P10: SBDP | X10: BIN | Z10: MTK | AB10: IPA | AD10: PPKn | AF10: IPS | AH10: SBDP
F11: Naskah 1 | G11: Naskah 2 | H11: Naskah 1 | I11: Naskah 2 | J11: Naskah 1 | K11: Naskah 2 | L11: Naskah 1 | M11: Naskah 2 | N11: Naskah 1 | O11: Naskah 2 | P11: Naskah 1 | Q11: Naskah 2 | R11: BIN | S11: MTK | T11: IPA | U11: PPKn | V11: IPS | W11: SBDP | X11: Naskah 1 | Y11: Naskah 2 | Z11: Naskah 1 | AA11: Naskah 2 | AB11: Naskah 1 | AC11: Naskah 2 | AD11: Naskah 1 | AE11: Naskah 2 | AF11: Naskah 1 | AG11: Naskah 2 | AH11: Naskah 1 | AI11: Naskah 2 | AJ11: BIN | AK11: MTK | AL11: IPA | AM11: PPKn | AN11: IPS | AO11: SBDP | AP11: BIN | AQ11: MTK | AR11: IPA | AS11: PPKn | AT11: IPS | AU11: SBDP
B12: 1 | E12: =SW!G10 -> ABD. ROCHMAN NAJA FATLAN PRATAMA | F12: 23 | G12: 60 | J12: 23 | K12: 60 | L12: 23 | M12: 60 | N12: 23 | O12: 60 | P12: 23 | Q12: 60 | R12: =IFERROR(ROUND(AVERAGE(F12:G12)*$R$9,0),"") -> 21 | S12: =IFERROR(ROUND(AVERAGE(H12:I12)*$R$9,0),"") ->  | T12: =IFERROR(ROUND(AVERAGE(J12:K12)*$R$9,0),"") -> 21 | U12: =IFERROR(ROUND(AVERAGE(L12:M12)*$R$9,0),"") -> 21 | V12: =IFERROR(ROUND(AVERAGE(N12:O12)*$R$9,0),"") -> 21 | W12: =IFERROR(ROUND(AVERAGE(P12:Q12)*$R$9,0),"") -> 21 | X12: 51 | Y12: 85 | AB12: 51 | AC12: 85 | AD12: 51 | AE12: 85 | AF12: 51 | AG12: 85 | AH12: 51 | AI12: 85 | AJ12: =IFERROR(ROUND(AVERAGE(X12:Y12)*$AJ$9,0),"") -> 34 | AK12: =IFERROR(ROUND(AVERAGE(Z12:AA12)*$AJ$9,0),"") ->  | AL12: =IFERROR(ROUND(AVERAGE(AB12:AC12)*$AJ$9,0),"") -> 34 | AM12: =IFERROR(ROUND(AVERAGE(AD12:AE12)*$AJ$9,0),"") -> 34 | AN12: =IFERROR(ROUND(AVERAGE(AF12:AG12)*$AJ$9,0),"") -> 34 | AO12: =IFERROR(ROUND(AVERAGE(AH12:AI12)*$AJ$9,0),"") -> 34 | AP12: =IFERROR(ROUND(AVERAGE(R12+AJ12),0),"") -> 55 | AQ12: =IFERROR(ROUND(AVERAGE(S12+AK12),0),"") ->  | AR12: 55 | AS12: 55 | AT12: 55 | AU12: 55
B13: 2 | E13: =SW!G11 -> ABDURRAHMAN FAQIH | F13: 37 | G13: 25 | J13: 37 | K13: 25 | L13: 37 | M13: 25 | N13: 37 | O13: 25 | P13: 37 | Q13: 25 | R13: 16 | T13: =IFERROR(ROUND(AVERAGE(J13:K13)*$R$9,0),"") -> 16 | U13: =IFERROR(ROUND(AVERAGE(L13:M13)*$R$9,0),"") -> 16 | V13: =IFERROR(ROUND(AVERAGE(N13:O13)*$R$9,0),"") -> 16 | W13: =IFERROR(ROUND(AVERAGE(P13:Q13)*$R$9,0),"") -> 16 | X13: 59 | Y13: 70 | AB13: 59 | AC13: 70 | AD13: 59 | AE13: 70 | AF13: 59 | AG13: 70 | AH13: 59 | AI13: 70 | AJ13: =IFERROR(ROUND(AVERAGE(X13:Y13)*$AJ$9,0),"") -> 32 | AL13: =IFERROR(ROUND(AVERAGE(AB13:AC13)*$AJ$9,0),"") -> 32 | AM13: =IFERROR(ROUND(AVERAGE(AD13:AE13)*$AJ$9,0),"") -> 32 | AN13: =IFERROR(ROUND(AVERAGE(AF13:AG13)*$AJ$9,0),"") -> 32 | AO13: =IFERROR(ROUND(AVERAGE(AH13:AI13)*$AJ$9,0),"") -> 32 | AP13: =IFERROR(ROUND(AVERAGE(R13+AJ13),0),"") -> 48 | AQ13: =IFERROR(ROUND(AVERAGE(S13+AK13),0),"") ->  | AR13: =IFERROR(ROUND(AVERAGE(T13+AL13),0),"") -> 48 | AS13: =IFERROR(ROUND(AVERAGE(U13+AM13),0),"") -> 48 | AT13: =IFERROR(ROUND(AVERAGE(V13+AN13),0),"") -> 48 | AU13: =IFERROR(ROUND(AVERAGE(W13+AO13),0),"") -> 48
B14: 3 | E14: =SW!G12 -> ACHMAD FARROIHUN MUSHOBIRONILLAH | F14: 47 | G14: 25 | J14: 47 | K14: 25 | L14: 47 | M14: 25 | N14: 47 | O14: 25 | P14: 47 | Q14: 25 | R14: 18 | T14: 18 | U14: 18 | V14: 18 | W14: 18 | X14: 62 | Y14: 70 | AB14: 62 | AC14: 70 | AD14: 62 | AE14: 70 | AF14: 62 | AG14: 70 | AH14: 62 | AI14: 70 | AJ14: 33 | AL14: 33 | AM14: 33 | AN14: 33 | AO14: 33 | AP14: 51 | AR14: 51 | AS14: 51 | AT14: 51 | AU14: 51
B15: 4 | E15: =SW!G13 -> ACHMAD HASBI ASSIDDIQI | F15: 43 | G15: 50 | J15: 43 | K15: 50 | L15: 43 | M15: 50 | N15: 43 | O15: 50 | P15: 43 | Q15: 50 | R15: 23 | T15: 23 | U15: 23 | V15: 23 | W15: 23 | X15: 48 | Y15: 42 | AB15: 48 | AC15: 42 | AD15: 48 | AE15: 42 | AF15: 48 | AG15: 42 | AH15: 48 | AI15: 42 | AJ15: 23 | AL15: 23 | AM15: 23 | AN15: 23 | AO15: 23 | AP15: 46 | AR15: 46 | AS15: 46 | AT15: 46 | AU15: 46
B16: 5 | E16: =SW!G14 -> ACHMAD REZA AKRAM ALAUDDIN | F16: 47 | G16: 50 | J16: 47 | K16: 50 | L16: 47 | M16: 50 | N16: 47 | O16: 50 | P16: 47 | Q16: 50 | R16: 24 | T16: 24 | U16: 24 | V16: 24 | W16: 24 | X16: 78 | Y16: 100 | AB16: 78 | AC16: 100 | AD16: 78 | AE16: 100 | AF16: 78 | AG16: 100 | AH16: 78 | AI16: 100 | AJ16: 45 | AL16: 45 | AM16: 45 | AN16: 45 | AO16: 45 | AP16: 69 | AR16: 69 | AS16: 69 | AT16: 69 | AU16: 69
B17: 6 | E17: =SW!G15 -> ACHMAD YANI | F17: 27 | G17: 15 | J17: 27 | K17: 15 | L17: 27 | M17: 15 | N17: 27 | O17: 15 | P17: 27 | Q17: 15 | R17: 11 | T17: 11 | U17: 11 | V17: 11 | W17: 11 | X17: 78 | Y17: 60 | AB17: 78 | AC17: 60 | AD17: 78 | AE17: 60 | AF17: 78 | AG17: 60 | AH17: 78 | AI17: 60 | AJ17: 35 | AL17: 35 | AM17: 35 | AN17: 35 | AO17: 35 | AP17: 46 | AR17: 46 | AS17: 46 | AT17: 46 | AU17: 46
B18: 7 | E18: =SW!G16 -> AKHMAD RIDWAN | F18: 53 | G18: 60 | J18: 53 | K18: 60 | L18: 53 | M18: 60 | N18: 53 | O18: 60 | P18: 53 | Q18: 60 | R18: 28 | T18: 28 | U18: 28 | V18: 28 | W18: 28 | X18: 51 | Y18: 70 | AB18: 51 | AC18: 70 | AD18: 51 | AE18: 70 | AF18: 51 | AG18: 70 | AH18: 51 | AI18: 70 | AJ18: 30 | AL18: 30 | AM18: 30 | AN18: 30 | AO18: 30 | AP18: 58 | AR18: 58 | AS18: 58 | AT18: 58 | AU18: 58
B19: 8 | E19: =SW!G17 -> ANDREAN DWI YULIANO | F19: 40 | G19: 30 | J19: 40 | K19: 30 | L19: 40 | M19: 30 | N19: 40 | O19: 30 | P19: 40 | Q19: 30 | R19: 18 | T19: 18 | U19: 18 | V19: 18 | W19: 18 | X19: 51 | Y19: 70 | AB19: 51 | AC19: 70 | AD19: 51 | AE19: 70 | AF19: 51 | AG19: 70 | AH19: 51 | AI19: 70 | AJ19: 30 | AL19: 30 | AM19: 30 | AN19: 30 | AO19: 30 | AP19: 48 | AR19: 48 | AS19: 48 | AT19: 48 | AU19: 48
B20: 9 | E20: =SW!G18 -> ASFAN FAKHRI BARANI | F20: 63 | G20: 55 | J20: 63 | K20: 55 | L20: 63 | M20: 55 | N20: 63 | O20: 55 | P20: 63 | Q20: 55 | R20: 30 | T20: 30 | U20: 30 | V20: 30 | W20: 30 | X20: 59 | Y20: 85 | AB20: 59 | AC20: 85 | AD20: 59 | AE20: 85 | AF20: 59 | AG20: 85 | AH20: 59 | AI20: 85 | AJ20: 36 | AL20: 36 | AM20: 36 | AN20: 36 | AO20: 36 | AP20: 66 | AR20: 66 | AS20: 66 | AT20: 66 | AU20: 66
B21: 10 | E21: =SW!G19 -> DEVAN ADITYA SAPUTRA | F21: 40 | G21: 50 | J21: 40 | K21: 50 | L21: 40 | M21: 50 | N21: 40 | O21: 50 | P21: 40 | Q21: 50 | R21: 23 | T21: 23 | U21: 23 | V21: 23 | W21: 23 | X21: 56 | Y21: 70 | AB21: 56 | AC21: 70 | AD21: 56 | AE21: 70 | AF21: 56 | AG21: 70 | AH21: 56 | AI21: 70 | AJ21: 32 | AL21: 32 | AM21: 32 | AN21: 32 | AO21: 32 | AP21: 55 | AR21: 55 | AS21: 55 | AT21: 55 | AU21: 55
B22: 11 | E22: =SW!G20 -> FAHRUL AHMAD FAHREZA | F22: 57 | G22: 45 | J22: 57 | K22: 45 | L22: 57 | M22: 45 | N22: 57 | O22: 45 | P22: 57 | Q22: 45 | R22: 26 | T22: 26 | U22: 26 | V22: 26 | W22: 26 | X22: 51 | Y22: 57 | AB22: 51 | AC22: 57 | AD22: 51 | AE22: 57 | AF22: 51 | AG22: 57 | AH22: 51 | AI22: 57 | AJ22: 27 | AL22: 27 | AM22: 27 | AN22: 27 | AO22: 27 | AP22: 53 | AR22: 53 | AS22: 53 | AT22: 53 | AU22: 53
B23: 12 | E23: =SW!G21 -> FAUZIA AMELIA PUTRI | F23: 47 | G23: 45 | J23: 47 | K23: 45 | L23: 47 | M23: 45 | N23: 47 | O23: 45 | P23: 47 | Q23: 45 | R23: 23 | T23: 23 | U23: 23 | V23: 23 | W23: 23 | X23: 68 | Y23: 70 | AB23: 68 | AC23: 70 | AD23: 68 | AE23: 70 | AF23: 68 | AG23: 70 | AH23: 68 | AI23: 70 | AJ23: 35 | AL23: 35 | AM23: 35 | AN23: 35 | AO23: 35 | AP23: 58 | AR23: 58 | AS23: 58 | AT23: 58 | AU23: 58
B24: 13 | E24: =SW!G22 -> FAZA AZIFAH SALSABILA | F24: 47 | G24: 50 | J24: 47 | K24: 50 | L24: 47 | M24: 50 | N24: 47 | O24: 50 | P24: 47 | Q24: 50 | R24: 24 | T24: 24 | U24: 24 | V24: 24 | W24: 24 | X24: 56 | Y24: 57 | AB24: 56 | AC24: 57 | AD24: 56 | AE24: 57 | AF24: 56 | AG24: 57 | AH24: 56 | AI24: 57 | AJ24: 28 | AL24: 28 | AM24: 28 | AN24: 28 | AO24: 28 | AP24: 52 | AR24: 52 | AS24: 52 | AT24: 52 | AU24: 52
B25: 14 | E25: =SW!G23 -> HABIBIE NURUSSALAM | F25: 47 | G25: 50 | J25: 47 | K25: 50 | L25: 47 | M25: 50 | N25: 47 | O25: 50 | P25: 47 | Q25: 50 | R25: 24 | T25: 24 | U25: 24 | V25: 24 | W25: 24 | X25: 59 | Y25: 70 | AB25: 59 | AC25: 70 | AD25: 59 | AE25: 70 | AF25: 59 | AG25: 70 | AH25: 59 | AI25: 70 | AJ25: 32 | AL25: 32 | AM25: 32 | AN25: 32 | AO25: 32 | AP25: 56 | AR25: 56 | AS25: 56 | AT25: 56 | AU25: 56
B26: 15 | E26: =SW!G24 -> HIMATURROSYIDAH | F26: 40 | G26: 55 | J26: 40 | K26: 55 | L26: 40 | M26: 55 | N26: 40 | O26: 55 | P26: 40 | Q26: 55 | R26: 24 | T26: 24 | U26: 24 | V26: 24 | W26: 24 | X26: 40 | Y26: 85 | AB26: 40 | AC26: 85 | AD26: 40 | AE26: 85 | AF26: 40 | AG26: 85 | AH26: 40 | AI26: 85 | AJ26: 31 | AL26: 31 | AM26: 31 | AN26: 31 | AO26: 31 | AP26: 55 | AR26: 55 | AS26: 55 | AT26: 55 | AU26: 55
B27: 16 | E27: =SW!G25 -> IFKARINA NAILA SAUQYA | F27: 50 | G27: 55 | J27: 50 | K27: 55 | L27: 50 | M27: 55 | N27: 50 | O27: 55 | P27: 50 | Q27: 55 | R27: 26 | T27: 26 | U27: 26 | V27: 26 | W27: 26 | X27: 68 | Y27: 100 | AB27: 68 | AC27: 100 | AD27: 68 | AE27: 100 | AF27: 68 | AG27: 100 | AH27: 68 | AI27: 100 | AJ27: 42 | AL27: 42 | AM27: 42 | AN27: 42 | AO27: 42 | AP27: 68 | AR27: 68 | AS27: 68 | AT27: 68 | AU27: 68
B28: 17 | E28: =SW!G26 -> KEISA AYU SASKIYAH | F28: 40 | G28: 40 | J28: 40 | K28: 40 | L28: 40 | M28: 40 | N28: 40 | O28: 40 | P28: 40 | Q28: 40 | R28: 20 | T28: 20 | U28: 20 | V28: 20 | W28: 20 | X28: 51 | Y28: 70 | AB28: 51 | AC28: 70 | AD28: 51 | AE28: 70 | AF28: 51 | AG28: 70 | AH28: 51 | AI28: 70 | AJ28: 30 | AL28: 30 | AM28: 30 | AN28: 30 | AO28: 30 | AP28: 50 | AR28: 50 | AS28: 50 | AT28: 50 | AU28: 50
B29: 18 | E29: =SW!G27 -> MOCHAMMAD RENO FIRMANSYAH | F29: 33 | G29: 15 | J29: 33 | K29: 15 | L29: 33 | M29: 15 | N29: 33 | O29: 15 | P29: 33 | Q29: 15 | R29: 12 | T29: 12 | U29: 12 | V29: 12 | W29: 12 | X29: 51 | Y29: 40 | AB29: 51 | AC29: 40 | AD29: 51 | AE29: 40 | AF29: 51 | AG29: 40 | AH29: 51 | AI29: 40 | AJ29: 23 | AL29: 23 | AM29: 23 | AN29: 23 | AO29: 23 | AP29: 35 | AR29: 35 | AS29: 35 | AT29: 35 | AU29: 35
B30: 19 | E30: =SW!G28 -> MOHAMAD NUR KHAFID KHABIBULLOH | F30: 47 | G30: 45 | J30: 47 | K30: 45 | L30: 47 | M30: 45 | N30: 47 | O30: 45 | P30: 47 | Q30: 45 | R30: 23 | T30: 23 | U30: 23 | V30: 23 | W30: 23 | X30: 56 | Y30: 42 | AB30: 56 | AC30: 42 | AD30: 56 | AE30: 42 | AF30: 56 | AG30: 42 | AH30: 56 | AI30: 42 | AJ30: 25 | AL30: 25 | AM30: 25 | AN30: 25 | AO30: 25 | AP30: 48 | AR30: 48 | AS30: 48 | AT30: 48 | AU30: 48
B31: 20 | E31: =SW!G29 -> MOHAMMAD NAUFAL NAWWARUDDIN | F31: 33 | G31: 15 | J31: 33 | K31: 15 | L31: 33 | M31: 15 | N31: 33 | O31: 15 | P31: 33 | Q31: 15 | R31: 12 | T31: 12 | U31: 12 | V31: 12 | W31: 12 | X31: 45 | Y31: 57 | AB31: 45 | AC31: 57 | AD31: 45 | AE31: 57 | AF31: 45 | AG31: 57 | AH31: 45 | AI31: 57 | AJ31: 26 | AL31: 26 | AM31: 26 | AN31: 26 | AO31: 26 | AP31: 38 | AR31: 38 | AS31: 38 | AT31: 38 | AU31: 38
B32: 21 | E32: =SW!G30 -> MUCHAMAD PRIMA PAMBUDI | F32: 43 | G32: 25 | J32: 43 | K32: 25 | L32: 43 | M32: 25 | N32: 43 | O32: 25 | P32: 43 | Q32: 25 | R32: 17 | T32: 17 | U32: 17 | V32: 17 | W32: 17 | X32: 67 | Y32: 72 | AB32: 67 | AC32: 72 | AD32: 67 | AE32: 72 | AF32: 67 | AG32: 72 | AH32: 67 | AI32: 72 | AJ32: 35 | AL32: 35 | AM32: 35 | AN32: 35 | AO32: 35 | AP32: 52 | AR32: 52 | AS32: 52 | AT32: 52 | AU32: 52
B33: 22 | E33: =SW!G31 -> MUHAMMAD ALFAN FATHONI | F33: 33 | G33: 35 | J33: 33 | K33: 35 | L33: 33 | M33: 35 | N33: 33 | O33: 35 | P33: 33 | Q33: 35 | R33: 17 | T33: 17 | U33: 17 | V33: 17 | W33: 17 | X33: 56 | Y33: 70 | AB33: 56 | AC33: 70 | AD33: 56 | AE33: 70 | AF33: 56 | AG33: 70 | AH33: 56 | AI33: 70 | AJ33: 32 | AL33: 32 | AM33: 32 | AN33: 32 | AO33: 32 | AP33: 49 | AR33: 49 | AS33: 49 | AT33: 49 | AU33: 49
B34: 23 | E34: =SW!G32 -> MUHAMMAD AMINULLAH MAULUDANI | F34: 30 | G34: 15 | J34: 30 | K34: 15 | L34: 30 | M34: 15 | N34: 30 | O34: 15 | P34: 30 | Q34: 15 | R34: 11 | T34: 11 | U34: 11 | V34: 11 | W34: 11 | X34: 34 | Y34: 57 | AB34: 34 | AC34: 57 | AD34: 34 | AE34: 57 | AF34: 34 | AG34: 57 | AH34: 34 | AI34: 57 | AJ34: 23 | AL34: 23 | AM34: 23 | AN34: 23 | AO34: 23 | AP34: 34 | AR34: 34 | AS34: 34 | AT34: 34 | AU34: 34
B35: 24 | E35: =SW!G33 -> MUHAMMAD DAVIN LEVANTINO | F35: 17 | G35: 20 | J35: 17 | K35: 20 | L35: 17 | M35: 20 | N35: 17 | O35: 20 | P35: 17 | Q35: 20 | R35: 9 | T35: 9 | U35: 9 | V35: 9 | W35: 9 | X35: 56 | Y35: 70 | AB35: 56 | AC35: 70 | AD35: 56 | AE35: 70 | AF35: 56 | AG35: 70 | AH35: 56 | AI35: 70 | AJ35: 32 | AL35: 32 | AM35: 32 | AN35: 32 | AO35: 32 | AP35: 41 | AR35: 41 | AS35: 41 | AT35: 41 | AU35: 41
B36: 25 | E36: =SW!G34 -> MUHAMMAD MAULANA PAHLEVY | F36: 40 | G36: 50 | J36: 40 | K36: 50 | L36: 40 | M36: 50 | N36: 40 | O36: 50 | P36: 40 | Q36: 50 | R36: 23 | T36: 23 | U36: 23 | V36: 23 | W36: 23 | X36: 51 | Y36: 72 | AB36: 51 | AC36: 72 | AD36: 51 | AE36: 72 | AF36: 51 | AG36: 72 | AH36: 51 | AI36: 72 | AJ36: 31 | AL36: 31 | AM36: 31 | AN36: 31 | AO36: 31 | AP36: 54 | AR36: 54 | AS36: 54 | AT36: 54 | AU36: 54
B37: 26 | E37: =SW!G35 -> RADITYA NIRWANSYAH | F37: 20 | G37: 20 | J37: 20 | K37: 20 | L37: 20 | M37: 20 | N37: 20 | O37: 20 | P37: 20 | Q37: 20 | R37: 10 | T37: 10 | U37: 10 | V37: 10 | W37: 10 | X37: 60 | Y37: 85 | AB37: 60 | AC37: 85 | AD37: 60 | AE37: 85 | AF37: 60 | AG37: 85 | AH37: 60 | AI37: 85 | AJ37: 36 | AL37: 36 | AM37: 36 | AN37: 36 | AO37: 36 | AP37: 46 | AR37: 46 | AS37: 46 | AT37: 46 | AU37: 46
B38: 27 | E38: =SW!G36 -> REVINA SRI UTARI | F38: 27 | G38: 30 | J38: 27 | K38: 30 | L38: 27 | M38: 30 | N38: 27 | O38: 30 | P38: 27 | Q38: 30 | R38: 14 | T38: 14 | U38: 14 | V38: 14 | W38: 14 | X38: 48 | Y38: 72 | AB38: 48 | AC38: 72 | AD38: 48 | AE38: 72 | AF38: 48 | AG38: 72 | AH38: 48 | AI38: 72 | AJ38: 30 | AL38: 30 | AM38: 30 | AN38: 30 | AO38: 30 | AP38: 44 | AR38: 44 | AS38: 44 | AT38: 44 | AU38: 44
B39: 28 | E39: =SW!G37 -> REYHAN DWI ANDIKA | F39: 37 | G39: 30 | J39: 37 | K39: 30 | L39: 37 | M39: 30 | N39: 37 | O39: 30 | P39: 37 | Q39: 30 | R39: 17 | T39: 17 | U39: 17 | V39: 17 | W39: 17 | X39: 56 | Y39: 57 | AB39: 56 | AC39: 57 | AD39: 56 | AE39: 57 | AF39: 56 | AG39: 57 | AH39: 56 | AI39: 57 | AJ39: 28 | AL39: 28 | AM39: 28 | AN39: 28 | AO39: 28 | AP39: 45 | AR39: 45 | AS39: 45 | AT39: 45 | AU39: 45
B40: 29 | E40: =SW!G38 -> RISKA LAURA TRIA OCTAVIA | F40: 67 | G40: 50 | J40: 67 | K40: 50 | L40: 67 | M40: 50 | N40: 67 | O40: 50 | P40: 67 | Q40: 50 | R40: 29 | T40: 29 | U40: 29 | V40: 29 | W40: 29 | X40: 67 | Y40: 70 | AB40: 67 | AC40: 70 | AD40: 67 | AE40: 70 | AF40: 67 | AG40: 70 | AH40: 67 | AI40: 70 | AJ40: 34 | AL40: 34 | AM40: 34 | AN40: 34 | AO40: 34 | AP40: 63 | AR40: 63 | AS40: 63 | AT40: 63 | AU40: 63
B41: 30 | E41: =SW!G39 -> ROHMADONA DWI SAFITRI | F41: 57 | G41: 55 | J41: 57 | K41: 55 | L41: 57 | M41: 55 | N41: 57 | O41: 55 | P41: 57 | Q41: 55 | R41: 28 | T41: 28 | U41: 28 | V41: 28 | W41: 28 | X41: 70 | Y41: 85 | AB41: 70 | AC41: 85 | AD41: 70 | AE41: 85 | AF41: 70 | AG41: 85 | AH41: 70 | AI41: 85 | AJ41: 39 | AL41: 39 | AM41: 39 | AN41: 39 | AO41: 39 | AP41: 67 | AR41: 67 | AS41: 67 | AT41: 67 | AU41: 67
B42: 31 | E42: =SW!G40 -> SALMAN ALFARIZI | F42: 30 | G42: 35 | J42: 30 | K42: 35 | L42: 30 | M42: 35 | N42: 30 | O42: 35 | P42: 30 | Q42: 35 | R42: 16 | T42: 16 | U42: 16 | V42: 16 | W42: 16 | X42: 67 | Y42: 40 | AB42: 67 | AC42: 40 | AD42: 67 | AE42: 40 | AF42: 67 | AG42: 40 | AH42: 67 | AI42: 40 | AJ42: 27 | AL42: 27 | AM42: 27 | AN42: 27 | AO42: 27 | AP42: 43 | AR42: 43 | AS42: 43 | AT42: 43 | AU42: 43
B43: 32 | E43: =SW!G41 -> TAUFIQ KURROHMAN | F43: 37 | G43: 45 | J43: 37 | K43: 45 | L43: 37 | M43: 45 | N43: 37 | O43: 45 | P43: 37 | Q43: 45 | R43: 21 | T43: 21 | U43: 21 | V43: 21 | W43: 21 | X43: 70 | Y43: 57 | AB43: 70 | AC43: 57 | AD43: 70 | AE43: 57 | AF43: 70 | AG43: 57 | AH43: 70 | AI43: 57 | AJ43: 32 | AL43: 32 | AM43: 32 | AN43: 32 | AO43: 32 | AP43: 53 | AR43: 53 | AS43: 53 | AT43: 53 | AU43: 53
B44: 33 | E44: =SW!G42 -> 0 | R44: =IFERROR(ROUND(AVERAGE(F44:G44)*$R$9,0),"") ->  | S44: =IFERROR(ROUND(AVERAGE(H44:I44)*$R$9,0),"") -> 
B45: 34 | E45: =SW!G43 -> 0
B46: 35 | E46: =SW!G44 -> 0
B47: 36 | E47: =SW!G45 -> 0
B48: 37 | E48: =SW!G46 -> 0
B49: 38 | E49: =SW!G47 -> 0
B50: 39 | E50: =SW!G48 -> 0
B51: 40 | E51: =SW!G49 -> 0
B52: 41 | E52: =SW!G50 -> 0
B53: 42 | E53: =SW!G51 -> 0
B54: 43 | E54: =SW!G52 -> 0
B55: 44 | E55: =SW!G53 -> 0
B56: 45 | E56: =SW!G54 -> 0
B57: 46 | E57: =SW!G55 -> 0
B58: 47 | E58: =SW!G56 -> 0
B59: 48 | E59: =SW!G57 -> 0
B60: 49 | E60: =SW!G58 -> 0
B61: 50 | E61: =SW!G59 -> 0
B62: 51 | E62: =SW!G60 -> 0
B63: 52 | E63: =SW!G61 -> 0
B64: 53 | E64: =SW!G62 -> 0
B65: 54 | E65: =SW!G63 -> 0
B66: 55 | E66: =SW!G64 -> 0
B67: 56 | E67: =SW!G65 -> 0
B68: 57 | E68: =SW!G66 -> 0
B69: 58 | E69: =SW!G67 -> 0
B70: 59 | E70: =SW!G68 -> 0
B71: 60 | E71: =SW!G69 -> 0
B72: 61 | E72: =SW!G70 -> 0
B73: 62 | E73: =SW!G71 -> 0
B74: 63 | E74: =SW!G72 -> 0
B75: 64 | E75: =SW!G73 -> 0
B76: 65 | E76: =SW!G74 -> 0 | R76: =IFERROR(ROUND(AVERAGE(F76:G76)*$R$9,0),"") ->  | S76: =IFERROR(ROUND(AVERAGE(H76:I76)*$R$9,0),"") -> 
B77: 66 | E77: =SW!G75 -> 0 | T77: =IFERROR(ROUND(AVERAGE(J77:K77)*$R$9,0),"") ->  | U77: =IFERROR(ROUND(AVERAGE(L77:M77)*$R$9,0),"") ->  | V77: =IFERROR(ROUND(AVERAGE(N77:O77)*$R$9,0),"") ->  | W77: =IFERROR(ROUND(AVERAGE(P77:Q77)*$R$9,0),"") ->  | AJ77: =IFERROR(ROUND(AVERAGE(X77:Y77)*$AJ$9,0),"") ->  | AK77: =IFERROR(ROUND(AVERAGE(Z77:AA77)*$AJ$9,0),"") ->  | AL77: =IFERROR(ROUND(AVERAGE(AB77:AC77)*$AJ$9,0),"") ->  | AM77: =IFERROR(ROUND(AVERAGE(AD77:AE77)*$AJ$9,0),"") ->  | AN77: =IFERROR(ROUND(AVERAGE(AF77:AG77)*$AJ$9,0),"") ->  | AO77: =IFERROR(ROUND(AVERAGE(AH77:AI77)*$AJ$9,0),"") ->  | AP77: =IFERROR(ROUND(AVERAGE(R77+AJ77),0),"") ->  | AQ77: =IFERROR(ROUND(AVERAGE(S77+AK77),0),"") ->  | AR77: =IFERROR(ROUND(AVERAGE(T77+AL77),0),"") ->  | AS77: =IFERROR(ROUND(AVERAGE(U77+AM77),0),"") ->  | AT77: =IFERROR(ROUND(AVERAGE(V77+AN77),0),"") ->  | AU77: =IFERROR(ROUND(AVERAGE(W77+AO77),0),"") -> 
B78: 67 | E78: =SW!G76 -> 0
B79: 68 | E79: =SW!G77 -> 0
B80: 69 | E80: =SW!G78 -> 0
B81: 70 | E81: =SW!G79 -> 0
B82: 71 | E82: =SW!G80 -> 0
B83: 72 | E83: =SW!G81 -> 0
B84: 73 | E84: =SW!G82 -> 0
B85: 74 | E85: =SW!G83 -> 0
B86: 75 | E86: =SW!G84 -> 0
B87: 76 | E87: =SW!G85 -> 0
B88: 77 | E88: =SW!G86 -> 0
B89: 78 | E89: =SW!G87 -> 0
B90: 79 | E90: =SW!G88 -> 0
B91: 80 | E91: =SW!G89 -> 0
B92: 81 | E92: =SW!G90 -> 0
B93: 82 | E93: =SW!G91 -> 0
B94: 83 | E94: =SW!G92 -> 0
B95: 84 | E95: =SW!G93 -> 0
B96: 85 | E96: =SW!G94 -> 0
B97: 86 | E97: =SW!G95 -> 0
B98: 87 | E98: =SW!G96 -> 0
B99: 88 | E99: =SW!G97 -> 0
B100: 89 | E100: =SW!G98 -> 0

Sheet T2
B2: D A F T A R N I L A I
B4: MATA PELAJARAN | F4: : | G4: =RTM!AA5 -> TEMA 2 | AQ4: ۩MENU↗
B5: KELAS | F5: : | G5: =UPPER(MN!D22) -> V B | U5: TEMA 1 | X5: TEMA 2 | AA5: TEMA 3 | AD5: TEMA 4 | AG5: TEMA 5 | AJ5: TEMA 6 | AM5: REKAP
B6: TAHUN PELAJARAN | F6: : | G6: =MN!D18 -> 2019 - 2020
B9: No | E9: Nama Siswa | F9: NILAI PG | R9: 0.5 | X9: NILAI ESSAY | AJ9: =100%-R9 -> 0.5 | AP9: JUMLAH
C10: No. Induk | D10: NISN | F10: BIN | H10: MTK | J10: IPA | L10: PPKn | N10: IPS | P10: SBDP | X10: BIN | Z10: MTK | AB10: IPA | AD10: PPKn | AF10: IPS | AH10: SBDP
F11: Naskah 1 | G11: Naskah 2 | H11: Naskah 1 | I11: Naskah 2 | J11: Naskah 1 | K11: Naskah 2 | L11: Naskah 1 | M11: Naskah 2 | N11: Naskah 1 | O11: Naskah 2 | P11: Naskah 1 | Q11: Naskah 2 | R11: BIN | S11: MTK | T11: IPA | U11: PPKn | V11: IPS | W11: SBDP | X11: Naskah 1 | Y11: Naskah 2 | Z11: Naskah 1 | AA11: Naskah 2 | AB11: Naskah 1 | AC11: Naskah 2 | AD11: Naskah 1 | AE11: Naskah 2 | AF11: Naskah 1 | AG11: Naskah 2 | AH11: Naskah 1 | AI11: Naskah 2 | AJ11: BIN | AK11: MTK | AL11: IPA | AM11: PPKn | AN11: IPS | AO11: SBDP | AP11: BIN | AQ11: MTK | AR11: IPA | AS11: PPKn | AT11: IPS | AU11: SBDP
B12: 1 | E12: =SW!G10 -> ABD. ROCHMAN NAJA FATLAN PRATAMA | F12: 40 | G12: 30 | J12: 40 | K12: 30 | L12: 40 | M12: 30 | N12: 40 | O12: 30 | P12: 40 | Q12: 30 | R12: =IFERROR(ROUND(AVERAGE(F12:G12)*$R$9,0),"") -> 18 | S12: =IFERROR(ROUND(AVERAGE(H12:I12)*$R$9,0),"") ->  | T12: =IFERROR(ROUND(AVERAGE(J12:K12)*$R$9,0),"") -> 18 | U12: =IFERROR(ROUND(AVERAGE(L12:M12)*$R$9,0),"") -> 18 | V12: =IFERROR(ROUND(AVERAGE(N12:O12)*$R$9,0),"") -> 18 | W12: =IFERROR(ROUND(AVERAGE(P12:Q12)*$R$9,0),"") -> 18 | X12: 63 | Y12: 40 | AB12: 63 | AC12: 40 | AD12: 63 | AE12: 40 | AF12: 63 | AG12: 40 | AH12: 63 | AI12: 40 | AJ12: =IFERROR(ROUND(AVERAGE(X12:Y12)*$AJ$9,0),"") -> 26 | AK12: =IFERROR(ROUND(AVERAGE(Z12:AA12)*$AJ$9,0),"") ->  | AL12: =IFERROR(ROUND(AVERAGE(AB12:AC12)*$AJ$9,0),"") -> 26 | AM12: =IFERROR(ROUND(AVERAGE(AD12:AE12)*$AJ$9,0),"") -> 26 | AN12: =IFERROR(ROUND(AVERAGE(AF12:AG12)*$AJ$9,0),"") -> 26 | AO12: =IFERROR(ROUND(AVERAGE(AH12:AI12)*$AJ$9,0),"") -> 26 | AP12: =IFERROR(ROUND(AVERAGE(R12+AJ12),0),"") -> 44 | AR12: 44 | AS12: 44 | AT12: 44 | AU12: 44
B13: 2 | E13: =SW!G11 -> ABDURRAHMAN FAQIH | F13: 20 | G13: 15 | J13: 20 | K13: 15 | L13: 20 | M13: 15 | N13: 20 | O13: 15 | P13: 20 | Q13: 15 | R13: =IFERROR(ROUND(AVERAGE(F13:G13)*$R$9,0),"") -> 9 | S13: =IFERROR(ROUND(AVERAGE(H13:I13)*$R$9,0),"") ->  | T13: =IFERROR(ROUND(AVERAGE(J13:K13)*$R$9,0),"") -> 9 | U13: =IFERROR(ROUND(AVERAGE(L13:M13)*$R$9,0),"") -> 9 | V13: =IFERROR(ROUND(AVERAGE(N13:O13)*$R$9,0),"") -> 9 | W13: =IFERROR(ROUND(AVERAGE(P13:Q13)*$R$9,0),"") -> 9 | X13: 45 | Y13: 40 | AB13: 45 | AC13: 40 | AD13: 45 | AE13: 40 | AF13: 45 | AG13: 40 | AH13: 45 | AI13: 40 | AJ13: =IFERROR(ROUND(AVERAGE(X13:Y13)*$AJ$9,0),"") -> 21 | AL13: =IFERROR(ROUND(AVERAGE(AB13:AC13)*$AJ$9,0),"") -> 21 | AM13: =IFERROR(ROUND(AVERAGE(AD13:AE13)*$AJ$9,0),"") -> 21 | AN13: =IFERROR(ROUND(AVERAGE(AF13:AG13)*$AJ$9,0),"") -> 21 | AO13: =IFERROR(ROUND(AVERAGE(AH13:AI13)*$AJ$9,0),"") -> 21 | AP13: 30 | AR13: 30 | AS13: 30 | AT13: 30 | AU13: 30
B14: 3 | E14: =SW!G12 -> ACHMAD FARROIHUN MUSHOBIRONILLAH | F14: 67 | G14: 40 | J14: 67 | K14: 40 | L14: 67 | M14: 40 | N14: 67 | O14: 40 | P14: 67 | Q14: 40 | R14: 27 | T14: 27 | U14: 27 | V14: 27 | W14: 27 | X14: 63 | Y14: 85 | AB14: 63 | AC14: 85 | AD14: 63 | AE14: 85 | AF14: 63 | AG14: 85 | AH14: 63 | AI14: 85 | AJ14: 37 | AL14: 37 | AM14: 37 | AN14: 37 | AO14: 37 | AP14: 64 | AR14: 64 | AS14: 64 | AT14: 64 | AU14: 64
B15: 4 | E15: =SW!G13 -> ACHMAD HASBI ASSIDDIQI | F15: 37 | G15: 30 | J15: 37 | K15: 30 | L15: 37 | M15: 30 | N15: 37 | O15: 30 | P15: 37 | Q15: 30 | R15: 17 | T15: 17 | U15: 17 | V15: 17 | W15: 17 | X15: 72 | Y15: 40 | AB15: 72 | AC15: 40 | AD15: 72 | AE15: 40 | AF15: 72 | AG15: 40 | AH15: 72 | AI15: 40 | AJ15: 28 | AL15: 28 | AM15: 28 | AN15: 28 | AO15: 28 | AP15: 45 | AR15: 45 | AS15: 45 | AT15: 45 | AU15: 45
B16: 5 | E16: =SW!G14 -> ACHMAD REZA AKRAM ALAUDDIN | F16: 87 | G16: 50 | J16: 87 | K16: 50 | L16: 87 | M16: 50 | N16: 87 | O16: 50 | P16: 87 | Q16: 50 | R16: 34 | T16: 34 | U16: 34 | V16: 34 | W16: 34 | X16: 72 | Y16: 55 | AB16: 72 | AC16: 55 | AD16: 72 | AE16: 55 | AF16: 72 | AG16: 55 | AH16: 72 | AI16: 55 | AJ16: 32 | AL16: 32 | AM16: 32 | AN16: 32 | AO16: 32 | AP16: 66 | AR16: 66 | AS16: 66 | AT16: 66 | AU16: 66
B17: 6 | E17: =SW!G15 -> ACHMAD YANI | F17: 70 | G17: 45 | J17: 70 | K17: 45 | L17: 70 | M17: 45 | N17: 70 | O17: 45 | P17: 70 | Q17: 45 | R17: 29 | T17: 29 | U17: 29 | V17: 29 | W17: 29 | X17: 45 | Y17: 85 | AB17: 45 | AC17: 85 | AD17: 45 | AE17: 85 | AF17: 45 | AG17: 85 | AH17: 45 | AI17: 85 | AJ17: 33 | AL17: 33 | AM17: 33 | AN17: 33 | AO17: 33 | AP17: 62 | AR17: 62 | AS17: 62 | AT17: 62 | AU17: 62
B18: 7 | E18: =SW!G16 -> AKHMAD RIDWAN | F18: 80 | G18: 50 | J18: 80 | K18: 50 | L18: 80 | M18: 50 | N18: 80 | O18: 50 | P18: 80 | Q18: 50 | R18: 33 | T18: 33 | U18: 33 | V18: 33 | W18: 33 | X18: 100 | Y18: 55 | AB18: 100 | AC18: 55 | AD18: 100 | AE18: 55 | AF18: 100 | AG18: 55 | AH18: 100 | AI18: 55 | AJ18: 39 | AL18: 39 | AM18: 39 | AN18: 39 | AO18: 39 | AP18: 72 | AR18: 72 | AS18: 72 | AT18: 72 | AU18: 72
B19: 8 | E19: =SW!G17 -> ANDREAN DWI YULIANO | F19: 47 | G19: 30 | J19: 47 | K19: 30 | L19: 47 | M19: 30 | N19: 47 | O19: 30 | P19: 47 | Q19: 30 | R19: 19 | T19: 19 | U19: 19 | V19: 19 | W19: 19 | X19: 63 | Y19: 55 | AB19: 63 | AC19: 55 | AD19: 63 | AE19: 55 | AF19: 63 | AG19: 55 | AH19: 63 | AI19: 55 | AJ19: 30 | AL19: 30 | AM19: 30 | AN19: 30 | AO19: 30 | AP19: 49 | AR19: 49 | AS19: 49 | AT19: 49 | AU19: 49
B20: 9 | E20: =SW!G18 -> ASFAN FAKHRI BARANI | F20: 77 | G20: 20 | J20: 77 | K20: 20 | L20: 77 | M20: 20 | N20: 77 | O20: 20 | P20: 77 | Q20: 20 | R20: 24 | T20: 24 | U20: 24 | V20: 24 | W20: 24 | X20: 63 | Y20: 70 | AB20: 63 | AC20: 70 | AD20: 63 | AE20: 70 | AF20: 63 | AG20: 70 | AH20: 63 | AI20: 70 | AJ20: 33 | AL20: 33 | AM20: 33 | AN20: 33 | AO20: 33 | AP20: 57 | AR20: 57 | AS20: 57 | AT20: 57 | AU20: 57
B21: 10 | E21: =SW!G19 -> DEVAN ADITYA SAPUTRA | F21: 50 | G21: 35 | J21: 50 | K21: 35 | L21: 50 | M21: 35 | N21: 50 | O21: 35 | P21: 50 | Q21: 35 | R21: 21 | T21: 21 | U21: 21 | V21: 21 | W21: 21 | X21: 100 | Y21: 55 | AB21: 100 | AC21: 55 | AD21: 100 | AE21: 55 | AF21: 100 | AG21: 55 | AH21: 100 | AI21: 55 | AJ21: 39 | AL21: 39 | AM21: 39 | AN21: 39 | AO21: 39 | AP21: 60 | AR21: 60 | AS21: 60 | AT21: 60 | AU21: 60
B22: 11 | E22: =SW!G20 -> FAHRUL AHMAD FAHREZA | F22: 77 | G22: 55 | J22: 77 | K22: 55 | L22: 77 | M22: 55 | N22: 77 | O22: 55 | P22: 77 | Q22: 55 | R22: 33 | T22: 33 | U22: 33 | V22: 33 | W22: 33 | X22: 85 | Y22: 85 | AB22: 85 | AC22: 85 | AD22: 85 | AE22: 85 | AF22: 85 | AG22: 85 | AH22: 85 | AI22: 85 | AJ22: 43 | AL22: 43 | AM22: 43 | AN22: 43 | AO22: 43 | AP22: 76 | AR22: 76 | AS22: 76 | AT22: 76 | AU22: 76
B23: 12 | E23: =SW!G21 -> FAUZIA AMELIA PUTRI | F23: 77 | G23: 45 | J23: 77 | K23: 45 | L23: 77 | M23: 45 | N23: 77 | O23: 45 | P23: 77 | Q23: 45 | R23: 31 | T23: 31 | U23: 31 | V23: 31 | W23: 31 | X23: 76 | Y23: 85 | AB23: 76 | AC23: 85 | AD23: 76 | AE23: 85 | AF23: 76 | AG23: 85 | AH23: 76 | AI23: 85 | AJ23: 40 | AL23: 40 | AM23: 40 | AN23: 40 | AO23: 40 | AP23: 71 | AR23: 71 | AS23: 71 | AT23: 71 | AU23: 71
B24: 13 | E24: =SW!G22 -> FAZA AZIFAH SALSABILA | F24: 63 | G24: 50 | J24: 63 | K24: 50 | L24: 63 | M24: 50 | N24: 63 | O24: 50 | P24: 63 | Q24: 50 | R24: 28 | T24: 28 | U24: 28 | V24: 28 | W24: 28 | X24: 63 | Y24: 55 | AB24: 63 | AC24: 55 | AD24: 63 | AE24: 55 | AF24: 63 | AG24: 55 | AH24: 63 | AI24: 55 | AJ24: 30 | AL24: 30 | AM24: 30 | AN24: 30 | AO24: 30 | AP24: 58 | AR24: 58 | AS24: 58 | AT24: 58 | AU24: 58
B25: 14 | E25: =SW!G23 -> HABIBIE NURUSSALAM | F25: 73 | G25: 50 | J25: 73 | K25: 50 | L25: 73 | M25: 50 | N25: 73 | O25: 50 | P25: 73 | Q25: 50 | R25: 31 | T25: 31 | U25: 31 | V25: 31 | W25: 31 | X25: 63 | Y25: 55 | AB25: 63 | AC25: 55 | AD25: 63 | AE25: 55 | AF25: 63 | AG25: 55 | AH25: 63 | AI25: 55 | AJ25: 30 | AL25: 30 | AM25: 30 | AN25: 30 | AO25: 30 | AP25: 61 | AR25: 61 | AS25: 61 | AT25: 61 | AU25: 61
B26: 15 | E26: =SW!G24 -> HIMATURROSYIDAH | F26: 77 | G26: 35 | J26: 77 | K26: 35 | L26: 77 | M26: 35 | N26: 77 | O26: 35 | P26: 77 | Q26: 35 | R26: 28 | T26: 28 | U26: 28 | V26: 28 | W26: 28 | X26: 76 | Y26: 100 | AB26: 76 | AC26: 100 | AD26: 76 | AE26: 100 | AF26: 76 | AG26: 100 | AH26: 76 | AI26: 100 | AJ26: 44 | AL26: 44 | AM26: 44 | AN26: 44 | AO26: 44 | AP26: 72 | AR26: 72 | AS26: 72 | AT26: 72 | AU26: 72
B27: 16 | E27: =SW!G25 -> IFKARINA NAILA SAUQYA | F27: 73 | G27: 60 | J27: 73 | K27: 60 | L27: 73 | M27: 60 | N27: 73 | O27: 60 | P27: 73 | Q27: 60 | R27: 33 | T27: 33 | U27: 33 | V27: 33 | W27: 33 | X27: 85 | Y27: 70 | AB27: 85 | AC27: 70 | AD27: 85 | AE27: 70 | AF27: 85 | AG27: 70 | AH27: 85 | AI27: 70 | AJ27: 39 | AL27: 39 | AM27: 39 | AN27: 39 | AO27: 39 | AP27: 72 | AR27: 72 | AS27: 72 | AT27: 72 | AU27: 72
B28: 17 | E28: =SW!G26 -> KEISA AYU SASKIYAH | F28: 63 | G28: 20 | J28: 63 | K28: 20 | L28: 63 | M28: 20 | N28: 63 | O28: 20 | P28: 63 | Q28: 20 | R28: 21 | T28: 21 | U28: 21 | V28: 21 | W28: 21 | X28: 85 | Y28: 40 | AB28: 85 | AC28: 40 | AD28: 85 | AE28: 40 | AF28: 85 | AG28: 40 | AH28: 85 | AI28: 40 | AJ28: 31 | AL28: 31 | AM28: 31 | AN28: 31 | AO28: 31 | AP28: =IFERROR(ROUND(AVERAGE(R28+AJ28),0),"") -> 52 | AR28: 52 | AS28: 52 | AT28: 52 | AU28: 52
B29: 18 | E29: =SW!G27 -> MOCHAMMAD RENO FIRMANSYAH | F29: 20 | G29: 35 | J29: 20 | K29: 35 | L29: 20 | M29: 35 | N29: 20 | O29: 35 | P29: 20 | Q29: 35 | R29: 14 | T29: 14 | U29: 14 | V29: 14 | W29: 14 | X29: 45 | Y29: 40 | AB29: 45 | AC29: 40 | AD29: 45 | AE29: 40 | AF29: 45 | AG29: 40 | AH29: 45 | AI29: 40 | AJ29: 21 | AL29: 21 | AM29: 21 | AN29: 21 | AO29: 21 | AP29: 35 | AR29: 35 | AS29: 35 | AT29: 35 | AU29: 35
B30: 19 | E30: =SW!G28 -> MOHAMAD NUR KHAFID KHABIBULLOH | F30: 80 | G30: 35 | J30: 80 | K30: 35 | L30: 80 | M30: 35 | N30: 80 | O30: 35 | P30: 80 | Q30: 35 | R30: 29 | T30: 29 | U30: 29 | V30: 29 | W30: 29 | X30: 85 | Y30: 70 | AB30: 85 | AC30: 70 | AD30: 85 | AE30: 70 | AF30: 85 | AG30: 70 | AH30: 85 | AI30: 70 | AJ30: 39 | AL30: 39 | AM30: 39 | AN30: 39 | AO30: 39 | AP30: 68 | AR30: 68 | AS30: 68 | AT30: 68 | AU30: 68
B31: 20 | E31: =SW!G29 -> MOHAMMAD NAUFAL NAWWARUDDIN | F31: 33 | G31: 40 | J31: 33 | K31: 40 | L31: 33 | M31: 40 | N31: 33 | O31: 40 | P31: 33 | Q31: 40 | R31: 18 | T31: 18 | U31: 18 | V31: 18 | W31: 18 | X31: 45 | Y31: 55 | AB31: 45 | AC31: 55 | AD31: 45 | AE31: 55 | AF31: 45 | AG31: 55 | AH31: 45 | AI31: 55 | AJ31: 25 | AL31: 25 | AM31: 25 | AN31: 25 | AO31: 25 | AP31: 43 | AR31: 43 | AS31: 43 | AT31: 43 | AU31: 43
B32: 21 | E32: =SW!G30 -> MUCHAMAD PRIMA PAMBUDI | F32: 43 | G32: 25 | J32: 43 | K32: 25 | L32: 43 | M32: 25 | N32: 43 | O32: 25 | P32: 43 | Q32: 25 | R32: 17 | T32: 17 | U32: 17 | V32: 17 | W32: 17 | X32: 85 | Y32: 70 | AB32: 85 | AC32: 70 | AD32: 85 | AE32: 70 | AF32: 85 | AG32: 70 | AH32: 85 | AI32: 70 | AJ32: 39 | AL32: 39 | AM32: 39 | AN32: 39 | AO32: 39 | AP32: 56 | AR32: 56 | AS32: 56 | AT32: 56 | AU32: 56
B33: 22 | E33: =SW!G31 -> MUHAMMAD ALFAN FATHONI | F33: 60 | G33: 35 | J33: 60 | K33: 35 | L33: 60 | M33: 35 | N33: 60 | O33: 35 | P33: 60 | Q33: 35 | R33: 24 | T33: 24 | U33: 24 | V33: 24 | W33: 24 | X33: 72 | Y33: 40 | AB33: 72 | AC33: 40 | AD33: 72 | AE33: 40 | AF33: 72 | AG33: 40 | AH33: 72 | AI33: 40 | AJ33: 28 | AL33: 28 | AM33: 28 | AN33: 28 | AO33: 28 | AP33: 52 | AR33: 52 | AS33: 52 | AT33: 52 | AU33: 52
B34: 23 | E34: =SW!G32 -> MUHAMMAD AMINULLAH MAULUDANI | F34: 37 | G34: 20 | J34: 37 | K34: 20 | L34: 37 | M34: 20 | N34: 37 | O34: 20 | P34: 37 | Q34: 20 | R34: 14 | T34: 14 | U34: 14 | V34: 14 | W34: 14 | X34: 85 | Y34: 40 | AB34: 85 | AC34: 40 | AD34: 85 | AE34: 40 | AF34: 85 | AG34: 40 | AH34: 85 | AI34: 40 | AJ34: 31 | AL34: 31 | AM34: 31 | AN34: 31 | AO34: 31 | AP34: 45 | AR34: 45 | AS34: 45 | AT34: 45 | AU34: 45
B35: 24 | E35: =SW!G33 -> MUHAMMAD DAVIN LEVANTINO | F35: 80 | G35: 15 | J35: 80 | K35: 15 | L35: 80 | M35: 15 | N35: 80 | O35: 15 | P35: 80 | Q35: 15 | R35: 24 | T35: 24 | U35: 24 | V35: 24 | W35: 24 | X35: 85 | Y35: 40 | AB35: 85 | AC35: 40 | AD35: 85 | AE35: 40 | AF35: 85 | AG35: 40 | AH35: 85 | AI35: 40 | AJ35: 31 | AL35: 31 | AM35: 31 | AN35: 31 | AO35: 31 | AP35: 55 | AR35: 55 | AS35: 55 | AT35: 55 | AU35: 55
B36: 25 | E36: =SW!G34 -> MUHAMMAD MAULANA PAHLEVY | F36: 50 | G36: 30 | J36: 50 | K36: 30 | L36: 50 | M36: 30 | N36: 50 | O36: 30 | P36: 50 | Q36: 30 | R36: 20 | T36: 20 | U36: 20 | V36: 20 | W36: 20 | X36: 85 | Y36: 40 | AB36: 85 | AC36: 40 | AD36: 85 | AE36: 40 | AF36: 85 | AG36: 40 | AH36: 85 | AI36: 40 | AJ36: 31 | AL36: 31 | AM36: 31 | AN36: 31 | AO36: 31 | AP36: 51 | AR36: 51 | AS36: 51 | AT36: 51 | AU36: 51
B37: 26 | E37: =SW!G35 -> RADITYA NIRWANSYAH | F37: 30 | G37: 25 | J37: 30 | K37: 25 | L37: 30 | M37: 25 | N37: 30 | O37: 25 | P37: 30 | Q37: 25 | R37: 14 | T37: 14 | U37: 14 | V37: 14 | W37: 14 | X37: 45 | Y37: 40 | AB37: 45 | AC37: 40 | AD37: 45 | AE37: 40 | AF37: 45 | AG37: 40 | AH37: 45 | AI37: 40 | AJ37: 21 | AL37: 21 | AM37: 21 | AN37: 21 | AO37: 21 | AP37: 35 | AR37: 35 | AS37: 35 | AT37: 35 | AU37: 35
B38: 27 | E38: =SW!G36 -> REVINA SRI UTARI | F38: 60 | G38: 25 | J38: 60 | K38: 25 | L38: 60 | M38: 25 | N38: 60 | O38: 25 | P38: 60 | Q38: 25 | R38: 21 | T38: 21 | U38: 21 | V38: 21 | W38: 21 | X38: 63 | Y38: 70 | AB38: 63 | AC38: 70 | AD38: 63 | AE38: 70 | AF38: 63 | AG38: 70 | AH38: 63 | AI38: 70 | AJ38: 33 | AL38: 33 | AM38: 33 | AN38: 33 | AO38: 33 | AP38: 54 | AR38: 54 | AS38: 54 | AT38: 54 | AU38: 54
B39: 28 | E39: =SW!G37 -> REYHAN DWI ANDIKA | F39: 37 | G39: 20 | J39: 37 | K39: 20 | L39: 37 | M39: 20 | N39: 37 | O39: 20 | P39: 37 | Q39: 20 | R39: 14 | T39: 14 | U39: 14 | V39: 14 | W39: 14 | X39: 72 | Y39: 55 | AB39: 72 | AC39: 55 | AD39: 72 | AE39: 55 | AF39: 72 | AG39: 55 | AH39: 72 | AI39: 55 | AJ39: 32 | AL39: 32 | AM39: 32 | AN39: 32 | AO39: 32 | AP39: 46 | AR39: 46 | AS39: 46 | AT39: 46 | AU39: 46
B40: 29 | E40: =SW!G38 -> RISKA LAURA TRIA OCTAVIA | F40: 87 | G40: 35 | J40: 87 | K40: 35 | L40: 87 | M40: 35 | N40: 87 | O40: 35 | P40: 87 | Q40: 35 | R40: 31 | T40: 31 | U40: 31 | V40: 31 | W40: 31 | X40: 72 | Y40: 70 | AB40: 72 | AC40: 70 | AD40: 72 | AE40: 70 | AF40: 72 | AG40: 70 | AH40: 72 | AI40: 70 | AJ40: 36 | AL40: 36 | AM40: 36 | AN40: 36 | AO40: 36 | AP40: 67 | AR40: 67 | AS40: 67 | AT40: 67 | AU40: 67
B41: 30 | E41: =SW!G39 -> ROHMADONA DWI SAFITRI | F41: 77 | G41: 60 | J41: 77 | K41: 60 | L41: 77 | M41: 60 | N41: 77 | O41: 60 | P41: 77 | Q41: 60 | R41: 34 | T41: 34 | U41: 34 | V41: 34 | W41: 34 | X41: 100 | Y41: 85 | AB41: 100 | AC41: 85 | AD41: 100 | AE41: 85 | AF41: 100 | AG41: 85 | AH41: 100 | AI41: 85 | AJ41: 46 | AL41: 46 | AM41: 46 | AN41: 46 | AO41: 46 | AP41: 80 | AR41: 80 | AS41: 80 | AT41: 80 | AU41: 80
B42: 31 | E42: =SW!G40 -> SALMAN ALFARIZI | F42: 47 | G42: 20 | J42: 47 | K42: 20 | L42: 47 | M42: 20 | N42: 47 | O42: 20 | P42: 47 | Q42: 20 | R42: 17 | T42: 17 | U42: 17 | V42: 17 | W42: 17 | X42: 63 | Y42: 55 | AB42: 63 | AC42: 55 | AD42: 63 | AE42: 55 | AF42: 63 | AG42: 55 | AH42: 63 | AI42: 55 | AJ42: 30 | AL42: 30 | AM42: 30 | AN42: 30 | AO42: 30 | AP42: 47 | AR42: 47 | AS42: 47 | AT42: 47 | AU42: 47
B43: 32 | E43: =SW!G41 -> TAUFIQ KURROHMAN | F43: 43 | G43: 15 | J43: 43 | K43: 15 | L43: 43 | M43: 15 | N43: 43 | O43: 15 | P43: 43 | Q43: 15 | R43: 15 | T43: 15 | U43: 15 | V43: 15 | W43: 15 | X43: 72 | Y43: 70 | AB43: 72 | AC43: 70 | AD43: 72 | AE43: 70 | AF43: 72 | AG43: 70 | AH43: 72 | AI43: 70 | AJ43: 36 | AL43: 36 | AM43: 36 | AN43: 36 | AO43: 36 | AP43: 51 | AR43: 51 | AS43: 51 | AT43: 51 | AU43: 51
B44: 33 | E44: =SW!G42 -> 0
B45: 34 | E45: =SW!G43 -> 0
B46: 35 | E46: =SW!G44 -> 0
B47: 36 | E47: =SW!G45 -> 0
B48: 37 | E48: =SW!G46 -> 0
B49: 38 | E49: =SW!G47 -> 0
B50: 39 | E50: =SW!G48 -> 0
B51: 40 | E51: =SW!G49 -> 0
B52: 41 | E52: =SW!G50 -> 0
B53: 42 | E53: =SW!G51 -> 0
B54: 43 | E54: =SW!G52 -> 0
B55: 44 | E55: =SW!G53 -> 0
B56: 45 | E56: =SW!G54 -> 0
B57: 46 | E57: =SW!G55 -> 0
B58: 47 | E58: =SW!G56 -> 0
B59: 48 | E59: =SW!G57 -> 0
B60: 49 | E60: =SW!G58 -> 0
B61: 50 | E61: =SW!G59 -> 0
B62: 51 | E62: =SW!G60 -> 0
B63: 52 | E63: =SW!G61 -> 0
B64: 53 | E64: =SW!G62 -> 0
B65: 54 | E65: =SW!G63 -> 0
B66: 55 | E66: =SW!G64 -> 0
B67: 56 | E67: =SW!G65 -> 0
B68: 57 | E68: =SW!G66 -> 0
B69: 58 | E69: =SW!G67 -> 0
B70: 59 | E70: =SW!G68 -> 0 | AS70: =IFERROR(ROUND(AVERAGE(U70+AM70),0),"") -> 
B71: 60 | E71: =SW!G69 -> 0 | AP71: =IFERROR(ROUND(AVERAGE(R71+AJ71),0),"") -> 
B72: 61 | E72: =SW!G70 -> 0
B73: 62 | E73: =SW!G71 -> 0
B74: 63 | E74: =SW!G72 -> 0
B75: 64 | E75: =SW!G73 -> 0
B76: 65 | E76: =SW!G74 -> 0
B77: 66 | E77: =SW!G75 -> 0 | R77: =IFERROR(ROUND(AVERAGE(F77:G77)*$R$9,0),"") ->  | S77: =IFERROR(ROUND(AVERAGE(H77:I77)*$R$9,0),"") ->  | T77: =IFERROR(ROUND(AVERAGE(J77:K77)*$R$9,0),"") ->  | U77: =IFERROR(ROUND(AVERAGE(L77:M77)*$R$9,0),"") ->  | V77: =IFERROR(ROUND(AVERAGE(N77:O77)*$R$9,0),"") ->  | W77: =IFERROR(ROUND(AVERAGE(P77:Q77)*$R$9,0),"") ->  | AJ77: =IFERROR(ROUND(AVERAGE(X77:Y77)*$AJ$9,0),"") ->  | AK77: =IFERROR(ROUND(AVERAGE(Z77:AA77)*$AJ$9,0),"") ->  | AL77: =IFERROR(ROUND(AVERAGE(AB77:AC77)*$AJ$9,0),"") ->  | AM77: =IFERROR(ROUND(AVERAGE(AD77:AE77)*$AJ$9,0),"") ->  | AN77: =IFERROR(ROUND(AVERAGE(AF77:AG77)*$AJ$9,0),"") ->  | AO77: =IFERROR(ROUND(AVERAGE(AH77:AI77)*$AJ$9,0),"") -> 
B78: 67 | E78: =SW!G76 -> 0
B79: 68 | E79: =SW!G77 -> 0
B80: 69 | E80: =SW!G78 -> 0
B81: 70 | E81: =SW!G79 -> 0
B82: 71 | E82: =SW!G80 -> 0
B83: 72 | E83: =SW!G81 -> 0
B84: 73 | E84: =SW!G82 -> 0
B85: 74 | E85: =SW!G83 -> 0
B86: 75 | E86: =SW!G84 -> 0
B87: 76 | E87: =SW!G85 -> 0
B88: 77 | E88: =SW!G86 -> 0
B89: 78 | E89: =SW!G87 -> 0
B90: 79 | E90: =SW!G88 -> 0
B91: 80 | E91: =SW!G89 -> 0
B92: 81 | E92: =SW!G90 -> 0
B93: 82 | E93: =SW!G91 -> 0
B94: 83 | E94: =SW!G92 -> 0
B95: 84 | E95: =SW!G93 -> 0
B96: 85 | E96: =SW!G94 -> 0
B97: 86 | E97: =SW!G95 -> 0
B98: 87 | E98: =SW!G96 -> 0
B99: 88 | E99: =SW!G97 -> 0
B100: 89 | E100: =SW!G98 -> 0

Sheet T3
B2: D A F T A R N I L A I
B4: MATA PELAJARAN | F4: : | G4: =RTM!AD5 -> TEMA 3 | AQ4: ۩MENU↗
B5: KELAS | F5: : | G5: =UPPER(MN!D22) -> V B | U5: TEMA 1 | X5: TEMA 2 | AA5: TEMA 3 | AD5: TEMA 4 | AG5: TEMA 5 | AJ5: TEMA 6 | AM5: REKAP
B6: TAHUN PELAJARAN | F6: : | G6: =MN!D18 -> 2019 - 2020
B9: No | E9: Nama Siswa | F9: NILAI PG | R9: 0.5 | X9: NILAI ESSAY | AJ9: =100%-R9 -> 0.5 | AP9: JUMLAH
C10: No. Induk | D10: NISN | F10: BIN | H10: MTK | J10: IPA | L10: PPKn | N10: IPS | P10: SBDP | X10: BIN | Z10: MTK | AB10: IPA | AD10: PPKn | AF10: IPS | AH10: SBDP
F11: Naskah 1 | G11: Naskah 2 | H11: Naskah 1 | I11: Naskah 2 | J11: Naskah 1 | K11: Naskah 2 | L11: Naskah 1 | M11: Naskah 2 | N11: Naskah 1 | O11: Naskah 2 | P11: Naskah 1 | Q11: Naskah 2 | R11: BIN | S11: MTK | T11: IPA | U11: PPKn | V11: IPS | W11: SBDP | X11: Naskah 1 | Y11: Naskah 2 | Z11: Naskah 1 | AA11: Naskah 2 | AB11: Naskah 1 | AC11: Naskah 2 | AD11: Naskah 1 | AE11: Naskah 2 | AF11: Naskah 1 | AG11: Naskah 2 | AH11: Naskah 1 | AI11: Naskah 2 | AJ11: BIN | AK11: MTK | AL11: IPA | AM11: PPKn | AN11: IPS | AO11: SBDP | AP11: BIN | AQ11: MTK | AR11: IPA | AS11: PPKn | AT11: IPS | AU11: SBDP
B12: 1 | E12: =SW!G10 -> ABD. ROCHMAN NAJA FATLAN PRATAMA | F12: 17 | G12: 30 | J12: 17 | K12: 30 | L12: 17 | M12: 30 | N12: 17 | O12: 30 | P12: 17 | Q12: 30 | R12: =IFERROR(ROUND(AVERAGE(F12:G12)*$R$9,0),"") -> 12 | S12: =IFERROR(ROUND(AVERAGE(H12:I12)*$R$9,0),"") ->  | T12: =IFERROR(ROUND(AVERAGE(J12:K12)*$R$9,0),"") -> 12 | U12: =IFERROR(ROUND(AVERAGE(L12:M12)*$R$9,0),"") -> 12 | V12: =IFERROR(ROUND(AVERAGE(N12:O12)*$R$9,0),"") -> 12 | W12: =IFERROR(ROUND(AVERAGE(P12:Q12)*$R$9,0),"") -> 12 | X12: 37 | Y12: 30 | AB12: 37 | AC12: 30 | AD12: 37 | AE12: 30 | AF12: 37 | AG12: 30 | AH12: 37 | AI12: 30 | AJ12: =IFERROR(ROUND(AVERAGE(X12:Y12)*$AJ$9,0),"") -> 17 | AK12: =IFERROR(ROUND(AVERAGE(Z12:AA12)*$AJ$9,0),"") ->  | AL12: =IFERROR(ROUND(AVERAGE(AB12:AC12)*$AJ$9,0),"") -> 17 | AM12: =IFERROR(ROUND(AVERAGE(AD12:AE12)*$AJ$9,0),"") -> 17 | AN12: =IFERROR(ROUND(AVERAGE(AF12:AG12)*$AJ$9,0),"") -> 17 | AO12: =IFERROR(ROUND(AVERAGE(AH12:AI12)*$AJ$9,0),"") -> 17 | AP12: =IFERROR(ROUND(AVERAGE(R12+AJ12),0),"") -> 29 | AR12: 29 | AS12: 29 | AT12: 29 | AU12: 29
B13: 2 | E13: =SW!G11 -> ABDURRAHMAN FAQIH | F13: 33 | G13: 25 | J13: 33 | K13: 25 | L13: 33 | M13: 25 | N13: 33 | O13: 25 | P13: 33 | Q13: 25 | R13: =IFERROR(ROUND(AVERAGE(F13:G13)*$R$9,0),"") -> 15 | S13: =IFERROR(ROUND(AVERAGE(H13:I13)*$R$9,0),"") ->  | T13: =IFERROR(ROUND(AVERAGE(J13:K13)*$R$9,0),"") -> 15 | U13: =IFERROR(ROUND(AVERAGE(L13:M13)*$R$9,0),"") -> 15 | V13: =IFERROR(ROUND(AVERAGE(N13:O13)*$R$9,0),"") -> 15 | W13: =IFERROR(ROUND(AVERAGE(P13:Q13)*$R$9,0),"") -> 15 | X13: 56 | Y13: 20 | AB13: 56 | AC13: 20 | AD13: 56 | AE13: 20 | AF13: 56 | AG13: 20 | AH13: 56 | AI13: 20 | AJ13: =IFERROR(ROUND(AVERAGE(X13:Y13)*$AJ$9,0),"") -> 19 | AL13: =IFERROR(ROUND(AVERAGE(AB13:AC13)*$AJ$9,0),"") -> 19 | AM13: =IFERROR(ROUND(AVERAGE(AD13:AE13)*$AJ$9,0),"") -> 19 | AN13: =IFERROR(ROUND(AVERAGE(AF13:AG13)*$AJ$9,0),"") -> 19 | AO13: =IFERROR(ROUND(AVERAGE(AH13:AI13)*$AJ$9,0),"") -> 19 | AP13: 34 | AR13: 34 | AS13: 34 | AT13: 34 | AU13: 34
B14: 3 | E14: =SW!G12 -> ACHMAD FARROIHUN MUSHOBIRONILLAH | F14: 40 | G14: 40 | J14: 40 | K14: 40 | L14: 40 | M14: 40 | N14: 40 | O14: 40 | P14: 40 | Q14: 40 | R14: 20 | T14: 20 | U14: 20 | V14: 20 | W14: 20 | X14: 48 | Y14: 30 | AB14: 48 | AC14: 30 | AD14: 48 | AE14: 30 | AF14: 48 | AG14: 30 | AH14: 48 | AI14: 30 | AJ14: 20 | AL14: 20 | AM14: 20 | AN14: 20 | AO14: 20 | AP14: 40 | AR14: 40 | AS14: 40 | AT14: 40 | AU14: 40
B15: 4 | E15: =SW!G13 -> ACHMAD HASBI ASSIDDIQI | F15: 37 | G15: 35 | J15: 37 | K15: 35 | L15: 37 | M15: 35 | N15: 37 | O15: 35 | P15: 37 | Q15: 35 | R15: 18 | T15: 18 | U15: 18 | V15: 18 | W15: 18 | X15: 25 | Y15: 20 | AB15: 25 | AC15: 20 | AD15: 25 | AE15: 20 | AF15: 25 | AG15: 20 | AH15: 25 | AI15: 20 | AJ15: 11 | AL15: 11 | AM15: 11 | AN15: 11 | AO15: 11 | AP15: 29 | AR15: 29 | AS15: 29 | AT15: 29 | AU15: 29
B16: 5 | E16: =SW!G14 -> ACHMAD REZA AKRAM ALAUDDIN | F16: 73 | G16: 70 | J16: 73 | K16: 70 | L16: 73 | M16: 70 | N16: 73 | O16: 70 | P16: 73 | Q16: 70 | R16: 36 | T16: 36 | U16: 36 | V16: 36 | W16: 36 | X16: 59 | Y16: 40 | AB16: 59 | AC16: 40 | AD16: 59 | AE16: 40 | AF16: 59 | AG16: 40 | AH16: 59 | AI16: 40 | AJ16: 25 | AL16: 25 | AM16: 25 | AN16: 25 | AO16: 25 | AP16: 61 | AR16: 61 | AS16: 61 | AT16: 61 | AU16: 61
B17: 6 | E17: =SW!G15 -> ACHMAD YANI | F17: 60 | G17: 40 | J17: 60 | K17: 40 | L17: 60 | M17: 40 | N17: 60 | O17: 40 | P17: 60 | Q17: 40 | R17: 25 | T17: 25 | U17: 25 | V17: 25 | W17: 25 | X17: 70 | Y17: 30 | AB17: 70 | AC17: 30 | AD17: 70 | AE17: 30 | AF17: 70 | AG17: 30 | AH17: 70 | AI17: 30 | AJ17: 25 | AL17: 25 | AM17: 25 | AN17: 25 | AO17: 25 | AP17: 50 | AR17: 50 | AS17: 50 | AT17: 50 | AU17: 50
B18: 7 | E18: =SW!G16 -> AKHMAD RIDWAN | F18: 50 | G18: 55 | J18: 50 | K18: 55 | L18: 50 | M18: 55 | N18: 50 | O18: 55 | P18: 50 | Q18: 55 | R18: 26 | T18: 26 | U18: 26 | V18: 26 | W18: 26 | X18: 48 | Y18: 60 | AB18: 48 | AC18: 60 | AD18: 48 | AE18: 60 | AF18: 48 | AG18: 60 | AH18: 48 | AI18: 60 | AJ18: 27 | AL18: 27 | AM18: 27 | AN18: 27 | AO18: 27 | AP18: 53 | AR18: 53 | AS18: 53 | AT18: 53 | AU18: 53
B19: 8 | E19: =SW!G17 -> ANDREAN DWI YULIANO | F19: 33 | G19: 30 | J19: 33 | K19: 30 | L19: 33 | M19: 30 | N19: 33 | O19: 30 | P19: 33 | Q19: 30 | R19: 16 | T19: 16 | U19: 16 | V19: 16 | W19: 16 | X19: 30 | Y19: 60 | AB19: 30 | AC19: 60 | AD19: 30 | AE19: 60 | AF19: 30 | AG19: 60 | AH19: 30 | AI19: 60 | AJ19: 23 | AL19: 23 | AM19: 23 | AN19: 23 | AO19: 23 | AP19: 39 | AR19: 39 | AS19: 39 | AT19: 39 | AU19: 39
B20: 9 | E20: =SW!G18 -> ASFAN FAKHRI BARANI | F20: 53 | G20: 55 | J20: 53 | K20: 55 | L20: 53 | M20: 55 | N20: 53 | O20: 55 | P20: 53 | Q20: 55 | R20: 27 | T20: 27 | U20: 27 | V20: 27 | W20: 27 | X20: 56 | Y20: 30 | AB20: 56 | AC20: 30 | AD20: 56 | AE20: 30 | AF20: 56 | AG20: 30 | AH20: 56 | AI20: 30 | AJ20: 22 | AL20: 22 | AM20: 22 | AN20: 22 | AO20: 22 | AP20: 49 | AR20: 49 | AS20: 49 | AT20: 49 | AU20: 49
B21: 10 | E21: =SW!G19 -> DEVAN ADITYA SAPUTRA | F21: 53 | G21: 35 | J21: 53 | K21: 35 | L21: 53 | M21: 35 | N21: 53 | O21: 35 | P21: 53 | Q21: 35 | R21: 22 | T21: 22 | U21: 22 | V21: 22 | W21: 22 | X21: 60 | Y21: 78 | AB21: 60 | AC21: 78 | AD21: 60 | AE21: 78 | AF21: 60 | AG21: 78 | AH21: 60 | AI21: 78 | AJ21: 35 | AL21: 35 | AM21: 35 | AN21: 35 | AO21: 35 | AP21: 57 | AR21: 57 | AS21: 57 | AT21: 57 | AU21: 57
B22: 11 | E22: =SW!G20 -> FAHRUL AHMAD FAHREZA | F22: 53 | G22: 50 | J22: 53 | K22: 50 | L22: 53 | M22: 50 | N22: 53 | O22: 50 | P22: 53 | Q22: 50 | R22: 26 | T22: 26 | U22: 26 | V22: 26 | W22: 26 | X22: 84 | Y22: 20 | AB22: 84 | AC22: 20 | AD22: 84 | AE22: 20 | AF22: 84 | AG22: 20 | AH22: 84 | AI22: 20 | AJ22: 26 | AL22: 26 | AM22: 26 | AN22: 26 | AO22: 26 | AP22: 52 | AR22: 52 | AS22: 52 | AT22: 52 | AU22: 52
B23: 12 | E23: =SW!G21 -> FAUZIA AMELIA PUTRI | F23: 47 | G23: 45 | J23: 47 | K23: 45 | L23: 47 | M23: 45 | N23: 47 | O23: 45 | P23: 47 | Q23: 45 | R23: 23 | T23: 23 | U23: 23 | V23: 23 | W23: 23 | X23: 60 | Y23: 40 | AB23: 60 | AC23: 40 | AD23: 60 | AE23: 40 | AF23: 60 | AG23: 40 | AH23: 60 | AI23: 40 | AJ23: 25 | AL23: 25 | AM23: 25 | AN23: 25 | AO23: 25 | AP23: 48 | AR23: 48 | AS23: 48 | AT23: 48 | AU23: 48
B24: 13 | E24: =SW!G22 -> FAZA AZIFAH SALSABILA | F24: 47 | G24: 40 | J24: 47 | K24: 40 | L24: 47 | M24: 40 | N24: 47 | O24: 40 | P24: 47 | Q24: 40 | R24: 22 | T24: 22 | U24: 22 | V24: 22 | W24: 22 | X24: 48 | Y24: 40 | AB24: 48 | AC24: 40 | AD24: 48 | AE24: 40 | AF24: 48 | AG24: 40 | AH24: 48 | AI24: 40 | AJ24: 22 | AL24: 22 | AM24: 22 | AN24: 22 | AO24: 22 | AP24: 44 | AR24: 44 | AS24: 44 | AT24: =IFERROR(ROUND(AVERAGE(V24+AN24),0),"") -> 44 | AU24: 44
B25: 14 | E25: =SW!G23 -> HABIBIE NURUSSALAM | F25: 53 | G25: 65 | J25: 53 | K25: 65 | L25: 53 | M25: 65 | N25: 53 | O25: 65 | P25: 53 | Q25: 65 | R25: 30 | T25: 30 | U25: 30 | V25: 30 | W25: 30 | X25: 59 | Y25: 30 | AB25: 59 | AC25: 30 | AD25: 59 | AE25: 30 | AF25: 59 | AG25: 30 | AH25: 59 | AI25: 30 | AJ25: 22 | AL25: 22 | AM25: 22 | AN25: 22 | AO25: 22 | AP25: 52 | AR25: 52 | AS25: 52 | AT25: 52 | AU25: 52
B26: 15 | E26: =SW!G24 -> HIMATURROSYIDAH | F26: 53 | G26: 55 | J26: 53 | K26: 55 | L26: 53 | M26: 55 | N26: 53 | O26: 55 | P26: 53 | Q26: 55 | R26: 27 | T26: 27 | U26: 27 | V26: 27 | W26: 27 | X26: 56 | Y26: 40 | AB26: 56 | AC26: 40 | AD26: 56 | AE26: 40 | AF26: 56 | AG26: 40 | AH26: 56 | AI26: 40 | AJ26: 24 | AL26: 24 | AM26: 24 | AN26: 24 | AO26: 24 | AP26: 51 | AR26: 51 | AS26: 51 | AT26: 51 | AU26: 51
B27: 16 | E27: =SW!G25 -> IFKARINA NAILA SAUQYA | F27: 53 | G27: 65 | J27: 53 | K27: 65 | L27: 53 | M27: 65 | N27: 53 | O27: 65 | P27: 53 | Q27: 65 | R27: 30 | T27: 30 | U27: 30 | V27: 30 | W27: 30 | X27: 78 | Y27: 40 | AB27: 78 | AC27: 40 | AD27: 78 | AE27: 40 | AF27: 78 | AG27: 40 | AH27: 78 | AI27: 40 | AJ27: 30 | AL27: 30 | AM27: 30 | AN27: 30 | AO27: 30 | AP27: 60 | AR27: 60 | AS27: 60 | AT27: 60 | AU27: 60
B28: 17 | E28: =SW!G26 -> KEISA AYU SASKIYAH | F28: 33 | G28: 30 | J28: 33 | K28: 30 | L28: 33 | M28: 30 | N28: 33 | O28: 30 | P28: 33 | Q28: 30 | R28: 16 | T28: 16 | U28: 16 | V28: 16 | W28: 16 | X28: 48 | Y28: 40 | AB28: 48 | AC28: 40 | AD28: 48 | AE28: 40 | AF28: 48 | AG28: 40 | AH28: 48 | AI28: 40 | AJ28: 22 | AL28: 22 | AM28: 22 | AN28: 22 | AO28: 22 | AP28: =IFERROR(ROUND(AVERAGE(R28+AJ28),0),"") -> 38 | AR28: 38 | AS28: 38 | AT28: 38 | AU28: 38
B29: 18 | E29: =SW!G27 -> MOCHAMMAD RENO FIRMANSYAH | F29: 27 | G29: 30 | J29: 27 | K29: 30 | L29: 27 | M29: 30 | N29: 27 | O29: 30 | P29: 27 | Q29: 30 | R29: 14 | T29: 14 | U29: 14 | V29: 14 | W29: 14 | X29: 30 | Y29: 40 | AB29: 30 | AC29: 40 | AD29: 30 | AE29: 40 | AF29: 30 | AG29: 40 | AH29: 30 | AI29: 40 | AJ29: 18 | AL29: 18 | AM29: 18 | AN29: 18 | AO29: 18 | AP29: 32 | AR29: 32 | AS29: 32 | AT29: 32 | AU29: 32
B30: 19 | E30: =SW!G28 -> MOHAMAD NUR KHAFID KHABIBULLOH | F30: 57 | G30: 65 | J30: 57 | K30: 65 | L30: 57 | M30: 65 | N30: 57 | O30: 65 | P30: 57 | Q30: 65 | R30: 31 | T30: 31 | U30: 31 | V30: 31 | W30: 31 | X30: 51 | Y30: 40 | AB30: 51 | AC30: 40 | AD30: 51 | AE30: 40 | AF30: 51 | AG30: 40 | AH30: 51 | AI30: 40 | AJ30: 23 | AL30: 23 | AM30: 23 | AN30: 23 | AO30: 23 | AP30: 54 | AR30: 54 | AS30: 54 | AT30: 54 | AU30: 54
B31: 20 | E31: =SW!G29 -> MOHAMMAD NAUFAL NAWWARUDDIN | F31: 33 | G31: 40 | J31: 33 | K31: 40 | L31: 33 | M31: 40 | N31: 33 | O31: 40 | P31: 33 | Q31: 40 | R31: 18 | T31: 18 | U31: 18 | V31: 18 | W31: 18 | X31: 30 | Y31: 40 | AB31: 30 | AC31: 40 | AD31: 30 | AE31: 40 | AF31: 30 | AG31: 40 | AH31: 30 | AI31: 40 | AJ31: 18 | AL31: 18 | AM31: 18 | AN31: 18 | AO31: 18 | AP31: 36 | AR31: 36 | AS31: 36 | AT31: 36 | AU31: 36
B32: 21 | E32: =SW!G30 -> MUCHAMAD PRIMA PAMBUDI | F32: 30 | G32: 15 | J32: 30 | K32: 15 | L32: 30 | M32: 15 | N32: 30 | O32: 15 | P32: 30 | Q32: 15 | R32: 11 | T32: 11 | U32: 11 | V32: 11 | W32: 11 | X32: 40 | Y32: 70 | AB32: 40 | AC32: 70 | AD32: 40 | AE32: 70 | AF32: 40 | AG32: 70 | AH32: 40 | AI32: 70 | AJ32: 28 | AL32: 28 | AM32: 28 | AN32: 28 | AO32: 28 | AP32: 39 | AR32: 39 | AS32: 39 | AT32: 39 | AU32: 39
B33: 22 | E33: =SW!G31 -> MUHAMMAD ALFAN FATHONI | F33: 30 | G33: 30 | J33: 30 | K33: 30 | L33: 30 | M33: 30 | N33: 30 | O33: 30 | P33: 30 | Q33: 30 | R33: 15 | T33: 15 | U33: 15 | V33: 15 | W33: 15 | X33: 45 | Y33: 55 | AB33: 45 | AC33: 55 | AD33: 45 | AE33: 55 | AF33: 45 | AG33: 55 | AH33: 45 | AI33: 55 | AJ33: 25 | AL33: 25 | AM33: 25 | AN33: 25 | AO33: 25 | AP33: 40 | AR33: 40 | AS33: 40 | AT33: 40 | AU33: 40
B34: 23 | E34: =SW!G32 -> MUHAMMAD AMINULLAH MAULUDANI | F34: 30 | G34: 35 | J34: 30 | K34: 35 | L34: 30 | M34: 35 | N34: 30 | O34: 35 | P34: 30 | Q34: 35 | R34: 16 | T34: 16 | U34: 16 | V34: 16 | W34: 16 | X34: 40 | Y34: 20 | AB34: 40 | AC34: 20 | AD34: 40 | AE34: 20 | AF34: 40 | AG34: 20 | AH34: 40 | AI34: 20 | AJ34: 15 | AL34: 15 | AM34: 15 | AN34: 15 | AO34: 15 | AP34: 31 | AR34: 31 | AS34: 31 | AT34: 31 | AU34: 31
B35: 24 | E35: =SW!G33 -> MUHAMMAD DAVIN LEVANTINO | F35: 50 | G35: 35 | J35: 50 | K35: 35 | L35: 50 | M35: 35 | N35: 50 | O35: 35 | P35: 50 | Q35: 35 | R35: 21 | T35: 21 | U35: 21 | V35: 21 | W35: 21 | X35: 70 | Y35: 60 | AB35: 70 | AC35: 60 | AD35: 70 | AE35: 60 | AF35: 70 | AG35: 60 | AH35: 70 | AI35: 60 | AJ35: 33 | AL35: 33 | AM35: 33 | AN35: 33 | AO35: 33 | AP35: 54 | AR35: 54 | AS35: 54 | AT35: 54 | AU35: 54
B36: 25 | E36: =SW!G34 -> MUHAMMAD MAULANA PAHLEVY | F36: 30 | G36: 15 | J36: 30 | K36: 15 | L36: 30 | M36: 15 | N36: 30 | O36: 15 | P36: 30 | Q36: 15 | R36: 11 | T36: 11 | U36: 11 | V36: 11 | W36: 11 | X36: 54 | Y36: 60 | AB36: 54 | AC36: 60 | AD36: 54 | AE36: 60 | AF36: 54 | AG36: 60 | AH36: 54 | AI36: 60 | AJ36: 29 | AL36: 29 | AM36: 29 | AN36: 29 | AO36: 29 | AP36: 40 | AR36: 40 | AS36: 40 | AT36: 40 | AU36: 40
B37: 26 | E37: =SW!G35 -> RADITYA NIRWANSYAH | F37: 23 | G37: 30 | J37: 23 | K37: 30 | L37: 23 | M37: 30 | N37: 23 | O37: 30 | P37: 23 | Q37: 30 | R37: 13 | T37: 13 | U37: 13 | V37: 13 | W37: 13 | X37: 60 | Y37: 20 | AB37: 60 | AC37: 20 | AD37: 60 | AE37: 20 | AF37: 60 | AG37: 20 | AH37: 60 | AI37: 20 | AJ37: 20 | AL37: 20 | AM37: 20 | AN37: 20 | AO37: 20 | AP37: 33 | AR37: 33 | AS37: 33 | AT37: 33 | AU37: 33
B38: 27 | E38: =SW!G36 -> REVINA SRI UTARI | F38: 17 | G38: 40 | J38: 17 | K38: 40 | L38: 17 | M38: 40 | N38: 17 | O38: 40 | P38: 17 | Q38: 40 | R38: 14 | T38: 14 | U38: 14 | V38: 14 | W38: 14 | X38: 70 | Y38: 40 | AB38: 70 | AC38: 40 | AD38: 70 | AE38: 40 | AF38: 70 | AG38: 40 | AH38: 70 | AI38: 40 | AJ38: 28 | AL38: 28 | AM38: 28 | AN38: 28 | AO38: 28 | AP38: 42 | AR38: 42 | AS38: 42 | AT38: 42 | AU38: 42
B39: 28 | E39: =SW!G37 -> REYHAN DWI ANDIKA | F39: 20 | G39: 10 | J39: 20 | K39: 10 | L39: 20 | M39: 10 | N39: 20 | O39: 10 | P39: 20 | Q39: 10 | R39: 8 | T39: 8 | U39: 8 | V39: 8 | W39: 8 | X39: 37 | Y39: 30 | AB39: 37 | AC39: 30 | AD39: 37 | AE39: 30 | AF39: 37 | AG39: 30 | AH39: 37 | AI39: 30 | AJ39: 17 | AL39: 17 | AM39: 17 | AN39: 17 | AO39: 17 | AP39: 25 | AR39: 25 | AS39: 25 | AT39: 25 | AU39: 25
B40: 29 | E40: =SW!G38 -> RISKA LAURA TRIA OCTAVIA | X40: 84 | Y40: 70 | AB40: 84 | AC40: 70 | AD40: 84 | AE40: 70 | AF40: 84 | AG40: 70 | AH40: 84 | AI40: 70 | AJ40: 39 | AL40: 39 | AM40: 39 | AN40: 39 | AO40: 39
B41: 30 | E41: =SW!G39 -> ROHMADONA DWI SAFITRI | F41: 50 | G41: 50 | J41: 50 | K41: 50 | L41: 50 | M41: 50 | N41: 50 | O41: 50 | P41: 50 | Q41: 50 | R41: 25 | T41: 25 | U41: 25 | V41: 25 | W41: 25 | X41: 70 | Y41: 40 | AB41: 70 | AC41: 40 | AD41: 70 | AE41: 40 | AF41: 70 | AG41: 40 | AH41: 70 | AI41: 40 | AJ41: 28 | AL41: 28 | AM41: 28 | AN41: 28 | AO41: 28 | AP41: 53 | AR41: 53 | AS41: 53 | AT41: 53 | AU41: 53
B42: 31 | E42: =SW!G40 -> SALMAN ALFARIZI | F42: 30 | G42: 25 | J42: 30 | K42: 25 | L42: 30 | M42: 25 | N42: 30 | O42: 25 | P42: 30 | Q42: 25 | R42: 14 | T42: 14 | U42: 14 | V42: 14 | W42: 14 | X42: 59 | Y42: 30 | AB42: 59 | AC42: 30 | AD42: 59 | AE42: 30 | AF42: 59 | AG42: 30 | AH42: 59 | AI42: 30 | AJ42: 22 | AL42: 22 | AM42: 22 | AN42: 22 | AO42: 22 | AP42: 36 | AR42: 36 | AS42: 36 | AT42: 36 | AU42: 36
B43: 32 | E43: =SW!G41 -> TAUFIQ KURROHMAN | F43: 43 | G43: 35 | J43: 43 | K43: 35 | L43: 43 | M43: 35 | N43: 43 | O43: 35 | P43: 43 | Q43: 35 | R43: 20 | T43: 20 | U43: 20 | V43: 20 | W43: 20 | X43: 62 | Y43: 20 | AB43: 62 | AC43: 20 | AD43: 62 | AE43: 20 | AF43: 62 | AG43: 20 | AH43: 62 | AI43: 20 | AJ43: 21 | AL43: 21 | AM43: 21 | AN43: 21 | AO43: 21 | AP43: 41 | AR43: 41 | AS43: 41 | AT43: 41 | AU43: 41
B44: 33 | E44: =SW!G42 -> 0
B45: 34 | E45: =SW!G43 -> 0
B46: 35 | E46: =SW!G44 -> 0
B47: 36 | E47: =SW!G45 -> 0
B48: 37 | E48: =SW!G46 -> 0
B49: 38 | E49: =SW!G47 -> 0
B50: 39 | E50: =SW!G48 -> 0
B51: 40 | E51: =SW!G49 -> 0
B52: 41 | E52: =SW!G50 -> 0
B53: 42 | E53: =SW!G51 -> 0
B54: 43 | E54: =SW!G52 -> 0
B55: 44 | E55: =SW!G53 -> 0
B56: 45 | E56: =SW!G54 -> 0
B57: 46 | E57: =SW!G55 -> 0
B58: 47 | E58: =SW!G56 -> 0
B59: 48 | E59: =SW!G57 -> 0
B60: 49 | E60: =SW!G58 -> 0
B61: 50 | E61: =SW!G59 -> 0
B62: 51 | E62: =SW!G60 -> 0
B63: 52 | E63: =SW!G61 -> 0
B64: 53 | E64: =SW!G62 -> 0
B65: 54 | E65: =SW!G63 -> 0
B66: 55 | E66: =SW!G64 -> 0
B67: 56 | E67: =SW!G65 -> 0
B68: 57 | E68: =SW!G66 -> 0
B69: 58 | E69: =SW!G67 -> 0
B70: 59 | E70: =SW!G68 -> 0 | AS70: =IFERROR(ROUND(AVERAGE(U70+AM70),0),"") -> 
B71: 60 | E71: =SW!G69 -> 0 | AP71: =IFERROR(ROUND(AVERAGE(R71+AJ71),0),"") -> 
B72: 61 | E72: =SW!G70 -> 0
B73: 62 | E73: =SW!G71 -> 0
B74: 63 | E74: =SW!G72 -> 0
B75: 64 | E75: =SW!G73 -> 0
B76: 65 | E76: =SW!G74 -> 0
B77: 66 | E77: =SW!G75 -> 0 | R77: =IFERROR(ROUND(AVERAGE(F77:G77)*$R$9,0),"") ->  | S77: =IFERROR(ROUND(AVERAGE(H77:I77)*$R$9,0),"") ->  | T77: =IFERROR(ROUND(AVERAGE(J77:K77)*$R$9,0),"") ->  | U77: =IFERROR(ROUND(AVERAGE(L77:M77)*$R$9,0),"") ->  | V77: =IFERROR(ROUND(AVERAGE(N77:O77)*$R$9,0),"") ->  | W77: =IFERROR(ROUND(AVERAGE(P77:Q77)*$R$9,0),"") ->  | AJ77: =IFERROR(ROUND(AVERAGE(X77:Y77)*$AJ$9,0),"") ->  | AK77: =IFERROR(ROUND(AVERAGE(Z77:AA77)*$AJ$9,0),"") ->  | AL77: =IFERROR(ROUND(AVERAGE(AB77:AC77)*$AJ$9,0),"") ->  | AM77: =IFERROR(ROUND(AVERAGE(AD77:AE77)*$AJ$9,0),"") ->  | AN77: =IFERROR(ROUND(AVERAGE(AF77:AG77)*$AJ$9,0),"") ->  | AO77: =IFERROR(ROUND(AVERAGE(AH77:AI77)*$AJ$9,0),"") -> 
B78: 67 | E78: =SW!G76 -> 0
B79: 68 | E79: =SW!G77 -> 0
B80: 69 | E80: =SW!G78 -> 0
B81: 70 | E81: =SW!G79 -> 0
B82: 71 | E82: =SW!G80 -> 0
B83: 72 | E83: =SW!G81 -> 0
B84: 73 | E84: =SW!G82 -> 0
B85: 74 | E85: =SW!G83 -> 0
B86: 75 | E86: =SW!G84 -> 0
B87: 76 | E87: =SW!G85 -> 0
B88: 77 | E88: =SW!G86 -> 0
B89: 78 | E89: =SW!G87 -> 0
B90: 79 | E90: =SW!G88 -> 0
B91: 80 | E91: =SW!G89 -> 0
B92: 81 | E92: =SW!G90 -> 0
B93: 82 | E93: =SW!G91 -> 0
B94: 83 | E94: =SW!G92 -> 0
B95: 84 | E95: =SW!G93 -> 0
B96: 85 | E96: =SW!G94 -> 0
B97: 86 | E97: =SW!G95 -> 0
B98: 87 | E98: =SW!G96 -> 0
B99: 88 | E99: =SW!G97 -> 0
B100: 89 | E100: =SW!G98 -> 0

Sheet T4
B2: D A F T A R N I L A I
B4: MATA PELAJARAN | F4: : | G4: =RTM!AG5 -> TEMA 4 | AQ4: ۩MENU↗
B5: KELAS | F5: : | G5: =UPPER(MN!D22) -> V B | U5: TEMA 1 | X5: TEMA 2 | AA5: TEMA 3 | AD5: TEMA 4 | AG5: TEMA 5 | AJ5: TEMA 6 | AM5: REKAP
B6: TAHUN PELAJARAN | F6: : | G6: =MN!D18 -> 2019 - 2020
B9: No | E9: Nama Siswa | F9: NILAI PG | R9: 0.6 | X9: NILAI ESSAY | AJ9: =100%-R9 -> 0.4 | AP9: JUMLAH
C10: No. Induk | D10: NISN | F10: BIN | H10: MTK | J10: IPA | L10: PPKn | N10: IPS | P10: SBDP | X10: BIN | Z10: MTK | AB10: IPA | AD10: PPKn | AF10: IPS | AH10: SBDP
F11: Naskah 1 | G11: Naskah 2 | H11: Naskah 1 | I11: Naskah 2 | J11: Naskah 1 | K11: Naskah 2 | L11: Naskah 1 | M11: Naskah 2 | N11: Naskah 1 | O11: Naskah 2 | P11: Naskah 1 | Q11: Naskah 2 | R11: BIN | S11: MTK | T11: IPA | U11: PPKn | V11: IPS | W11: SBDP | X11: Naskah 1 | Y11: Naskah 2 | Z11: Naskah 1 | AA11: Naskah 2 | AB11: Naskah 1 | AC11: Naskah 2 | AD11: Naskah 1 | AE11: Naskah 2 | AF11: Naskah 1 | AG11: Naskah 2 | AH11: Naskah 1 | AI11: Naskah 2 | AJ11: BIN | AK11: MTK | AL11: IPA | AM11: PPKn | AN11: IPS | AO11: SBDP | AP11: BIN | AQ11: MTK | AR11: IPA | AS11: PPKn | AT11: IPS | AU11: SBDP
B12: 1 | E12: =SW!G10 -> ABD. ROCHMAN NAJA FATLAN PRATAMA | R12: =IFERROR(ROUND(AVERAGE(F12:G12)*$R$9,0),"") ->  | S12: =IFERROR(ROUND(AVERAGE(H12:I12)*$R$9,0),"") ->  | T12: =IFERROR(ROUND(AVERAGE(J12:K12)*$R$9,0),"") ->  | U12: =IFERROR(ROUND(AVERAGE(L12:M12)*$R$9,0),"") ->  | V12: =IFERROR(ROUND(AVERAGE(N12:O12)*$R$9,0),"") ->  | W12: =IFERROR(ROUND(AVERAGE(P12:Q12)*$R$9,0),"") ->  | AJ12: =IFERROR(ROUND(AVERAGE(X12:Y12)*$AJ$9,0),"") ->  | AK12: =IFERROR(ROUND(AVERAGE(Z12:AA12)*$AJ$9,0),"") ->  | AL12: =IFERROR(ROUND(AVERAGE(AB12:AC12)*$AJ$9,0),"") ->  | AM12: =IFERROR(ROUND(AVERAGE(AD12:AE12)*$AJ$9,0),"") ->  | AN12: =IFERROR(ROUND(AVERAGE(AF12:AG12)*$AJ$9,0),"") ->  | AO12: =IFERROR(ROUND(AVERAGE(AH12:AI12)*$AJ$9,0),"") ->  | AP12: =IFERROR(ROUND(AVERAGE(R12+AJ12),0),"") -> 
B13: 2 | E13: =SW!G11 -> ABDURRAHMAN FAQIH | R13: =IFERROR(ROUND(AVERAGE(F13:G13)*$R$9,0),"") ->  | S13: =IFERROR(ROUND(AVERAGE(H13:I13)*$R$9,0),"") ->  | T13: =IFERROR(ROUND(AVERAGE(J13:K13)*$R$9,0),"") ->  | U13: =IFERROR(ROUND(AVERAGE(L13:M13)*$R$9,0),"") ->  | V13: =IFERROR(ROUND(AVERAGE(N13:O13)*$R$9,0),"") ->  | W13: =IFERROR(ROUND(AVERAGE(P13:Q13)*$R$9,0),"") ->  | AJ13: =IFERROR(ROUND(AVERAGE(X13:Y13)*$AJ$9,0),"") ->  | AL13: =IFERROR(ROUND(AVERAGE(AB13:AC13)*$AJ$9,0),"") ->  | AM13: =IFERROR(ROUND(AVERAGE(AD13:AE13)*$AJ$9,0),"") ->  | AN13: =IFERROR(ROUND(AVERAGE(AF13:AG13)*$AJ$9,0),"") ->  | AO13: =IFERROR(ROUND(AVERAGE(AH13:AI13)*$AJ$9,0),"") -> 
B14: 3 | E14: =SW!G12 -> ACHMAD FARROIHUN MUSHOBIRONILLAH
B15: 4 | E15: =SW!G13 -> ACHMAD HASBI ASSIDDIQI
B16: 5 | E16: =SW!G14 -> ACHMAD REZA AKRAM ALAUDDIN
B17: 6 | E17: =SW!G15 -> ACHMAD YANI
B18: 7 | E18: =SW!G16 -> AKHMAD RIDWAN
B19: 8 | E19: =SW!G17 -> ANDREAN DWI YULIANO
B20: 9 | E20: =SW!G18 -> ASFAN FAKHRI BARANI
B21: 10 | E21: =SW!G19 -> DEVAN ADITYA SAPUTRA
B22: 11 | E22: =SW!G20 -> FAHRUL AHMAD FAHREZA
B23: 12 | E23: =SW!G21 -> FAUZIA AMELIA PUTRI
B24: 13 | E24: =SW!G22 -> FAZA AZIFAH SALSABILA
B25: 14 | E25: =SW!G23 -> HABIBIE NURUSSALAM
B26: 15 | E26: =SW!G24 -> HIMATURROSYIDAH
B27: 16 | E27: =SW!G25 -> IFKARINA NAILA SAUQYA
B28: 17 | E28: =SW!G26 -> KEISA AYU SASKIYAH | AP28: =IFERROR(ROUND(AVERAGE(R28+AJ28),0),"") -> 
B29: 18 | E29: =SW!G27 -> MOCHAMMAD RENO FIRMANSYAH
B30: 19 | E30: =SW!G28 -> MOHAMAD NUR KHAFID KHABIBULLOH
B31: 20 | E31: =SW!G29 -> MOHAMMAD NAUFAL NAWWARUDDIN
B32: 21 | E32: =SW!G30 -> MUCHAMAD PRIMA PAMBUDI
B33: 22 | E33: =SW!G31 -> MUHAMMAD ALFAN FATHONI
B34: 23 | E34: =SW!G32 -> MUHAMMAD AMINULLAH MAULUDANI
B35: 24 | E35: =SW!G33 -> MUHAMMAD DAVIN LEVANTINO
B36: 25 | E36: =SW!G34 -> MUHAMMAD MAULANA PAHLEVY
B37: 26 | E37: =SW!G35 -> RADITYA NIRWANSYAH
B38: 27 | E38: =SW!G36 -> REVINA SRI UTARI
B39: 28 | E39: =SW!G37 -> REYHAN DWI ANDIKA
B40: 29 | E40: =SW!G38 -> RISKA LAURA TRIA OCTAVIA
B41: 30 | E41: =SW!G39 -> ROHMADONA DWI SAFITRI
B42: 31 | E42: =SW!G40 -> SALMAN ALFARIZI
B43: 32 | E43: =SW!G41 -> TAUFIQ KURROHMAN
B44: 33 | E44: =SW!G42 -> 0
B45: 34 | E45: =SW!G43 -> 0
B46: 35 | E46: =SW!G44 -> 0
B47: 36 | E47: =SW!G45 -> 0
B48: 37 | E48: =SW!G46 -> 0
B49: 38 | E49: =SW!G47 -> 0
B50: 39 | E50: =SW!G48 -> 0
B51: 40 | E51: =SW!G49 -> 0
B52: 41 | E52: =SW!G50 -> 0
B53: 42 | E53: =SW!G51 -> 0
B54: 43 | E54: =SW!G52 -> 0
B55: 44 | E55: =SW!G53 -> 0
B56: 45 | E56: =SW!G54 -> 0
B57: 46 | E57: =SW!G55 -> 0
B58: 47 | E58: =SW!G56 -> 0
B59: 48 | E59: =SW!G57 -> 0
B60: 49 | E60: =SW!G58 -> 0
B61: 50 | E61: =SW!G59 -> 0
B62: 51 | E62: =SW!G60 -> 0
B63: 52 | E63: =SW!G61 -> 0
B64: 53 | E64: =SW!G62 -> 0
B65: 54 | E65: =SW!G63 -> 0
B66: 55 | E66: =SW!G64 -> 0
B67: 56 | E67: =SW!G65 -> 0
B68: 57 | E68: =SW!G66 -> 0
B69: 58 | E69: =SW!G67 -> 0
B70: 59 | E70: =SW!G68 -> 0 | AS70: =IFERROR(ROUND(AVERAGE(U70+AM70),0),"") -> 
B71: 60 | E71: =SW!G69 -> 0 | AP71: =IFERROR(ROUND(AVERAGE(R71+AJ71),0),"") -> 
B72: 61 | E72: =SW!G70 -> 0
B73: 62 | E73: =SW!G71 -> 0
B74: 63 | E74: =SW!G72 -> 0
B75: 64 | E75: =SW!G73 -> 0
B76: 65 | E76: =SW!G74 -> 0
B77: 66 | E77: =SW!G75 -> 0 | R77: =IFERROR(ROUND(AVERAGE(F77:G77)*$R$9,0),"") ->  | S77: =IFERROR(ROUND(AVERAGE(H77:I77)*$R$9,0),"") ->  | T77: =IFERROR(ROUND(AVERAGE(J77:K77)*$R$9,0),"") ->  | U77: =IFERROR(ROUND(AVERAGE(L77:M77)*$R$9,0),"") ->  | V77: =IFERROR(ROUND(AVERAGE(N77:O77)*$R$9,0),"") ->  | W77: =IFERROR(ROUND(AVERAGE(P77:Q77)*$R$9,0),"") ->  | AJ77: =IFERROR(ROUND(AVERAGE(X77:Y77)*$AJ$9,0),"") ->  | AK77: =IFERROR(ROUND(AVERAGE(Z77:AA77)*$AJ$9,0),"") ->  | AL77: =IFERROR(ROUND(AVERAGE(AB77:AC77)*$AJ$9,0),"") ->  | AM77: =IFERROR(ROUND(AVERAGE(AD77:AE77)*$AJ$9,0),"") ->  | AN77: =IFERROR(ROUND(AVERAGE(AF77:AG77)*$AJ$9,0),"") ->  | AO77: =IFERROR(ROUND(AVERAGE(AH77:AI77)*$AJ$9,0),"") -> 
B78: 67 | E78: =SW!G76 -> 0
B79: 68 | E79: =SW!G77 -> 0
B80: 69 | E80: =SW!G78 -> 0
B81: 70 | E81: =SW!G79 -> 0
B82: 71 | E82: =SW!G80 -> 0
B83: 72 | E83: =SW!G81 -> 0
B84: 73 | E84: =SW!G82 -> 0
B85: 74 | E85: =SW!G83 -> 0
B86: 75 | E86: =SW!G84 -> 0
B87: 76 | E87: =SW!G85 -> 0
B88: 77 | E88: =SW!G86 -> 0
B89: 78 | E89: =SW!G87 -> 0
B90: 79 | E90: =SW!G88 -> 0
B91: 80 | E91: =SW!G89 -> 0
B92: 81 | E92: =SW!G90 -> 0
B93: 82 | E93: =SW!G91 -> 0
B94: 83 | E94: =SW!G92 -> 0
B95: 84 | E95: =SW!G93 -> 0
B96: 85 | E96: =SW!G94 -> 0
B97: 86 | E97: =SW!G95 -> 0
B98: 87 | E98: =SW!G96 -> 0
B99: 88 | E99: =SW!G97 -> 0
B100: 89 | E100: =SW!G98 -> 0

Sheet T5
B2: D A F T A R N I L A I
B4: MATA PELAJARAN | F4: : | G4: =RTM!AJ5 -> TEMA 5 | AQ4: ۩MENU↗
B5: KELAS | F5: : | G5: =UPPER(MN!D22) -> V B | U5: TEMA 1 | X5: TEMA 2 | AA5: TEMA 3 | AD5: TEMA 4 | AG5: TEMA 5 | AJ5: TEMA 6 | AM5: REKAP
B6: TAHUN PELAJARAN | F6: : | G6: =MN!D18 -> 2019 - 2020
B9: No | E9: Nama Siswa | F9: NILAI PG | R9: 0.6 | X9: NILAI ESSAY | AJ9: =100%-R9 -> 0.4 | AP9: JUMLAH
C10: No. Induk | D10: NISN | F10: BIN | H10: MTK | J10: IPA | L10: PPKn | N10: IPS | P10: SBDP | X10: BIN | Z10: MTK | AB10: IPA | AD10: PPKn | AF10: IPS | AH10: SBDP
F11: Naskah 1 | G11: Naskah 2 | H11: Naskah 1 | I11: Naskah 2 | J11: Naskah 1 | K11: Naskah 2 | L11: Naskah 1 | M11: Naskah 2 | N11: Naskah 1 | O11: Naskah 2 | P11: Naskah 1 | Q11: Naskah 2 | R11: BIN | S11: MTK | T11: IPA | U11: PPKn | V11: IPS | W11: SBDP | X11: Naskah 1 | Y11: Naskah 2 | Z11: Naskah 1 | AA11: Naskah 2 | AB11: Naskah 1 | AC11: Naskah 2 | AD11: Naskah 1 | AE11: Naskah 2 | AF11: Naskah 1 | AG11: Naskah 2 | AH11: Naskah 1 | AI11: Naskah 2 | AJ11: BIN | AK11: MTK | AL11: IPA | AM11: PPKn | AN11: IPS | AO11: SBDP | AP11: BIN | AQ11: MTK | AR11: IPA | AS11: PPKn | AT11: IPS | AU11: SBDP
B12: 1 | E12: =SW!G10 -> ABD. ROCHMAN NAJA FATLAN PRATAMA | R12: =IFERROR(ROUND(AVERAGE(F12:G12)*$R$9,0),"") ->  | S12: =IFERROR(ROUND(AVERAGE(H12:I12)*$R$9,0),"") ->  | T12: =IFERROR(ROUND(AVERAGE(J12:K12)*$R$9,0),"") ->  | U12: =IFERROR(ROUND(AVERAGE(L12:M12)*$R$9,0),"") ->  | V12: =IFERROR(ROUND(AVERAGE(N12:O12)*$R$9,0),"") ->  | W12: =IFERROR(ROUND(AVERAGE(P12:Q12)*$R$9,0),"") ->  | AJ12: =IFERROR(ROUND(AVERAGE(X12:Y12)*$AJ$9,0),"") ->  | AK12: =IFERROR(ROUND(AVERAGE(Z12:AA12)*$AJ$9,0),"") ->  | AL12: =IFERROR(ROUND(AVERAGE(AB12:AC12)*$AJ$9,0),"") ->  | AM12: =IFERROR(ROUND(AVERAGE(AD12:AE12)*$AJ$9,0),"") ->  | AN12: =IFERROR(ROUND(AVERAGE(AF12:AG12)*$AJ$9,0),"") ->  | AO12: =IFERROR(ROUND(AVERAGE(AH12:AI12)*$AJ$9,0),"") ->  | AP12: =IFERROR(ROUND(AVERAGE(R12+AJ12),0),"") -> 
B13: 2 | E13: =SW!G11 -> ABDURRAHMAN FAQIH | R13: =IFERROR(ROUND(AVERAGE(F13:G13)*$R$9,0),"") ->  | S13: =IFERROR(ROUND(AVERAGE(H13:I13)*$R$9,0),"") ->  | T13: =IFERROR(ROUND(AVERAGE(J13:K13)*$R$9,0),"") ->  | U13: =IFERROR(ROUND(AVERAGE(L13:M13)*$R$9,0),"") ->  | V13: =IFERROR(ROUND(AVERAGE(N13:O13)*$R$9,0),"") ->  | W13: =IFERROR(ROUND(AVERAGE(P13:Q13)*$R$9,0),"") ->  | AJ13: =IFERROR(ROUND(AVERAGE(X13:Y13)*$AJ$9,0),"") ->  | AL13: =IFERROR(ROUND(AVERAGE(AB13:AC13)*$AJ$9,0),"") ->  | AM13: =IFERROR(ROUND(AVERAGE(AD13:AE13)*$AJ$9,0),"") ->  | AN13: =IFERROR(ROUND(AVERAGE(AF13:AG13)*$AJ$9,0),"") ->  | AO13: =IFERROR(ROUND(AVERAGE(AH13:AI13)*$AJ$9,0),"") -> 
B14: 3 | E14: =SW!G12 -> ACHMAD FARROIHUN MUSHOBIRONILLAH
B15: 4 | E15: =SW!G13 -> ACHMAD HASBI ASSIDDIQI
B16: 5 | E16: =SW!G14 -> ACHMAD REZA AKRAM ALAUDDIN
B17: 6 | E17: =SW!G15 -> ACHMAD YANI
B18: 7 | E18: =SW!G16 -> AKHMAD RIDWAN
B19: 8 | E19: =SW!G17 -> ANDREAN DWI YULIANO
B20: 9 | E20: =SW!G18 -> ASFAN FAKHRI BARANI
B21: 10 | E21: =SW!G19 -> DEVAN ADITYA SAPUTRA
B22: 11 | E22: =SW!G20 -> FAHRUL AHMAD FAHREZA
B23: 12 | E23: =SW!G21 -> FAUZIA AMELIA PUTRI
B24: 13 | E24: =SW!G22 -> FAZA AZIFAH SALSABILA
B25: 14 | E25: =SW!G23 -> HABIBIE NURUSSALAM
B26: 15 | E26: =SW!G24 -> HIMATURROSYIDAH
B27: 16 | E27: =SW!G25 -> IFKARINA NAILA SAUQYA
B28: 17 | E28: =SW!G26 -> KEISA AYU SASKIYAH | AP28: =IFERROR(ROUND(AVERAGE(R28+AJ28),0),"") -> 
B29: 18 | E29: =SW!G27 -> MOCHAMMAD RENO FIRMANSYAH
B30: 19 | E30: =SW!G28 -> MOHAMAD NUR KHAFID KHABIBULLOH
B31: 20 | E31: =SW!G29 -> MOHAMMAD NAUFAL NAWWARUDDIN
B32: 21 | E32: =SW!G30 -> MUCHAMAD PRIMA PAMBUDI
B33: 22 | E33: =SW!G31 -> MUHAMMAD ALFAN FATHONI
B34: 23 | E34: =SW!G32 -> MUHAMMAD AMINULLAH MAULUDANI
B35: 24 | E35: =SW!G33 -> MUHAMMAD DAVIN LEVANTINO
B36: 25 | E36: =SW!G34 -> MUHAMMAD MAULANA PAHLEVY
B37: 26 | E37: =SW!G35 -> RADITYA NIRWANSYAH
B38: 27 | E38: =SW!G36 -> REVINA SRI UTARI
B39: 28 | E39: =SW!G37 -> REYHAN DWI ANDIKA
B40: 29 | E40: =SW!G38 -> RISKA LAURA TRIA OCTAVIA
B41: 30 | E41: =SW!G39 -> ROHMADONA DWI SAFITRI
B42: 31 | E42: =SW!G40 -> SALMAN ALFARIZI
B43: 32 | E43: =SW!G41 -> TAUFIQ KURROHMAN
B44: 33 | E44: =SW!G42 -> 0
B45: 34 | E45: =SW!G43 -> 0
B46: 35 | E46: =SW!G44 -> 0
B47: 36 | E47: =SW!G45 -> 0
B48: 37 | E48: =SW!G46 -> 0
B49: 38 | E49: =SW!G47 -> 0
B50: 39 | E50: =SW!G48 -> 0
B51: 40 | E51: =SW!G49 -> 0
B52: 41 | E52: =SW!G50 -> 0
B53: 42 | E53: =SW!G51 -> 0
B54: 43 | E54: =SW!G52 -> 0
B55: 44 | E55: =SW!G53 -> 0
B56: 45 | E56: =SW!G54 -> 0
B57: 46 | E57: =SW!G55 -> 0
B58: 47 | E58: =SW!G56 -> 0
B59: 48 | E59: =SW!G57 -> 0
B60: 49 | E60: =SW!G58 -> 0
B61: 50 | E61: =SW!G59 -> 0
B62: 51 | E62: =SW!G60 -> 0
B63: 52 | E63: =SW!G61 -> 0
B64: 53 | E64: =SW!G62 -> 0
B65: 54 | E65: =SW!G63 -> 0
B66: 55 | E66: =SW!G64 -> 0
B67: 56 | E67: =SW!G65 -> 0
B68: 57 | E68: =SW!G66 -> 0
B69: 58 | E69: =SW!G67 -> 0
B70: 59 | E70: =SW!G68 -> 0 | AS70: =IFERROR(ROUND(AVERAGE(U70+AM70),0),"") -> 
B71: 60 | E71: =SW!G69 -> 0 | AP71: =IFERROR(ROUND(AVERAGE(R71+AJ71),0),"") -> 
B72: 61 | E72: =SW!G70 -> 0
B73: 62 | E73: =SW!G71 -> 0
B74: 63 | E74: =SW!G72 -> 0
B75: 64 | E75: =SW!G73 -> 0
B76: 65 | E76: =SW!G74 -> 0
B77: 66 | E77: =SW!G75 -> 0 | R77: =IFERROR(ROUND(AVERAGE(F77:G77)*$R$9,0),"") ->  | S77: =IFERROR(ROUND(AVERAGE(H77:I77)*$R$9,0),"") ->  | T77: =IFERROR(ROUND(AVERAGE(J77:K77)*$R$9,0),"") ->  | U77: =IFERROR(ROUND(AVERAGE(L77:M77)*$R$9,0),"") ->  | V77: =IFERROR(ROUND(AVERAGE(N77:O77)*$R$9,0),"") ->  | W77: =IFERROR(ROUND(AVERAGE(P77:Q77)*$R$9,0),"") ->  | AJ77: =IFERROR(ROUND(AVERAGE(X77:Y77)*$AJ$9,0),"") ->  | AK77: =IFERROR(ROUND(AVERAGE(Z77:AA77)*$AJ$9,0),"") ->  | AL77: =IFERROR(ROUND(AVERAGE(AB77:AC77)*$AJ$9,0),"") ->  | AM77: =IFERROR(ROUND(AVERAGE(AD77:AE77)*$AJ$9,0),"") ->  | AN77: =IFERROR(ROUND(AVERAGE(AF77:AG77)*$AJ$9,0),"") ->  | AO77: =IFERROR(ROUND(AVERAGE(AH77:AI77)*$AJ$9,0),"") -> 
B78: 67 | E78: =SW!G76 -> 0
B79: 68 | E79: =SW!G77 -> 0
B80: 69 | E80: =SW!G78 -> 0
B81: 70 | E81: =SW!G79 -> 0
B82: 71 | E82: =SW!G80 -> 0
B83: 72 | E83: =SW!G81 -> 0
B84: 73 | E84: =SW!G82 -> 0
B85: 74 | E85: =SW!G83 -> 0
B86: 75 | E86: =SW!G84 -> 0
B87: 76 | E87: =SW!G85 -> 0
B88: 77 | E88: =SW!G86 -> 0
B89: 78 | E89: =SW!G87 -> 0
B90: 79 | E90: =SW!G88 -> 0
B91: 80 | E91: =SW!G89 -> 0
B92: 81 | E92: =SW!G90 -> 0
B93: 82 | E93: =SW!G91 -> 0
B94: 83 | E94: =SW!G92 -> 0
B95: 84 | E95: =SW!G93 -> 0
B96: 85 | E96: =SW!G94 -> 0
B97: 86 | E97: =SW!G95 -> 0
B98: 87 | E98: =SW!G96 -> 0
B99: 88 | E99: =SW!G97 -> 0
B100: 89 | E100: =SW!G98 -> 0

Sheet T6
B2: D A F T A R N I L A I
B4: MATA PELAJARAN | F4: : | G4: =RTM!AM5 -> TEMA 6 | AQ4: ۩MENU↗
B5: KELAS | F5: : | G5: =UPPER(MN!D22) -> V B | U5: TEMA 1 | X5: TEMA 2 | AA5: TEMA 3 | AD5: TEMA 4 | AG5: TEMA 5 | AJ5: TEMA 6 | AM5: REKAP
B6: TAHUN PELAJARAN | F6: : | G6: =MN!D18 -> 2019 - 2020
B9: No | E9: Nama Siswa | F9: NILAI PG | R9: 0.6 | X9: NILAI ESSAY | AJ9: =100%-R9 -> 0.4 | AP9: JUMLAH
C10: No. Induk | D10: NISN | F10: BIN | H10: MTK | J10: IPA | L10: PPKn | N10: IPS | P10: SBDP | X10: BIN | Z10: MTK | AB10: IPA | AD10: PPKn | AF10: IPS | AH10: SBDP
F11: Naskah 1 | G11: Naskah 2 | H11: Naskah 1 | I11: Naskah 2 | J11: Naskah 1 | K11: Naskah 2 | L11: Naskah 1 | M11: Naskah 2 | N11: Naskah 1 | O11: Naskah 2 | P11: Naskah 1 | Q11: Naskah 2 | R11: BIN | S11: MTK | T11: IPA | U11: PPKn | V11: IPS | W11: SBDP | X11: Naskah 1 | Y11: Naskah 2 | Z11: Naskah 1 | AA11: Naskah 2 | AB11: Naskah 1 | AC11: Naskah 2 | AD11: Naskah 1 | AE11: Naskah 2 | AF11: Naskah 1 | AG11: Naskah 2 | AH11: Naskah 1 | AI11: Naskah 2 | AJ11: BIN | AK11: MTK | AL11: IPA | AM11: PPKn | AN11: IPS | AO11: SBDP | AP11: BIN | AQ11: MTK | AR11: IPA | AS11: PPKn | AT11: IPS | AU11: SBDP
B12: 1 | E12: =SW!G10 -> ABD. ROCHMAN NAJA FATLAN PRATAMA | R12: =IFERROR(ROUND(AVERAGE(F12:G12)*$R$9,0),"") ->  | S12: =IFERROR(ROUND(AVERAGE(H12:I12)*$R$9,0),"") ->  | T12: =IFERROR(ROUND(AVERAGE(J12:K12)*$R$9,0),"") ->  | U12: =IFERROR(ROUND(AVERAGE(L12:M12)*$R$9,0),"") ->  | V12: =IFERROR(ROUND(AVERAGE(N12:O12)*$R$9,0),"") ->  | W12: =IFERROR(ROUND(AVERAGE(P12:Q12)*$R$9,0),"") ->  | AJ12: =IFERROR(ROUND(AVERAGE(X12:Y12)*$AJ$9,0),"") ->  | AK12: =IFERROR(ROUND(AVERAGE(Z12:AA12)*$AJ$9,0),"") ->  | AL12: =IFERROR(ROUND(AVERAGE(AB12:AC12)*$AJ$9,0),"") ->  | AM12: =IFERROR(ROUND(AVERAGE(AD12:AE12)*$AJ$9,0),"") ->  | AN12: =IFERROR(ROUND(AVERAGE(AF12:AG12)*$AJ$9,0),"") ->  | AO12: =IFERROR(ROUND(AVERAGE(AH12:AI12)*$AJ$9,0),"") ->  | AP12: =IFERROR(ROUND(AVERAGE(R12+AJ12),0),"") -> 
B13: 2 | E13: =SW!G11 -> ABDURRAHMAN FAQIH | R13: =IFERROR(ROUND(AVERAGE(F13:G13)*$R$9,0),"") ->  | S13: =IFERROR(ROUND(AVERAGE(H13:I13)*$R$9,0),"") ->  | T13: =IFERROR(ROUND(AVERAGE(J13:K13)*$R$9,0),"") ->  | U13: =IFERROR(ROUND(AVERAGE(L13:M13)*$R$9,0),"") ->  | V13: =IFERROR(ROUND(AVERAGE(N13:O13)*$R$9,0),"") ->  | W13: =IFERROR(ROUND(AVERAGE(P13:Q13)*$R$9,0),"") ->  | AJ13: =IFERROR(ROUND(AVERAGE(X13:Y13)*$AJ$9,0),"") ->  | AL13: =IFERROR(ROUND(AVERAGE(AB13:AC13)*$AJ$9,0),"") ->  | AM13: =IFERROR(ROUND(AVERAGE(AD13:AE13)*$AJ$9,0),"") ->  | AN13: =IFERROR(ROUND(AVERAGE(AF13:AG13)*$AJ$9,0),"") ->  | AO13: =IFERROR(ROUND(AVERAGE(AH13:AI13)*$AJ$9,0),"") -> 
B14: 3 | E14: =SW!G12 -> ACHMAD FARROIHUN MUSHOBIRONILLAH
B15: 4 | E15: =SW!G13 -> ACHMAD HASBI ASSIDDIQI
B16: 5 | E16: =SW!G14 -> ACHMAD REZA AKRAM ALAUDDIN
B17: 6 | E17: =SW!G15 -> ACHMAD YANI
B18: 7 | E18: =SW!G16 -> AKHMAD RIDWAN
B19: 8 | E19: =SW!G17 -> ANDREAN DWI YULIANO
B20: 9 | E20: =SW!G18 -> ASFAN FAKHRI BARANI
B21: 10 | E21: =SW!G19 -> DEVAN ADITYA SAPUTRA
B22: 11 | E22: =SW!G20 -> FAHRUL AHMAD FAHREZA
B23: 12 | E23: =SW!G21 -> FAUZIA AMELIA PUTRI
B24: 13 | E24: =SW!G22 -> FAZA AZIFAH SALSABILA
B25: 14 | E25: =SW!G23 -> HABIBIE NURUSSALAM
B26: 15 | E26: =SW!G24 -> HIMATURROSYIDAH
B27: 16 | E27: =SW!G25 -> IFKARINA NAILA SAUQYA
B28: 17 | E28: =SW!G26 -> KEISA AYU SASKIYAH | AP28: =IFERROR(ROUND(AVERAGE(R28+AJ28),0),"") -> 
B29: 18 | E29: =SW!G27 -> MOCHAMMAD RENO FIRMANSYAH
B30: 19 | E30: =SW!G28 -> MOHAMAD NUR KHAFID KHABIBULLOH
B31: 20 | E31: =SW!G29 -> MOHAMMAD NAUFAL NAWWARUDDIN
B32: 21 | E32: =SW!G30 -> MUCHAMAD PRIMA PAMBUDI
B33: 22 | E33: =SW!G31 -> MUHAMMAD ALFAN FATHONI
B34: 23 | E34: =SW!G32 -> MUHAMMAD AMINULLAH MAULUDANI
B35: 24 | E35: =SW!G33 -> MUHAMMAD DAVIN LEVANTINO
B36: 25 | E36: =SW!G34 -> MUHAMMAD MAULANA PAHLEVY
B37: 26 | E37: =SW!G35 -> RADITYA NIRWANSYAH
B38: 27 | E38: =SW!G36 -> REVINA SRI UTARI
B39: 28 | E39: =SW!G37 -> REYHAN DWI ANDIKA
B40: 29 | E40: =SW!G38 -> RISKA LAURA TRIA OCTAVIA
B41: 30 | E41: =SW!G39 -> ROHMADONA DWI SAFITRI
B42: 31 | E42: =SW!G40 -> SALMAN ALFARIZI
B43: 32 | E43: =SW!G41 -> TAUFIQ KURROHMAN
B44: 33 | E44: =SW!G42 -> 0
B45: 34 | E45: =SW!G43 -> 0
B46: 35 | E46: =SW!G44 -> 0
B47: 36 | E47: =SW!G45 -> 0
B48: 37 | E48: =SW!G46 -> 0
B49: 38 | E49: =SW!G47 -> 0
B50: 39 | E50: =SW!G48 -> 0
B51: 40 | E51: =SW!G49 -> 0
B52: 41 | E52: =SW!G50 -> 0
B53: 42 | E53: =SW!G51 -> 0
B54: 43 | E54: =SW!G52 -> 0
B55: 44 | E55: =SW!G53 -> 0
B56: 45 | E56: =SW!G54 -> 0
B57: 46 | E57: =SW!G55 -> 0
B58: 47 | E58: =SW!G56 -> 0
B59: 48 | E59: =SW!G57 -> 0
B60: 49 | E60: =SW!G58 -> 0
B61: 50 | E61: =SW!G59 -> 0
B62: 51 | E62: =SW!G60 -> 0
B63: 52 | E63: =SW!G61 -> 0
B64: 53 | E64: =SW!G62 -> 0
B65: 54 | E65: =SW!G63 -> 0
B66: 55 | E66: =SW!G64 -> 0
B67: 56 | E67: =SW!G65 -> 0
B68: 57 | E68: =SW!G66 -> 0
B69: 58 | E69: =SW!G67 -> 0
B70: 59 | E70: =SW!G68 -> 0 | AS70: =IFERROR(ROUND(AVERAGE(U70+AM70),0),"") -> 
B71: 60 | E71: =SW!G69 -> 0 | AP71: =IFERROR(ROUND(AVERAGE(R71+AJ71),0),"") -> 
B72: 61 | E72: =SW!G70 -> 0
B73: 62 | E73: =SW!G71 -> 0
B74: 63 | E74: =SW!G72 -> 0
B75: 64 | E75: =SW!G73 -> 0
B76: 65 | E76: =SW!G74 -> 0
B77: 66 | E77: =SW!G75 -> 0 | R77: =IFERROR(ROUND(AVERAGE(F77:G77)*$R$9,0),"") ->  | S77: =IFERROR(ROUND(AVERAGE(H77:I77)*$R$9,0),"") ->  | T77: =IFERROR(ROUND(AVERAGE(J77:K77)*$R$9,0),"") ->  | U77: =IFERROR(ROUND(AVERAGE(L77:M77)*$R$9,0),"") ->  | V77: =IFERROR(ROUND(AVERAGE(N77:O77)*$R$9,0),"") ->  | W77: =IFERROR(ROUND(AVERAGE(P77:Q77)*$R$9,0),"") ->  | AJ77: =IFERROR(ROUND(AVERAGE(X77:Y77)*$AJ$9,0),"") ->  | AK77: =IFERROR(ROUND(AVERAGE(Z77:AA77)*$AJ$9,0),"") ->  | AL77: =IFERROR(ROUND(AVERAGE(AB77:AC77)*$AJ$9,0),"") ->  | AM77: =IFERROR(ROUND(AVERAGE(AD77:AE77)*$AJ$9,0),"") ->  | AN77: =IFERROR(ROUND(AVERAGE(AF77:AG77)*$AJ$9,0),"") ->  | AO77: =IFERROR(ROUND(AVERAGE(AH77:AI77)*$AJ$9,0),"") -> 
B78: 67 | E78: =SW!G76 -> 0
B79: 68 | E79: =SW!G77 -> 0
B80: 69 | E80: =SW!G78 -> 0
B81: 70 | E81: =SW!G79 -> 0
B82: 71 | E82: =SW!G80 -> 0
B83: 72 | E83: =SW!G81 -> 0
B84: 73 | E84: =SW!G82 -> 0
B85: 74 | E85: =SW!G83 -> 0
B86: 75 | E86: =SW!G84 -> 0
B87: 76 | E87: =SW!G85 -> 0
B88: 77 | E88: =SW!G86 -> 0
B89: 78 | E89: =SW!G87 -> 0
B90: 79 | E90: =SW!G88 -> 0
B91: 80 | E91: =SW!G89 -> 0
B92: 81 | E92: =SW!G90 -> 0
B93: 82 | E93: =SW!G91 -> 0
B94: 83 | E94: =SW!G92 -> 0
B95: 84 | E95: =SW!G93 -> 0
B96: 85 | E96: =SW!G94 -> 0
B97: 86 | E97: =SW!G95 -> 0
B98: 87 | E98: =SW!G96 -> 0
B99: 88 | E99: =SW!G97 -> 0
B100: 89 | E100: =SW!G98 -> 0

Sheet RTM
B2: R E K A P I T U L A S I D A F T A R N I L A I
B4: MATA PELAJARAN | F4: : | G4: =MN!H10 -> TEMA | AQ4: ۩MENU↗
B5: KELAS | F5: : | G5: =UPPER(MN!D22) -> V B | X5: TEMA 1 | AA5: TEMA 2 | AD5: TEMA 3 | AG5: TEMA 4 | AJ5: TEMA 5 | AM5: TEMA 6
B6: TAHUN PELAJARAN | F6: : | G6: =MN!D18 -> 2019 - 2020
B9: No | C9: No. Induk | D9: NISN | E9: Nama Siswa | F9: BIN | L9: MTK | R9: IPA | X9: PPKn | AD9: IPS | AJ9: SBDP | AP9: RATA RATA
F10: TEMA 1 | G10: TEMA 2 | H10: TEMA 3 | I10: TEMA 4 | J10: TEMA 5 | K10: TEMA 6 | L10: TEMA 1 | M10: TEMA 2 | N10: TEMA 3 | O10: TEMA 4 | P10: TEMA 5 | Q10: TEMA 6 | R10: TEMA 1 | S10: TEMA 2 | T10: TEMA 3 | U10: TEMA 4 | V10: TEMA 5 | W10: TEMA 6 | X10: TEMA 1 | Y10: TEMA 2 | Z10: TEMA 3 | AA10: TEMA 4 | AB10: TEMA 5 | AC10: TEMA 6 | AD10: TEMA 1 | AE10: TEMA 2 | AF10: TEMA 3 | AG10: TEMA 4 | AH10: TEMA 5 | AI10: TEMA 6 | AJ10: TEMA 1 | AK10: TEMA 2 | AL10: TEMA 3 | AM10: TEMA 4 | AN10: TEMA 5 | AO10: TEMA 6 | AP10: BIN | AQ10: MTK | AR10: IPA | AS10: PPKn | AT10: IPS | AU10: SBDP
B11: 1 | E11: =SW!G10 -> ABD. ROCHMAN NAJA FATLAN PRATAMA | F11: ='T1'!AP12 -> 55 | G11: ='T2'!AP12 -> 44 | H11: ='T3'!AP12 -> 29 | I11: ='T4'!AP12 ->  | J11: ='T5'!AP12 ->  | K11: ='T6'!AP12 ->  | L11: ='T1'!AQ12 ->  | M11: ='T2'!AQ12 ->  | N11: ='T3'!AQ12 ->  | O11: ='T4'!AQ12 ->  | P11: ='T5'!AQ12 ->  | Q11: ='T6'!AQ12 ->  | R11: ='T1'!AR12 -> 55 | S11: ='T2'!AR12 -> 44 | T11: ='T3'!AR12 -> 29 | U11: ='T4'!AR12 ->  | V11: ='T5'!AR12 ->  | W11: ='T6'!AR12 ->  | X11: ='T1'!AS12 -> 55 | Y11: ='T2'!AS12 -> 44 | Z11: ='T3'!AS12 -> 29 | AA11: ='T4'!AS12 ->  | AB11: ='T5'!AS12 ->  | AC11: ='T6'!AS12 ->  | AD11: ='T1'!AT12 -> 55 | AE11: ='T2'!AT12 -> 44 | AF11: ='T3'!AT12 -> 29 | AG11: ='T4'!AT12 ->  | AH11: ='T5'!AT12 ->  | AI11: ='T6'!AT12 ->  | AJ11: ='T1'!AU12 -> 55 | AK11: ='T2'!AU12 -> 44 | AL11: ='T3'!AU12 -> 29 | AM11: ='T4'!AU12 ->  | AN11: ='T5'!AU12 ->  | AO11: ='T6'!AU12 ->  | AP11: =IFERROR(ROUND(AVERAGE(F11:K11),0),"") -> 43 | AQ11: =IFERROR(ROUND(AVERAGE(L11:Q11),0),"") ->  | AR11: =IFERROR(ROUND(AVERAGE(R11:W11),0),"") -> 43 | AS11: =IFERROR(ROUND(AVERAGE(X11:AC11),0),"") -> 43 | AT11: =IFERROR(ROUND(AVERAGE(AD11:AI11),0),"") -> 43 | AU11: =IFERROR(ROUND(AVERAGE(AJ11:AO11),0),"") -> 43
B12: 2 | E12: =SW!G11 -> ABDURRAHMAN FAQIH | F12: ='T1'!AP13 -> 48 | G12: ='T2'!AP13 -> 30 | H12: ='T3'!AP13 -> 34 | I12: ='T4'!AP13 ->  | J12: ='T5'!AP13 ->  | K12: ='T6'!AP13 ->  | L12: ='T1'!AQ13 ->  | M12: ='T2'!AQ13 ->  | N12: ='T3'!AQ13 ->  | O12: ='T4'!AQ13 ->  | P12: ='T5'!AQ13 ->  | Q12: ='T6'!AQ13 ->  | R12: ='T1'!AR13 -> 48 | S12: ='T2'!AR13 -> 30 | T12: ='T3'!AR13 -> 34 | U12: ='T4'!AR13 ->  | V12: ='T5'!AR13 ->  | W12: ='T6'!AR13 ->  | X12: ='T1'!AS13 -> 48 | Y12: ='T2'!AS13 -> 30 | Z12: ='T3'!AS13 -> 34 | AA12: ='T4'!AS13 ->  | AB12: ='T5'!AS13 ->  | AC12: ='T6'!AS13 ->  | AD12: ='T1'!AT13 -> 48 | AE12: ='T2'!AT13 -> 30 | AF12: ='T3'!AT13 -> 34 | AG12: ='T4'!AT13 ->  | AH12: ='T5'!AT13 ->  | AI12: ='T6'!AT13 ->  | AJ12: ='T1'!AU13 -> 48 | AK12: ='T2'!AU13 -> 30 | AL12: ='T3'!AU13 -> 34 | AM12: ='T4'!AU13 ->  | AN12: ='T5'!AU13 ->  | AO12: ='T6'!AU13 ->  | AP12: =IFERROR(ROUND(AVERAGE(F12:K12),0),"") -> 37 | AQ12: =IFERROR(ROUND(AVERAGE(L12:Q12),0),"") ->  | AR12: =IFERROR(ROUND(AVERAGE(R12:W12),0),"") -> 37 | AS12: =IFERROR(ROUND(AVERAGE(X12:AC12),0),"") -> 37 | AT12: =IFERROR(ROUND(AVERAGE(AD12:AI12),0),"") -> 37 | AU12: =IFERROR(ROUND(AVERAGE(AJ12:AO12),0),"") -> 37
B13: 3 | E13: =SW!G12 -> ACHMAD FARROIHUN MUSHOBIRONILLAH | F13: ='T1'!AP14 -> 51 | G13: ='T2'!AP14 -> 64 | H13: ='T3'!AP14 -> 40 | I13: ='T4'!AP14 ->  | J13: ='T5'!AP14 ->  | K13: ='T6'!AP14 ->  | L13: ='T1'!AQ14 ->  | M13: ='T2'!AQ14 ->  | N13: ='T3'!AQ14 ->  | O13: ='T4'!AQ14 ->  | P13: ='T5'!AQ14 ->  | Q13: ='T6'!AQ14 ->  | R13: ='T1'!AR14 -> 51 | S13: ='T2'!AR14 -> 64 | T13: ='T3'!AR14 -> 40 | U13: ='T4'!AR14 ->  | V13: ='T5'!AR14 ->  | W13: ='T6'!AR14 ->  | X13: ='T1'!AS14 -> 51 | Y13: ='T2'!AS14 -> 64 | Z13: ='T3'!AS14 -> 40 | AA13: ='T4'!AS14 ->  | AB13: ='T5'!AS14 ->  | AC13: ='T6'!AS14 ->  | AD13: ='T1'!AT14 -> 51 | AE13: ='T2'!AT14 -> 64 | AF13: ='T3'!AT14 -> 40 | AG13: ='T4'!AT14 ->  | AH13: ='T5'!AT14 ->  | AI13: ='T6'!AT14 ->  | AJ13: ='T1'!AU14 -> 51 | AK13: ='T2'!AU14 -> 64 | AL13: ='T3'!AU14 -> 40 | AM13: ='T4'!AU14 ->  | AN13: ='T5'!AU14 ->  | AO13: ='T6'!AU14 ->  | AP13: 52 | AR13: 52 | AS13: 52 | AT13: 52 | AU13: 52
B14: 4 | E14: =SW!G13 -> ACHMAD HASBI ASSIDDIQI | F14: ='T1'!AP15 -> 46 | G14: ='T2'!AP15 -> 45 | H14: ='T3'!AP15 -> 29 | I14: ='T4'!AP15 ->  | J14: ='T5'!AP15 ->  | K14: ='T6'!AP15 ->  | L14: ='T1'!AQ15 ->  | M14: ='T2'!AQ15 ->  | N14: ='T3'!AQ15 ->  | O14: ='T4'!AQ15 ->  | P14: ='T5'!AQ15 ->  | Q14: ='T6'!AQ15 ->  | R14: ='T1'!AR15 -> 46 | S14: ='T2'!AR15 -> 45 | T14: ='T3'!AR15 -> 29 | U14: ='T4'!AR15 ->  | V14: ='T5'!AR15 ->  | W14: ='T6'!AR15 ->  | X14: ='T1'!AS15 -> 46 | Y14: ='T2'!AS15 -> 45 | Z14: ='T3'!AS15 -> 29 | AA14: ='T4'!AS15 ->  | AB14: ='T5'!AS15 ->  | AC14: ='T6'!AS15 ->  | AD14: ='T1'!AT15 -> 46 | AE14: ='T2'!AT15 -> 45 | AF14: ='T3'!AT15 -> 29 | AG14: ='T4'!AT15 ->  | AH14: ='T5'!AT15 ->  | AI14: ='T6'!AT15 ->  | AJ14: ='T1'!AU15 -> 46 | AK14: ='T2'!AU15 -> 45 | AL14: ='T3'!AU15 -> 29 | AM14: ='T4'!AU15 ->  | AN14: ='T5'!AU15 ->  | AO14: ='T6'!AU15 ->  | AP14: 40 | AR14: 40 | AS14: 40 | AT14: 40 | AU14: 40
B15: 5 | E15: =SW!G14 -> ACHMAD REZA AKRAM ALAUDDIN | F15: ='T1'!AP16 -> 69 | G15: ='T2'!AP16 -> 66 | H15: ='T3'!AP16 -> 61 | I15: ='T4'!AP16 ->  | J15: ='T5'!AP16 ->  | K15: ='T6'!AP16 ->  | L15: ='T1'!AQ16 ->  | M15: ='T2'!AQ16 ->  | N15: ='T3'!AQ16 ->  | O15: ='T4'!AQ16 ->  | P15: ='T5'!AQ16 ->  | Q15: ='T6'!AQ16 ->  | R15: ='T1'!AR16 -> 69 | S15: ='T2'!AR16 -> 66 | T15: ='T3'!AR16 -> 61 | U15: ='T4'!AR16 ->  | V15: ='T5'!AR16 ->  | W15: ='T6'!AR16 ->  | X15: ='T1'!AS16 -> 69 | Y15: ='T2'!AS16 -> 66 | Z15: ='T3'!AS16 -> 61 | AA15: ='T4'!AS16 ->  | AB15: ='T5'!AS16 ->  | AC15: ='T6'!AS16 ->  | AD15: ='T1'!AT16 -> 69 | AE15: ='T2'!AT16 -> 66 | AF15: ='T3'!AT16 -> 61 | AG15: ='T4'!AT16 ->  | AH15: ='T5'!AT16 ->  | AI15: ='T6'!AT16 ->  | AJ15: ='T1'!AU16 -> 69 | AK15: ='T2'!AU16 -> 66 | AL15: ='T3'!AU16 -> 61 | AM15: ='T4'!AU16 ->  | AN15: ='T5'!AU16 ->  | AO15: ='T6'!AU16 ->  | AP15: 65 | AR15: 65 | AS15: 65 | AT15: 65 | AU15: 65
B16: 6 | E16: =SW!G15 -> ACHMAD YANI | F16: ='T1'!AP17 -> 46 | G16: ='T2'!AP17 -> 62 | H16: ='T3'!AP17 -> 50 | I16: ='T4'!AP17 ->  | J16: ='T5'!AP17 ->  | K16: ='T6'!AP17 ->  | L16: ='T1'!AQ17 ->  | M16: ='T2'!AQ17 ->  | N16: ='T3'!AQ17 ->  | O16: ='T4'!AQ17 ->  | P16: ='T5'!AQ17 ->  | Q16: ='T6'!AQ17 ->  | R16: ='T1'!AR17 -> 46 | S16: ='T2'!AR17 -> 62 | T16: ='T3'!AR17 -> 50 | U16: ='T4'!AR17 ->  | V16: ='T5'!AR17 ->  | W16: ='T6'!AR17 ->  | X16: ='T1'!AS17 -> 46 | Y16: ='T2'!AS17 -> 62 | Z16: ='T3'!AS17 -> 50 | AA16: ='T4'!AS17 ->  | AB16: ='T5'!AS17 ->  | AC16: ='T6'!AS17 ->  | AD16: ='T1'!AT17 -> 46 | AE16: ='T2'!AT17 -> 62 | AF16: ='T3'!AT17 -> 50 | AG16: ='T4'!AT17 ->  | AH16: ='T5'!AT17 ->  | AI16: ='T6'!AT17 ->  | AJ16: ='T1'!AU17 -> 46 | AK16: ='T2'!AU17 -> 62 | AL16: ='T3'!AU17 -> 50 | AM16: ='T4'!AU17 ->  | AN16: ='T5'!AU17 ->  | AO16: ='T6'!AU17 ->  | AP16: 53 | AR16: 53 | AS16: 53 | AT16: 53 | AU16: 53
B17: 7 | E17: =SW!G16 -> AKHMAD RIDWAN | F17: ='T1'!AP18 -> 58 | G17: ='T2'!AP18 -> 72 | H17: ='T3'!AP18 -> 53 | I17: ='T4'!AP18 ->  | J17: ='T5'!AP18 ->  | K17: ='T6'!AP18 ->  | L17: ='T1'!AQ18 ->  | M17: ='T2'!AQ18 ->  | N17: ='T3'!AQ18 ->  | O17: ='T4'!AQ18 ->  | P17: ='T5'!AQ18 ->  | Q17: ='T6'!AQ18 ->  | R17: ='T1'!AR18 -> 58 | S17: ='T2'!AR18 -> 72 | T17: ='T3'!AR18 -> 53 | U17: ='T4'!AR18 ->  | V17: ='T5'!AR18 ->  | W17: ='T6'!AR18 ->  | X17: ='T1'!AS18 -> 58 | Y17: ='T2'!AS18 -> 72 | Z17: ='T3'!AS18 -> 53 | AA17: ='T4'!AS18 ->  | AB17: ='T5'!AS18 ->  | AC17: ='T6'!AS18 ->  | AD17: ='T1'!AT18 -> 58 | AE17: ='T2'!AT18 -> 72 | AF17: ='T3'!AT18 -> 53 | AG17: ='T4'!AT18 ->  | AH17: ='T5'!AT18 ->  | AI17: ='T6'!AT18 ->  | AJ17: ='T1'!AU18 -> 58 | AK17: ='T2'!AU18 -> 72 | AL17: ='T3'!AU18 -> 53 | AM17: ='T4'!AU18 ->  | AN17: ='T5'!AU18 ->  | AO17: ='T6'!AU18 ->  | AP17: 61 | AR17: 61 | AS17: 61 | AT17: 61 | AU17: 61
B18: 8 | E18: =SW!G17 -> ANDREAN DWI YULIANO | F18: ='T1'!AP19 -> 48 | G18: ='T2'!AP19 -> 49 | H18: ='T3'!AP19 -> 39 | I18: ='T4'!AP19 ->  | J18: ='T5'!AP19 ->  | K18: ='T6'!AP19 ->  | L18: ='T1'!AQ19 ->  | M18: ='T2'!AQ19 ->  | N18: ='T3'!AQ19 ->  | O18: ='T4'!AQ19 ->  | P18: ='T5'!AQ19 ->  | Q18: ='T6'!AQ19 ->  | R18: ='T1'!AR19 -> 48 | S18: ='T2'!AR19 -> 49 | T18: ='T3'!AR19 -> 39 | U18: ='T4'!AR19 ->  | V18: ='T5'!AR19 ->  | W18: ='T6'!AR19 ->  | X18: ='T1'!AS19 -> 48 | Y18: ='T2'!AS19 -> 49 | Z18: ='T3'!AS19 -> 39 | AA18: ='T4'!AS19 ->  | AB18: ='T5'!AS19 ->  | AC18: ='T6'!AS19 ->  | AD18: ='T1'!AT19 -> 48 | AE18: ='T2'!AT19 -> 49 | AF18: ='T3'!AT19 -> 39 | AG18: ='T4'!AT19 ->  | AH18: ='T5'!AT19 ->  | AI18: ='T6'!AT19 ->  | AJ18: ='T1'!AU19 -> 48 | AK18: ='T2'!AU19 -> 49 | AL18: ='T3'!AU19 -> 39 | AM18: ='T4'!AU19 ->  | AN18: ='T5'!AU19 ->  | AO18: ='T6'!AU19 ->  | AP18: 45 | AR18: 45 | AS18: 45 | AT18: 45 | AU18: 45
B19: 9 | E19: =SW!G18 -> ASFAN FAKHRI BARANI | F19: ='T1'!AP20 -> 66 | G19: ='T2'!AP20 -> 57 | H19: ='T3'!AP20 -> 49 | I19: ='T4'!AP20 ->  | J19: ='T5'!AP20 ->  | K19: ='T6'!AP20 ->  | L19: ='T1'!AQ20 ->  | M19: ='T2'!AQ20 ->  | N19: ='T3'!AQ20 ->  | O19: ='T4'!AQ20 ->  | P19: ='T5'!AQ20 ->  | Q19: ='T6'!AQ20 ->  | R19: ='T1'!AR20 -> 66 | S19: ='T2'!AR20 -> 57 | T19: ='T3'!AR20 -> 49 | U19: ='T4'!AR20 ->  | V19: ='T5'!AR20 ->  | W19: ='T6'!AR20 ->  | X19: ='T1'!AS20 -> 66 | Y19: ='T2'!AS20 -> 57 | Z19: ='T3'!AS20 -> 49 | AA19: ='T4'!AS20 ->  | AB19: ='T5'!AS20 ->  | AC19: ='T6'!AS20 ->  | AD19: ='T1'!AT20 -> 66 | AE19: ='T2'!AT20 -> 57 | AF19: ='T3'!AT20 -> 49 | AG19: ='T4'!AT20 ->  | AH19: ='T5'!AT20 ->  | AI19: ='T6'!AT20 ->  | AJ19: ='T1'!AU20 -> 66 | AK19: ='T2'!AU20 -> 57 | AL19: ='T3'!AU20 -> 49 | AM19: ='T4'!AU20 ->  | AN19: ='T5'!AU20 ->  | AO19: ='T6'!AU20 ->  | AP19: 57 | AR19: 57 | AS19: 57 | AT19: 57 | AU19: 57
B20: 10 | E20: =SW!G19 -> DEVAN ADITYA SAPUTRA | F20: ='T1'!AP21 -> 55 | G20: ='T2'!AP21 -> 60 | H20: ='T3'!AP21 -> 57 | I20: ='T4'!AP21 ->  | J20: ='T5'!AP21 ->  | K20: ='T6'!AP21 ->  | L20: ='T1'!AQ21 ->  | M20: ='T2'!AQ21 ->  | N20: ='T3'!AQ21 ->  | O20: ='T4'!AQ21 ->  | P20: ='T5'!AQ21 ->  | Q20: ='T6'!AQ21 ->  | R20: ='T1'!AR21 -> 55 | S20: ='T2'!AR21 -> 60 | T20: ='T3'!AR21 -> 57 | U20: ='T4'!AR21 ->  | V20: ='T5'!AR21 ->  | W20: ='T6'!AR21 ->  | X20: ='T1'!AS21 -> 55 | Y20: ='T2'!AS21 -> 60 | Z20: ='T3'!AS21 -> 57 | AA20: ='T4'!AS21 ->  | AB20: ='T5'!AS21 ->  | AC20: ='T6'!AS21 ->  | AD20: ='T1'!AT21 -> 55 | AE20: ='T2'!AT21 -> 60 | AF20: ='T3'!AT21 -> 57 | AG20: ='T4'!AT21 ->  | AH20: ='T5'!AT21 ->  | AI20: ='T6'!AT21 ->  | AJ20: ='T1'!AU21 -> 55 | AK20: ='T2'!AU21 -> 60 | AL20: ='T3'!AU21 -> 57 | AM20: ='T4'!AU21 ->  | AN20: ='T5'!AU21 ->  | AO20: ='T6'!AU21 ->  | AP20: 57 | AR20: 57 | AS20: 57 | AT20: 57 | AU20: 57
B21: 11 | E21: =SW!G20 -> FAHRUL AHMAD FAHREZA | F21: ='T1'!AP22 -> 53 | G21: ='T2'!AP22 -> 76 | H21: ='T3'!AP22 -> 52 | I21: ='T4'!AP22 ->  | J21: ='T5'!AP22 ->  | K21: ='T6'!AP22 ->  | L21: ='T1'!AQ22 ->  | M21: ='T2'!AQ22 ->  | N21: ='T3'!AQ22 ->  | O21: ='T4'!AQ22 ->  | P21: ='T5'!AQ22 ->  | Q21: ='T6'!AQ22 ->  | R21: ='T1'!AR22 -> 53 | S21: ='T2'!AR22 -> 76 | T21: ='T3'!AR22 -> 52 | U21: ='T4'!AR22 ->  | V21: ='T5'!AR22 ->  | W21: ='T6'!AR22 ->  | X21: ='T1'!AS22 -> 53 | Y21: ='T2'!AS22 -> 76 | Z21: ='T3'!AS22 -> 52 | AA21: ='T4'!AS22 ->  | AB21: ='T5'!AS22 ->  | AC21: ='T6'!AS22 ->  | AD21: ='T1'!AT22 -> 53 | AE21: ='T2'!AT22 -> 76 | AF21: ='T3'!AT22 -> 52 | AG21: ='T4'!AT22 ->  | AH21: ='T5'!AT22 ->  | AI21: ='T6'!AT22 ->  | AJ21: ='T1'!AU22 -> 53 | AK21: ='T2'!AU22 -> 76 | AL21: ='T3'!AU22 -> 52 | AM21: ='T4'!AU22 ->  | AN21: ='T5'!AU22 ->  | AO21: ='T6'!AU22 ->  | AP21: 60 | AR21: 60 | AS21: 60 | AT21: 60 | AU21: 60
B22: 12 | E22: =SW!G21 -> FAUZIA AMELIA PUTRI | F22: ='T1'!AP23 -> 58 | G22: ='T2'!AP23 -> 71 | H22: ='T3'!AP23 -> 48 | I22: ='T4'!AP23 ->  | J22: ='T5'!AP23 ->  | K22: ='T6'!AP23 ->  | L22: ='T1'!AQ23 ->  | M22: ='T2'!AQ23 ->  | N22: ='T3'!AQ23 ->  | O22: ='T4'!AQ23 ->  | P22: ='T5'!AQ23 ->  | Q22: ='T6'!AQ23 ->  | R22: ='T1'!AR23 -> 58 | S22: ='T2'!AR23 -> 71 | T22: ='T3'!AR23 -> 48 | U22: ='T4'!AR23 ->  | V22: ='T5'!AR23 ->  | W22: ='T6'!AR23 ->  | X22: ='T1'!AS23 -> 58 | Y22: ='T2'!AS23 -> 71 | Z22: ='T3'!AS23 -> 48 | AA22: ='T4'!AS23 ->  | AB22: ='T5'!AS23 ->  | AC22: ='T6'!AS23 ->  | AD22: ='T1'!AT23 -> 58 | AE22: ='T2'!AT23 -> 71 | AF22: ='T3'!AT23 -> 48 | AG22: ='T4'!AT23 ->  | AH22: ='T5'!AT23 ->  | AI22: ='T6'!AT23 ->  | AJ22: ='T1'!AU23 -> 58 | AK22: ='T2'!AU23 -> 71 | AL22: ='T3'!AU23 -> 48 | AM22: ='T4'!AU23 ->  | AN22: ='T5'!AU23 ->  | AO22: ='T6'!AU23 ->  | AP22: 59 | AR22: 59 | AS22: 59 | AT22: 59 | AU22: 59
B23: 13 | E23: =SW!G22 -> FAZA AZIFAH SALSABILA | F23: ='T1'!AP24 -> 52 | G23: ='T2'!AP24 -> 58 | H23: ='T3'!AP24 -> 44 | I23: ='T4'!AP24 ->  | J23: ='T5'!AP24 ->  | K23: ='T6'!AP24 ->  | L23: ='T1'!AQ24 ->  | M23: ='T2'!AQ24 ->  | N23: ='T3'!AQ24 ->  | O23: ='T4'!AQ24 ->  | P23: ='T5'!AQ24 ->  | Q23: ='T6'!AQ24 ->  | R23: ='T1'!AR24 -> 52 | S23: ='T2'!AR24 -> 58 | T23: ='T3'!AR24 -> 44 | U23: ='T4'!AR24 ->  | V23: ='T5'!AR24 ->  | W23: ='T6'!AR24 ->  | X23: ='T1'!AS24 -> 52 | Y23: ='T2'!AS24 -> 58 | Z23: ='T3'!AS24 -> 44 | AA23: ='T4'!AS24 ->  | AB23: ='T5'!AS24 ->  | AC23: ='T6'!AS24 ->  | AD23: ='T1'!AT24 -> 52 | AE23: ='T2'!AT24 -> 58 | AF23: ='T3'!AT24 -> 44 | AG23: ='T4'!AT24 ->  | AH23: ='T5'!AT24 ->  | AI23: ='T6'!AT24 ->  | AJ23: ='T1'!AU24 -> 52 | AK23: ='T2'!AU24 -> 58 | AL23: ='T3'!AU24 -> 44 | AM23: ='T4'!AU24 ->  | AN23: ='T5'!AU24 ->  | AO23: ='T6'!AU24 ->  | AP23: 51 | AR23: 51 | AS23: 51 | AT23: 51 | AU23: 51
B24: 14 | E24: =SW!G23 -> HABIBIE NURUSSALAM | F24: ='T1'!AP25 -> 56 | G24: ='T2'!AP25 -> 61 | H24: ='T3'!AP25 -> 52 | I24: ='T4'!AP25 ->  | J24: ='T5'!AP25 ->  | K24: ='T6'!AP25 ->  | L24: ='T1'!AQ25 ->  | M24: ='T2'!AQ25 ->  | N24: ='T3'!AQ25 ->  | O24: ='T4'!AQ25 ->  | P24: ='T5'!AQ25 ->  | Q24: ='T6'!AQ25 ->  | R24: ='T1'!AR25 -> 56 | S24: ='T2'!AR25 -> 61 | T24: ='T3'!AR25 -> 52 | U24: ='T4'!AR25 ->  | V24: ='T5'!AR25 ->  | W24: ='T6'!AR25 ->  | X24: ='T1'!AS25 -> 56 | Y24: ='T2'!AS25 -> 61 | Z24: ='T3'!AS25 -> 52 | AA24: ='T4'!AS25 ->  | AB24: ='T5'!AS25 ->  | AC24: ='T6'!AS25 ->  | AD24: ='T1'!AT25 -> 56 | AE24: ='T2'!AT25 -> 61 | AF24: ='T3'!AT25 -> 52 | AG24: ='T4'!AT25 ->  | AH24: ='T5'!AT25 ->  | AI24: ='T6'!AT25 ->  | AJ24: ='T1'!AU25 -> 56 | AK24: ='T2'!AU25 -> 61 | AL24: ='T3'!AU25 -> 52 | AM24: ='T4'!AU25 ->  | AN24: ='T5'!AU25 ->  | AO24: ='T6'!AU25 ->  | AP24: 56 | AR24: 56 | AS24: 56 | AT24: 56 | AU24: 56
B25: 15 | E25: =SW!G24 -> HIMATURROSYIDAH | F25: ='T1'!AP26 -> 55 | G25: ='T2'!AP26 -> 72 | H25: ='T3'!AP26 -> 51 | I25: ='T4'!AP26 ->  | J25: ='T5'!AP26 ->  | K25: ='T6'!AP26 ->  | L25: ='T1'!AQ26 ->  | M25: ='T2'!AQ26 ->  | N25: ='T3'!AQ26 ->  | O25: ='T4'!AQ26 ->  | P25: ='T5'!AQ26 ->  | Q25: ='T6'!AQ26 ->  | R25: ='T1'!AR26 -> 55 | S25: ='T2'!AR26 -> 72 | T25: ='T3'!AR26 -> 51 | U25: ='T4'!AR26 ->  | V25: ='T5'!AR26 ->  | W25: ='T6'!AR26 ->  | X25: ='T1'!AS26 -> 55 | Y25: ='T2'!AS26 -> 72 | Z25: ='T3'!AS26 -> 51 | AA25: ='T4'!AS26 ->  | AB25: ='T5'!AS26 ->  | AC25: ='T6'!AS26 ->  | AD25: ='T1'!AT26 -> 55 | AE25: ='T2'!AT26 -> 72 | AF25: ='T3'!AT26 -> 51 | AG25: ='T4'!AT26 ->  | AH25: ='T5'!AT26 ->  | AI25: ='T6'!AT26 ->  | AJ25: ='T1'!AU26 -> 55 | AK25: ='T2'!AU26 -> 72 | AL25: ='T3'!AU26 -> 51 | AM25: ='T4'!AU26 ->  | AN25: ='T5'!AU26 ->  | AO25: ='T6'!AU26 ->  | AP25: 59 | AR25: 59 | AS25: 59 | AT25: 59 | AU25: 59
B26: 16 | E26: =SW!G25 -> IFKARINA NAILA SAUQYA | F26: ='T1'!AP27 -> 68 | G26: ='T2'!AP27 -> 72 | H26: ='T3'!AP27 -> 60 | I26: ='T4'!AP27 ->  | J26: ='T5'!AP27 ->  | K26: ='T6'!AP27 ->  | L26: ='T1'!AQ27 ->  | M26: ='T2'!AQ27 ->  | N26: ='T3'!AQ27 ->  | O26: ='T4'!AQ27 ->  | P26: ='T5'!AQ27 ->  | Q26: ='T6'!AQ27 ->  | R26: ='T1'!AR27 -> 68 | S26: ='T2'!AR27 -> 72 | T26: ='T3'!AR27 -> 60 | U26: ='T4'!AR27 ->  | V26: ='T5'!AR27 ->  | W26: ='T6'!AR27 ->  | X26: ='T1'!AS27 -> 68 | Y26: ='T2'!AS27 -> 72 | Z26: ='T3'!AS27 -> 60 | AA26: ='T4'!AS27 ->  | AB26: ='T5'!AS27 ->  | AC26: ='T6'!AS27 ->  | AD26: ='T1'!AT27 -> 68 | AE26: ='T2'!AT27 -> 72 | AF26: ='T3'!AT27 -> 60 | AG26: ='T4'!AT27 ->  | AH26: ='T5'!AT27 ->  | AI26: ='T6'!AT27 ->  | AJ26: ='T1'!AU27 -> 68 | AK26: ='T2'!AU27 -> 72 | AL26: ='T3'!AU27 -> 60 | AM26: ='T4'!AU27 ->  | AN26: ='T5'!AU27 ->  | AO26: ='T6'!AU27 ->  | AP26: 67 | AR26: 67 | AS26: 67 | AT26: 67 | AU26: 67
B27: 17 | E27: =SW!G26 -> KEISA AYU SASKIYAH | F27: ='T1'!AP28 -> 50 | G27: ='T2'!AP28 -> 52 | H27: ='T3'!AP28 -> 38 | I27: ='T4'!AP28 ->  | J27: ='T5'!AP28 ->  | K27: ='T6'!AP28 ->  | L27: ='T1'!AQ28 ->  | M27: ='T2'!AQ28 ->  | N27: ='T3'!AQ28 ->  | O27: ='T4'!AQ28 ->  | P27: ='T5'!AQ28 ->  | Q27: ='T6'!AQ28 ->  | R27: ='T1'!AR28 -> 50 | S27: ='T2'!AR28 -> 52 | T27: ='T3'!AR28 -> 38 | U27: ='T4'!AR28 ->  | V27: ='T5'!AR28 ->  | W27: ='T6'!AR28 ->  | X27: ='T1'!AS28 -> 50 | Y27: ='T2'!AS28 -> 52 | Z27: ='T3'!AS28 -> 38 | AA27: ='T4'!AS28 ->  | AB27: ='T5'!AS28 ->  | AC27: ='T6'!AS28 ->  | AD27: ='T1'!AT28 -> 50 | AE27: ='T2'!AT28 -> 52 | AF27: ='T3'!AT28 -> 38 | AG27: ='T4'!AT28 ->  | AH27: ='T5'!AT28 ->  | AI27: ='T6'!AT28 ->  | AJ27: ='T1'!AU28 -> 50 | AK27: ='T2'!AU28 -> 52 | AL27: ='T3'!AU28 -> 38 | AM27: ='T4'!AU28 ->  | AN27: ='T5'!AU28 ->  | AO27: ='T6'!AU28 ->  | AP27: 47 | AR27: 47 | AS27: 47 | AT27: 47 | AU27: 47
B28: 18 | E28: =SW!G27 -> MOCHAMMAD RENO FIRMANSYAH | F28: ='T1'!AP29 -> 35 | G28: ='T2'!AP29 -> 35 | H28: ='T3'!AP29 -> 32 | I28: ='T4'!AP29 ->  | J28: ='T5'!AP29 ->  | K28: ='T6'!AP29 ->  | L28: ='T1'!AQ29 ->  | M28: ='T2'!AQ29 ->  | N28: ='T3'!AQ29 ->  | O28: ='T4'!AQ29 ->  | P28: ='T5'!AQ29 ->  | Q28: ='T6'!AQ29 ->  | R28: ='T1'!AR29 -> 35 | S28: ='T2'!AR29 -> 35 | T28: ='T3'!AR29 -> 32 | U28: ='T4'!AR29 ->  | V28: ='T5'!AR29 ->  | W28: ='T6'!AR29 ->  | X28: ='T1'!AS29 -> 35 | Y28: ='T2'!AS29 -> 35 | Z28: ='T3'!AS29 -> 32 | AA28: ='T4'!AS29 ->  | AB28: ='T5'!AS29 ->  | AC28: ='T6'!AS29 ->  | AD28: ='T1'!AT29 -> 35 | AE28: ='T2'!AT29 -> 35 | AF28: ='T3'!AT29 -> 32 | AG28: ='T4'!AT29 ->  | AH28: ='T5'!AT29 ->  | AI28: ='T6'!AT29 ->  | AJ28: ='T1'!AU29 -> 35 | AK28: ='T2'!AU29 -> 35 | AL28: ='T3'!AU29 -> 32 | AM28: ='T4'!AU29 ->  | AN28: ='T5'!AU29 ->  | AO28: ='T6'!AU29 ->  | AP28: 34 | AR28: 34 | AS28: 34 | AT28: 34 | AU28: 34
B29: 19 | E29: =SW!G28 -> MOHAMAD NUR KHAFID KHABIBULLOH | F29: ='T1'!AP30 -> 48 | G29: ='T2'!AP30 -> 68 | H29: ='T3'!AP30 -> 54 | I29: ='T4'!AP30 ->  | J29: ='T5'!AP30 ->  | K29: ='T6'!AP30 ->  | L29: ='T1'!AQ30 ->  | M29: ='T2'!AQ30 ->  | N29: ='T3'!AQ30 ->  | O29: ='T4'!AQ30 ->  | P29: ='T5'!AQ30 ->  | Q29: ='T6'!AQ30 ->  | R29: ='T1'!AR30 -> 48 | S29: ='T2'!AR30 -> 68 | T29: ='T3'!AR30 -> 54 | U29: ='T4'!AR30 ->  | V29: ='T5'!AR30 ->  | W29: ='T6'!AR30 ->  | X29: ='T1'!AS30 -> 48 | Y29: ='T2'!AS30 -> 68 | Z29: ='T3'!AS30 -> 54 | AA29: ='T4'!AS30 ->  | AB29: ='T5'!AS30 ->  | AC29: ='T6'!AS30 ->  | AD29: ='T1'!AT30 -> 48 | AE29: ='T2'!AT30 -> 68 | AF29: ='T3'!AT30 -> 54 | AG29: ='T4'!AT30 ->  | AH29: ='T5'!AT30 ->  | AI29: ='T6'!AT30 ->  | AJ29: ='T1'!AU30 -> 48 | AK29: ='T2'!AU30 -> 68 | AL29: ='T3'!AU30 -> 54 | AM29: ='T4'!AU30 ->  | AN29: ='T5'!AU30 ->  | AO29: ='T6'!AU30 ->  | AP29: 57 | AR29: 57 | AS29: 57 | AT29: 57 | AU29: 57
B30: 20 | E30: =SW!G29 -> MOHAMMAD NAUFAL NAWWARUDDIN | F30: ='T1'!AP31 -> 38 | G30: ='T2'!AP31 -> 43 | H30: ='T3'!AP31 -> 36 | I30: ='T4'!AP31 ->  | J30: ='T5'!AP31 ->  | K30: ='T6'!AP31 ->  | L30: ='T1'!AQ31 ->  | M30: ='T2'!AQ31 ->  | N30: ='T3'!AQ31 ->  | O30: ='T4'!AQ31 ->  | P30: ='T5'!AQ31 ->  | Q30: ='T6'!AQ31 ->  | R30: ='T1'!AR31 -> 38 | S30: ='T2'!AR31 -> 43 | T30: ='T3'!AR31 -> 36 | U30: ='T4'!AR31 ->  | V30: ='T5'!AR31 ->  | W30: ='T6'!AR31 ->  | X30: ='T1'!AS31 -> 38 | Y30: ='T2'!AS31 -> 43 | Z30: ='T3'!AS31 -> 36 | AA30: ='T4'!AS31 ->  | AB30: ='T5'!AS31 ->  | AC30: ='T6'!AS31 ->  | AD30: ='T1'!AT31 -> 38 | AE30: ='T2'!AT31 -> 43 | AF30: ='T3'!AT31 -> 36 | AG30: ='T4'!AT31 ->  | AH30: ='T5'!AT31 ->  | AI30: ='T6'!AT31 ->  | AJ30: ='T1'!AU31 -> 38 | AK30: ='T2'!AU31 -> 43 | AL30: ='T3'!AU31 -> 36 | AM30: ='T4'!AU31 ->  | AN30: ='T5'!AU31 ->  | AO30: ='T6'!AU31 ->  | AP30: 39 | AR30: 39 | AS30: 39 | AT30: 39 | AU30: 39
B31: 21 | E31: =SW!G30 -> MUCHAMAD PRIMA PAMBUDI | F31: ='T1'!AP32 -> 52 | G31: ='T2'!AP32 -> 56 | H31: ='T3'!AP32 -> 39 | I31: ='T4'!AP32 ->  | J31: ='T5'!AP32 ->  | K31: ='T6'!AP32 ->  | L31: ='T1'!AQ32 ->  | M31: ='T2'!AQ32 ->  | N31: ='T3'!AQ32 ->  | O31: ='T4'!AQ32 ->  | P31: ='T5'!AQ32 ->  | Q31: ='T6'!AQ32 ->  | R31: ='T1'!AR32 -> 52 | S31: ='T2'!AR32 -> 56 | T31: ='T3'!AR32 -> 39 | U31: ='T4'!AR32 ->  | V31: ='T5'!AR32 ->  | W31: ='T6'!AR32 ->  | X31: ='T1'!AS32 -> 52 | Y31: ='T2'!AS32 -> 56 | Z31: ='T3'!AS32 -> 39 | AA31: ='T4'!AS32 ->  | AB31: ='T5'!AS32 ->  | AC31: ='T6'!AS32 ->  | AD31: ='T1'!AT32 -> 52 | AE31: ='T2'!AT32 -> 56 | AF31: ='T3'!AT32 -> 39 | AG31: ='T4'!AT32 ->  | AH31: ='T5'!AT32 ->  | AI31: ='T6'!AT32 ->  | AJ31: ='T1'!AU32 -> 52 | AK31: ='T2'!AU32 -> 56 | AL31: ='T3'!AU32 -> 39 | AM31: ='T4'!AU32 ->  | AN31: ='T5'!AU32 ->  | AO31: ='T6'!AU32 ->  | AP31: 49 | AR31: 49 | AS31: 49 | AT31: 49 | AU31: 49
B32: 22 | E32: =SW!G31 -> MUHAMMAD ALFAN FATHONI | F32: ='T1'!AP33 -> 49 | G32: ='T2'!AP33 -> 52 | H32: ='T3'!AP33 -> 40 | I32: ='T4'!AP33 ->  | J32: ='T5'!AP33 ->  | K32: ='T6'!AP33 ->  | L32: ='T1'!AQ33 ->  | M32: ='T2'!AQ33 ->  | N32: ='T3'!AQ33 ->  | O32: ='T4'!AQ33 ->  | P32: ='T5'!AQ33 ->  | Q32: ='T6'!AQ33 ->  | R32: ='T1'!AR33 -> 49 | S32: ='T2'!AR33 -> 52 | T32: ='T3'!AR33 -> 40 | U32: ='T4'!AR33 ->  | V32: ='T5'!AR33 ->  | W32: ='T6'!AR33 ->  | X32: ='T1'!AS33 -> 49 | Y32: ='T2'!AS33 -> 52 | Z32: ='T3'!AS33 -> 40 | AA32: ='T4'!AS33 ->  | AB32: ='T5'!AS33 ->  | AC32: ='T6'!AS33 ->  | AD32: ='T1'!AT33 -> 49 | AE32: ='T2'!AT33 -> 52 | AF32: ='T3'!AT33 -> 40 | AG32: ='T4'!AT33 ->  | AH32: ='T5'!AT33 ->  | AI32: ='T6'!AT33 ->  | AJ32: ='T1'!AU33 -> 49 | AK32: ='T2'!AU33 -> 52 | AL32: ='T3'!AU33 -> 40 | AM32: ='T4'!AU33 ->  | AN32: ='T5'!AU33 ->  | AO32: ='T6'!AU33 ->  | AP32: 47 | AR32: 47 | AS32: 47 | AT32: 47 | AU32: 47
B33: 23 | E33: =SW!G32 -> MUHAMMAD AMINULLAH MAULUDANI | F33: ='T1'!AP34 -> 34 | G33: ='T2'!AP34 -> 45 | H33: ='T3'!AP34 -> 31 | I33: ='T4'!AP34 ->  | J33: ='T5'!AP34 ->  | K33: ='T6'!AP34 ->  | L33: ='T1'!AQ34 ->  | M33: ='T2'!AQ34 ->  | N33: ='T3'!AQ34 ->  | O33: ='T4'!AQ34 ->  | P33: ='T5'!AQ34 ->  | Q33: ='T6'!AQ34 ->  | R33: ='T1'!AR34 -> 34 | S33: ='T2'!AR34 -> 45 | T33: ='T3'!AR34 -> 31 | U33: ='T4'!AR34 ->  | V33: ='T5'!AR34 ->  | W33: ='T6'!AR34 ->  | X33: ='T1'!AS34 -> 34 | Y33: ='T2'!AS34 -> 45 | Z33: ='T3'!AS34 -> 31 | AA33: ='T4'!AS34 ->  | AB33: ='T5'!AS34 ->  | AC33: ='T6'!AS34 ->  | AD33: ='T1'!AT34 -> 34 | AE33: ='T2'!AT34 -> 45 | AF33: ='T3'!AT34 -> 31 | AG33: ='T4'!AT34 ->  | AH33: ='T5'!AT34 ->  | AI33: ='T6'!AT34 ->  | AJ33: ='T1'!AU34 -> 34 | AK33: ='T2'!AU34 -> 45 | AL33: ='T3'!AU34 -> 31 | AM33: ='T4'!AU34 ->  | AN33: ='T5'!AU34 ->  | AO33: ='T6'!AU34 ->  | AP33: 37 | AR33: 37 | AS33: 37 | AT33: 37 | AU33: 37
B34: 24 | E34: =SW!G33 -> MUHAMMAD DAVIN LEVANTINO | F34: ='T1'!AP35 -> 41 | G34: ='T2'!AP35 -> 55 | H34: ='T3'!AP35 -> 54 | I34: ='T4'!AP35 ->  | J34: ='T5'!AP35 ->  | K34: ='T6'!AP35 ->  | L34: ='T1'!AQ35 ->  | M34: ='T2'!AQ35 ->  | N34: ='T3'!AQ35 ->  | O34: ='T4'!AQ35 ->  | P34: ='T5'!AQ35 ->  | Q34: ='T6'!AQ35 ->  | R34: ='T1'!AR35 -> 41 | S34: ='T2'!AR35 -> 55 | T34: ='T3'!AR35 -> 54 | U34: ='T4'!AR35 ->  | V34: ='T5'!AR35 ->  | W34: ='T6'!AR35 ->  | X34: ='T1'!AS35 -> 41 | Y34: ='T2'!AS35 -> 55 | Z34: ='T3'!AS35 -> 54 | AA34: ='T4'!AS35 ->  | AB34: ='T5'!AS35 ->  | AC34: ='T6'!AS35 ->  | AD34: ='T1'!AT35 -> 41 | AE34: ='T2'!AT35 -> 55 | AF34: ='T3'!AT35 -> 54 | AG34: ='T4'!AT35 ->  | AH34: ='T5'!AT35 ->  | AI34: ='T6'!AT35 ->  | AJ34: ='T1'!AU35 -> 41 | AK34: ='T2'!AU35 -> 55 | AL34: ='T3'!AU35 -> 54 | AM34: ='T4'!AU35 ->  | AN34: ='T5'!AU35 ->  | AO34: ='T6'!AU35 ->  | AP34: 50 | AR34: 50 | AS34: 50 | AT34: 50 | AU34: 50
B35: 25 | E35: =SW!G34 -> MUHAMMAD MAULANA PAHLEVY | F35: ='T1'!AP36 -> 54 | G35: ='T2'!AP36 -> 51 | H35: ='T3'!AP36 -> 40 | I35: ='T4'!AP36 ->  | J35: ='T5'!AP36 ->  | K35: ='T6'!AP36 ->  | L35: ='T1'!AQ36 ->  | M35: ='T2'!AQ36 ->  | N35: ='T3'!AQ36 ->  | O35: ='T4'!AQ36 ->  | P35: ='T5'!AQ36 ->  | Q35: ='T6'!AQ36 ->  | R35: ='T1'!AR36 -> 54 | S35: ='T2'!AR36 -> 51 | T35: ='T3'!AR36 -> 40 | U35: ='T4'!AR36 ->  | V35: ='T5'!AR36 ->  | W35: ='T6'!AR36 ->  | X35: ='T1'!AS36 -> 54 | Y35: ='T2'!AS36 -> 51 | Z35: ='T3'!AS36 -> 40 | AA35: ='T4'!AS36 ->  | AB35: ='T5'!AS36 ->  | AC35: ='T6'!AS36 ->  | AD35: ='T1'!AT36 -> 54 | AE35: ='T2'!AT36 -> 51 | AF35: ='T3'!AT36 -> 40 | AG35: ='T4'!AT36 ->  | AH35: ='T5'!AT36 ->  | AI35: ='T6'!AT36 ->  | AJ35: ='T1'!AU36 -> 54 | AK35: ='T2'!AU36 -> 51 | AL35: ='T3'!AU36 -> 40 | AM35: ='T4'!AU36 ->  | AN35: ='T5'!AU36 ->  | AO35: ='T6'!AU36 ->  | AP35: 48 | AR35: 48 | AS35: 48 | AT35: 48 | AU35: 48
B36: 26 | E36: =SW!G35 -> RADITYA NIRWANSYAH | F36: ='T1'!AP37 -> 46 | G36: ='T2'!AP37 -> 35 | H36: ='T3'!AP37 -> 33 | I36: ='T4'!AP37 ->  | J36: ='T5'!AP37 ->  | K36: ='T6'!AP37 ->  | L36: ='T1'!AQ37 ->  | M36: ='T2'!AQ37 ->  | N36: ='T3'!AQ37 ->  | O36: ='T4'!AQ37 ->  | P36: ='T5'!AQ37 ->  | Q36: ='T6'!AQ37 ->  | R36: ='T1'!AR37 -> 46 | S36: ='T2'!AR37 -> 35 | T36: ='T3'!AR37 -> 33 | U36: ='T4'!AR37 ->  | V36: ='T5'!AR37 ->  | W36: ='T6'!AR37 ->  | X36: ='T1'!AS37 -> 46 | Y36: ='T2'!AS37 -> 35 | Z36: ='T3'!AS37 -> 33 | AA36: ='T4'!AS37 ->  | AB36: ='T5'!AS37 ->  | AC36: ='T6'!AS37 ->  | AD36: ='T1'!AT37 -> 46 | AE36: ='T2'!AT37 -> 35 | AF36: ='T3'!AT37 -> 33 | AG36: ='T4'!AT37 ->  | AH36: ='T5'!AT37 ->  | AI36: ='T6'!AT37 ->  | AJ36: ='T1'!AU37 -> 46 | AK36: ='T2'!AU37 -> 35 | AL36: ='T3'!AU37 -> 33 | AM36: ='T4'!AU37 ->  | AN36: ='T5'!AU37 ->  | AO36: ='T6'!AU37 ->  | AP36: 38 | AR36: 38 | AS36: 38 | AT36: 38 | AU36: 38
B37: 27 | E37: =SW!G36 -> REVINA SRI UTARI | F37: ='T1'!AP38 -> 44 | G37: ='T2'!AP38 -> 54 | H37: ='T3'!AP38 -> 42 | I37: ='T4'!AP38 ->  | J37: ='T5'!AP38 ->  | K37: ='T6'!AP38 ->  | L37: ='T1'!AQ38 ->  | M37: ='T2'!AQ38 ->  | N37: ='T3'!AQ38 ->  | O37: ='T4'!AQ38 ->  | P37: ='T5'!AQ38 ->  | Q37: ='T6'!AQ38 ->  | R37: ='T1'!AR38 -> 44 | S37: ='T2'!AR38 -> 54 | T37: ='T3'!AR38 -> 42 | U37: ='T4'!AR38 ->  | V37: ='T5'!AR38 ->  | W37: ='T6'!AR38 ->  | X37: ='T1'!AS38 -> 44 | Y37: ='T2'!AS38 -> 54 | Z37: ='T3'!AS38 -> 42 | AA37: ='T4'!AS38 ->  | AB37: ='T5'!AS38 ->  | AC37: ='T6'!AS38 ->  | AD37: ='T1'!AT38 -> 44 | AE37: ='T2'!AT38 -> 54 | AF37: ='T3'!AT38 -> 42 | AG37: ='T4'!AT38 ->  | AH37: ='T5'!AT38 ->  | AI37: ='T6'!AT38 ->  | AJ37: ='T1'!AU38 -> 44 | AK37: ='T2'!AU38 -> 54 | AL37: ='T3'!AU38 -> 42 | AM37: ='T4'!AU38 ->  | AN37: ='T5'!AU38 ->  | AO37: ='T6'!AU38 ->  | AP37: 47 | AR37: 47 | AS37: 47 | AT37: 47 | AU37: 47
B38: 28 | E38: =SW!G37 -> REYHAN DWI ANDIKA | F38: ='T1'!AP39 -> 45 | G38: ='T2'!AP39 -> 46 | H38: ='T3'!AP39 -> 25 | I38: ='T4'!AP39 ->  | J38: ='T5'!AP39 ->  | K38: ='T6'!AP39 ->  | L38: ='T1'!AQ39 ->  | M38: ='T2'!AQ39 ->  | N38: ='T3'!AQ39 ->  | O38: ='T4'!AQ39 ->  | P38: ='T5'!AQ39 ->  | Q38: ='T6'!AQ39 ->  | R38: ='T1'!AR39 -> 45 | S38: ='T2'!AR39 -> 46 | T38: ='T3'!AR39 -> 25 | U38: ='T4'!AR39 ->  | V38: ='T5'!AR39 ->  | W38: ='T6'!AR39 ->  | X38: ='T1'!AS39 -> 45 | Y38: ='T2'!AS39 -> 46 | Z38: ='T3'!AS39 -> 25 | AA38: ='T4'!AS39 ->  | AB38: ='T5'!AS39 ->  | AC38: ='T6'!AS39 ->  | AD38: ='T1'!AT39 -> 45 | AE38: ='T2'!AT39 -> 46 | AF38: ='T3'!AT39 -> 25 | AG38: ='T4'!AT39 ->  | AH38: ='T5'!AT39 ->  | AI38: ='T6'!AT39 ->  | AJ38: ='T1'!AU39 -> 45 | AK38: ='T2'!AU39 -> 46 | AL38: ='T3'!AU39 -> 25 | AM38: ='T4'!AU39 ->  | AN38: ='T5'!AU39 ->  | AO38: ='T6'!AU39 ->  | AP38: 39 | AR38: 39 | AS38: 39 | AT38: 39 | AU38: 39
B39: 29 | E39: =SW!G38 -> RISKA LAURA TRIA OCTAVIA | F39: ='T1'!AP40 -> 63 | G39: ='T2'!AP40 -> 67 | H39: ='T3'!AP40 ->  | I39: ='T4'!AP40 ->  | J39: ='T5'!AP40 ->  | K39: ='T6'!AP40 ->  | L39: ='T1'!AQ40 ->  | M39: ='T2'!AQ40 ->  | N39: ='T3'!AQ40 ->  | O39: ='T4'!AQ40 ->  | P39: ='T5'!AQ40 ->  | Q39: ='T6'!AQ40 ->  | R39: ='T1'!AR40 -> 63 | S39: ='T2'!AR40 -> 67 | T39: ='T3'!AR40 ->  | U39: ='T4'!AR40 ->  | V39: ='T5'!AR40 ->  | W39: ='T6'!AR40 ->  | X39: ='T1'!AS40 -> 63 | Y39: ='T2'!AS40 -> 67 | Z39: ='T3'!AS40 ->  | AA39: ='T4'!AS40 ->  | AB39: ='T5'!AS40 ->  | AC39: ='T6'!AS40 ->  | AD39: ='T1'!AT40 -> 63 | AE39: ='T2'!AT40 -> 67 | AF39: ='T3'!AT40 ->  | AG39: ='T4'!AT40 ->  | AH39: ='T5'!AT40 ->  | AI39: ='T6'!AT40 ->  | AJ39: ='T1'!AU40 -> 63 | AK39: ='T2'!AU40 -> 67 | AL39: ='T3'!AU40 ->  | AM39: ='T4'!AU40 ->  | AN39: ='T5'!AU40 ->  | AO39: ='T6'!AU40 ->  | AP39: 65 | AR39: 65 | AS39: 65 | AT39: 65 | AU39: 65
B40: 30 | E40: =SW!G39 -> ROHMADONA DWI SAFITRI | F40: ='T1'!AP41 -> 67 | G40: ='T2'!AP41 -> 80 | H40: ='T3'!AP41 -> 53 | I40: ='T4'!AP41 ->  | J40: ='T5'!AP41 ->  | K40: ='T6'!AP41 ->  | L40: ='T1'!AQ41 ->  | M40: ='T2'!AQ41 ->  | N40: ='T3'!AQ41 ->  | O40: ='T4'!AQ41 ->  | P40: ='T5'!AQ41 ->  | Q40: ='T6'!AQ41 ->  | R40: ='T1'!AR41 -> 67 | S40: ='T2'!AR41 -> 80 | T40: ='T3'!AR41 -> 53 | U40: ='T4'!AR41 ->  | V40: ='T5'!AR41 ->  | W40: ='T6'!AR41 ->  | X40: ='T1'!AS41 -> 67 | Y40: ='T2'!AS41 -> 80 | Z40: ='T3'!AS41 -> 53 | AA40: ='T4'!AS41 ->  | AB40: ='T5'!AS41 ->  | AC40: ='T6'!AS41 ->  | AD40: ='T1'!AT41 -> 67 | AE40: ='T2'!AT41 -> 80 | AF40: ='T3'!AT41 -> 53 | AG40: ='T4'!AT41 ->  | AH40: ='T5'!AT41 ->  | AI40: ='T6'!AT41 ->  | AJ40: ='T1'!AU41 -> 67 | AK40: ='T2'!AU41 -> 80 | AL40: ='T3'!AU41 -> 53 | AM40: ='T4'!AU41 ->  | AN40: ='T5'!AU41 ->  | AO40: ='T6'!AU41 ->  | AP40: 67 | AR40: 67 | AS40: 67 | AT40: 67 | AU40: 67
B41: 31 | E41: =SW!G40 -> SALMAN ALFARIZI | F41: ='T1'!AP42 -> 43 | G41: ='T2'!AP42 -> 47 | H41: ='T3'!AP42 -> 36 | I41: ='T4'!AP42 ->  | J41: ='T5'!AP42 ->  | K41: ='T6'!AP42 ->  | L41: ='T1'!AQ42 ->  | M41: ='T2'!AQ42 ->  | N41: ='T3'!AQ42 ->  | O41: ='T4'!AQ42 ->  | P41: ='T5'!AQ42 ->  | Q41: ='T6'!AQ42 ->  | R41: ='T1'!AR42 -> 43 | S41: ='T2'!AR42 -> 47 | T41: ='T3'!AR42 -> 36 | U41: ='T4'!AR42 ->  | V41: ='T5'!AR42 ->  | W41: ='T6'!AR42 ->  | X41: ='T1'!AS42 -> 43 | Y41: ='T2'!AS42 -> 47 | Z41: ='T3'!AS42 -> 36 | AA41: ='T4'!AS42 ->  | AB41: ='T5'!AS42 ->  | AC41: ='T6'!AS42 ->  | AD41: ='T1'!AT42 -> 43 | AE41: ='T2'!AT42 -> 47 | AF41: ='T3'!AT42 -> 36 | AG41: ='T4'!AT42 ->  | AH41: ='T5'!AT42 ->  | AI41: ='T6'!AT42 ->  | AJ41: ='T1'!AU42 -> 43 | AK41: ='T2'!AU42 -> 47 | AL41: ='T3'!AU42 -> 36 | AM41: ='T4'!AU42 ->  | AN41: ='T5'!AU42 ->  | AO41: ='T6'!AU42 ->  | AP41: 42 | AR41: 42 | AS41: 42 | AT41: 42 | AU41: 42
B42: 32 | E42: =SW!G41 -> TAUFIQ KURROHMAN | F42: ='T1'!AP43 -> 53 | G42: ='T2'!AP43 -> 51 | H42: ='T3'!AP43 -> 41 | I42: ='T4'!AP43 ->  | J42: ='T5'!AP43 ->  | K42: ='T6'!AP43 ->  | L42: ='T1'!AQ43 ->  | M42: ='T2'!AQ43 ->  | N42: ='T3'!AQ43 ->  | O42: ='T4'!AQ43 ->  | P42: ='T5'!AQ43 ->  | Q42: ='T6'!AQ43 ->  | R42: ='T1'!AR43 -> 53 | S42: ='T2'!AR43 -> 51 | T42: ='T3'!AR43 -> 41 | U42: ='T4'!AR43 ->  | V42: ='T5'!AR43 ->  | W42: ='T6'!AR43 ->  | X42: ='T1'!AS43 -> 53 | Y42: ='T2'!AS43 -> 51 | Z42: ='T3'!AS43 -> 41 | AA42: ='T4'!AS43 ->  | AB42: ='T5'!AS43 ->  | AC42: ='T6'!AS43 ->  | AD42: ='T1'!AT43 -> 53 | AE42: ='T2'!AT43 -> 51 | AF42: ='T3'!AT43 -> 41 | AG42: ='T4'!AT43 ->  | AH42: ='T5'!AT43 ->  | AI42: ='T6'!AT43 ->  | AJ42: ='T1'!AU43 -> 53 | AK42: ='T2'!AU43 -> 51 | AL42: ='T3'!AU43 -> 41 | AM42: ='T4'!AU43 ->  | AN42: ='T5'!AU43 ->  | AO42: ='T6'!AU43 ->  | AP42: 48 | AR42: 48 | AS42: 48 | AT42: 48 | AU42: 48
B43: 33 | E43: =SW!G42 -> 0 | F43: ='T1'!AP44 ->  | G43: ='T2'!AP44 ->  | H43: ='T3'!AP44 ->  | I43: ='T4'!AP44 ->  | J43: ='T5'!AP44 ->  | K43: ='T6'!AP44 ->  | L43: ='T1'!AQ44 ->  | M43: ='T2'!AQ44 ->  | N43: ='T3'!AQ44 ->  | O43: ='T4'!AQ44 ->  | P43: ='T5'!AQ44 ->  | Q43: ='T6'!AQ44 ->  | R43: ='T1'!AR44 ->  | S43: ='T2'!AR44 ->  | T43: ='T3'!AR44 ->  | U43: ='T4'!AR44 ->  | V43: ='T5'!AR44 ->  | W43: ='T6'!AR44 ->  | X43: ='T1'!AS44 ->  | Y43: ='T2'!AS44 ->  | Z43: ='T3'!AS44 ->  | AA43: ='T4'!AS44 ->  | AB43: ='T5'!AS44 ->  | AC43: ='T6'!AS44 ->  | AD43: ='T1'!AT44 ->  | AE43: ='T2'!AT44 ->  | AF43: ='T3'!AT44 ->  | AG43: ='T4'!AT44 ->  | AH43: ='T5'!AT44 ->  | AI43: ='T6'!AT44 ->  | AJ43: ='T1'!AU44 ->  | AK43: ='T2'!AU44 ->  | AL43: ='T3'!AU44 ->  | AM43: ='T4'!AU44 ->  | AN43: ='T5'!AU44 ->  | AO43: ='T6'!AU44 -> 
B44: 34 | E44: =SW!G43 -> 0 | F44: ='T1'!AP45 ->  | G44: ='T2'!AP45 ->  | H44: ='T3'!AP45 ->  | I44: ='T4'!AP45 ->  | J44: ='T5'!AP45 ->  | K44: ='T6'!AP45 ->  | L44: ='T1'!AQ45 ->  | M44: ='T2'!AQ45 ->  | N44: ='T3'!AQ45 ->  | O44: ='T4'!AQ45 ->  | P44: ='T5'!AQ45 ->  | Q44: ='T6'!AQ45 ->  | R44: ='T1'!AR45 ->  | S44: ='T2'!AR45 ->  | T44: ='T3'!AR45 ->  | U44: ='T4'!AR45 ->  | V44: ='T5'!AR45 ->  | W44: ='T6'!AR45 ->  | X44: ='T1'!AS45 ->  | Y44: ='T2'!AS45 ->  | Z44: ='T3'!AS45 ->  | AA44: ='T4'!AS45 ->  | AB44: ='T5'!AS45 ->  | AC44: ='T6'!AS45 ->  | AD44: ='T1'!AT45 ->  | AE44: ='T2'!AT45 ->  | AF44: ='T3'!AT45 ->  | AG44: ='T4'!AT45 ->  | AH44: ='T5'!AT45 ->  | AI44: ='T6'!AT45 ->  | AJ44: ='T1'!AU45 ->  | AK44: ='T2'!AU45 ->  | AL44: ='T3'!AU45 ->  | AM44: ='T4'!AU45 ->  | AN44: ='T5'!AU45 ->  | AO44: ='T6'!AU45 -> 
B45: 35 | E45: =SW!G44 -> 0 | F45: ='T1'!AP46 ->  | G45: ='T2'!AP46 ->  | H45: ='T3'!AP46 ->  | I45: ='T4'!AP46 ->  | J45: ='T5'!AP46 ->  | K45: ='T6'!AP46 ->  | L45: ='T1'!AQ46 ->  | M45: ='T2'!AQ46 ->  | N45: ='T3'!AQ46 ->  | O45: ='T4'!AQ46 ->  | P45: ='T5'!AQ46 ->  | Q45: ='T6'!AQ46 ->  | R45: ='T1'!AR46 ->  | S45: ='T2'!AR46 ->  | T45: ='T3'!AR46 ->  | U45: ='T4'!AR46 ->  | V45: ='T5'!AR46 ->  | W45: ='T6'!AR46 ->  | X45: ='T1'!AS46 ->  | Y45: ='T2'!AS46 ->  | Z45: ='T3'!AS46 ->  | AA45: ='T4'!AS46 ->  | AB45: ='T5'!AS46 ->  | AC45: ='T6'!AS46 ->  | AD45: ='T1'!AT46 ->  | AE45: ='T2'!AT46 ->  | AF45: ='T3'!AT46 ->  | AG45: ='T4'!AT46 ->  | AH45: ='T5'!AT46 ->  | AI45: ='T6'!AT46 ->  | AJ45: ='T1'!AU46 ->  | AK45: ='T2'!AU46 ->  | AL45: ='T3'!AU46 ->  | AM45: ='T4'!AU46 ->  | AN45: ='T5'!AU46 ->  | AO45: ='T6'!AU46 -> 
B46: 36 | E46: =SW!G45 -> 0 | F46: ='T1'!AP47 ->  | G46: ='T2'!AP47 ->  | H46: ='T3'!AP47 ->  | I46: ='T4'!AP47 ->  | J46: ='T5'!AP47 ->  | K46: ='T6'!AP47 ->  | L46: ='T1'!AQ47 ->  | M46: ='T2'!AQ47 ->  | N46: ='T3'!AQ47 ->  | O46: ='T4'!AQ47 ->  | P46: ='T5'!AQ47 ->  | Q46: ='T6'!AQ47 ->  | R46: ='T1'!AR47 ->  | S46: ='T2'!AR47 ->  | T46: ='T3'!AR47 ->  | U46: ='T4'!AR47 ->  | V46: ='T5'!AR47 ->  | W46: ='T6'!AR47 ->  | X46: ='T1'!AS47 ->  | Y46: ='T2'!AS47 ->  | Z46: ='T3'!AS47 ->  | AA46: ='T4'!AS47 ->  | AB46: ='T5'!AS47 ->  | AC46: ='T6'!AS47 ->  | AD46: ='T1'!AT47 ->  | AE46: ='T2'!AT47 ->  | AF46: ='T3'!AT47 ->  | AG46: ='T4'!AT47 ->  | AH46: ='T5'!AT47 ->  | AI46: ='T6'!AT47 ->  | AJ46: ='T1'!AU47 ->  | AK46: ='T2'!AU47 ->  | AL46: ='T3'!AU47 ->  | AM46: ='T4'!AU47 ->  | AN46: ='T5'!AU47 ->  | AO46: ='T6'!AU47 -> 
B47: 37 | E47: =SW!G46 -> 0 | F47: ='T1'!AP48 ->  | G47: ='T2'!AP48 ->  | H47: ='T3'!AP48 ->  | I47: ='T4'!AP48 ->  | J47: ='T5'!AP48 ->  | K47: ='T6'!AP48 ->  | L47: ='T1'!AQ48 ->  | M47: ='T2'!AQ48 ->  | N47: ='T3'!AQ48 ->  | O47: ='T4'!AQ48 ->  | P47: ='T5'!AQ48 ->  | Q47: ='T6'!AQ48 ->  | R47: ='T1'!AR48 ->  | S47: ='T2'!AR48 ->  | T47: ='T3'!AR48 ->  | U47: ='T4'!AR48 ->  | V47: ='T5'!AR48 ->  | W47: ='T6'!AR48 ->  | X47: ='T1'!AS48 ->  | Y47: ='T2'!AS48 ->  | Z47: ='T3'!AS48 ->  | AA47: ='T4'!AS48 ->  | AB47: ='T5'!AS48 ->  | AC47: ='T6'!AS48 ->  | AD47: ='T1'!AT48 ->  | AE47: ='T2'!AT48 ->  | AF47: ='T3'!AT48 ->  | AG47: ='T4'!AT48 ->  | AH47: ='T5'!AT48 ->  | AI47: ='T6'!AT48 ->  | AJ47: ='T1'!AU48 ->  | AK47: ='T2'!AU48 ->  | AL47: ='T3'!AU48 ->  | AM47: ='T4'!AU48 ->  | AN47: ='T5'!AU48 ->  | AO47: ='T6'!AU48 -> 
B48: 38 | E48: =SW!G47 -> 0 | F48: ='T1'!AP49 ->  | G48: ='T2'!AP49 ->  | H48: ='T3'!AP49 ->  | I48: ='T4'!AP49 ->  | J48: ='T5'!AP49 ->  | K48: ='T6'!AP49 ->  | L48: ='T1'!AQ49 ->  | M48: ='T2'!AQ49 ->  | N48: ='T3'!AQ49 ->  | O48: ='T4'!AQ49 ->  | P48: ='T5'!AQ49 ->  | Q48: ='T6'!AQ49 ->  | R48: ='T1'!AR49 ->  | S48: ='T2'!AR49 ->  | T48: ='T3'!AR49 ->  | U48: ='T4'!AR49 ->  | V48: ='T5'!AR49 ->  | W48: ='T6'!AR49 ->  | X48: ='T1'!AS49 ->  | Y48: ='T2'!AS49 ->  | Z48: ='T3'!AS49 ->  | AA48: ='T4'!AS49 ->  | AB48: ='T5'!AS49 ->  | AC48: ='T6'!AS49 ->  | AD48: ='T1'!AT49 ->  | AE48: ='T2'!AT49 ->  | AF48: ='T3'!AT49 ->  | AG48: ='T4'!AT49 ->  | AH48: ='T5'!AT49 ->  | AI48: ='T6'!AT49 ->  | AJ48: ='T1'!AU49 ->  | AK48: ='T2'!AU49 ->  | AL48: ='T3'!AU49 ->  | AM48: ='T4'!AU49 ->  | AN48: ='T5'!AU49 ->  | AO48: ='T6'!AU49 -> 
B49: 39 | E49: =SW!G48 -> 0 | F49: ='T1'!AP50 ->  | G49: ='T2'!AP50 ->  | H49: ='T3'!AP50 ->  | I49: ='T4'!AP50 ->  | J49: ='T5'!AP50 ->  | K49: ='T6'!AP50 ->  | L49: ='T1'!AQ50 ->  | M49: ='T2'!AQ50 ->  | N49: ='T3'!AQ50 ->  | O49: ='T4'!AQ50 ->  | P49: ='T5'!AQ50 ->  | Q49: ='T6'!AQ50 ->  | R49: ='T1'!AR50 ->  | S49: ='T2'!AR50 ->  | T49: ='T3'!AR50 ->  | U49: ='T4'!AR50 ->  | V49: ='T5'!AR50 ->  | W49: ='T6'!AR50 ->  | X49: ='T1'!AS50 ->  | Y49: ='T2'!AS50 ->  | Z49: ='T3'!AS50 ->  | AA49: ='T4'!AS50 ->  | AB49: ='T5'!AS50 ->  | AC49: ='T6'!AS50 ->  | AD49: ='T1'!AT50 ->  | AE49: ='T2'!AT50 ->  | AF49: ='T3'!AT50 ->  | AG49: ='T4'!AT50 ->  | AH49: ='T5'!AT50 ->  | AI49: ='T6'!AT50 ->  | AJ49: ='T1'!AU50 ->  | AK49: ='T2'!AU50 ->  | AL49: ='T3'!AU50 ->  | AM49: ='T4'!AU50 ->  | AN49: ='T5'!AU50 ->  | AO49: ='T6'!AU50 -> 
B50: 40 | E50: =SW!G49 -> 0 | F50: ='T1'!AP51 ->  | G50: ='T2'!AP51 ->  | H50: ='T3'!AP51 ->  | I50: ='T4'!AP51 ->  | J50: ='T5'!AP51 ->  | K50: ='T6'!AP51 ->  | L50: ='T1'!AQ51 ->  | M50: ='T2'!AQ51 ->  | N50: ='T3'!AQ51 ->  | O50: ='T4'!AQ51 ->  | P50: ='T5'!AQ51 ->  | Q50: ='T6'!AQ51 ->  | R50: ='T1'!AR51 ->  | S50: ='T2'!AR51 ->  | T50: ='T3'!AR51 ->  | U50: ='T4'!AR51 ->  | V50: ='T5'!AR51 ->  | W50: ='T6'!AR51 ->  | X50: ='T1'!AS51 ->  | Y50: ='T2'!AS51 ->  | Z50: ='T3'!AS51 ->  | AA50: ='T4'!AS51 ->  | AB50: ='T5'!AS51 ->  | AC50: ='T6'!AS51 ->  | AD50: ='T1'!AT51 ->  | AE50: ='T2'!AT51 ->  | AF50: ='T3'!AT51 ->  | AG50: ='T4'!AT51 ->  | AH50: ='T5'!AT51 ->  | AI50: ='T6'!AT51 ->  | AJ50: ='T1'!AU51 ->  | AK50: ='T2'!AU51 ->  | AL50: ='T3'!AU51 ->  | AM50: ='T4'!AU51 ->  | AN50: ='T5'!AU51 ->  | AO50: ='T6'!AU51 -> 
B51: 41 | E51: =SW!G50 -> 0 | F51: ='T1'!AP52 ->  | G51: ='T2'!AP52 ->  | H51: ='T3'!AP52 ->  | I51: ='T4'!AP52 ->  | J51: ='T5'!AP52 ->  | K51: ='T6'!AP52 ->  | L51: ='T1'!AQ52 ->  | M51: ='T2'!AQ52 ->  | N51: ='T3'!AQ52 ->  | O51: ='T4'!AQ52 ->  | P51: ='T5'!AQ52 ->  | Q51: ='T6'!AQ52 ->  | R51: ='T1'!AR52 ->  | S51: ='T2'!AR52 ->  | T51: ='T3'!AR52 ->  | U51: ='T4'!AR52 ->  | V51: ='T5'!AR52 ->  | W51: ='T6'!AR52 ->  | X51: ='T1'!AS52 ->  | Y51: ='T2'!AS52 ->  | Z51: ='T3'!AS52 ->  | AA51: ='T4'!AS52 ->  | AB51: ='T5'!AS52 ->  | AC51: ='T6'!AS52 ->  | AD51: ='T1'!AT52 ->  | AE51: ='T2'!AT52 ->  | AF51: ='T3'!AT52 ->  | AG51: ='T4'!AT52 ->  | AH51: ='T5'!AT52 ->  | AI51: ='T6'!AT52 ->  | AJ51: ='T1'!AU52 ->  | AK51: ='T2'!AU52 ->  | AL51: ='T3'!AU52 ->  | AM51: ='T4'!AU52 ->  | AN51: ='T5'!AU52 ->  | AO51: ='T6'!AU52 -> 
B52: 42 | E52: =SW!G51 -> 0 | F52: ='T1'!AP53 ->  | G52: ='T2'!AP53 ->  | H52: ='T3'!AP53 ->  | I52: ='T4'!AP53 ->  | J52: ='T5'!AP53 ->  | K52: ='T6'!AP53 ->  | L52: ='T1'!AQ53 ->  | M52: ='T2'!AQ53 ->  | N52: ='T3'!AQ53 ->  | O52: ='T4'!AQ53 ->  | P52: ='T5'!AQ53 ->  | Q52: ='T6'!AQ53 ->  | R52: ='T1'!AR53 ->  | S52: ='T2'!AR53 ->  | T52: ='T3'!AR53 ->  | U52: ='T4'!AR53 ->  | V52: ='T5'!AR53 ->  | W52: ='T6'!AR53 ->  | X52: ='T1'!AS53 ->  | Y52: ='T2'!AS53 ->  | Z52: ='T3'!AS53 ->  | AA52: ='T4'!AS53 ->  | AB52: ='T5'!AS53 ->  | AC52: ='T6'!AS53 ->  | AD52: ='T1'!AT53 ->  | AE52: ='T2'!AT53 ->  | AF52: ='T3'!AT53 ->  | AG52: ='T4'!AT53 ->  | AH52: ='T5'!AT53 ->  | AI52: ='T6'!AT53 ->  | AJ52: ='T1'!AU53 ->  | AK52: ='T2'!AU53 ->  | AL52: ='T3'!AU53 ->  | AM52: ='T4'!AU53 ->  | AN52: ='T5'!AU53 ->  | AO52: ='T6'!AU53 -> 
B53: 43 | E53: =SW!G52 -> 0 | F53: ='T1'!AP54 ->  | G53: ='T2'!AP54 ->  | H53: ='T3'!AP54 ->  | I53: ='T4'!AP54 ->  | J53: ='T5'!AP54 ->  | K53: ='T6'!AP54 ->  | L53: ='T1'!AQ54 ->  | M53: ='T2'!AQ54 ->  | N53: ='T3'!AQ54 ->  | O53: ='T4'!AQ54 ->  | P53: ='T5'!AQ54 ->  | Q53: ='T6'!AQ54 ->  | R53: ='T1'!AR54 ->  | S53: ='T2'!AR54 ->  | T53: ='T3'!AR54 ->  | U53: ='T4'!AR54 ->  | V53: ='T5'!AR54 ->  | W53: ='T6'!AR54 ->  | X53: ='T1'!AS54 ->  | Y53: ='T2'!AS54 ->  | Z53: ='T3'!AS54 ->  | AA53: ='T4'!AS54 ->  | AB53: ='T5'!AS54 ->  | AC53: ='T6'!AS54 ->  | AD53: ='T1'!AT54 ->  | AE53: ='T2'!AT54 ->  | AF53: ='T3'!AT54 ->  | AG53: ='T4'!AT54 ->  | AH53: ='T5'!AT54 ->  | AI53: ='T6'!AT54 ->  | AJ53: ='T1'!AU54 ->  | AK53: ='T2'!AU54 ->  | AL53: ='T3'!AU54 ->  | AM53: ='T4'!AU54 ->  | AN53: ='T5'!AU54 ->  | AO53: ='T6'!AU54 -> 
B54: 44 | E54: =SW!G53 -> 0 | F54: ='T1'!AP55 ->  | G54: ='T2'!AP55 ->  | H54: ='T3'!AP55 ->  | I54: ='T4'!AP55 ->  | J54: ='T5'!AP55 ->  | K54: ='T6'!AP55 ->  | L54: ='T1'!AQ55 ->  | M54: ='T2'!AQ55 ->  | N54: ='T3'!AQ55 ->  | O54: ='T4'!AQ55 ->  | P54: ='T5'!AQ55 ->  | Q54: ='T6'!AQ55 ->  | R54: ='T1'!AR55 ->  | S54: ='T2'!AR55 ->  | T54: ='T3'!AR55 ->  | U54: ='T4'!AR55 ->  | V54: ='T5'!AR55 ->  | W54: ='T6'!AR55 ->  | X54: ='T1'!AS55 ->  | Y54: ='T2'!AS55 ->  | Z54: ='T3'!AS55 ->  | AA54: ='T4'!AS55 ->  | AB54: ='T5'!AS55 ->  | AC54: ='T6'!AS55 ->  | AD54: ='T1'!AT55 ->  | AE54: ='T2'!AT55 ->  | AF54: ='T3'!AT55 ->  | AG54: ='T4'!AT55 ->  | AH54: ='T5'!AT55 ->  | AI54: ='T6'!AT55 ->  | AJ54: ='T1'!AU55 ->  | AK54: ='T2'!AU55 ->  | AL54: ='T3'!AU55 ->  | AM54: ='T4'!AU55 ->  | AN54: ='T5'!AU55 ->  | AO54: ='T6'!AU55 -> 
B55: 45 | E55: =SW!G54 -> 0 | F55: ='T1'!AP56 ->  | G55: ='T2'!AP56 ->  | H55: ='T3'!AP56 ->  | I55: ='T4'!AP56 ->  | J55: ='T5'!AP56 ->  | K55: ='T6'!AP56 ->  | L55: ='T1'!AQ56 ->  | M55: ='T2'!AQ56 ->  | N55: ='T3'!AQ56 ->  | O55: ='T4'!AQ56 ->  | P55: ='T5'!AQ56 ->  | Q55: ='T6'!AQ56 ->  | R55: ='T1'!AR56 ->  | S55: ='T2'!AR56 ->  | T55: ='T3'!AR56 ->  | U55: ='T4'!AR56 ->  | V55: ='T5'!AR56 ->  | W55: ='T6'!AR56 ->  | X55: ='T1'!AS56 ->  | Y55: ='T2'!AS56 ->  | Z55: ='T3'!AS56 ->  | AA55: ='T4'!AS56 ->  | AB55: ='T5'!AS56 ->  | AC55: ='T6'!AS56 ->  | AD55: ='T1'!AT56 ->  | AE55: ='T2'!AT56 ->  | AF55: ='T3'!AT56 ->  | AG55: ='T4'!AT56 ->  | AH55: ='T5'!AT56 ->  | AI55: ='T6'!AT56 ->  | AJ55: ='T1'!AU56 ->  | AK55: ='T2'!AU56 ->  | AL55: ='T3'!AU56 ->  | AM55: ='T4'!AU56 ->  | AN55: ='T5'!AU56 ->  | AO55: ='T6'!AU56 -> 
B56: 46 | E56: =SW!G55 -> 0 | F56: ='T1'!AP57 ->  | G56: ='T2'!AP57 ->  | H56: ='T3'!AP57 ->  | I56: ='T4'!AP57 ->  | J56: ='T5'!AP57 ->  | K56: ='T6'!AP57 ->  | L56: ='T1'!AQ57 ->  | M56: ='T2'!AQ57 ->  | N56: ='T3'!AQ57 ->  | O56: ='T4'!AQ57 ->  | P56: ='T5'!AQ57 ->  | Q56: ='T6'!AQ57 ->  | R56: ='T1'!AR57 ->  | S56: ='T2'!AR57 ->  | T56: ='T3'!AR57 ->  | U56: ='T4'!AR57 ->  | V56: ='T5'!AR57 ->  | W56: ='T6'!AR57 ->  | X56: ='T1'!AS57 ->  | Y56: ='T2'!AS57 ->  | Z56: ='T3'!AS57 ->  | AA56: ='T4'!AS57 ->  | AB56: ='T5'!AS57 ->  | AC56: ='T6'!AS57 ->  | AD56: ='T1'!AT57 ->  | AE56: ='T2'!AT57 ->  | AF56: ='T3'!AT57 ->  | AG56: ='T4'!AT57 ->  | AH56: ='T5'!AT57 ->  | AI56: ='T6'!AT57 ->  | AJ56: ='T1'!AU57 ->  | AK56: ='T2'!AU57 ->  | AL56: ='T3'!AU57 ->  | AM56: ='T4'!AU57 ->  | AN56: ='T5'!AU57 ->  | AO56: ='T6'!AU57 -> 
B57: 47 | E57: =SW!G56 -> 0 | F57: ='T1'!AP58 ->  | G57: ='T2'!AP58 ->  | H57: ='T3'!AP58 ->  | I57: ='T4'!AP58 ->  | J57: ='T5'!AP58 ->  | K57: ='T6'!AP58 ->  | L57: ='T1'!AQ58 ->  | M57: ='T2'!AQ58 ->  | N57: ='T3'!AQ58 ->  | O57: ='T4'!AQ58 ->  | P57: ='T5'!AQ58 ->  | Q57: ='T6'!AQ58 ->  | R57: ='T1'!AR58 ->  | S57: ='T2'!AR58 ->  | T57: ='T3'!AR58 ->  | U57: ='T4'!AR58 ->  | V57: ='T5'!AR58 ->  | W57: ='T6'!AR58 ->  | X57: ='T1'!AS58 ->  | Y57: ='T2'!AS58 ->  | Z57: ='T3'!AS58 ->  | AA57: ='T4'!AS58 ->  | AB57: ='T5'!AS58 ->  | AC57: ='T6'!AS58 ->  | AD57: ='T1'!AT58 ->  | AE57: ='T2'!AT58 ->  | AF57: ='T3'!AT58 ->  | AG57: ='T4'!AT58 ->  | AH57: ='T5'!AT58 ->  | AI57: ='T6'!AT58 ->  | AJ57: ='T1'!AU58 ->  | AK57: ='T2'!AU58 ->  | AL57: ='T3'!AU58 ->  | AM57: ='T4'!AU58 ->  | AN57: ='T5'!AU58 ->  | AO57: ='T6'!AU58 -> 
B58: 48 | E58: =SW!G57 -> 0 | F58: ='T1'!AP59 ->  | G58: ='T2'!AP59 ->  | H58: ='T3'!AP59 ->  | I58: ='T4'!AP59 ->  | J58: ='T5'!AP59 ->  | K58: ='T6'!AP59 ->  | L58: ='T1'!AQ59 ->  | M58: ='T2'!AQ59 ->  | N58: ='T3'!AQ59 ->  | O58: ='T4'!AQ59 ->  | P58: ='T5'!AQ59 ->  | Q58: ='T6'!AQ59 ->  | R58: ='T1'!AR59 ->  | S58: ='T2'!AR59 ->  | T58: ='T3'!AR59 ->  | U58: ='T4'!AR59 ->  | V58: ='T5'!AR59 ->  | W58: ='T6'!AR59 ->  | X58: ='T1'!AS59 ->  | Y58: ='T2'!AS59 ->  | Z58: ='T3'!AS59 ->  | AA58: ='T4'!AS59 ->  | AB58: ='T5'!AS59 ->  | AC58: ='T6'!AS59 ->  | AD58: ='T1'!AT59 ->  | AE58: ='T2'!AT59 ->  | AF58: ='T3'!AT59 ->  | AG58: ='T4'!AT59 ->  | AH58: ='T5'!AT59 ->  | AI58: ='T6'!AT59 ->  | AJ58: ='T1'!AU59 ->  | AK58: ='T2'!AU59 ->  | AL58: ='T3'!AU59 ->  | AM58: ='T4'!AU59 ->  | AN58: ='T5'!AU59 ->  | AO58: ='T6'!AU59 -> 
B59: 49 | E59: =SW!G58 -> 0 | F59: ='T1'!AP60 ->  | G59: ='T2'!AP60 ->  | H59: ='T3'!AP60 ->  | I59: ='T4'!AP60 ->  | J59: ='T5'!AP60 ->  | K59: ='T6'!AP60 ->  | L59: ='T1'!AQ60 ->  | M59: ='T2'!AQ60 ->  | N59: ='T3'!AQ60 ->  | O59: ='T4'!AQ60 ->  | P59: ='T5'!AQ60 ->  | Q59: ='T6'!AQ60 ->  | R59: ='T1'!AR60 ->  | S59: ='T2'!AR60 ->  | T59: ='T3'!AR60 ->  | U59: ='T4'!AR60 ->  | V59: ='T5'!AR60 ->  | W59: ='T6'!AR60 ->  | X59: ='T1'!AS60 ->  | Y59: ='T2'!AS60 ->  | Z59: ='T3'!AS60 ->  | AA59: ='T4'!AS60 ->  | AB59: ='T5'!AS60 ->  | AC59: ='T6'!AS60 ->  | AD59: ='T1'!AT60 ->  | AE59: ='T2'!AT60 ->  | AF59: ='T3'!AT60 ->  | AG59: ='T4'!AT60 ->  | AH59: ='T5'!AT60 ->  | AI59: ='T6'!AT60 ->  | AJ59: ='T1'!AU60 ->  | AK59: ='T2'!AU60 ->  | AL59: ='T3'!AU60 ->  | AM59: ='T4'!AU60 ->  | AN59: ='T5'!AU60 ->  | AO59: ='T6'!AU60 -> 
B60: 50 | E60: =SW!G59 -> 0 | F60: ='T1'!AP61 ->  | G60: ='T2'!AP61 ->  | H60: ='T3'!AP61 ->  | I60: ='T4'!AP61 ->  | J60: ='T5'!AP61 ->  | K60: ='T6'!AP61 ->  | L60: ='T1'!AQ61 ->  | M60: ='T2'!AQ61 ->  | N60: ='T3'!AQ61 ->  | O60: ='T4'!AQ61 ->  | P60: ='T5'!AQ61 ->  | Q60: ='T6'!AQ61 ->  | R60: ='T1'!AR61 ->  | S60: ='T2'!AR61 ->  | T60: ='T3'!AR61 ->  | U60: ='T4'!AR61 ->  | V60: ='T5'!AR61 ->  | W60: ='T6'!AR61 ->  | X60: ='T1'!AS61 ->  | Y60: ='T2'!AS61 ->  | Z60: ='T3'!AS61 ->  | AA60: ='T4'!AS61 ->  | AB60: ='T5'!AS61 ->  | AC60: ='T6'!AS61 ->  | AD60: ='T1'!AT61 ->  | AE60: ='T2'!AT61 ->  | AF60: ='T3'!AT61 ->  | AG60: ='T4'!AT61 ->  | AH60: ='T5'!AT61 ->  | AI60: ='T6'!AT61 ->  | AJ60: ='T1'!AU61 ->  | AK60: ='T2'!AU61 ->  | AL60: ='T3'!AU61 ->  | AM60: ='T4'!AU61 ->  | AN60: ='T5'!AU61 ->  | AO60: ='T6'!AU61 -> 
B61: 51 | E61: =SW!G60 -> 0 | F61: ='T1'!AP62 ->  | G61: ='T2'!AP62 ->  | H61: ='T3'!AP62 ->  | I61: ='T4'!AP62 ->  | J61: ='T5'!AP62 ->  | K61: ='T6'!AP62 ->  | L61: ='T1'!AQ62 ->  | M61: ='T2'!AQ62 ->  | N61: ='T3'!AQ62 ->  | O61: ='T4'!AQ62 ->  | P61: ='T5'!AQ62 ->  | Q61: ='T6'!AQ62 ->  | R61: ='T1'!AR62 ->  | S61: ='T2'!AR62 ->  | T61: ='T3'!AR62 ->  | U61: ='T4'!AR62 ->  | V61: ='T5'!AR62 ->  | W61: ='T6'!AR62 ->  | X61: ='T1'!AS62 ->  | Y61: ='T2'!AS62 ->  | Z61: ='T3'!AS62 ->  | AA61: ='T4'!AS62 ->  | AB61: ='T5'!AS62 ->  | AC61: ='T6'!AS62 ->  | AD61: ='T1'!AT62 ->  | AE61: ='T2'!AT62 ->  | AF61: ='T3'!AT62 ->  | AG61: ='T4'!AT62 ->  | AH61: ='T5'!AT62 ->  | AI61: ='T6'!AT62 ->  | AJ61: ='T1'!AU62 ->  | AK61: ='T2'!AU62 ->  | AL61: ='T3'!AU62 ->  | AM61: ='T4'!AU62 ->  | AN61: ='T5'!AU62 ->  | AO61: ='T6'!AU62 -> 
B62: 52 | E62: =SW!G61 -> 0 | F62: ='T1'!AP63 ->  | G62: ='T2'!AP63 ->  | H62: ='T3'!AP63 ->  | I62: ='T4'!AP63 ->  | J62: ='T5'!AP63 ->  | K62: ='T6'!AP63 ->  | L62: ='T1'!AQ63 ->  | M62: ='T2'!AQ63 ->  | N62: ='T3'!AQ63 ->  | O62: ='T4'!AQ63 ->  | P62: ='T5'!AQ63 ->  | Q62: ='T6'!AQ63 ->  | R62: ='T1'!AR63 ->  | S62: ='T2'!AR63 ->  | T62: ='T3'!AR63 ->  | U62: ='T4'!AR63 ->  | V62: ='T5'!AR63 ->  | W62: ='T6'!AR63 ->  | X62: ='T1'!AS63 ->  | Y62: ='T2'!AS63 ->  | Z62: ='T3'!AS63 ->  | AA62: ='T4'!AS63 ->  | AB62: ='T5'!AS63 ->  | AC62: ='T6'!AS63 ->  | AD62: ='T1'!AT63 ->  | AE62: ='T2'!AT63 ->  | AF62: ='T3'!AT63 ->  | AG62: ='T4'!AT63 ->  | AH62: ='T5'!AT63 ->  | AI62: ='T6'!AT63 ->  | AJ62: ='T1'!AU63 ->  | AK62: ='T2'!AU63 ->  | AL62: ='T3'!AU63 ->  | AM62: ='T4'!AU63 ->  | AN62: ='T5'!AU63 ->  | AO62: ='T6'!AU63 -> 
B63: 53 | E63: =SW!G62 -> 0 | F63: ='T1'!AP64 ->  | G63: ='T2'!AP64 ->  | H63: ='T3'!AP64 ->  | I63: ='T4'!AP64 ->  | J63: ='T5'!AP64 ->  | K63: ='T6'!AP64 ->  | L63: ='T1'!AQ64 ->  | M63: ='T2'!AQ64 ->  | N63: ='T3'!AQ64 ->  | O63: ='T4'!AQ64 ->  | P63: ='T5'!AQ64 ->  | Q63: ='T6'!AQ64 ->  | R63: ='T1'!AR64 ->  | S63: ='T2'!AR64 ->  | T63: ='T3'!AR64 ->  | U63: ='T4'!AR64 ->  | V63: ='T5'!AR64 ->  | W63: ='T6'!AR64 ->  | X63: ='T1'!AS64 ->  | Y63: ='T2'!AS64 ->  | Z63: ='T3'!AS64 ->  | AA63: ='T4'!AS64 ->  | AB63: ='T5'!AS64 ->  | AC63: ='T6'!AS64 ->  | AD63: ='T1'!AT64 ->  | AE63: ='T2'!AT64 ->  | AF63: ='T3'!AT64 ->  | AG63: ='T4'!AT64 ->  | AH63: ='T5'!AT64 ->  | AI63: ='T6'!AT64 ->  | AJ63: ='T1'!AU64 ->  | AK63: ='T2'!AU64 ->  | AL63: ='T3'!AU64 ->  | AM63: ='T4'!AU64 ->  | AN63: ='T5'!AU64 ->  | AO63: ='T6'!AU64 -> 
B64: 54 | E64: =SW!G63 -> 0 | F64: ='T1'!AP65 ->  | G64: ='T2'!AP65 ->  | H64: ='T3'!AP65 ->  | I64: ='T4'!AP65 ->  | J64: ='T5'!AP65 ->  | K64: ='T6'!AP65 ->  | L64: ='T1'!AQ65 ->  | M64: ='T2'!AQ65 ->  | N64: ='T3'!AQ65 ->  | O64: ='T4'!AQ65 ->  | P64: ='T5'!AQ65 ->  | Q64: ='T6'!AQ65 ->  | R64: ='T1'!AR65 ->  | S64: ='T2'!AR65 ->  | T64: ='T3'!AR65 ->  | U64: ='T4'!AR65 ->  | V64: ='T5'!AR65 ->  | W64: ='T6'!AR65 ->  | X64: ='T1'!AS65 ->  | Y64: ='T2'!AS65 ->  | Z64: ='T3'!AS65 ->  | AA64: ='T4'!AS65 ->  | AB64: ='T5'!AS65 ->  | AC64: ='T6'!AS65 ->  | AD64: ='T1'!AT65 ->  | AE64: ='T2'!AT65 ->  | AF64: ='T3'!AT65 ->  | AG64: ='T4'!AT65 ->  | AH64: ='T5'!AT65 ->  | AI64: ='T6'!AT65 ->  | AJ64: ='T1'!AU65 ->  | AK64: ='T2'!AU65 ->  | AL64: ='T3'!AU65 ->  | AM64: ='T4'!AU65 ->  | AN64: ='T5'!AU65 ->  | AO64: ='T6'!AU65 -> 
B65: 55 | E65: =SW!G64 -> 0 | F65: ='T1'!AP66 ->  | G65: ='T2'!AP66 ->  | H65: ='T3'!AP66 ->  | I65: ='T4'!AP66 ->  | J65: ='T5'!AP66 ->  | K65: ='T6'!AP66 ->  | L65: ='T1'!AQ66 ->  | M65: ='T2'!AQ66 ->  | N65: ='T3'!AQ66 ->  | O65: ='T4'!AQ66 ->  | P65: ='T5'!AQ66 ->  | Q65: ='T6'!AQ66 ->  | R65: ='T1'!AR66 ->  | S65: ='T2'!AR66 ->  | T65: ='T3'!AR66 ->  | U65: ='T4'!AR66 ->  | V65: ='T5'!AR66 ->  | W65: ='T6'!AR66 ->  | X65: ='T1'!AS66 ->  | Y65: ='T2'!AS66 ->  | Z65: ='T3'!AS66 ->  | AA65: ='T4'!AS66 ->  | AB65: ='T5'!AS66 ->  | AC65: ='T6'!AS66 ->  | AD65: ='T1'!AT66 ->  | AE65: ='T2'!AT66 ->  | AF65: ='T3'!AT66 ->  | AG65: ='T4'!AT66 ->  | AH65: ='T5'!AT66 ->  | AI65: ='T6'!AT66 ->  | AJ65: ='T1'!AU66 ->  | AK65: ='T2'!AU66 ->  | AL65: ='T3'!AU66 ->  | AM65: ='T4'!AU66 ->  | AN65: ='T5'!AU66 ->  | AO65: ='T6'!AU66 -> 
B66: 56 | E66: =SW!G65 -> 0 | F66: ='T1'!AP67 ->  | G66: ='T2'!AP67 ->  | H66: ='T3'!AP67 ->  | I66: ='T4'!AP67 ->  | J66: ='T5'!AP67 ->  | K66: ='T6'!AP67 ->  | L66: ='T1'!AQ67 ->  | M66: ='T2'!AQ67 ->  | N66: ='T3'!AQ67 ->  | O66: ='T4'!AQ67 ->  | P66: ='T5'!AQ67 ->  | Q66: ='T6'!AQ67 ->  | R66: ='T1'!AR67 ->  | S66: ='T2'!AR67 ->  | T66: ='T3'!AR67 ->  | U66: ='T4'!AR67 ->  | V66: ='T5'!AR67 ->  | W66: ='T6'!AR67 ->  | X66: ='T1'!AS67 ->  | Y66: ='T2'!AS67 ->  | Z66: ='T3'!AS67 ->  | AA66: ='T4'!AS67 ->  | AB66: ='T5'!AS67 ->  | AC66: ='T6'!AS67 ->  | AD66: ='T1'!AT67 ->  | AE66: ='T2'!AT67 ->  | AF66: ='T3'!AT67 ->  | AG66: ='T4'!AT67 ->  | AH66: ='T5'!AT67 ->  | AI66: ='T6'!AT67 ->  | AJ66: ='T1'!AU67 ->  | AK66: ='T2'!AU67 ->  | AL66: ='T3'!AU67 ->  | AM66: ='T4'!AU67 ->  | AN66: ='T5'!AU67 ->  | AO66: ='T6'!AU67 -> 
B67: 57 | E67: =SW!G66 -> 0 | F67: ='T1'!AP68 ->  | G67: ='T2'!AP68 ->  | H67: ='T3'!AP68 ->  | I67: ='T4'!AP68 ->  | J67: ='T5'!AP68 ->  | K67: ='T6'!AP68 ->  | L67: ='T1'!AQ68 ->  | M67: ='T2'!AQ68 ->  | N67: ='T3'!AQ68 ->  | O67: ='T4'!AQ68 ->  | P67: ='T5'!AQ68 ->  | Q67: ='T6'!AQ68 ->  | R67: ='T1'!AR68 ->  | S67: ='T2'!AR68 ->  | T67: ='T3'!AR68 ->  | U67: ='T4'!AR68 ->  | V67: ='T5'!AR68 ->  | W67: ='T6'!AR68 ->  | X67: ='T1'!AS68 ->  | Y67: ='T2'!AS68 ->  | Z67: ='T3'!AS68 ->  | AA67: ='T4'!AS68 ->  | AB67: ='T5'!AS68 ->  | AC67: ='T6'!AS68 ->  | AD67: ='T1'!AT68 ->  | AE67: ='T2'!AT68 ->  | AF67: ='T3'!AT68 ->  | AG67: ='T4'!AT68 ->  | AH67: ='T5'!AT68 ->  | AI67: ='T6'!AT68 ->  | AJ67: ='T1'!AU68 ->  | AK67: ='T2'!AU68 ->  | AL67: ='T3'!AU68 ->  | AM67: ='T4'!AU68 ->  | AN67: ='T5'!AU68 ->  | AO67: ='T6'!AU68 -> 
B68: 58 | E68: =SW!G67 -> 0 | F68: ='T1'!AP69 ->  | G68: ='T2'!AP69 ->  | H68: ='T3'!AP69 ->  | I68: ='T4'!AP69 ->  | J68: ='T5'!AP69 ->  | K68: ='T6'!AP69 ->  | L68: ='T1'!AQ69 ->  | M68: ='T2'!AQ69 ->  | N68: ='T3'!AQ69 ->  | O68: ='T4'!AQ69 ->  | P68: ='T5'!AQ69 ->  | Q68: ='T6'!AQ69 ->  | R68: ='T1'!AR69 ->  | S68: ='T2'!AR69 ->  | T68: ='T3'!AR69 ->  | U68: ='T4'!AR69 ->  | V68: ='T5'!AR69 ->  | W68: ='T6'!AR69 ->  | X68: ='T1'!AS69 ->  | Y68: ='T2'!AS69 ->  | Z68: ='T3'!AS69 ->  | AA68: ='T4'!AS69 ->  | AB68: ='T5'!AS69 ->  | AC68: ='T6'!AS69 ->  | AD68: ='T1'!AT69 ->  | AE68: ='T2'!AT69 ->  | AF68: ='T3'!AT69 ->  | AG68: ='T4'!AT69 ->  | AH68: ='T5'!AT69 ->  | AI68: ='T6'!AT69 ->  | AJ68: ='T1'!AU69 ->  | AK68: ='T2'!AU69 ->  | AL68: ='T3'!AU69 ->  | AM68: ='T4'!AU69 ->  | AN68: ='T5'!AU69 ->  | AO68: ='T6'!AU69 -> 
B69: 59 | E69: =SW!G68 -> 0 | F69: ='T1'!AP70 ->  | G69: ='T2'!AP70 ->  | H69: ='T3'!AP70 ->  | I69: ='T4'!AP70 ->  | J69: ='T5'!AP70 ->  | K69: ='T6'!AP70 ->  | L69: ='T1'!AQ70 ->  | M69: ='T2'!AQ70 ->  | N69: ='T3'!AQ70 ->  | O69: ='T4'!AQ70 ->  | P69: ='T5'!AQ70 ->  | Q69: ='T6'!AQ70 ->  | R69: ='T1'!AR70 ->  | S69: ='T2'!AR70 ->  | T69: ='T3'!AR70 ->  | U69: ='T4'!AR70 ->  | V69: ='T5'!AR70 ->  | W69: ='T6'!AR70 ->  | X69: ='T1'!AS70 ->  | Y69: ='T2'!AS70 ->  | Z69: ='T3'!AS70 ->  | AA69: ='T4'!AS70 ->  | AB69: ='T5'!AS70 ->  | AC69: ='T6'!AS70 ->  | AD69: ='T1'!AT70 ->  | AE69: ='T2'!AT70 ->  | AF69: ='T3'!AT70 ->  | AG69: ='T4'!AT70 ->  | AH69: ='T5'!AT70 ->  | AI69: ='T6'!AT70 ->  | AJ69: ='T1'!AU70 ->  | AK69: ='T2'!AU70 ->  | AL69: ='T3'!AU70 ->  | AM69: ='T4'!AU70 ->  | AN69: ='T5'!AU70 ->  | AO69: ='T6'!AU70 -> 
B70: 60 | E70: =SW!G69 -> 0 | F70: ='T1'!AP71 ->  | G70: ='T2'!AP71 ->  | H70: ='T3'!AP71 ->  | I70: ='T4'!AP71 ->  | J70: ='T5'!AP71 ->  | K70: ='T6'!AP71 ->  | L70: ='T1'!AQ71 ->  | M70: ='T2'!AQ71 ->  | N70: ='T3'!AQ71 ->  | O70: ='T4'!AQ71 ->  | P70: ='T5'!AQ71 ->  | Q70: ='T6'!AQ71 ->  | R70: ='T1'!AR71 ->  | S70: ='T2'!AR71 ->  | T70: ='T3'!AR71 ->  | U70: ='T4'!AR71 ->  | V70: ='T5'!AR71 ->  | W70: ='T6'!AR71 ->  | X70: ='T1'!AS71 ->  | Y70: ='T2'!AS71 ->  | Z70: ='T3'!AS71 ->  | AA70: ='T4'!AS71 ->  | AB70: ='T5'!AS71 ->  | AC70: ='T6'!AS71 ->  | AD70: ='T1'!AT71 ->  | AE70: ='T2'!AT71 ->  | AF70: ='T3'!AT71 ->  | AG70: ='T4'!AT71 ->  | AH70: ='T5'!AT71 ->  | AI70: ='T6'!AT71 ->  | AJ70: ='T1'!AU71 ->  | AK70: ='T2'!AU71 ->  | AL70: ='T3'!AU71 ->  | AM70: ='T4'!AU71 ->  | AN70: ='T5'!AU71 ->  | AO70: ='T6'!AU71 -> 
B71: 61 | E71: =SW!G70 -> 0 | F71: ='T1'!AP72 ->  | G71: ='T2'!AP72 ->  | H71: ='T3'!AP72 ->  | I71: ='T4'!AP72 ->  | J71: ='T5'!AP72 ->  | K71: ='T6'!AP72 ->  | L71: ='T1'!AQ72 ->  | M71: ='T2'!AQ72 ->  | N71: ='T3'!AQ72 ->  | O71: ='T4'!AQ72 ->  | P71: ='T5'!AQ72 ->  | Q71: ='T6'!AQ72 ->  | R71: ='T1'!AR72 ->  | S71: ='T2'!AR72 ->  | T71: ='T3'!AR72 ->  | U71: ='T4'!AR72 ->  | V71: ='T5'!AR72 ->  | W71: ='T6'!AR72 ->  | X71: ='T1'!AS72 ->  | Y71: ='T2'!AS72 ->  | Z71: ='T3'!AS72 ->  | AA71: ='T4'!AS72 ->  | AB71: ='T5'!AS72 ->  | AC71: ='T6'!AS72 ->  | AD71: ='T1'!AT72 ->  | AE71: ='T2'!AT72 ->  | AF71: ='T3'!AT72 ->  | AG71: ='T4'!AT72 ->  | AH71: ='T5'!AT72 ->  | AI71: ='T6'!AT72 ->  | AJ71: ='T1'!AU72 ->  | AK71: ='T2'!AU72 ->  | AL71: ='T3'!AU72 ->  | AM71: ='T4'!AU72 ->  | AN71: ='T5'!AU72 ->  | AO71: ='T6'!AU72 -> 
B72: 62 | E72: =SW!G71 -> 0 | F72: ='T1'!AP73 ->  | G72: ='T2'!AP73 ->  | H72: ='T3'!AP73 ->  | I72: ='T4'!AP73 ->  | J72: ='T5'!AP73 ->  | K72: ='T6'!AP73 ->  | L72: ='T1'!AQ73 ->  | M72: ='T2'!AQ73 ->  | N72: ='T3'!AQ73 ->  | O72: ='T4'!AQ73 ->  | P72: ='T5'!AQ73 ->  | Q72: ='T6'!AQ73 ->  | R72: ='T1'!AR73 ->  | S72: ='T2'!AR73 ->  | T72: ='T3'!AR73 ->  | U72: ='T4'!AR73 ->  | V72: ='T5'!AR73 ->  | W72: ='T6'!AR73 ->  | X72: ='T1'!AS73 ->  | Y72: ='T2'!AS73 ->  | Z72: ='T3'!AS73 ->  | AA72: ='T4'!AS73 ->  | AB72: ='T5'!AS73 ->  | AC72: ='T6'!AS73 ->  | AD72: ='T1'!AT73 ->  | AE72: ='T2'!AT73 ->  | AF72: ='T3'!AT73 ->  | AG72: ='T4'!AT73 ->  | AH72: ='T5'!AT73 ->  | AI72: ='T6'!AT73 ->  | AJ72: ='T1'!AU73 ->  | AK72: ='T2'!AU73 ->  | AL72: ='T3'!AU73 ->  | AM72: ='T4'!AU73 ->  | AN72: ='T5'!AU73 ->  | AO72: ='T6'!AU73 -> 
B73: 63 | E73: =SW!G72 -> 0 | F73: ='T1'!AP74 ->  | G73: ='T2'!AP74 ->  | H73: ='T3'!AP74 ->  | I73: ='T4'!AP74 ->  | J73: ='T5'!AP74 ->  | K73: ='T6'!AP74 ->  | L73: ='T1'!AQ74 ->  | M73: ='T2'!AQ74 ->  | N73: ='T3'!AQ74 ->  | O73: ='T4'!AQ74 ->  | P73: ='T5'!AQ74 ->  | Q73: ='T6'!AQ74 ->  | R73: ='T1'!AR74 ->  | S73: ='T2'!AR74 ->  | T73: ='T3'!AR74 ->  | U73: ='T4'!AR74 ->  | V73: ='T5'!AR74 ->  | W73: ='T6'!AR74 ->  | X73: ='T1'!AS74 ->  | Y73: ='T2'!AS74 ->  | Z73: ='T3'!AS74 ->  | AA73: ='T4'!AS74 ->  | AB73: ='T5'!AS74 ->  | AC73: ='T6'!AS74 ->  | AD73: ='T1'!AT74 ->  | AE73: ='T2'!AT74 ->  | AF73: ='T3'!AT74 ->  | AG73: ='T4'!AT74 ->  | AH73: ='T5'!AT74 ->  | AI73: ='T6'!AT74 ->  | AJ73: ='T1'!AU74 ->  | AK73: ='T2'!AU74 ->  | AL73: ='T3'!AU74 ->  | AM73: ='T4'!AU74 ->  | AN73: ='T5'!AU74 ->  | AO73: ='T6'!AU74 -> 
B74: 64 | E74: =SW!G73 -> 0 | F74: ='T1'!AP75 ->  | G74: ='T2'!AP75 ->  | H74: ='T3'!AP75 ->  | I74: ='T4'!AP75 ->  | J74: ='T5'!AP75 ->  | K74: ='T6'!AP75 ->  | L74: ='T1'!AQ75 ->  | M74: ='T2'!AQ75 ->  | N74: ='T3'!AQ75 ->  | O74: ='T4'!AQ75 ->  | P74: ='T5'!AQ75 ->  | Q74: ='T6'!AQ75 ->  | R74: ='T1'!AR75 ->  | S74: ='T2'!AR75 ->  | T74: ='T3'!AR75 ->  | U74: ='T4'!AR75 ->  | V74: ='T5'!AR75 ->  | W74: ='T6'!AR75 ->  | X74: ='T1'!AS75 ->  | Y74: ='T2'!AS75 ->  | Z74: ='T3'!AS75 ->  | AA74: ='T4'!AS75 ->  | AB74: ='T5'!AS75 ->  | AC74: ='T6'!AS75 ->  | AD74: ='T1'!AT75 ->  | AE74: ='T2'!AT75 ->  | AF74: ='T3'!AT75 ->  | AG74: ='T4'!AT75 ->  | AH74: ='T5'!AT75 ->  | AI74: ='T6'!AT75 ->  | AJ74: ='T1'!AU75 ->  | AK74: ='T2'!AU75 ->  | AL74: ='T3'!AU75 ->  | AM74: ='T4'!AU75 ->  | AN74: ='T5'!AU75 ->  | AO74: ='T6'!AU75 -> 
B75: 65 | E75: =SW!G74 -> 0 | F75: ='T1'!AP76 ->  | G75: ='T2'!AP76 ->  | H75: ='T3'!AP76 ->  | I75: ='T4'!AP76 ->  | J75: ='T5'!AP76 ->  | K75: ='T6'!AP76 ->  | L75: ='T1'!AQ76 ->  | M75: ='T2'!AQ76 ->  | N75: ='T3'!AQ76 ->  | O75: ='T4'!AQ76 ->  | P75: ='T5'!AQ76 ->  | Q75: ='T6'!AQ76 ->  | R75: ='T1'!AR76 ->  | S75: ='T2'!AR76 ->  | T75: ='T3'!AR76 ->  | U75: ='T4'!AR76 ->  | V75: ='T5'!AR76 ->  | W75: ='T6'!AR76 ->  | X75: ='T1'!AS76 ->  | Y75: ='T2'!AS76 ->  | Z75: ='T3'!AS76 ->  | AA75: ='T4'!AS76 ->  | AB75: ='T5'!AS76 ->  | AC75: ='T6'!AS76 ->  | AD75: ='T1'!AT76 ->  | AE75: ='T2'!AT76 ->  | AF75: ='T3'!AT76 ->  | AG75: ='T4'!AT76 ->  | AH75: ='T5'!AT76 ->  | AI75: ='T6'!AT76 ->  | AJ75: ='T1'!AU76 ->  | AK75: ='T2'!AU76 ->  | AL75: ='T3'!AU76 ->  | AM75: ='T4'!AU76 ->  | AN75: ='T5'!AU76 ->  | AO75: ='T6'!AU76 -> 
B76: 66 | E76: =SW!G75 -> 0 | F76: ='T1'!AP77 ->  | G76: ='T2'!AP77 ->  | H76: ='T3'!AP77 ->  | I76: ='T4'!AP77 ->  | J76: ='T5'!AP77 ->  | K76: ='T6'!AP77 ->  | L76: ='T1'!AQ77 ->  | M76: ='T2'!AQ77 ->  | N76: ='T3'!AQ77 ->  | O76: ='T4'!AQ77 ->  | P76: ='T5'!AQ77 ->  | Q76: ='T6'!AQ77 ->  | R76: ='T1'!AR77 ->  | S76: ='T2'!AR77 ->  | T76: ='T3'!AR77 ->  | U76: ='T4'!AR77 ->  | V76: ='T5'!AR77 ->  | W76: ='T6'!AR77 ->  | X76: ='T1'!AS77 ->  | Y76: ='T2'!AS77 ->  | Z76: ='T3'!AS77 ->  | AA76: ='T4'!AS77 ->  | AB76: ='T5'!AS77 ->  | AC76: ='T6'!AS77 ->  | AD76: ='T1'!AT77 ->  | AE76: ='T2'!AT77 ->  | AF76: ='T3'!AT77 ->  | AG76: ='T4'!AT77 ->  | AH76: ='T5'!AT77 ->  | AI76: ='T6'!AT77 ->  | AJ76: ='T1'!AU77 ->  | AK76: ='T2'!AU77 ->  | AL76: ='T3'!AU77 ->  | AM76: ='T4'!AU77 ->  | AN76: ='T5'!AU77 ->  | AO76: ='T6'!AU77 ->  | AP76: =IFERROR(ROUND(AVERAGE(F76:K76),0),"") ->  | AQ76: =IFERROR(ROUND(AVERAGE(L76:Q76),0),"") ->  | AR76: =IFERROR(ROUND(AVERAGE(R76:W76),0),"") ->  | AS76: =IFERROR(ROUND(AVERAGE(X76:AC76),0),"") ->  | AT76: =IFERROR(ROUND(AVERAGE(AD76:AI76),0),"") ->  | AU76: =IFERROR(ROUND(AVERAGE(AJ76:AO76),0),"") -> 
B77: 67 | E77: =SW!G76 -> 0 | F77: ='T1'!AP78 ->  | G77: ='T2'!AP78 ->  | H77: ='T3'!AP78 ->  | I77: ='T4'!AP78 ->  | J77: ='T5'!AP78 ->  | K77: ='T6'!AP78 ->  | L77: ='T1'!AQ78 ->  | M77: ='T2'!AQ78 ->  | N77: ='T3'!AQ78 ->  | O77: ='T4'!AQ78 ->  | P77: ='T5'!AQ78 ->  | Q77: ='T6'!AQ78 ->  | R77: ='T1'!AR78 ->  | S77: ='T2'!AR78 ->  | T77: ='T3'!AR78 ->  | U77: ='T4'!AR78 ->  | V77: ='T5'!AR78 ->  | W77: ='T6'!AR78 ->  | X77: ='T1'!AS78 ->  | Y77: ='T2'!AS78 ->  | Z77: ='T3'!AS78 ->  | AA77: ='T4'!AS78 ->  | AB77: ='T5'!AS78 ->  | AC77: ='T6'!AS78 ->  | AD77: ='T1'!AT78 ->  | AE77: ='T2'!AT78 ->  | AF77: ='T3'!AT78 ->  | AG77: ='T4'!AT78 ->  | AH77: ='T5'!AT78 ->  | AI77: ='T6'!AT78 ->  | AJ77: ='T1'!AU78 ->  | AK77: ='T2'!AU78 ->  | AL77: ='T3'!AU78 ->  | AM77: ='T4'!AU78 ->  | AN77: ='T5'!AU78 ->  | AO77: ='T6'!AU78 -> 
B78: 68 | E78: =SW!G77 -> 0 | F78: ='T1'!AP79 ->  | G78: ='T2'!AP79 ->  | H78: ='T3'!AP79 ->  | I78: ='T4'!AP79 ->  | J78: ='T5'!AP79 ->  | K78: ='T6'!AP79 ->  | L78: ='T1'!AQ79 ->  | M78: ='T2'!AQ79 ->  | N78: ='T3'!AQ79 ->  | O78: ='T4'!AQ79 ->  | P78: ='T5'!AQ79 ->  | Q78: ='T6'!AQ79 ->  | R78: ='T1'!AR79 ->  | S78: ='T2'!AR79 ->  | T78: ='T3'!AR79 ->  | U78: ='T4'!AR79 ->  | V78: ='T5'!AR79 ->  | W78: ='T6'!AR79 ->  | X78: ='T1'!AS79 ->  | Y78: ='T2'!AS79 ->  | Z78: ='T3'!AS79 ->  | AA78: ='T4'!AS79 ->  | AB78: ='T5'!AS79 ->  | AC78: ='T6'!AS79 ->  | AD78: ='T1'!AT79 ->  | AE78: ='T2'!AT79 ->  | AF78: ='T3'!AT79 ->  | AG78: ='T4'!AT79 ->  | AH78: ='T5'!AT79 ->  | AI78: ='T6'!AT79 ->  | AJ78: ='T1'!AU79 ->  | AK78: ='T2'!AU79 ->  | AL78: ='T3'!AU79 ->  | AM78: ='T4'!AU79 ->  | AN78: ='T5'!AU79 ->  | AO78: ='T6'!AU79 -> 
B79: 69 | E79: =SW!G78 -> 0 | F79: ='T1'!AP80 ->  | G79: ='T2'!AP80 ->  | H79: ='T3'!AP80 ->  | I79: ='T4'!AP80 ->  | J79: ='T5'!AP80 ->  | K79: ='T6'!AP80 ->  | L79: ='T1'!AQ80 ->  | M79: ='T2'!AQ80 ->  | N79: ='T3'!AQ80 ->  | O79: ='T4'!AQ80 ->  | P79: ='T5'!AQ80 ->  | Q79: ='T6'!AQ80 ->  | R79: ='T1'!AR80 ->  | S79: ='T2'!AR80 ->  | T79: ='T3'!AR80 ->  | U79: ='T4'!AR80 ->  | V79: ='T5'!AR80 ->  | W79: ='T6'!AR80 ->  | X79: ='T1'!AS80 ->  | Y79: ='T2'!AS80 ->  | Z79: ='T3'!AS80 ->  | AA79: ='T4'!AS80 ->  | AB79: ='T5'!AS80 ->  | AC79: ='T6'!AS80 ->  | AD79: ='T1'!AT80 ->  | AE79: ='T2'!AT80 ->  | AF79: ='T3'!AT80 ->  | AG79: ='T4'!AT80 ->  | AH79: ='T5'!AT80 ->  | AI79: ='T6'!AT80 ->  | AJ79: ='T1'!AU80 ->  | AK79: ='T2'!AU80 ->  | AL79: ='T3'!AU80 ->  | AM79: ='T4'!AU80 ->  | AN79: ='T5'!AU80 ->  | AO79: ='T6'!AU80 -> 
B80: 70 | E80: =SW!G79 -> 0 | F80: ='T1'!AP81 ->  | G80: ='T2'!AP81 ->  | H80: ='T3'!AP81 ->  | I80: ='T4'!AP81 ->  | J80: ='T5'!AP81 ->  | K80: ='T6'!AP81 ->  | L80: ='T1'!AQ81 ->  | M80: ='T2'!AQ81 ->  | N80: ='T3'!AQ81 ->  | O80: ='T4'!AQ81 ->  | P80: ='T5'!AQ81 ->  | Q80: ='T6'!AQ81 ->  | R80: ='T1'!AR81 ->  | S80: ='T2'!AR81 ->  | T80: ='T3'!AR81 ->  | U80: ='T4'!AR81 ->  | V80: ='T5'!AR81 ->  | W80: ='T6'!AR81 ->  | X80: ='T1'!AS81 ->  | Y80: ='T2'!AS81 ->  | Z80: ='T3'!AS81 ->  | AA80: ='T4'!AS81 ->  | AB80: ='T5'!AS81 ->  | AC80: ='T6'!AS81 ->  | AD80: ='T1'!AT81 ->  | AE80: ='T2'!AT81 ->  | AF80: ='T3'!AT81 ->  | AG80: ='T4'!AT81 ->  | AH80: ='T5'!AT81 ->  | AI80: ='T6'!AT81 ->  | AJ80: ='T1'!AU81 ->  | AK80: ='T2'!AU81 ->  | AL80: ='T3'!AU81 ->  | AM80: ='T4'!AU81 ->  | AN80: ='T5'!AU81 ->  | AO80: ='T6'!AU81 -> 
B81: 71 | E81: =SW!G80 -> 0 | F81: ='T1'!AP82 ->  | G81: ='T2'!AP82 ->  | H81: ='T3'!AP82 ->  | I81: ='T4'!AP82 ->  | J81: ='T5'!AP82 ->  | K81: ='T6'!AP82 ->  | L81: ='T1'!AQ82 ->  | M81: ='T2'!AQ82 ->  | N81: ='T3'!AQ82 ->  | O81: ='T4'!AQ82 ->  | P81: ='T5'!AQ82 ->  | Q81: ='T6'!AQ82 ->  | R81: ='T1'!AR82 ->  | S81: ='T2'!AR82 ->  | T81: ='T3'!AR82 ->  | U81: ='T4'!AR82 ->  | V81: ='T5'!AR82 ->  | W81: ='T6'!AR82 ->  | X81: ='T1'!AS82 ->  | Y81: ='T2'!AS82 ->  | Z81: ='T3'!AS82 ->  | AA81: ='T4'!AS82 ->  | AB81: ='T5'!AS82 ->  | AC81: ='T6'!AS82 ->  | AD81: ='T1'!AT82 ->  | AE81: ='T2'!AT82 ->  | AF81: ='T3'!AT82 ->  | AG81: ='T4'!AT82 ->  | AH81: ='T5'!AT82 ->  | AI81: ='T6'!AT82 ->  | AJ81: ='T1'!AU82 ->  | AK81: ='T2'!AU82 ->  | AL81: ='T3'!AU82 ->  | AM81: ='T4'!AU82 ->  | AN81: ='T5'!AU82 ->  | AO81: ='T6'!AU82 -> 
B82: 72 | E82: =SW!G81 -> 0 | F82: ='T1'!AP83 ->  | G82: ='T2'!AP83 ->  | H82: ='T3'!AP83 ->  | I82: ='T4'!AP83 ->  | J82: ='T5'!AP83 ->  | K82: ='T6'!AP83 ->  | L82: ='T1'!AQ83 ->  | M82: ='T2'!AQ83 ->  | N82: ='T3'!AQ83 ->  | O82: ='T4'!AQ83 ->  | P82: ='T5'!AQ83 ->  | Q82: ='T6'!AQ83 ->  | R82: ='T1'!AR83 ->  | S82: ='T2'!AR83 ->  | T82: ='T3'!AR83 ->  | U82: ='T4'!AR83 ->  | V82: ='T5'!AR83 ->  | W82: ='T6'!AR83 ->  | X82: ='T1'!AS83 ->  | Y82: ='T2'!AS83 ->  | Z82: ='T3'!AS83 ->  | AA82: ='T4'!AS83 ->  | AB82: ='T5'!AS83 ->  | AC82: ='T6'!AS83 ->  | AD82: ='T1'!AT83 ->  | AE82: ='T2'!AT83 ->  | AF82: ='T3'!AT83 ->  | AG82: ='T4'!AT83 ->  | AH82: ='T5'!AT83 ->  | AI82: ='T6'!AT83 ->  | AJ82: ='T1'!AU83 ->  | AK82: ='T2'!AU83 ->  | AL82: ='T3'!AU83 ->  | AM82: ='T4'!AU83 ->  | AN82: ='T5'!AU83 ->  | AO82: ='T6'!AU83 -> 
B83: 73 | E83: =SW!G82 -> 0 | F83: ='T1'!AP84 ->  | G83: ='T2'!AP84 ->  | H83: ='T3'!AP84 ->  | I83: ='T4'!AP84 ->  | J83: ='T5'!AP84 ->  | K83: ='T6'!AP84 ->  | L83: ='T1'!AQ84 ->  | M83: ='T2'!AQ84 ->  | N83: ='T3'!AQ84 ->  | O83: ='T4'!AQ84 ->  | P83: ='T5'!AQ84 ->  | Q83: ='T6'!AQ84 ->  | R83: ='T1'!AR84 ->  | S83: ='T2'!AR84 ->  | T83: ='T3'!AR84 ->  | U83: ='T4'!AR84 ->  | V83: ='T5'!AR84 ->  | W83: ='T6'!AR84 ->  | X83: ='T1'!AS84 ->  | Y83: ='T2'!AS84 ->  | Z83: ='T3'!AS84 ->  | AA83: ='T4'!AS84 ->  | AB83: ='T5'!AS84 ->  | AC83: ='T6'!AS84 ->  | AD83: ='T1'!AT84 ->  | AE83: ='T2'!AT84 ->  | AF83: ='T3'!AT84 ->  | AG83: ='T4'!AT84 ->  | AH83: ='T5'!AT84 ->  | AI83: ='T6'!AT84 ->  | AJ83: ='T1'!AU84 ->  | AK83: ='T2'!AU84 ->  | AL83: ='T3'!AU84 ->  | AM83: ='T4'!AU84 ->  | AN83: ='T5'!AU84 ->  | AO83: ='T6'!AU84 -> 
B84: 74 | E84: =SW!G83 -> 0 | F84: ='T1'!AP85 ->  | G84: ='T2'!AP85 ->  | H84: ='T3'!AP85 ->  | I84: ='T4'!AP85 ->  | J84: ='T5'!AP85 ->  | K84: ='T6'!AP85 ->  | L84: ='T1'!AQ85 ->  | M84: ='T2'!AQ85 ->  | N84: ='T3'!AQ85 ->  | O84: ='T4'!AQ85 ->  | P84: ='T5'!AQ85 ->  | Q84: ='T6'!AQ85 ->  | R84: ='T1'!AR85 ->  | S84: ='T2'!AR85 ->  | T84: ='T3'!AR85 ->  | U84: ='T4'!AR85 ->  | V84: ='T5'!AR85 ->  | W84: ='T6'!AR85 ->  | X84: ='T1'!AS85 ->  | Y84: ='T2'!AS85 ->  | Z84: ='T3'!AS85 ->  | AA84: ='T4'!AS85 ->  | AB84: ='T5'!AS85 ->  | AC84: ='T6'!AS85 ->  | AD84: ='T1'!AT85 ->  | AE84: ='T2'!AT85 ->  | AF84: ='T3'!AT85 ->  | AG84: ='T4'!AT85 ->  | AH84: ='T5'!AT85 ->  | AI84: ='T6'!AT85 ->  | AJ84: ='T1'!AU85 ->  | AK84: ='T2'!AU85 ->  | AL84: ='T3'!AU85 ->  | AM84: ='T4'!AU85 ->  | AN84: ='T5'!AU85 ->  | AO84: ='T6'!AU85 -> 
B85: 75 | E85: =SW!G84 -> 0 | F85: ='T1'!AP86 ->  | G85: ='T2'!AP86 ->  | H85: ='T3'!AP86 ->  | I85: ='T4'!AP86 ->  | J85: ='T5'!AP86 ->  | K85: ='T6'!AP86 ->  | L85: ='T1'!AQ86 ->  | M85: ='T2'!AQ86 ->  | N85: ='T3'!AQ86 ->  | O85: ='T4'!AQ86 ->  | P85: ='T5'!AQ86 ->  | Q85: ='T6'!AQ86 ->  | R85: ='T1'!AR86 ->  | S85: ='T2'!AR86 ->  | T85: ='T3'!AR86 ->  | U85: ='T4'!AR86 ->  | V85: ='T5'!AR86 ->  | W85: ='T6'!AR86 ->  | X85: ='T1'!AS86 ->  | Y85: ='T2'!AS86 ->  | Z85: ='T3'!AS86 ->  | AA85: ='T4'!AS86 ->  | AB85: ='T5'!AS86 ->  | AC85: ='T6'!AS86 ->  | AD85: ='T1'!AT86 ->  | AE85: ='T2'!AT86 ->  | AF85: ='T3'!AT86 ->  | AG85: ='T4'!AT86 ->  | AH85: ='T5'!AT86 ->  | AI85: ='T6'!AT86 ->  | AJ85: ='T1'!AU86 ->  | AK85: ='T2'!AU86 ->  | AL85: ='T3'!AU86 ->  | AM85: ='T4'!AU86 ->  | AN85: ='T5'!AU86 ->  | AO85: ='T6'!AU86 -> 
B86: 76 | E86: =SW!G85 -> 0 | F86: ='T1'!AP87 ->  | G86: ='T2'!AP87 ->  | H86: ='T3'!AP87 ->  | I86: ='T4'!AP87 ->  | J86: ='T5'!AP87 ->  | K86: ='T6'!AP87 ->  | L86: ='T1'!AQ87 ->  | M86: ='T2'!AQ87 ->  | N86: ='T3'!AQ87 ->  | O86: ='T4'!AQ87 ->  | P86: ='T5'!AQ87 ->  | Q86: ='T6'!AQ87 ->  | R86: ='T1'!AR87 ->  | S86: ='T2'!AR87 ->  | T86: ='T3'!AR87 ->  | U86: ='T4'!AR87 ->  | V86: ='T5'!AR87 ->  | W86: ='T6'!AR87 ->  | X86: ='T1'!AS87 ->  | Y86: ='T2'!AS87 ->  | Z86: ='T3'!AS87 ->  | AA86: ='T4'!AS87 ->  | AB86: ='T5'!AS87 ->  | AC86: ='T6'!AS87 ->  | AD86: ='T1'!AT87 ->  | AE86: ='T2'!AT87 ->  | AF86: ='T3'!AT87 ->  | AG86: ='T4'!AT87 ->  | AH86: ='T5'!AT87 ->  | AI86: ='T6'!AT87 ->  | AJ86: ='T1'!AU87 ->  | AK86: ='T2'!AU87 ->  | AL86: ='T3'!AU87 ->  | AM86: ='T4'!AU87 ->  | AN86: ='T5'!AU87 ->  | AO86: ='T6'!AU87 -> 
B87: 77 | E87: =SW!G86 -> 0 | F87: ='T1'!AP88 ->  | G87: ='T2'!AP88 ->  | H87: ='T3'!AP88 ->  | I87: ='T4'!AP88 ->  | J87: ='T5'!AP88 ->  | K87: ='T6'!AP88 ->  | L87: ='T1'!AQ88 ->  | M87: ='T2'!AQ88 ->  | N87: ='T3'!AQ88 ->  | O87: ='T4'!AQ88 ->  | P87: ='T5'!AQ88 ->  | Q87: ='T6'!AQ88 ->  | R87: ='T1'!AR88 ->  | S87: ='T2'!AR88 ->  | T87: ='T3'!AR88 ->  | U87: ='T4'!AR88 ->  | V87: ='T5'!AR88 ->  | W87: ='T6'!AR88 ->  | X87: ='T1'!AS88 ->  | Y87: ='T2'!AS88 ->  | Z87: ='T3'!AS88 ->  | AA87: ='T4'!AS88 ->  | AB87: ='T5'!AS88 ->  | AC87: ='T6'!AS88 ->  | AD87: ='T1'!AT88 ->  | AE87: ='T2'!AT88 ->  | AF87: ='T3'!AT88 ->  | AG87: ='T4'!AT88 ->  | AH87: ='T5'!AT88 ->  | AI87: ='T6'!AT88 ->  | AJ87: ='T1'!AU88 ->  | AK87: ='T2'!AU88 ->  | AL87: ='T3'!AU88 ->  | AM87: ='T4'!AU88 ->  | AN87: ='T5'!AU88 ->  | AO87: ='T6'!AU88 -> 
B88: 78 | E88: =SW!G87 -> 0 | F88: ='T1'!AP89 ->  | G88: ='T2'!AP89 ->  | H88: ='T3'!AP89 ->  | I88: ='T4'!AP89 ->  | J88: ='T5'!AP89 ->  | K88: ='T6'!AP89 ->  | L88: ='T1'!AQ89 ->  | M88: ='T2'!AQ89 ->  | N88: ='T3'!AQ89 ->  | O88: ='T4'!AQ89 ->  | P88: ='T5'!AQ89 ->  | Q88: ='T6'!AQ89 ->  | R88: ='T1'!AR89 ->  | S88: ='T2'!AR89 ->  | T88: ='T3'!AR89 ->  | U88: ='T4'!AR89 ->  | V88: ='T5'!AR89 ->  | W88: ='T6'!AR89 ->  | X88: ='T1'!AS89 ->  | Y88: ='T2'!AS89 ->  | Z88: ='T3'!AS89 ->  | AA88: ='T4'!AS89 ->  | AB88: ='T5'!AS89 ->  | AC88: ='T6'!AS89 ->  | AD88: ='T1'!AT89 ->  | AE88: ='T2'!AT89 ->  | AF88: ='T3'!AT89 ->  | AG88: ='T4'!AT89 ->  | AH88: ='T5'!AT89 ->  | AI88: ='T6'!AT89 ->  | AJ88: ='T1'!AU89 ->  | AK88: ='T2'!AU89 ->  | AL88: ='T3'!AU89 ->  | AM88: ='T4'!AU89 ->  | AN88: ='T5'!AU89 ->  | AO88: ='T6'!AU89 -> 
B89: 79 | E89: =SW!G88 -> 0 | F89: ='T1'!AP90 ->  | G89: ='T2'!AP90 ->  | H89: ='T3'!AP90 ->  | I89: ='T4'!AP90 ->  | J89: ='T5'!AP90 ->  | K89: ='T6'!AP90 ->  | L89: ='T1'!AQ90 ->  | M89: ='T2'!AQ90 ->  | N89: ='T3'!AQ90 ->  | O89: ='T4'!AQ90 ->  | P89: ='T5'!AQ90 ->  | Q89: ='T6'!AQ90 ->  | R89: ='T1'!AR90 ->  | S89: ='T2'!AR90 ->  | T89: ='T3'!AR90 ->  | U89: ='T4'!AR90 ->  | V89: ='T5'!AR90 ->  | W89: ='T6'!AR90 ->  | X89: ='T1'!AS90 ->  | Y89: ='T2'!AS90 ->  | Z89: ='T3'!AS90 ->  | AA89: ='T4'!AS90 ->  | AB89: ='T5'!AS90 ->  | AC89: ='T6'!AS90 ->  | AD89: ='T1'!AT90 ->  | AE89: ='T2'!AT90 ->  | AF89: ='T3'!AT90 ->  | AG89: ='T4'!AT90 ->  | AH89: ='T5'!AT90 ->  | AI89: ='T6'!AT90 ->  | AJ89: ='T1'!AU90 ->  | AK89: ='T2'!AU90 ->  | AL89: ='T3'!AU90 ->  | AM89: ='T4'!AU90 ->  | AN89: ='T5'!AU90 ->  | AO89: ='T6'!AU90 -> 
B90: 80 | E90: =SW!G89 -> 0 | F90: ='T1'!AP91 ->  | G90: ='T2'!AP91 ->  | H90: ='T3'!AP91 ->  | I90: ='T4'!AP91 ->  | J90: ='T5'!AP91 ->  | K90: ='T6'!AP91 ->  | L90: ='T1'!AQ91 ->  | M90: ='T2'!AQ91 ->  | N90: ='T3'!AQ91 ->  | O90: ='T4'!AQ91 ->  | P90: ='T5'!AQ91 ->  | Q90: ='T6'!AQ91 ->  | R90: ='T1'!AR91 ->  | S90: ='T2'!AR91 ->  | T90: ='T3'!AR91 ->  | U90: ='T4'!AR91 ->  | V90: ='T5'!AR91 ->  | W90: ='T6'!AR91 ->  | X90: ='T1'!AS91 ->  | Y90: ='T2'!AS91 ->  | Z90: ='T3'!AS91 ->  | AA90: ='T4'!AS91 ->  | AB90: ='T5'!AS91 ->  | AC90: ='T6'!AS91 ->  | AD90: ='T1'!AT91 ->  | AE90: ='T2'!AT91 ->  | AF90: ='T3'!AT91 ->  | AG90: ='T4'!AT91 ->  | AH90: ='T5'!AT91 ->  | AI90: ='T6'!AT91 ->  | AJ90: ='T1'!AU91 ->  | AK90: ='T2'!AU91 ->  | AL90: ='T3'!AU91 ->  | AM90: ='T4'!AU91 ->  | AN90: ='T5'!AU91 ->  | AO90: ='T6'!AU91 -> 
B91: 81 | E91: =SW!G90 -> 0 | F91: ='T1'!AP92 ->  | G91: ='T2'!AP92 ->  | H91: ='T3'!AP92 ->  | I91: ='T4'!AP92 ->  | J91: ='T5'!AP92 ->  | K91: ='T6'!AP92 ->  | L91: ='T1'!AQ92 ->  | M91: ='T2'!AQ92 ->  | N91: ='T3'!AQ92 ->  | O91: ='T4'!AQ92 ->  | P91: ='T5'!AQ92 ->  | Q91: ='T6'!AQ92 ->  | R91: ='T1'!AR92 ->  | S91: ='T2'!AR92 ->  | T91: ='T3'!AR92 ->  | U91: ='T4'!AR92 ->  | V91: ='T5'!AR92 ->  | W91: ='T6'!AR92 ->  | X91: ='T1'!AS92 ->  | Y91: ='T2'!AS92 ->  | Z91: ='T3'!AS92 ->  | AA91: ='T4'!AS92 ->  | AB91: ='T5'!AS92 ->  | AC91: ='T6'!AS92 ->  | AD91: ='T1'!AT92 ->  | AE91: ='T2'!AT92 ->  | AF91: ='T3'!AT92 ->  | AG91: ='T4'!AT92 ->  | AH91: ='T5'!AT92 ->  | AI91: ='T6'!AT92 ->  | AJ91: ='T1'!AU92 ->  | AK91: ='T2'!AU92 ->  | AL91: ='T3'!AU92 ->  | AM91: ='T4'!AU92 ->  | AN91: ='T5'!AU92 ->  | AO91: ='T6'!AU92 -> 
B92: 82 | E92: =SW!G91 -> 0 | F92: ='T1'!AP93 ->  | G92: ='T2'!AP93 ->  | H92: ='T3'!AP93 ->  | I92: ='T4'!AP93 ->  | J92: ='T5'!AP93 ->  | K92: ='T6'!AP93 ->  | L92: ='T1'!AQ93 ->  | M92: ='T2'!AQ93 ->  | N92: ='T3'!AQ93 ->  | O92: ='T4'!AQ93 ->  | P92: ='T5'!AQ93 ->  | Q92: ='T6'!AQ93 ->  | R92: ='T1'!AR93 ->  | S92: ='T2'!AR93 ->  | T92: ='T3'!AR93 ->  | U92: ='T4'!AR93 ->  | V92: ='T5'!AR93 ->  | W92: ='T6'!AR93 ->  | X92: ='T1'!AS93 ->  | Y92: ='T2'!AS93 ->  | Z92: ='T3'!AS93 ->  | AA92: ='T4'!AS93 ->  | AB92: ='T5'!AS93 ->  | AC92: ='T6'!AS93 ->  | AD92: ='T1'!AT93 ->  | AE92: ='T2'!AT93 ->  | AF92: ='T3'!AT93 ->  | AG92: ='T4'!AT93 ->  | AH92: ='T5'!AT93 ->  | AI92: ='T6'!AT93 ->  | AJ92: ='T1'!AU93 ->  | AK92: ='T2'!AU93 ->  | AL92: ='T3'!AU93 ->  | AM92: ='T4'!AU93 ->  | AN92: ='T5'!AU93 ->  | AO92: ='T6'!AU93 -> 
B93: 83 | E93: =SW!G92 -> 0 | F93: ='T1'!AP94 ->  | G93: ='T2'!AP94 ->  | H93: ='T3'!AP94 ->  | I93: ='T4'!AP94 ->  | J93: ='T5'!AP94 ->  | K93: ='T6'!AP94 ->  | L93: ='T1'!AQ94 ->  | M93: ='T2'!AQ94 ->  | N93: ='T3'!AQ94 ->  | O93: ='T4'!AQ94 ->  | P93: ='T5'!AQ94 ->  | Q93: ='T6'!AQ94 ->  | R93: ='T1'!AR94 ->  | S93: ='T2'!AR94 ->  | T93: ='T3'!AR94 ->  | U93: ='T4'!AR94 ->  | V93: ='T5'!AR94 ->  | W93: ='T6'!AR94 ->  | X93: ='T1'!AS94 ->  | Y93: ='T2'!AS94 ->  | Z93: ='T3'!AS94 ->  | AA93: ='T4'!AS94 ->  | AB93: ='T5'!AS94 ->  | AC93: ='T6'!AS94 ->  | AD93: ='T1'!AT94 ->  | AE93: ='T2'!AT94 ->  | AF93: ='T3'!AT94 ->  | AG93: ='T4'!AT94 ->  | AH93: ='T5'!AT94 ->  | AI93: ='T6'!AT94 ->  | AJ93: ='T1'!AU94 ->  | AK93: ='T2'!AU94 ->  | AL93: ='T3'!AU94 ->  | AM93: ='T4'!AU94 ->  | AN93: ='T5'!AU94 ->  | AO93: ='T6'!AU94 -> 
B94: 84 | E94: =SW!G93 -> 0 | F94: ='T1'!AP95 ->  | G94: ='T2'!AP95 ->  | H94: ='T3'!AP95 ->  | I94: ='T4'!AP95 ->  | J94: ='T5'!AP95 ->  | K94: ='T6'!AP95 ->  | L94: ='T1'!AQ95 ->  | M94: ='T2'!AQ95 ->  | N94: ='T3'!AQ95 ->  | O94: ='T4'!AQ95 ->  | P94: ='T5'!AQ95 ->  | Q94: ='T6'!AQ95 ->  | R94: ='T1'!AR95 ->  | S94: ='T2'!AR95 ->  | T94: ='T3'!AR95 ->  | U94: ='T4'!AR95 ->  | V94: ='T5'!AR95 ->  | W94: ='T6'!AR95 ->  | X94: ='T1'!AS95 ->  | Y94: ='T2'!AS95 ->  | Z94: ='T3'!AS95 ->  | AA94: ='T4'!AS95 ->  | AB94: ='T5'!AS95 ->  | AC94: ='T6'!AS95 ->  | AD94: ='T1'!AT95 ->  | AE94: ='T2'!AT95 ->  | AF94: ='T3'!AT95 ->  | AG94: ='T4'!AT95 ->  | AH94: ='T5'!AT95 ->  | AI94: ='T6'!AT95 ->  | AJ94: ='T1'!AU95 ->  | AK94: ='T2'!AU95 ->  | AL94: ='T3'!AU95 ->  | AM94: ='T4'!AU95 ->  | AN94: ='T5'!AU95 ->  | AO94: ='T6'!AU95 -> 
B95: 85 | E95: =SW!G94 -> 0 | F95: ='T1'!AP96 ->  | G95: ='T2'!AP96 ->  | H95: ='T3'!AP96 ->  | I95: ='T4'!AP96 ->  | J95: ='T5'!AP96 ->  | K95: ='T6'!AP96 ->  | L95: ='T1'!AQ96 ->  | M95: ='T2'!AQ96 ->  | N95: ='T3'!AQ96 ->  | O95: ='T4'!AQ96 ->  | P95: ='T5'!AQ96 ->  | Q95: ='T6'!AQ96 ->  | R95: ='T1'!AR96 ->  | S95: ='T2'!AR96 ->  | T95: ='T3'!AR96 ->  | U95: ='T4'!AR96 ->  | V95: ='T5'!AR96 ->  | W95: ='T6'!AR96 ->  | X95: ='T1'!AS96 ->  | Y95: ='T2'!AS96 ->  | Z95: ='T3'!AS96 ->  | AA95: ='T4'!AS96 ->  | AB95: ='T5'!AS96 ->  | AC95: ='T6'!AS96 ->  | AD95: ='T1'!AT96 ->  | AE95: ='T2'!AT96 ->  | AF95: ='T3'!AT96 ->  | AG95: ='T4'!AT96 ->  | AH95: ='T5'!AT96 ->  | AI95: ='T6'!AT96 ->  | AJ95: ='T1'!AU96 ->  | AK95: ='T2'!AU96 ->  | AL95: ='T3'!AU96 ->  | AM95: ='T4'!AU96 ->  | AN95: ='T5'!AU96 ->  | AO95: ='T6'!AU96 -> 
B96: 86 | E96: =SW!G95 -> 0 | F96: ='T1'!AP97 ->  | G96: ='T2'!AP97 ->  | H96: ='T3'!AP97 ->  | I96: ='T4'!AP97 ->  | J96: ='T5'!AP97 ->  | K96: ='T6'!AP97 ->  | L96: ='T1'!AQ97 ->  | M96: ='T2'!AQ97 ->  | N96: ='T3'!AQ97 ->  | O96: ='T4'!AQ97 ->  | P96: ='T5'!AQ97 ->  | Q96: ='T6'!AQ97 ->  | R96: ='T1'!AR97 ->  | S96: ='T2'!AR97 ->  | T96: ='T3'!AR97 ->  | U96: ='T4'!AR97 ->  | V96: ='T5'!AR97 ->  | W96: ='T6'!AR97 ->  | X96: ='T1'!AS97 ->  | Y96: ='T2'!AS97 ->  | Z96: ='T3'!AS97 ->  | AA96: ='T4'!AS97 ->  | AB96: ='T5'!AS97 ->  | AC96: ='T6'!AS97 ->  | AD96: ='T1'!AT97 ->  | AE96: ='T2'!AT97 ->  | AF96: ='T3'!AT97 ->  | AG96: ='T4'!AT97 ->  | AH96: ='T5'!AT97 ->  | AI96: ='T6'!AT97 ->  | AJ96: ='T1'!AU97 ->  | AK96: ='T2'!AU97 ->  | AL96: ='T3'!AU97 ->  | AM96: ='T4'!AU97 ->  | AN96: ='T5'!AU97 ->  | AO96: ='T6'!AU97 -> 
B97: 87 | E97: =SW!G96 -> 0 | F97: ='T1'!AP98 ->  | G97: ='T2'!AP98 ->  | H97: ='T3'!AP98 ->  | I97: ='T4'!AP98 ->  | J97: ='T5'!AP98 ->  | K97: ='T6'!AP98 ->  | L97: ='T1'!AQ98 ->  | M97: ='T2'!AQ98 ->  | N97: ='T3'!AQ98 ->  | O97: ='T4'!AQ98 ->  | P97: ='T5'!AQ98 ->  | Q97: ='T6'!AQ98 ->  | R97: ='T1'!AR98 ->  | S97: ='T2'!AR98 ->  | T97: ='T3'!AR98 ->  | U97: ='T4'!AR98 ->  | V97: ='T5'!AR98 ->  | W97: ='T6'!AR98 ->  | X97: ='T1'!AS98 ->  | Y97: ='T2'!AS98 ->  | Z97: ='T3'!AS98 ->  | AA97: ='T4'!AS98 ->  | AB97: ='T5'!AS98 ->  | AC97: ='T6'!AS98 ->  | AD97: ='T1'!AT98 ->  | AE97: ='T2'!AT98 ->  | AF97: ='T3'!AT98 ->  | AG97: ='T4'!AT98 ->  | AH97: ='T5'!AT98 ->  | AI97: ='T6'!AT98 ->  | AJ97: ='T1'!AU98 ->  | AK97: ='T2'!AU98 ->  | AL97: ='T3'!AU98 ->  | AM97: ='T4'!AU98 ->  | AN97: ='T5'!AU98 ->  | AO97: ='T6'!AU98 -> 
B98: 88 | E98: =SW!G97 -> 0 | F98: ='T1'!AP99 ->  | G98: ='T2'!AP99 ->  | H98: ='T3'!AP99 ->  | I98: ='T4'!AP99 ->  | J98: ='T5'!AP99 ->  | K98: ='T6'!AP99 ->  | L98: ='T1'!AQ99 ->  | M98: ='T2'!AQ99 ->  | N98: ='T3'!AQ99 ->  | O98: ='T4'!AQ99 ->  | P98: ='T5'!AQ99 ->  | Q98: ='T6'!AQ99 ->  | R98: ='T1'!AR99 ->  | S98: ='T2'!AR99 ->  | T98: ='T3'!AR99 ->  | U98: ='T4'!AR99 ->  | V98: ='T5'!AR99 ->  | W98: ='T6'!AR99 ->  | X98: ='T1'!AS99 ->  | Y98: ='T2'!AS99 ->  | Z98: ='T3'!AS99 ->  | AA98: ='T4'!AS99 ->  | AB98: ='T5'!AS99 ->  | AC98: ='T6'!AS99 ->  | AD98: ='T1'!AT99 ->  | AE98: ='T2'!AT99 ->  | AF98: ='T3'!AT99 ->  | AG98: ='T4'!AT99 ->  | AH98: ='T5'!AT99 ->  | AI98: ='T6'!AT99 ->  | AJ98: ='T1'!AU99 ->  | AK98: ='T2'!AU99 ->  | AL98: ='T3'!AU99 ->  | AM98: ='T4'!AU99 ->  | AN98: ='T5'!AU99 ->  | AO98: ='T6'!AU99 -> 
B99: 89 | E99: =SW!G98 -> 0 | F99: ='T1'!AP100 ->  | G99: ='T2'!AP100 ->  | H99: ='T3'!AP100 ->  | I99: ='T4'!AP100 ->  | J99: ='T5'!AP100 ->  | K99: ='T6'!AP100 ->  | L99: ='T1'!AQ100 ->  | M99: ='T2'!AQ100 ->  | N99: ='T3'!AQ100 ->  | O99: ='T4'!AQ100 ->  | P99: ='T5'!AQ100 ->  | Q99: ='T6'!AQ100 ->  | R99: ='T1'!AR100 ->  | S99: ='T2'!AR100 ->  | T99: ='T3'!AR100 ->  | U99: ='T4'!AR100 ->  | V99: ='T5'!AR100 ->  | W99: ='T6'!AR100 ->  | X99: ='T1'!AS100 ->  | Y99: ='T2'!AS100 ->  | Z99: ='T3'!AS100 ->  | AA99: ='T4'!AS100 ->  | AB99: ='T5'!AS100 ->  | AC99: ='T6'!AS100 ->  | AD99: ='T1'!AT100 ->  | AE99: ='T2'!AT100 ->  | AF99: ='T3'!AT100 ->  | AG99: ='T4'!AT100 ->  | AH99: ='T5'!AT100 ->  | AI99: ='T6'!AT100 ->  | AJ99: ='T1'!AU100 ->  | AK99: ='T2'!AU100 ->  | AL99: ='T3'!AU100 ->  | AM99: ='T4'!AU100 ->  | AN99: ='T5'!AU100 ->  | AO99: ='T6'!AU100 -> 

Sheet MTK
B2: D A F T A R N I L A I
B4: MATA PELAJARAN | G4: : | H4: MATEMATIKA | P4: ↗
B5: KELAS | G5: : | H5: =UPPER(MN!D22) -> V B
B6: TAHUN PELAJARAN | G6: : | H6: =MN!D18 -> 2019 - 2020
B9: No | C9: No. Induk | D9: NISN | E9: Nama Siswa | F9: MATEMATIKA (TEMA) | G9: NILAI | O9: JUMLAH
G10: PG | J10: 0.5 | K10: ESSAY | N10: =100%-J10 -> 0.5
B11: 1 | E11: =SW!G10 -> ABD. ROCHMAN NAJA FATLAN PRATAMA | F11: =RTM!AQ11 ->  | G11: 7 | H11: 7 | I11: 7 | J11: =$J$10*G11 -> 3.5 | K11: 40 | N11: =K11*$N$10 -> 20 | O11: =J11+N11 -> 23.5
B12: 2 | E12: =SW!G11 -> ABDURRAHMAN FAQIH | F12: =RTM!AQ12 ->  | G12: 20 | H12: 20 | I12: 20 | J12: =$J$10*G12 -> 10 | K12: 40 | N12: =K12*$N$10 -> 20 | O12: =J12+N12 -> 30
B13: 3 | E13: =SW!G12 -> ACHMAD FARROIHUN MUSHOBIRONILLAH | F13: =RTM!AQ13 ->  | G13: 13 | H13: 13 | I13: 13 | J13: 6.5 | K13: 25 | N13: 12.5 | O13: 20
B14: 4 | E14: =SW!G13 -> ACHMAD HASBI ASSIDDIQI | F14: =RTM!AQ14 ->  | G14: 27 | H14: 27 | I14: 27 | J14: 13.5 | K14: 25 | N14: 12.5 | O14: 27
B15: 5 | E15: =SW!G14 -> ACHMAD REZA AKRAM ALAUDDIN | F15: =RTM!AQ15 ->  | G15: 33 | H15: 33 | I15: 33 | J15: 16.5 | K15: 20 | N15: 10 | O15: 26.5
B16: 6 | E16: =SW!G15 -> ACHMAD YANI | F16: =RTM!AQ16 ->  | G16: 0 | H16: 0 | I16: 0 | J16: 0 | K16: 25 | N16: 12.5 | O16: 12.5
B17: 7 | E17: =SW!G16 -> AKHMAD RIDWAN | F17: =RTM!AQ17 ->  | G17: 13 | H17: 13 | I17: 13 | J17: 6.5 | K17: 40 | N17: 20 | O17: 26.5
B18: 8 | E18: =SW!G17 -> ANDREAN DWI YULIANO | F18: =RTM!AQ18 ->  | G18: 20 | H18: 20 | I18: 20 | J18: 10 | K18: 40 | N18: 20 | O18: 30
B19: 9 | E19: =SW!G18 -> ASFAN FAKHRI BARANI | F19: =RTM!AQ19 ->  | G19: 20 | H19: 20 | I19: 20 | J19: 10 | K19: 25 | N19: 12.5 | O19: 22.5
B20: 10 | E20: =SW!G19 -> DEVAN ADITYA SAPUTRA | F20: =RTM!AQ20 ->  | G20: 13 | H20: 13 | I20: 13 | J20: 6.5 | K20: 40 | N20: 20 | O20: 26.5
B21: 11 | E21: =SW!G20 -> FAHRUL AHMAD FAHREZA | F21: =RTM!AQ21 ->  | G21: 20 | H21: 20 | I21: 20 | J21: 10 | K21: 25 | N21: 12.5 | O21: 22.5
B22: 12 | E22: =SW!G21 -> FAUZIA AMELIA PUTRI | F22: =RTM!AQ22 ->  | G22: 33 | H22: 33 | I22: 33 | J22: 16.5 | K22: 25 | N22: 12.5 | O22: 30
B23: 13 | E23: =SW!G22 -> FAZA AZIFAH SALSABILA | F23: =RTM!AQ23 ->  | G23: 13 | H23: 13 | I23: 13 | J23: 6.5 | K23: 25 | N23: 12.5 | O23: 20
B24: 14 | E24: =SW!G23 -> HABIBIE NURUSSALAM | F24: =RTM!AQ24 ->  | G24: 40 | H24: 40 | I24: 40 | J24: 20 | K24: 25 | N24: 12.5 | O24: 32.5
B25: 15 | E25: =SW!G24 -> HIMATURROSYIDAH | F25: =RTM!AQ25 ->  | G25: 13 | H25: 13 | I25: 13 | J25: 6.5 | K25: 25 | N25: 12.5 | O25: 20
B26: 16 | E26: =SW!G25 -> IFKARINA NAILA SAUQYA | F26: =RTM!AQ26 ->  | G26: 33 | H26: 33 | I26: 33 | J26: 16.5 | K26: 40 | N26: 20 | O26: 36.5
B27: 17 | E27: =SW!G26 -> KEISA AYU SASKIYAH | F27: =RTM!AQ27 ->  | G27: 13 | H27: 13 | I27: 13 | J27: 6.5 | K27: 25 | N27: 12.5 | O27: 20
B28: 18 | E28: =SW!G27 -> MOCHAMMAD RENO FIRMANSYAH | F28: =RTM!AQ28 ->  | G28: 20 | H28: 20 | I28: 20 | J28: 10 | K28: 25 | N28: 12.5 | O28: 22.5
B29: 19 | E29: =SW!G28 -> MOHAMAD NUR KHAFID KHABIBULLOH | F29: =RTM!AQ29 ->  | G29: 53 | H29: 53 | I29: 53 | J29: 26.5 | K29: 25 | N29: 12.5 | O29: 40
B30: 20 | E30: =SW!G29 -> MOHAMMAD NAUFAL NAWWARUDDIN | F30: =RTM!AQ30 ->  | G30: 20 | H30: 20 | I30: 20 | J30: 10 | K30: 40 | N30: 20 | O30: 30
B31: 21 | E31: =SW!G30 -> MUCHAMAD PRIMA PAMBUDI | F31: =RTM!AQ31 ->  | G31: 20 | H31: 20 | I31: 20 | J31: 10 | K31: 25 | N31: 12.5 | O31: 22.5
B32: 22 | E32: =SW!G31 -> MUHAMMAD ALFAN FATHONI | F32: =RTM!AQ32 ->  | G32: 13 | H32: 13 | I32: 13 | J32: 6.5 | K32: 25 | N32: 12.5 | O32: 20
B33: 23 | E33: =SW!G32 -> MUHAMMAD AMINULLAH MAULUDANI | F33: =RTM!AQ33 ->  | G33: 20 | H33: 20 | I33: 20 | J33: 10 | K33: 25 | N33: 12.5 | O33: 22.5
B34: 24 | E34: =SW!G33 -> MUHAMMAD DAVIN LEVANTINO | F34: =RTM!AQ34 ->  | G34: 27 | H34: 27 | I34: 27 | J34: 13.5 | K34: 40 | N34: 20 | O34: 33.5
B35: 25 | E35: =SW!G34 -> MUHAMMAD MAULANA PAHLEVY | F35: =RTM!AQ35 ->  | G35: 40 | H35: 40 | I35: 40 | J35: 20 | K35: 40 | N35: 20 | O35: 40
B36: 26 | E36: =SW!G35 -> RADITYA NIRWANSYAH | F36: =RTM!AQ36 ->  | G36: 13 | H36: 13 | I36: 13 | J36: 6.5 | K36: 40 | N36: 20 | O36: 26.5
B37: 27 | E37: =SW!G36 -> REVINA SRI UTARI | F37: =RTM!AQ37 ->  | G37: 7 | H37: 7 | I37: 7 | J37: 3.5 | K37: 40 | N37: 20 | O37: 23.5
B38: 28 | E38: =SW!G37 -> REYHAN DWI ANDIKA | F38: =RTM!AQ38 ->  | G38: 20 | H38: 20 | I38: 20 | J38: 10 | K38: 25 | N38: 12.5 | O38: 22.5
B39: 29 | E39: =SW!G38 -> RISKA LAURA TRIA OCTAVIA | F39: =RTM!AQ39 ->  | G39: 33 | H39: 33 | I39: 33 | J39: 16.5 | K39: 25 | N39: 12.5 | O39: 30
B40: 30 | E40: =SW!G39 -> ROHMADONA DWI SAFITRI | F40: =RTM!AQ40 ->  | G40: 20 | H40: 20 | I40: 20 | J40: 10 | K40: 40 | N40: 20 | O40: 30
B41: 31 | E41: =SW!G40 -> SALMAN ALFARIZI | F41: =RTM!AQ41 ->  | G41: 20 | H41: 20 | I41: 20 | J41: 10 | K41: 25 | N41: 12.5 | O41: 22.5
B42: 32 | E42: =SW!G41 -> TAUFIQ KURROHMAN | F42: =RTM!AQ42 ->  | G42: 7 | H42: 7 | I42: 7 | J42: 3.5 | K42: 25 | N42: 12.5 | O42: 17
B43: 33 | E43: =SW!G42 -> 0 | F43: =RTM!AQ43 ->  | J43: 0 | N43: 0 | O43: =IFERROR(ROUND(AVERAGE(F43+N43+J43),0),"") -> 
B44: 34 | E44: =SW!G43 -> 0 | F44: =RTM!AQ44 ->  | J44: 0 | N44: 0
B45: 35 | E45: =SW!G44 -> 0 | F45: =RTM!AQ45 ->  | J45: 0 | N45: 0
B46: 36 | E46: =SW!G45 -> 0 | F46: =RTM!AQ46 ->  | J46: 0 | N46: 0
B47: 37 | E47: =SW!G46 -> 0 | F47: =RTM!AQ47 ->  | J47: 0 | N47: 0
B48: 38 | E48: =SW!G47 -> 0 | F48: =RTM!AQ48 ->  | J48: 0 | N48: 0
B49: 39 | E49: =SW!G48 -> 0 | F49: =RTM!AQ49 ->  | J49: 0 | N49: 0
B50: 40 | E50: =SW!G49 -> 0 | F50: =RTM!AQ50 ->  | J50: 0 | N50: 0
B51: 41 | E51: =SW!G50 -> 0 | F51: =RTM!AQ51 ->  | J51: 0 | N51: 0
B52: 42 | E52: =SW!G51 -> 0 | F52: =RTM!AQ52 ->  | J52: 0 | N52: 0
B53: 43 | E53: =SW!G52 -> 0 | F53: =RTM!AQ53 ->  | J53: 0 | N53: 0
B54: 44 | E54: =SW!G53 -> 0 | F54: =RTM!AQ54 ->  | J54: 0 | N54: 0
B55: 45 | E55: =SW!G54 -> 0 | F55: =RTM!AQ55 ->  | J55: 0 | N55: 0
B56: 46 | E56: =SW!G55 -> 0 | F56: =RTM!AQ56 ->  | J56: 0 | N56: 0
B57: 47 | E57: =SW!G56 -> 0 | F57: =RTM!AQ57 ->  | J57: 0 | N57: 0
B58: 48 | E58: =SW!G57 -> 0 | F58: =RTM!AQ58 ->  | J58: 0 | N58: 0
B59: 49 | E59: =SW!G58 -> 0 | F59: =RTM!AQ59 ->  | J59: 0 | N59: 0
B60: 50 | E60: =SW!G59 -> 0 | F60: =RTM!AQ60 ->  | J60: 0 | N60: 0
B61: 51 | E61: =SW!G60 -> 0 | F61: =RTM!AQ61 ->  | J61: 0 | N61: 0
B62: 52 | E62: =SW!G61 -> 0 | F62: =RTM!AQ62 ->  | J62: 0 | N62: 0
B63: 53 | E63: =SW!G62 -> 0 | F63: =RTM!AQ63 ->  | J63: 0 | N63: 0
B64: 54 | E64: =SW!G63 -> 0 | F64: =RTM!AQ64 ->  | J64: 0 | N64: 0
B65: 55 | E65: =SW!G64 -> 0 | F65: =RTM!AQ65 ->  | J65: 0 | N65: 0
B66: 56 | E66: =SW!G65 -> 0 | F66: =RTM!AQ66 ->  | J66: 0 | N66: 0
B67: 57 | E67: =SW!G66 -> 0 | F67: =RTM!AQ67 ->  | J67: 0 | N67: 0
B68: 58 | E68: =SW!G67 -> 0 | F68: =RTM!AQ68 ->  | J68: 0 | N68: 0
B69: 59 | E69: =SW!G68 -> 0 | F69: =RTM!AQ69 ->  | J69: 0 | N69: 0
B70: 60 | E70: =SW!G69 -> 0 | F70: =RTM!AQ70 ->  | J70: 0 | N70: 0
B71: 61 | E71: =SW!G70 -> 0 | F71: =RTM!AQ71 ->  | J71: 0 | N71: 0
B72: 62 | E72: =SW!G71 -> 0 | F72: =RTM!AQ72 ->  | J72: 0 | N72: 0
B73: 63 | E73: =SW!G72 -> 0 | F73: =RTM!AQ73 ->  | J73: 0 | N73: 0
B74: 64 | E74: =SW!G73 -> 0 | F74: =RTM!AQ74 ->  | J74: 0 | N74: 0
B75: 65 | E75: =SW!G74 -> 0 | F75: =RTM!AQ75 ->  | J75: 0 | N75: 0
B76: 66 | E76: =SW!G75 -> 0 | F76: =RTM!AQ76 ->  | J76: =$J$10*G76 -> 0 | N76: =K76*$N$10 -> 0 | O76: =IFERROR(ROUND(AVERAGE(F76+N76+J76),0),"") -> 
B77: 67 | E77: =SW!G76 -> 0 | F77: =RTM!AQ77 ->  | J77: 0 | N77: 0
B78: 68 | E78: =SW!G77 -> 0 | F78: =RTM!AQ78 ->  | J78: 0 | N78: 0
B79: 69 | E79: =SW!G78 -> 0 | F79: =RTM!AQ79 ->  | J79: 0 | N79: 0
B80: 70 | E80: =SW!G79 -> 0 | F80: =RTM!AQ80 ->  | J80: 0 | N80: 0
B81: 71 | E81: =SW!G80 -> 0 | F81: =RTM!AQ81 ->  | J81: 0 | N81: 0
B82: 72 | E82: =SW!G81 -> 0 | F82: =RTM!AQ82 ->  | J82: 0 | N82: 0
B83: 73 | E83: =SW!G82 -> 0 | F83: =RTM!AQ83 ->  | J83: 0 | N83: 0
B84: 74 | E84: =SW!G83 -> 0 | F84: =RTM!AQ84 ->  | J84: 0 | N84: 0
B85: 75 | E85: =SW!G84 -> 0 | F85: =RTM!AQ85 ->  | J85: 0 | N85: 0
B86: 76 | E86: =SW!G85 -> 0 | F86: =RTM!AQ86 ->  | J86: 0 | N86: 0
B87: 77 | E87: =SW!G86 -> 0 | F87: =RTM!AQ87 ->  | J87: 0 | N87: 0
B88: 78 | E88: =SW!G87 -> 0 | F88: =RTM!AQ88 ->  | J88: 0 | N88: 0
B89: 79 | E89: =SW!G88 -> 0 | F89: =RTM!AQ89 ->  | J89: 0 | N89: 0
B90: 80 | E90: =SW!G89 -> 0 | F90: =RTM!AQ90 ->  | J90: 0 | N90: 0
B91: 81 | E91: =SW!G90 -> 0 | F91: =RTM!AQ91 ->  | J91: 0 | N91: 0
B92: 82 | E92: =SW!G91 -> 0 | F92: =RTM!AQ92 ->  | J92: 0 | N92: 0
B93: 83 | E93: =SW!G92 -> 0 | F93: =RTM!AQ93 ->  | J93: 0 | N93: 0
B94: 84 | E94: =SW!G93 -> 0 | F94: =RTM!AQ94 ->  | J94: 0 | N94: 0
B95: 85 | E95: =SW!G94 -> 0 | F95: =RTM!AQ95 ->  | J95: 0 | N95: 0
B96: 86 | E96: =SW!G95 -> 0 | F96: =RTM!AQ96 ->  | J96: 0 | N96: 0
B97: 87 | E97: =SW!G96 -> 0 | F97: =RTM!AQ97 ->  | J97: 0 | N97: 0
B98: 88 | E98: =SW!G97 -> 0 | F98: =RTM!AQ98 ->  | J98: 0 | N98: 0
B99: 89 | E99: =SW!G98 -> 0 | F99: =RTM!AQ99 ->  | J99: 0 | N99: 0

Sheet PJOK
B2: D A F T A R N I L A I
B4: MATA PELAJARAN | F4: : | G4: Pendidikan Jasmani dan Kesehatan | O4: ↗
B5: KELAS | F5: : | G5: =UPPER(MN!D22) -> V B
B6: TAHUN PELAJARAN | F6: : | G6: =MN!D18 -> 2019 - 2020
B9: No | C9: No. Induk | D9: NISN | E9: Nama Siswa | F9: NILAI | N9: JUMLAH
F10: PG | I10: 0.5 | J10: ESSAY | M10: =100%-I10 -> 0.5
B11: 1 | E11: =SW!G10 -> ABD. ROCHMAN NAJA FATLAN PRATAMA | F11: 33 | G11: 33 | H11: 33 | I11: =$I$10*F11 -> 16.5 | J11: 60 | K11: 60 | L11: 60 | M11: =J11*$M$10 -> 30 | N11: =IFERROR(ROUND(AVERAGE(M11+I11),0),"") -> 47
B12: 2 | E12: =SW!G11 -> ABDURRAHMAN FAQIH | F12: 27 | G12: 27 | H12: 27 | I12: =$I$10*F12 -> 13.5 | J12: 50 | K12: 50 | L12: 50 | M12: =J12*$M$10 -> 25 | N12: =IFERROR(ROUND(AVERAGE(M12+I12),0),"") -> 39
B13: 3 | E13: =SW!G12 -> ACHMAD FARROIHUN MUSHOBIRONILLAH | F13: 17 | G13: 17 | H13: 17 | I13: 8.5 | J13: 70 | K13: 70 | L13: 70 | M13: 35 | N13: 44
B14: 4 | E14: =SW!G13 -> ACHMAD HASBI ASSIDDIQI | F14: 20 | G14: 20 | H14: 20 | I14: 10 | J14: 50 | K14: 50 | L14: 50 | M14: 25 | N14: 35
B15: 5 | E15: =SW!G14 -> ACHMAD REZA AKRAM ALAUDDIN | F15: 37 | G15: 37 | H15: 37 | I15: 18.5 | J15: 70 | K15: 70 | L15: 70 | M15: 35 | N15: 54
B16: 6 | E16: =SW!G15 -> ACHMAD YANI | F16: 20 | G16: 20 | H16: 20 | I16: 10 | J16: 60 | K16: 60 | L16: 60 | M16: 30 | N16: 40
B17: 7 | E17: =SW!G16 -> AKHMAD RIDWAN | F17: 43 | G17: 43 | H17: 43 | I17: 21.5 | J17: 60 | K17: 60 | L17: 60 | M17: 30 | N17: 52
B18: 8 | E18: =SW!G17 -> ANDREAN DWI YULIANO | F18: 17 | G18: 17 | H18: 17 | I18: 8.5 | J18: 50 | K18: 50 | L18: 50 | M18: 25 | N18: 34
B19: 9 | E19: =SW!G18 -> ASFAN FAKHRI BARANI | F19: 47 | G19: 47 | H19: 47 | I19: 23.5 | J19: 80 | K19: 80 | L19: 80 | M19: 40 | N19: 64
B20: 10 | E20: =SW!G19 -> DEVAN ADITYA SAPUTRA | F20: 20 | G20: 20 | H20: 20 | I20: 10 | J20: 60 | K20: 60 | L20: 60 | M20: 30 | N20: 40
B21: 11 | E21: =SW!G20 -> FAHRUL AHMAD FAHREZA | F21: 27 | G21: 27 | H21: 27 | I21: 13.5 | J21: 70 | K21: 70 | L21: 70 | M21: 35 | N21: 49
B22: 12 | E22: =SW!G21 -> FAUZIA AMELIA PUTRI | F22: 50 | G22: 50 | H22: 50 | I22: 25 | J22: 60 | K22: 60 | L22: 60 | M22: 30 | N22: 55
B23: 13 | E23: =SW!G22 -> FAZA AZIFAH SALSABILA | F23: 33 | G23: 33 | H23: 33 | I23: 16.5 | J23: 60 | K23: 60 | L23: 60 | M23: 30 | N23: 47
B24: 14 | E24: =SW!G23 -> HABIBIE NURUSSALAM | F24: 40 | G24: 40 | H24: 40 | I24: 20 | J24: 80 | K24: 80 | L24: 80 | M24: 40 | N24: 60
B25: 15 | E25: =SW!G24 -> HIMATURROSYIDAH | F25: 43 | G25: 43 | H25: 43 | I25: 21.5 | J25: 60 | K25: 60 | L25: 60 | M25: 30 | N25: 52
B26: 16 | E26: =SW!G25 -> IFKARINA NAILA SAUQYA | F26: 33 | G26: 33 | H26: 33 | I26: 16.5 | J26: 60 | K26: 60 | L26: 60 | M26: 30 | N26: 47
B27: 17 | E27: =SW!G26 -> KEISA AYU SASKIYAH | F27: 30 | G27: 30 | H27: 30 | I27: 15 | J27: 60 | K27: 60 | L27: 60 | M27: 30 | N27: 45
B28: 18 | E28: =SW!G27 -> MOCHAMMAD RENO FIRMANSYAH | F28: 27 | G28: 27 | H28: 27 | I28: 13.5 | J28: 50 | K28: 50 | L28: 50 | M28: 25 | N28: 39
B29: 19 | E29: =SW!G28 -> MOHAMAD NUR KHAFID KHABIBULLOH | F29: 57 | G29: 57 | H29: 57 | I29: 28.5 | J29: 60 | K29: 60 | L29: 60 | M29: 30 | N29: 59
B30: 20 | E30: =SW!G29 -> MOHAMMAD NAUFAL NAWWARUDDIN | F30: 10 | G30: 10 | H30: 10 | I30: 5 | J30: 60 | K30: 60 | L30: 60 | M30: 30 | N30: 35
B31: 21 | E31: =SW!G30 -> MUCHAMAD PRIMA PAMBUDI | F31: 23 | G31: 23 | H31: 23 | I31: 11.5 | J31: 70 | K31: 70 | L31: 70 | M31: 35 | N31: 47
B32: 22 | E32: =SW!G31 -> MUHAMMAD ALFAN FATHONI | F32: 33 | G32: 33 | H32: 33 | I32: 16.5 | J32: 60 | K32: 60 | L32: 60 | M32: 30 | N32: 47
B33: 23 | E33: =SW!G32 -> MUHAMMAD AMINULLAH MAULUDANI | F33: 27 | G33: 27 | H33: 27 | I33: 13.5 | J33: 70 | K33: 70 | L33: 70 | M33: 35 | N33: 49
B34: 24 | E34: =SW!G33 -> MUHAMMAD DAVIN LEVANTINO | F34: 27 | G34: 27 | H34: 27 | I34: 13.5 | J34: 70 | K34: 70 | L34: 70 | M34: 35 | N34: 49
B35: 25 | E35: =SW!G34 -> MUHAMMAD MAULANA PAHLEVY | F35: 30 | G35: 30 | H35: 30 | I35: 15 | J35: 60 | K35: 60 | L35: 60 | M35: 30 | N35: 45
B36: 26 | E36: =SW!G35 -> RADITYA NIRWANSYAH | F36: 30 | G36: 30 | H36: 30 | I36: 15 | J36: 60 | K36: 60 | L36: 60 | M36: 30 | N36: 45
B37: 27 | E37: =SW!G36 -> REVINA SRI UTARI | F37: 20 | G37: 20 | H37: 20 | I37: 10 | J37: 60 | K37: 60 | L37: 60 | M37: 30 | N37: 40
B38: 28 | E38: =SW!G37 -> REYHAN DWI ANDIKA | F38: 30 | G38: 30 | H38: 30 | I38: 15 | J38: 60 | K38: 60 | L38: 60 | M38: 30 | N38: 45
B39: 29 | E39: =SW!G38 -> RISKA LAURA TRIA OCTAVIA | F39: 33 | G39: 33 | H39: 33 | I39: 16.5 | J39: 70 | K39: 70 | L39: 70 | M39: 35 | N39: 52
B40: 30 | E40: =SW!G39 -> ROHMADONA DWI SAFITRI | F40: 50 | G40: 50 | H40: 50 | I40: 25 | J40: 80 | K40: 80 | L40: 80 | M40: 40 | N40: 65
B41: 31 | E41: =SW!G40 -> SALMAN ALFARIZI | F41: 33 | G41: 33 | H41: 33 | I41: 16.5 | J41: 60 | K41: 60 | L41: 60 | M41: 30 | N41: 47
B42: 32 | E42: =SW!G41 -> TAUFIQ KURROHMAN | F42: 33 | G42: 33 | H42: 33 | I42: 16.5 | J42: 60 | K42: 60 | L42: 60 | M42: 30 | N42: 47
B43: 33 | E43: =SW!G42 -> 0 | I43: 0 | M43: 0 | N43: 0
B44: 34 | E44: =SW!G43 -> 0 | I44: 0 | M44: 0 | N44: 0
B45: 35 | E45: =SW!G44 -> 0 | I45: 0 | M45: 0 | N45: 0
B46: 36 | E46: =SW!G45 -> 0 | I46: 0 | M46: 0 | N46: 0
B47: 37 | E47: =SW!G46 -> 0 | I47: 0 | M47: 0 | N47: 0
B48: 38 | E48: =SW!G47 -> 0 | I48: 0 | M48: 0 | N48: 0
B49: 39 | E49: =SW!G48 -> 0 | I49: 0 | M49: 0 | N49: 0
B50: 40 | E50: =SW!G49 -> 0 | I50: 0 | M50: 0 | N50: 0
B51: 41 | E51: =SW!G50 -> 0 | I51: 0 | M51: 0 | N51: 0
B52: 42 | E52: =SW!G51 -> 0 | I52: 0 | M52: 0 | N52: 0
B53: 43 | E53: =SW!G52 -> 0 | I53: 0 | M53: 0 | N53: 0
B54: 44 | E54: =SW!G53 -> 0 | I54: 0 | M54: 0 | N54: 0
B55: 45 | E55: =SW!G54 -> 0 | I55: 0 | M55: 0 | N55: 0
B56: 46 | E56: =SW!G55 -> 0 | I56: 0 | M56: 0 | N56: 0
B57: 47 | E57: =SW!G56 -> 0 | I57: 0 | M57: 0 | N57: 0
B58: 48 | E58: =SW!G57 -> 0 | I58: 0 | M58: 0 | N58: 0
B59: 49 | E59: =SW!G58 -> 0 | I59: 0 | M59: 0 | N59: 0
B60: 50 | E60: =SW!G59 -> 0 | I60: 0 | M60: 0 | N60: 0
B61: 51 | E61: =SW!G60 -> 0 | I61: 0 | M61: 0 | N61: 0
B62: 52 | E62: =SW!G61 -> 0 | I62: 0 | M62: 0 | N62: 0
B63: 53 | E63: =SW!G62 -> 0 | I63: 0 | M63: 0 | N63: 0
B64: 54 | E64: =SW!G63 -> 0 | I64: 0 | M64: 0 | N64: 0
B65: 55 | E65: =SW!G64 -> 0 | I65: 0 | M65: 0 | N65: 0
B66: 56 | E66: =SW!G65 -> 0 | I66: 0 | M66: 0 | N66: 0
B67: 57 | E67: =SW!G66 -> 0 | I67: 0 | M67: 0 | N67: 0
B68: 58 | E68: =SW!G67 -> 0 | I68: 0 | M68: 0 | N68: 0
B69: 59 | E69: =SW!G68 -> 0 | I69: 0 | M69: 0 | N69: 0
B70: 60 | E70: =SW!G69 -> 0 | I70: 0 | M70: 0 | N70: 0
B71: 61 | E71: =SW!G70 -> 0 | I71: 0 | M71: 0 | N71: 0
B72: 62 | E72: =SW!G71 -> 0 | I72: 0 | M72: 0 | N72: 0
B73: 63 | E73: =SW!G72 -> 0 | I73: 0 | M73: 0 | N73: 0
B74: 64 | E74: =SW!G73 -> 0 | I74: 0 | M74: 0 | N74: 0
B75: 65 | E75: =SW!G74 -> 0 | I75: 0 | M75: 0 | N75: 0
B76: 66 | E76: =SW!G75 -> 0 | I76: =$I$10*F76 -> 0 | M76: =J76*$M$10 -> 0 | N76: =IFERROR(ROUND(AVERAGE(M76+I76),0),"") -> 0
B77: 67 | E77: =SW!G76 -> 0 | I77: 0 | M77: 0 | N77: 0
B78: 68 | E78: =SW!G77 -> 0 | I78: 0 | M78: 0 | N78: 0
B79: 69 | E79: =SW!G78 -> 0 | I79: 0 | M79: 0 | N79: 0
B80: 70 | E80: =SW!G79 -> 0 | I80: 0 | M80: 0 | N80: 0
B81: 71 | E81: =SW!G80 -> 0 | I81: 0 | M81: 0 | N81: 0
B82: 72 | E82: =SW!G81 -> 0 | I82: 0 | M82: 0 | N82: 0
B83: 73 | E83: =SW!G82 -> 0 | I83: 0 | M83: 0 | N83: 0
B84: 74 | E84: =SW!G83 -> 0 | I84: 0 | M84: 0 | N84: 0
B85: 75 | E85: =SW!G84 -> 0 | I85: 0 | M85: 0 | N85: 0
B86: 76 | E86: =SW!G85 -> 0 | I86: 0 | M86: 0 | N86: 0
B87: 77 | E87: =SW!G86 -> 0 | I87: 0 | M87: 0 | N87: 0
B88: 78 | E88: =SW!G87 -> 0 | I88: 0 | M88: 0 | N88: 0
B89: 79 | E89: =SW!G88 -> 0 | I89: 0 | M89: 0 | N89: 0
B90: 80 | E90: =SW!G89 -> 0 | I90: 0 | M90: 0 | N90: 0
B91: 81 | E91: =SW!G90 -> 0 | I91: 0 | M91: 0 | N91: 0
B92: 82 | E92: =SW!G91 -> 0 | I92: 0 | M92: 0 | N92: 0
B93: 83 | E93: =SW!G92 -> 0 | I93: 0 | M93: 0 | N93: 0
B94: 84 | E94: =SW!G93 -> 0 | I94: 0 | M94: 0 | N94: 0
B95: 85 | E95: =SW!G94 -> 0 | I95: 0 | M95: 0 | N95: 0
B96: 86 | E96: =SW!G95 -> 0 | I96: 0 | M96: 0 | N96: 0
B97: 87 | E97: =SW!G96 -> 0 | I97: 0 | M97: 0 | N97: 0
B98: 88 | E98: =SW!G97 -> 0 | I98: 0 | M98: 0 | N98: 0
B99: 89 | E99: =SW!G98 -> 0 | I99: 0 | M99: 0 | N99: 0

Sheet BD
B2: D A F T A R N I L A I
B4: MATA PELAJARAN | F4: : | G4: Bahasa Daerah | O4: ↗
B5: KELAS | F5: : | G5: =UPPER(MN!D22) -> V B
B6: TAHUN PELAJARAN | F6: : | G6: =MN!D18 -> 2019 - 2020
B9: No | C9: No. Induk | D9: NISN | E9: Nama Siswa | F9: NILAI | N9: JUMLAH
F10: PG | I10: 0.5 | J10: ESSAY | M10: =100%-I10 -> 0.5
B11: 1 | E11: =SW!G10 -> ABD. ROCHMAN NAJA FATLAN PRATAMA | F11: 32 | I11: =$I$10*F11 -> 16 | J11: 32 | M11: =J11*$M$10 -> 16 | N11: =IFERROR(ROUND(AVERAGE(M11+I11),0),"") -> 32
B12: 2 | E12: =SW!G11 -> ABDURRAHMAN FAQIH | F12: 43 | I12: =$I$10*F12 -> 21.5 | J12: 43 | M12: =J12*$M$10 -> 21.5 | N12: =IFERROR(ROUND(AVERAGE(M12+I12),0),"") -> 43
B13: 3 | E13: =SW!G12 -> ACHMAD FARROIHUN MUSHOBIRONILLAH | F13: 51 | I13: 25.5 | J13: 51 | M13: 25.5 | N13: 51
B14: 4 | E14: =SW!G13 -> ACHMAD HASBI ASSIDDIQI | F14: 31 | I14: 15.5 | J14: 31 | M14: 15.5 | N14: 31
B15: 5 | E15: =SW!G14 -> ACHMAD REZA AKRAM ALAUDDIN | F15: 48 | I15: 24 | J15: 48 | M15: 24 | N15: 48
B16: 6 | E16: =SW!G15 -> ACHMAD YANI | F16: 67 | I16: 33.5 | J16: 67 | M16: 33.5 | N16: 67
B17: 7 | E17: =SW!G16 -> AKHMAD RIDWAN | F17: 58 | I17: 29 | J17: 58 | M17: 29 | N17: 58
B18: 8 | E18: =SW!G17 -> ANDREAN DWI YULIANO | F18: 64 | I18: 32 | J18: 64 | M18: 32 | N18: 64
B19: 9 | E19: =SW!G18 -> ASFAN FAKHRI BARANI | F19: 59 | I19: 29.5 | J19: 59 | M19: 29.5 | N19: 59
B20: 10 | E20: =SW!G19 -> DEVAN ADITYA SAPUTRA | F20: 52 | I20: 26 | J20: 52 | M20: 26 | N20: 52
B21: 11 | E21: =SW!G20 -> FAHRUL AHMAD FAHREZA | F21: 64 | I21: 32 | J21: 64 | M21: 32 | N21: 64
B22: 12 | E22: =SW!G21 -> FAUZIA AMELIA PUTRI | F22: 68 | I22: 34 | J22: 68 | M22: 34 | N22: 68
B23: 13 | E23: =SW!G22 -> FAZA AZIFAH SALSABILA | F23: 51 | I23: 25.5 | J23: 51 | M23: 25.5 | N23: 51
B24: 14 | E24: =SW!G23 -> HABIBIE NURUSSALAM | F24: 43 | I24: 21.5 | J24: 43 | M24: 21.5 | N24: 43
B25: 15 | E25: =SW!G24 -> HIMATURROSYIDAH | F25: 68 | I25: 34 | J25: 68 | M25: 34 | N25: 68
B26: 16 | E26: =SW!G25 -> IFKARINA NAILA SAUQYA | F26: 72 | I26: 36 | J26: 72 | M26: 36 | N26: 72
B27: 17 | E27: =SW!G26 -> KEISA AYU SASKIYAH | F27: 68 | I27: 34 | J27: 68 | M27: 34 | N27: 68
B28: 18 | E28: =SW!G27 -> MOCHAMMAD RENO FIRMANSYAH | F28: 47 | I28: 23.5 | J28: 47 | M28: 23.5 | N28: 47
B29: 19 | E29: =SW!G28 -> MOHAMAD NUR KHAFID KHABIBULLOH | F29: 62 | I29: 31 | J29: 62 | M29: 31 | N29: 62
B30: 20 | E30: =SW!G29 -> MOHAMMAD NAUFAL NAWWARUDDIN | F30: 37 | I30: 18.5 | J30: 37 | M30: 18.5 | N30: 37
B31: 21 | E31: =SW!G30 -> MUCHAMAD PRIMA PAMBUDI | F31: 52 | I31: 26 | J31: 52 | M31: 26 | N31: 52
B32: 22 | E32: =SW!G31 -> MUHAMMAD ALFAN FATHONI | F32: 58 | I32: 29 | J32: 58 | M32: 29 | N32: 58
B33: 23 | E33: =SW!G32 -> MUHAMMAD AMINULLAH MAULUDANI | F33: 30 | I33: 15 | J33: 30 | M33: 15 | N33: 30
B34: 24 | E34: =SW!G33 -> MUHAMMAD DAVIN LEVANTINO | F34: 50 | I34: 25 | J34: 50 | M34: 25 | N34: 50
B35: 25 | E35: =SW!G34 -> MUHAMMAD MAULANA PAHLEVY | F35: 48 | I35: 24 | J35: 48 | M35: 24 | N35: 48
B36: 26 | E36: =SW!G35 -> RADITYA NIRWANSYAH | F36: 40 | I36: 20 | J36: 40 | M36: 20 | N36: 40
B37: 27 | E37: =SW!G36 -> REVINA SRI UTARI | F37: 47 | I37: 23.5 | J37: 47 | M37: 23.5 | N37: 47
B38: 28 | E38: =SW!G37 -> REYHAN DWI ANDIKA | F38: 49 | I38: 24.5 | J38: 49 | M38: 24.5 | N38: 49
B39: 29 | E39: =SW!G38 -> RISKA LAURA TRIA OCTAVIA | F39: 76 | I39: 38 | J39: 76 | M39: 38 | N39: 76
B40: 30 | E40: =SW!G39 -> ROHMADONA DWI SAFITRI | F40: 44 | I40: 22 | J40: 44 | M40: 22 | N40: 44
B41: 31 | E41: =SW!G40 -> SALMAN ALFARIZI | F41: 55 | I41: 27.5 | J41: 55 | M41: 27.5 | N41: 55
B42: 32 | E42: =SW!G41 -> TAUFIQ KURROHMAN | F42: 45 | I42: 22.5 | J42: 45 | M42: 22.5 | N42: 45
B43: 33 | E43: =SW!G42 -> 0 | I43: 0 | M43: 0 | N43: 0
B44: 34 | E44: =SW!G43 -> 0 | I44: 0 | M44: 0 | N44: 0
B45: 35 | E45: =SW!G44 -> 0 | I45: 0 | M45: 0 | N45: 0
B46: 36 | E46: =SW!G45 -> 0 | I46: 0 | M46: 0 | N46: 0
B47: 37 | E47: =SW!G46 -> 0 | I47: 0 | M47: 0 | N47: 0
B48: 38 | E48: =SW!G47 -> 0 | I48: 0 | M48: 0 | N48: 0
B49: 39 | E49: =SW!G48 -> 0 | I49: 0 | M49: 0 | N49: 0
B50: 40 | E50: =SW!G49 -> 0 | I50: 0 | M50: 0 | N50: 0
B51: 41 | E51: =SW!G50 -> 0 | I51: 0 | M51: 0 | N51: 0
B52: 42 | E52: =SW!G51 -> 0 | I52: 0 | M52: 0 | N52: 0
B53: 43 | E53: =SW!G52 -> 0 | I53: 0 | M53: 0 | N53: 0
B54: 44 | E54: =SW!G53 -> 0 | I54: 0 | M54: 0 | N54: 0
B55: 45 | E55: =SW!G54 -> 0 | I55: 0 | M55: 0 | N55: 0
B56: 46 | E56: =SW!G55 -> 0 | I56: 0 | M56: 0 | N56: 0
B57: 47 | E57: =SW!G56 -> 0 | I57: 0 | M57: 0 | N57: 0
B58: 48 | E58: =SW!G57 -> 0 | I58: 0 | M58: 0 | N58: 0
B59: 49 | E59: =SW!G58 -> 0 | I59: 0 | M59: 0 | N59: 0
B60: 50 | E60: =SW!G59 -> 0 | I60: 0 | M60: 0 | N60: 0
B61: 51 | E61: =SW!G60 -> 0 | I61: 0 | M61: 0 | N61: 0
B62: 52 | E62: =SW!G61 -> 0 | I62: 0 | M62: 0 | N62: 0
B63: 53 | E63: =SW!G62 -> 0 | I63: 0 | M63: 0 | N63: 0
B64: 54 | E64: =SW!G63 -> 0 | I64: 0 | M64: 0 | N64: 0
B65: 55 | E65: =SW!G64 -> 0 | I65: 0 | M65: 0 | N65: 0
B66: 56 | E66: =SW!G65 -> 0 | I66: 0 | M66: 0 | N66: 0
B67: 57 | E67: =SW!G66 -> 0 | I67: 0 | M67: 0 | N67: 0
B68: 58 | E68: =SW!G67 -> 0 | I68: 0 | M68: 0 | N68: 0
B69: 59 | E69: =SW!G68 -> 0 | I69: 0 | M69: 0 | N69: 0
B70: 60 | E70: =SW!G69 -> 0 | I70: 0 | M70: 0 | N70: 0
B71: 61 | E71: =SW!G70 -> 0 | I71: 0 | M71: 0 | N71: 0
B72: 62 | E72: =SW!G71 -> 0 | I72: 0 | M72: 0 | N72: 0
B73: 63 | E73: =SW!G72 -> 0 | I73: 0 | M73: 0 | N73: 0
B74: 64 | E74: =SW!G73 -> 0 | I74: 0 | M74: 0 | N74: 0
B75: 65 | E75: =SW!G74 -> 0 | I75: 0 | M75: 0 | N75: 0
B76: 66 | E76: =SW!G75 -> 0 | I76: =$I$10*F76 -> 0 | M76: =J76*$M$10 -> 0 | N76: =IFERROR(ROUND(AVERAGE(M76+I76),0),"") -> 0
B77: 67 | E77: =SW!G76 -> 0 | I77: 0 | M77: 0 | N77: 0
B78: 68 | E78: =SW!G77 -> 0 | I78: 0 | M78: 0 | N78: 0
B79: 69 | E79: =SW!G78 -> 0 | I79: 0 | M79: 0 | N79: 0
B80: 70 | E80: =SW!G79 -> 0 | I80: 0 | M80: 0 | N80: 0
B81: 71 | E81: =SW!G80 -> 0 | I81: 0 | M81: 0 | N81: 0
B82: 72 | E82: =SW!G81 -> 0 | I82: 0 | M82: 0 | N82: 0
B83: 73 | E83: =SW!G82 -> 0 | I83: 0 | M83: 0 | N83: 0
B84: 74 | E84: =SW!G83 -> 0 | I84: 0 | M84: 0 | N84: 0
B85: 75 | E85: =SW!G84 -> 0 | I85: 0 | M85: 0 | N85: 0
B86: 76 | E86: =SW!G85 -> 0 | I86: 0 | M86: 0 | N86: 0
B87: 77 | E87: =SW!G86 -> 0 | I87: 0 | M87: 0 | N87: 0
B88: 78 | E88: =SW!G87 -> 0 | I88: 0 | M88: 0 | N88: 0
B89: 79 | E89: =SW!G88 -> 0 | I89: 0 | M89: 0 | N89: 0
B90: 80 | E90: =SW!G89 -> 0 | I90: 0 | M90: 0 | N90: 0
B91: 81 | E91: =SW!G90 -> 0 | I91: 0 | M91: 0 | N91: 0
B92: 82 | E92: =SW!G91 -> 0 | I92: 0 | M92: 0 | N92: 0
B93: 83 | E93: =SW!G92 -> 0 | I93: 0 | M93: 0 | N93: 0
B94: 84 | E94: =SW!G93 -> 0 | I94: 0 | M94: 0 | N94: 0
B95: 85 | E95: =SW!G94 -> 0 | I95: 0 | M95: 0 | N95: 0
B96: 86 | E96: =SW!G95 -> 0 | I96: 0 | M96: 0 | N96: 0
B97: 87 | E97: =SW!G96 -> 0 | I97: 0 | M97: 0 | N97: 0
B98: 88 | E98: =SW!G97 -> 0 | I98: 0 | M98: 0 | N98: 0
B99: 89 | E99: =SW!G98 -> 0 | I99: 0 | M99: 0 | N99: 0

Sheet BIG
B2: D A F T A R N I L A I
B4: MATA PELAJARAN | F4: : | G4: Bahasa Inggris | O4: ↗
B5: KELAS | F5: : | G5: =UPPER(MN!D22) -> V B
B6: TAHUN PELAJARAN | F6: : | G6: =MN!D18 -> 2019 - 2020
B9: No | C9: No. Induk | D9: NISN | E9: Nama Siswa | F9: NILAI | N9: JUMLAH
F10: PG | I10: 0.5 | J10: ESSAY | M10: =100%-I10 -> 0.5
B11: 1 | E11: =SW!G10 -> ABD. ROCHMAN NAJA FATLAN PRATAMA | F11: 35 | I11: =$I$10*F11 -> 17.5 | J11: 35 | M11: =J11*$M$10 -> 17.5 | N11: =IFERROR(ROUND(AVERAGE(M11+I11),0),"") -> 35
B12: 2 | E12: =SW!G11 -> ABDURRAHMAN FAQIH | F12: 38 | I12: =$I$10*F12 -> 19 | J12: 38 | M12: =J12*$M$10 -> 19 | N12: =IFERROR(ROUND(AVERAGE(M12+I12),0),"") -> 38
B13: 3 | E13: =SW!G12 -> ACHMAD FARROIHUN MUSHOBIRONILLAH | F13: 43 | I13: 21.5 | J13: 43 | M13: 21.5 | N13: 43
B14: 4 | E14: =SW!G13 -> ACHMAD HASBI ASSIDDIQI | F14: 25 | I14: 12.5 | J14: 25 | M14: 12.5 | N14: 25
B15: 5 | E15: =SW!G14 -> ACHMAD REZA AKRAM ALAUDDIN | F15: 72 | I15: 36 | J15: 72 | M15: 36 | N15: 72
B16: 6 | E16: =SW!G15 -> ACHMAD YANI | F16: 45 | I16: 22.5 | J16: 45 | M16: 22.5 | N16: 45
B17: 7 | E17: =SW!G16 -> AKHMAD RIDWAN | F17: 81 | I17: 40.5 | J17: 81 | M17: 40.5 | N17: 81
B18: 8 | E18: =SW!G17 -> ANDREAN DWI YULIANO | F18: 10 | I18: 5 | J18: 10 | M18: 5 | N18: 10
B19: 9 | E19: =SW!G18 -> ASFAN FAKHRI BARANI | F19: 55 | I19: 27.5 | J19: 55 | M19: 27.5 | N19: 55
B20: 10 | E20: =SW!G19 -> DEVAN ADITYA SAPUTRA | F20: 84 | I20: 42 | J20: 84 | M20: 42 | N20: 84
B21: 11 | E21: =SW!G20 -> FAHRUL AHMAD FAHREZA | F21: 60 | I21: 30 | J21: 60 | M21: 30 | N21: 60
B22: 12 | E22: =SW!G21 -> FAUZIA AMELIA PUTRI | F22: 61 | I22: 30.5 | J22: 61 | M22: 30.5 | N22: 61
B23: 13 | E23: =SW!G22 -> FAZA AZIFAH SALSABILA | F23: 53 | I23: 26.5 | J23: 53 | M23: 26.5 | N23: 53
B24: 14 | E24: =SW!G23 -> HABIBIE NURUSSALAM | F24: 77 | I24: 38.5 | J24: 77 | M24: 38.5 | N24: 77
B25: 15 | E25: =SW!G24 -> HIMATURROSYIDAH | F25: 50 | I25: 25 | J25: 50 | M25: 25 | N25: 50
B26: 16 | E26: =SW!G25 -> IFKARINA NAILA SAUQYA | F26: 62 | I26: 31 | J26: 62 | M26: 31 | N26: 62
B27: 17 | E27: =SW!G26 -> KEISA AYU SASKIYAH | F27: 53 | I27: 26.5 | J27: 53 | M27: 26.5 | N27: 53
B28: 18 | E28: =SW!G27 -> MOCHAMMAD RENO FIRMANSYAH | F28: 20 | I28: 10 | J28: 20 | M28: 10 | N28: 20
B29: 19 | E29: =SW!G28 -> MOHAMAD NUR KHAFID KHABIBULLOH | F29: 38 | I29: 19 | J29: 38 | M29: 19 | N29: 38
B30: 20 | E30: =SW!G29 -> MOHAMMAD NAUFAL NAWWARUDDIN | F30: 25 | I30: 12.5 | J30: 25 | M30: 12.5 | N30: 25
B31: 21 | E31: =SW!G30 -> MUCHAMAD PRIMA PAMBUDI | F31: 36 | I31: 18 | J31: 36 | M31: 18 | N31: 36
B32: 22 | E32: =SW!G31 -> MUHAMMAD ALFAN FATHONI | F32: 71 | I32: 35.5 | J32: 71 | M32: 35.5 | N32: 71
B33: 23 | E33: =SW!G32 -> MUHAMMAD AMINULLAH MAULUDANI | F33: 30 | I33: 15 | J33: 30 | M33: 15 | N33: 30
B34: 24 | E34: =SW!G33 -> MUHAMMAD DAVIN LEVANTINO | F34: 74 | I34: 37 | J34: 74 | M34: 37 | N34: 74
B35: 25 | E35: =SW!G34 -> MUHAMMAD MAULANA PAHLEVY | F35: 72 | I35: 36 | J35: 72 | M35: 36 | N35: 72
B36: 26 | E36: =SW!G35 -> RADITYA NIRWANSYAH | F36: 45 | I36: 22.5 | J36: 45 | M36: 22.5 | N36: 45
B37: 27 | E37: =SW!G36 -> REVINA SRI UTARI | F37: 53 | I37: 26.5 | J37: 53 | M37: 26.5 | N37: 53
B38: 28 | E38: =SW!G37 -> REYHAN DWI ANDIKA | F38: 30 | I38: 15 | J38: 30 | M38: 15 | N38: 30
B39: 29 | E39: =SW!G38 -> RISKA LAURA TRIA OCTAVIA | F39: 75 | I39: 37.5 | J39: 75 | M39: 37.5 | N39: 75
B40: 30 | E40: =SW!G39 -> ROHMADONA DWI SAFITRI | F40: 60 | I40: 30 | J40: 60 | M40: 30 | N40: 60
B41: 31 | E41: =SW!G40 -> SALMAN ALFARIZI | F41: 35 | I41: 17.5 | J41: 35 | M41: 17.5 | N41: 35
B42: 32 | E42: =SW!G41 -> TAUFIQ KURROHMAN | F42: 42 | I42: 21 | J42: 42 | M42: 21 | N42: 42
B43: 33 | E43: =SW!G42 -> 0 | I43: 0 | M43: 0 | N43: 0
B44: 34 | E44: =SW!G43 -> 0 | I44: 0 | M44: 0 | N44: 0
B45: 35 | E45: =SW!G44 -> 0 | I45: 0 | M45: 0 | N45: 0
B46: 36 | E46: =SW!G45 -> 0 | I46: 0 | M46: 0 | N46: 0
B47: 37 | E47: =SW!G46 -> 0 | I47: 0 | M47: 0 | N47: 0
B48: 38 | E48: =SW!G47 -> 0 | I48: 0 | M48: 0 | N48: 0
B49: 39 | E49: =SW!G48 -> 0 | I49: 0 | M49: 0 | N49: 0
B50: 40 | E50: =SW!G49 -> 0 | I50: 0 | M50: 0 | N50: 0
B51: 41 | E51: =SW!G50 -> 0 | I51: 0 | M51: 0 | N51: 0
B52: 42 | E52: =SW!G51 -> 0 | I52: 0 | M52: 0 | N52: 0
B53: 43 | E53: =SW!G52 -> 0 | I53: 0 | M53: 0 | N53: 0
B54: 44 | E54: =SW!G53 -> 0 | I54: 0 | M54: 0 | N54: 0
B55: 45 | E55: =SW!G54 -> 0 | I55: 0 | M55: 0 | N55: 0
B56: 46 | E56: =SW!G55 -> 0 | I56: 0 | M56: 0 | N56: 0
B57: 47 | E57: =SW!G56 -> 0 | I57: 0 | M57: 0 | N57: 0
B58: 48 | E58: =SW!G57 -> 0 | I58: 0 | M58: 0 | N58: 0
B59: 49 | E59: =SW!G58 -> 0 | I59: 0 | M59: 0 | N59: 0
B60: 50 | E60: =SW!G59 -> 0 | I60: 0 | M60: 0 | N60: 0
B61: 51 | E61: =SW!G60 -> 0 | I61: 0 | M61: 0 | N61: 0
B62: 52 | E62: =SW!G61 -> 0 | I62: 0 | M62: 0 | N62: 0
B63: 53 | E63: =SW!G62 -> 0 | I63: 0 | M63: 0 | N63: 0
B64: 54 | E64: =SW!G63 -> 0 | I64: 0 | M64: 0 | N64: 0
B65: 55 | E65: =SW!G64 -> 0 | I65: 0 | M65: 0 | N65: 0
B66: 56 | E66: =SW!G65 -> 0 | I66: 0 | M66: 0 | N66: 0
B67: 57 | E67: =SW!G66 -> 0 | I67: 0 | M67: 0 | N67: 0
B68: 58 | E68: =SW!G67 -> 0 | I68: 0 | M68: 0 | N68: 0
B69: 59 | E69: =SW!G68 -> 0 | I69: 0 | M69: 0 | N69: 0
B70: 60 | E70: =SW!G69 -> 0 | I70: 0 | M70: 0 | N70: 0
B71: 61 | E71: =SW!G70 -> 0 | I71: 0 | M71: 0 | N71: 0
B72: 62 | E72: =SW!G71 -> 0 | I72: 0 | M72: 0 | N72: 0
B73: 63 | E73: =SW!G72 -> 0 | I73: 0 | M73: 0 | N73: 0
B74: 64 | E74: =SW!G73 -> 0 | I74: 0 | M74: 0 | N74: 0
B75: 65 | E75: =SW!G74 -> 0 | I75: 0 | M75: 0 | N75: 0
B76: 66 | E76: =SW!G75 -> 0 | I76: =$I$10*F76 -> 0 | M76: =J76*$M$10 -> 0 | N76: =IFERROR(ROUND(AVERAGE(M76+I76),0),"") -> 0
B77: 67 | E77: =SW!G76 -> 0 | I77: 0 | M77: 0 | N77: 0
B78: 68 | E78: =SW!G77 -> 0 | I78: 0 | M78: 0 | N78: 0
B79: 69 | E79: =SW!G78 -> 0 | I79: 0 | M79: 0 | N79: 0
B80: 70 | E80: =SW!G79 -> 0 | I80: 0 | M80: 0 | N80: 0
B81: 71 | E81: =SW!G80 -> 0 | I81: 0 | M81: 0 | N81: 0
B82: 72 | E82: =SW!G81 -> 0 | I82: 0 | M82: 0 | N82: 0
B83: 73 | E83: =SW!G82 -> 0 | I83: 0 | M83: 0 | N83: 0
B84: 74 | E84: =SW!G83 -> 0 | I84: 0 | M84: 0 | N84: 0
B85: 75 | E85: =SW!G84 -> 0 | I85: 0 | M85: 0 | N85: 0
B86: 76 | E86: =SW!G85 -> 0 | I86: 0 | M86: 0 | N86: 0
B87: 77 | E87: =SW!G86 -> 0 | I87: 0 | M87: 0 | N87: 0
B88: 78 | E88: =SW!G87 -> 0 | I88: 0 | M88: 0 | N88: 0
B89: 79 | E89: =SW!G88 -> 0 | I89: 0 | M89: 0 | N89: 0
B90: 80 | E90: =SW!G89 -> 0 | I90: 0 | M90: 0 | N90: 0
B91: 81 | E91: =SW!G90 -> 0 | I91: 0 | M91: 0 | N91: 0
B92: 82 | E92: =SW!G91 -> 0 | I92: 0 | M92: 0 | N92: 0
B93: 83 | E93: =SW!G92 -> 0 | I93: 0 | M93: 0 | N93: 0
B94: 84 | E94: =SW!G93 -> 0 | I94: 0 | M94: 0 | N94: 0
B95: 85 | E95: =SW!G94 -> 0 | I95: 0 | M95: 0 | N95: 0
B96: 86 | E96: =SW!G95 -> 0 | I96: 0 | M96: 0 | N96: 0
B97: 87 | E97: =SW!G96 -> 0 | I97: 0 | M97: 0 | N97: 0
B98: 88 | E98: =SW!G97 -> 0 | I98: 0 | M98: 0 | N98: 0
B99: 89 | E99: =SW!G98 -> 0 | I99: 0 | M99: 0 | N99: 0

Sheet ASWJ
B2: D A F T A R N I L A I
B4: MATA PELAJARAN | F4: : | G4: Aswaja | O4: ↗
B5: KELAS | F5: : | G5: =UPPER(MN!D22) -> V B
B6: TAHUN PELAJARAN | F6: : | G6: =MN!D18 -> 2019 - 2020
B9: No | C9: No. Induk | D9: NISN | E9: Nama Siswa | F9: NILAI | N9: JUMLAH
F10: PG | I10: 0.5 | J10: ESSAY | M10: =100%-I10 -> 0.5
B11: 1 | E11: =SW!G10 -> ABD. ROCHMAN NAJA FATLAN PRATAMA | F11: 52 | G11: 52 | H11: 52 | I11: =$I$10*F11 -> 26 | J11: 68 | K11: 68 | L11: 68 | M11: =J11*$M$10 -> 34 | N11: =IFERROR(ROUND(AVERAGE(M11+I11),0),"") -> 60
B12: 2 | E12: =SW!G11 -> ABDURRAHMAN FAQIH | F12: 40 | G12: 40 | H12: 40 | I12: =$I$10*F12 -> 20 | J12: 67 | K12: 66.25 | L12: 66.25 | M12: =J12*$M$10 -> 33.5 | N12: =IFERROR(ROUND(AVERAGE(M12+I12),0),"") -> 54
B13: 3 | E13: =SW!G12 -> ACHMAD FARROIHUN MUSHOBIRONILLAH | F13: 48 | G13: 48 | H13: 48 | I13: 24 | J13: 67 | K13: 66.75 | L13: 66.75 | M13: 33.5 | N13: 58
B14: 4 | E14: =SW!G13 -> ACHMAD HASBI ASSIDDIQI | F14: 60 | G14: 60 | H14: 60 | I14: 30 | J14: 63 | K14: 63 | L14: 63 | M14: 31.5 | N14: 62
B15: 5 | E15: =SW!G14 -> ACHMAD REZA AKRAM ALAUDDIN | F15: 60 | G15: 60 | H15: 60 | I15: 30 | J15: 68 | K15: 67.75 | L15: 67.75 | M15: 34 | N15: 64
B16: 6 | E16: =SW!G15 -> ACHMAD YANI | F16: 48 | G16: 48 | H16: 48 | I16: 24 | J16: 66 | K16: 66 | L16: 66 | M16: 33 | N16: 57
B17: 7 | E17: =SW!G16 -> AKHMAD RIDWAN | F17: 68 | G17: 68 | H17: 68 | I17: 34 | J17: 60 | K17: 60 | L17: 60 | M17: 30 | N17: 64
B18: 8 | E18: =SW!G17 -> ANDREAN DWI YULIANO | F18: 32 | G18: 32 | H18: 32 | I18: 16 | J18: 60 | K18: 60 | L18: 60 | M18: 30 | N18: 46
B19: 9 | E19: =SW!G18 -> ASFAN FAKHRI BARANI | F19: 52 | G19: 52 | H19: 52 | I19: 26 | J19: 60 | K19: 60 | L19: 60 | M19: 30 | N19: 56
B20: 10 | E20: =SW!G19 -> DEVAN ADITYA SAPUTRA | F20: 52 | G20: 52 | H20: 52 | I20: 26 | J20: 60 | K20: 60 | L20: 60 | M20: 30 | N20: 56
B21: 11 | E21: =SW!G20 -> FAHRUL AHMAD FAHREZA | F21: 60 | G21: 60 | H21: 60 | I21: 30 | J21: 60 | K21: 60 | L21: 60 | M21: 30 | N21: 60
B22: 12 | E22: =SW!G21 -> FAUZIA AMELIA PUTRI | F22: 52 | G22: 52 | H22: 52 | I22: 26 | J22: 72 | K22: 71.5 | L22: 71.5 | M22: 36 | N22: 62
B23: 13 | E23: =SW!G22 -> FAZA AZIFAH SALSABILA | F23: 36 | G23: 36 | H23: 36 | I23: 18 | J23: 71 | K23: 71 | L23: 71 | M23: 35.5 | N23: 54
B24: 14 | E24: =SW!G23 -> HABIBIE NURUSSALAM | F24: 48 | G24: 48 | H24: 48 | I24: 24 | J24: 65 | K24: 64.75 | L24: 64.75 | M24: 32.5 | N24: 57
B25: 15 | E25: =SW!G24 -> HIMATURROSYIDAH | F25: 60 | G25: 60 | H25: 60 | I25: 30 | J25: 68 | K25: 68 | L25: 68 | M25: 34 | N25: 64
B26: 16 | E26: =SW!G25 -> IFKARINA NAILA SAUQYA | F26: 84 | G26: 84 | H26: 84 | I26: 42 | J26: 70 | K26: 70 | L26: 70 | M26: 35 | N26: 77
B27: 17 | E27: =SW!G26 -> KEISA AYU SASKIYAH | F27: 48 | G27: 48 | H27: 48 | I27: 24 | J27: 70 | K27: 70 | L27: 70 | M27: 35 | N27: 59
B28: 18 | E28: =SW!G27 -> MOCHAMMAD RENO FIRMANSYAH | F28: 32 | G28: 32 | H28: 32 | I28: 16 | J28: 60 | K28: 60 | L28: 60 | M28: 30 | N28: 46
B29: 19 | E29: =SW!G28 -> MOHAMAD NUR KHAFID KHABIBULLOH | F29: 64 | G29: 64 | H29: 64 | I29: 32 | J29: 65 | K29: 64.75 | L29: 64.75 | M29: 32.5 | N29: 65
B30: 20 | E30: =SW!G29 -> MOHAMMAD NAUFAL NAWWARUDDIN | F30: 24 | G30: 24 | H30: 24 | I30: 12 | J30: 60 | K30: 60 | L30: 60 | M30: 30 | N30: 42
B31: 21 | E31: =SW!G30 -> MUCHAMAD PRIMA PAMBUDI | F31: 28 | G31: 28 | H31: 28 | I31: 14 | J31: 60 | K31: 60 | L31: 60 | M31: 30 | N31: 44
B32: 22 | E32: =SW!G31 -> MUHAMMAD ALFAN FATHONI | F32: 32 | G32: 32 | H32: 32 | I32: 16 | J32: 72 | K32: 72 | L32: 72 | M32: 36 | N32: 52
B33: 23 | E33: =SW!G32 -> MUHAMMAD AMINULLAH MAULUDANI | F33: 28 | G33: 28 | H33: 28 | I33: 14 | J33: 60 | K33: 60 | L33: 60 | M33: 30 | N33: 44
B34: 24 | E34: =SW!G33 -> MUHAMMAD DAVIN LEVANTINO | F34: 44 | G34: 44 | H34: 44 | I34: 22 | J34: 71 | K34: 71 | L34: 71 | M34: 35.5 | N34: 58
B35: 25 | E35: =SW!G34 -> MUHAMMAD MAULANA PAHLEVY | F35: 28 | G35: 28 | H35: 28 | I35: 14 | J35: 68 | K35: 67.75 | L35: 67.75 | M35: 34 | N35: 48
B36: 26 | E36: =SW!G35 -> RADITYA NIRWANSYAH | F36: 44 | G36: 44 | H36: 44 | I36: 22 | J36: 60 | K36: 60 | L36: 60 | M36: 30 | N36: 52
B37: 27 | E37: =SW!G36 -> REVINA SRI UTARI | F37: 40 | G37: 40 | H37: 40 | I37: 20 | J37: 68 | K37: 68 | L37: 68 | M37: 34 | N37: 54
B38: 28 | E38: =SW!G37 -> REYHAN DWI ANDIKA | F38: 28 | G38: 28 | H38: 28 | I38: 14 | J38: 68 | K38: 67.5 | L38: 67.5 | M38: 34 | N38: 48
B39: 29 | E39: =SW!G38 -> RISKA LAURA TRIA OCTAVIA | F39: 56 | G39: 56 | H39: 56 | I39: 28 | J39: 75 | K39: 75 | L39: 75 | M39: 37.5 | N39: 66
B40: 30 | E40: =SW!G39 -> ROHMADONA DWI SAFITRI | F40: 56 | G40: 56 | H40: 56 | I40: 28 | J40: 68 | K40: 67.5 | L40: 67.5 | M40: 34 | N40: 62
B41: 31 | E41: =SW!G40 -> SALMAN ALFARIZI | F41: 60 | G41: 60 | H41: 60 | I41: 30 | J41: 60 | K41: 60 | L41: 60 | M41: 30 | N41: 60
B42: 32 | E42: =SW!G41 -> TAUFIQ KURROHMAN | F42: 44 | G42: 44 | H42: 44 | I42: 22 | J42: 60 | K42: 60 | L42: 60 | M42: 30 | N42: 52
B43: 33 | E43: =SW!G42 -> 0 | I43: 0 | M43: 0 | N43: 0
B44: 34 | E44: =SW!G43 -> 0 | I44: 0 | M44: 0 | N44: 0
B45: 35 | E45: =SW!G44 -> 0 | I45: 0 | M45: 0 | N45: 0
B46: 36 | E46: =SW!G45 -> 0 | I46: 0 | M46: 0 | N46: 0
B47: 37 | E47: =SW!G46 -> 0 | I47: 0 | M47: 0 | N47: 0
B48: 38 | E48: =SW!G47 -> 0 | I48: 0 | M48: 0 | N48: 0
B49: 39 | E49: =SW!G48 -> 0 | I49: 0 | M49: 0 | N49: 0
B50: 40 | E50: =SW!G49 -> 0 | I50: 0 | M50: 0 | N50: 0
B51: 41 | E51: =SW!G50 -> 0 | I51: 0 | M51: 0 | N51: 0
B52: 42 | E52: =SW!G51 -> 0 | I52: 0 | M52: 0 | N52: 0
B53: 43 | E53: =SW!G52 -> 0 | I53: 0 | M53: 0 | N53: 0
B54: 44 | E54: =SW!G53 -> 0 | I54: 0 | M54: 0 | N54: 0
B55: 45 | E55: =SW!G54 -> 0 | I55: 0 | M55: 0 | N55: 0
B56: 46 | E56: =SW!G55 -> 0 | I56: 0 | M56: 0 | N56: 0
B57: 47 | E57: =SW!G56 -> 0 | I57: 0 | M57: 0 | N57: 0
B58: 48 | E58: =SW!G57 -> 0 | I58: 0 | M58: 0 | N58: 0
B59: 49 | E59: =SW!G58 -> 0 | I59: 0 | M59: 0 | N59: 0
B60: 50 | E60: =SW!G59 -> 0 | I60: 0 | M60: 0 | N60: 0
B61: 51 | E61: =SW!G60 -> 0 | I61: 0 | M61: 0 | N61: 0
B62: 52 | E62: =SW!G61 -> 0 | I62: 0 | M62: 0 | N62: 0
B63: 53 | E63: =SW!G62 -> 0 | I63: 0 | M63: 0 | N63: 0
B64: 54 | E64: =SW!G63 -> 0 | I64: 0 | M64: 0 | N64: 0
B65: 55 | E65: =SW!G64 -> 0 | I65: 0 | M65: 0 | N65: 0
B66: 56 | E66: =SW!G65 -> 0 | I66: 0 | M66: 0 | N66: 0
B67: 57 | E67: =SW!G66 -> 0 | I67: 0 | M67: 0 | N67: 0
B68: 58 | E68: =SW!G67 -> 0 | I68: 0 | M68: 0 | N68: 0
B69: 59 | E69: =SW!G68 -> 0 | I69: 0 | M69: 0 | N69: 0
B70: 60 | E70: =SW!G69 -> 0 | I70: 0 | M70: 0 | N70: 0
B71: 61 | E71: =SW!G70 -> 0 | I71: 0 | M71: 0 | N71: 0
B72: 62 | E72: =SW!G71 -> 0 | I72: 0 | M72: 0 | N72: 0
B73: 63 | E73: =SW!G72 -> 0 | I73: 0 | M73: 0 | N73: 0
B74: 64 | E74: =SW!G73 -> 0 | I74: 0 | M74: 0 | N74: 0
B75: 65 | E75: =SW!G74 -> 0 | I75: 0 | M75: 0 | N75: 0
B76: 66 | E76: =SW!G75 -> 0 | I76: =$I$10*F76 -> 0 | M76: =J76*$M$10 -> 0 | N76: =IFERROR(ROUND(AVERAGE(M76+I76),0),"") -> 0
B77: 67 | E77: =SW!G76 -> 0 | I77: 0 | M77: 0 | N77: 0
B78: 68 | E78: =SW!G77 -> 0 | I78: 0 | M78: 0 | N78: 0
B79: 69 | E79: =SW!G78 -> 0 | I79: 0 | M79: 0 | N79: 0
B80: 70 | E80: =SW!G79 -> 0 | I80: 0 | M80: 0 | N80: 0
B81: 71 | E81: =SW!G80 -> 0 | I81: 0 | M81: 0 | N81: 0
B82: 72 | E82: =SW!G81 -> 0 | I82: 0 | M82: 0 | N82: 0
B83: 73 | E83: =SW!G82 -> 0 | I83: 0 | M83: 0 | N83: 0
B84: 74 | E84: =SW!G83 -> 0 | I84: 0 | M84: 0 | N84: 0
B85: 75 | E85: =SW!G84 -> 0 | I85: 0 | M85: 0 | N85: 0
B86: 76 | E86: =SW!G85 -> 0 | I86: 0 | M86: 0 | N86: 0
B87: 77 | E87: =SW!G86 -> 0 | I87: 0 | M87: 0 | N87: 0
B88: 78 | E88: =SW!G87 -> 0 | I88: 0 | M88: 0 | N88: 0
B89: 79 | E89: =SW!G88 -> 0 | I89: 0 | M89: 0 | N89: 0
B90: 80 | E90: =SW!G89 -> 0 | I90: 0 | M90: 0 | N90: 0
B91: 81 | E91: =SW!G90 -> 0 | I91: 0 | M91: 0 | N91: 0
B92: 82 | E92: =SW!G91 -> 0 | I92: 0 | M92: 0 | N92: 0
B93: 83 | E93: =SW!G92 -> 0 | I93: 0 | M93: 0 | N93: 0
B94: 84 | E94: =SW!G93 -> 0 | I94: 0 | M94: 0 | N94: 0
B95: 85 | E95: =SW!G94 -> 0 | I95: 0 | M95: 0 | N95: 0
B96: 86 | E96: =SW!G95 -> 0 | I96: 0 | M96: 0 | N96: 0
B97: 87 | E97: =SW!G96 -> 0 | I97: 0 | M97: 0 | N97: 0
B98: 88 | E98: =SW!G97 -> 0 | I98: 0 | M98: 0 | N98: 0
B99: 89 | E99: =SW!G98 -> 0 | I99: 0 | M99: 0 | N99: 0

Sheet AA
B2: D A F T A R N I L A I
B4: MATA PELAJARAN | F4: : | G4: Aqidah Akhlaq | O4: ↗
B5: KELAS | F5: : | G5: =UPPER(MN!D22) -> V B
B6: TAHUN PELAJARAN | F6: : | G6: =MN!D18 -> 2019 - 2020
B9: No | C9: No. Induk | D9: NISN | E9: Nama Siswa | F9: NILAI | N9: JUMLAH
F10: PG | I10: 0.5 | J10: ESSAY | M10: =100%-I10 -> 0.5
B11: 1 | E11: =SW!G10 -> ABD. ROCHMAN NAJA FATLAN PRATAMA | F11: 47 | G11: 47 | H11: 47 | I11: =$I$10*F11 -> 23.5 | J11: 70 | M11: =J11*$M$10 -> 35 | N11: =IFERROR(ROUND(AVERAGE(M11+I11),0),"") -> 59
B12: 2 | E12: =SW!G11 -> ABDURRAHMAN FAQIH | F12: 20 | G12: 20 | H12: 20 | I12: =$I$10*F12 -> 10 | J12: 60 | M12: =J12*$M$10 -> 30 | N12: =IFERROR(ROUND(AVERAGE(M12+I12),0),"") -> 40
B13: 3 | E13: =SW!G12 -> ACHMAD FARROIHUN MUSHOBIRONILLAH | F13: 50 | G13: 50 | H13: 50 | I13: 25 | J13: 70 | M13: 35 | N13: 60
B14: 4 | E14: =SW!G13 -> ACHMAD HASBI ASSIDDIQI | F14: 50 | G14: 50 | H14: 50 | I14: 25 | J14: 60 | M14: 30 | N14: 55
B15: 5 | E15: =SW!G14 -> ACHMAD REZA AKRAM ALAUDDIN | F15: 77 | G15: 77 | H15: 77 | I15: 38.5 | J15: 90 | M15: 45 | N15: 84
B16: 6 | E16: =SW!G15 -> ACHMAD YANI | F16: 50 | G16: 50 | H16: 50 | I16: 25 | J16: 70 | M16: 35 | N16: 60
B17: 7 | E17: =SW!G16 -> AKHMAD RIDWAN | F17: 47 | G17: 47 | H17: 47 | I17: 23.5 | J17: 80 | M17: 40 | N17: 64
B18: 8 | E18: =SW!G17 -> ANDREAN DWI YULIANO | F18: 53 | G18: 53 | H18: 53 | I18: 26.5 | J18: 90 | M18: 45 | N18: 72
B19: 9 | E19: =SW!G18 -> ASFAN FAKHRI BARANI | F19: 80 | G19: 80 | H19: 80 | I19: 40 | J19: 70 | M19: 35 | N19: 75
B20: 10 | E20: =SW!G19 -> DEVAN ADITYA SAPUTRA | F20: 23 | G20: 23 | H20: 23 | I20: 11.5 | J20: 90 | M20: 45 | N20: 57
B21: 11 | E21: =SW!G20 -> FAHRUL AHMAD FAHREZA | F21: 73 | G21: 73 | H21: 73 | I21: 36.5 | J21: 80 | M21: 40 | N21: 77
B22: 12 | E22: =SW!G21 -> FAUZIA AMELIA PUTRI | F22: 60 | G22: 60 | H22: 60 | I22: 30 | J22: 60 | M22: 30 | N22: 60
B23: 13 | E23: =SW!G22 -> FAZA AZIFAH SALSABILA | F23: 60 | G23: 60 | H23: 60 | I23: 30 | J23: 50 | M23: 25 | N23: 55
B24: 14 | E24: =SW!G23 -> HABIBIE NURUSSALAM | F24: 67 | G24: 67 | H24: 67 | I24: 33.5 | J24: 70 | M24: 35 | N24: 69
B25: 15 | E25: =SW!G24 -> HIMATURROSYIDAH | F25: 70 | G25: 70 | H25: 70 | I25: 35 | J25: 70 | M25: 35 | N25: 70
B26: 16 | E26: =SW!G25 -> IFKARINA NAILA SAUQYA | F26: 73 | G26: 73 | H26: 73 | I26: 36.5 | J26: 100 | M26: 50 | N26: 87
B27: 17 | E27: =SW!G26 -> KEISA AYU SASKIYAH | F27: 50 | G27: 50 | H27: 50 | I27: 25 | J27: 50 | M27: 25 | N27: 50
B28: 18 | E28: =SW!G27 -> MOCHAMMAD RENO FIRMANSYAH | F28: 20 | G28: 20 | H28: 20 | I28: 10 | J28: 50 | M28: 25 | N28: 35
B29: 19 | E29: =SW!G28 -> MOHAMAD NUR KHAFID KHABIBULLOH | F29: 53 | G29: 53 | H29: 53 | I29: 26.5 | J29: 50 | M29: 25 | N29: 52
B30: 20 | E30: =SW!G29 -> MOHAMMAD NAUFAL NAWWARUDDIN | F30: 40 | G30: 40 | H30: 40 | I30: 20 | J30: 50 | M30: 25 | N30: 45
B31: 21 | E31: =SW!G30 -> MUCHAMAD PRIMA PAMBUDI | F31: 37 | G31: 37 | H31: 37 | I31: 18.5 | J31: 70 | M31: 35 | N31: 54
B32: 22 | E32: =SW!G31 -> MUHAMMAD ALFAN FATHONI | F32: 23 | G32: 23 | H32: 23 | I32: 11.5 | J32: 60 | M32: 30 | N32: 42
B33: 23 | E33: =SW!G32 -> MUHAMMAD AMINULLAH MAULUDANI | F33: 27 | G33: 27 | H33: 27 | I33: 13.5 | J33: 50 | M33: 25 | N33: 39
B34: 24 | E34: =SW!G33 -> MUHAMMAD DAVIN LEVANTINO | F34: 37 | G34: 37 | H34: 37 | I34: 18.5 | J34: 90 | M34: 45 | N34: 64
B35: 25 | E35: =SW!G34 -> MUHAMMAD MAULANA PAHLEVY | F35: 30 | G35: 30 | H35: 30 | I35: 15 | J35: 80 | M35: 40 | N35: 55
B36: 26 | E36: =SW!G35 -> RADITYA NIRWANSYAH | F36: 23 | G36: 23 | H36: 23 | I36: 11.5 | J36: 50 | M36: 25 | N36: 37
B37: 27 | E37: =SW!G36 -> REVINA SRI UTARI | F37: 30 | G37: 30 | H37: 30 | I37: 15 | J37: 59 | M37: 29.5 | N37: 45
B38: 28 | E38: =SW!G37 -> REYHAN DWI ANDIKA | F38: 40 | G38: 40 | H38: 40 | I38: 20 | J38: 50 | M38: 25 | N38: 45
B39: 29 | E39: =SW!G38 -> RISKA LAURA TRIA OCTAVIA | F39: 93 | G39: 93 | H39: 93 | I39: 46.5 | J39: 70 | M39: 35 | N39: 82
B40: 30 | E40: =SW!G39 -> ROHMADONA DWI SAFITRI | F40: 87 | G40: 87 | H40: 87 | I40: 43.5 | J40: 100 | M40: 50 | N40: 94
B41: 31 | E41: =SW!G40 -> SALMAN ALFARIZI | F41: 20 | G41: 20 | H41: 20 | I41: 10 | J41: 50 | M41: 25 | N41: 35
B42: 32 | E42: =SW!G41 -> TAUFIQ KURROHMAN | F42: 20 | G42: 20 | H42: 20 | I42: 10 | J42: 50 | M42: 25 | N42: 35
B43: 33 | E43: =SW!G42 -> 0 | I43: 0 | M43: 0 | N43: 0
B44: 34 | E44: =SW!G43 -> 0 | I44: 0 | M44: 0 | N44: 0
B45: 35 | E45: =SW!G44 -> 0 | I45: 0 | M45: 0 | N45: 0
B46: 36 | E46: =SW!G45 -> 0 | I46: 0 | M46: 0 | N46: 0
B47: 37 | E47: =SW!G46 -> 0 | I47: 0 | M47: 0 | N47: 0
B48: 38 | E48: =SW!G47 -> 0 | I48: 0 | M48: 0 | N48: 0
B49: 39 | E49: =SW!G48 -> 0 | I49: 0 | M49: 0 | N49: 0
B50: 40 | E50: =SW!G49 -> 0 | I50: 0 | M50: 0 | N50: 0
B51: 41 | E51: =SW!G50 -> 0 | I51: 0 | M51: 0 | N51: 0
B52: 42 | E52: =SW!G51 -> 0 | I52: 0 | M52: 0 | N52: 0
B53: 43 | E53: =SW!G52 -> 0 | I53: 0 | M53: 0 | N53: 0
B54: 44 | E54: =SW!G53 -> 0 | I54: 0 | M54: 0 | N54: 0
B55: 45 | E55: =SW!G54 -> 0 | I55: 0 | M55: 0 | N55: 0
B56: 46 | E56: =SW!G55 -> 0 | I56: 0 | M56: 0 | N56: 0
B57: 47 | E57: =SW!G56 -> 0 | I57: 0 | M57: 0 | N57: 0
B58: 48 | E58: =SW!G57 -> 0 | I58: 0 | M58: 0 | N58: 0
B59: 49 | E59: =SW!G58 -> 0 | I59: 0 | M59: 0 | N59: 0
B60: 50 | E60: =SW!G59 -> 0 | I60: 0 | M60: 0 | N60: 0
B61: 51 | E61: =SW!G60 -> 0 | I61: 0 | M61: 0 | N61: 0
B62: 52 | E62: =SW!G61 -> 0 | I62: 0 | M62: 0 | N62: 0
B63: 53 | E63: =SW!G62 -> 0 | I63: 0 | M63: 0 | N63: 0
B64: 54 | E64: =SW!G63 -> 0 | I64: 0 | M64: 0 | N64: 0
B65: 55 | E65: =SW!G64 -> 0 | I65: 0 | M65: 0 | N65: 0
B66: 56 | E66: =SW!G65 -> 0 | I66: 0 | M66: 0 | N66: 0
B67: 57 | E67: =SW!G66 -> 0 | I67: 0 | M67: 0 | N67: 0
B68: 58 | E68: =SW!G67 -> 0 | I68: 0 | M68: 0 | N68: 0
B69: 59 | E69: =SW!G68 -> 0 | I69: 0 | M69: 0 | N69: 0
B70: 60 | E70: =SW!G69 -> 0 | I70: 0 | M70: 0 | N70: 0
B71: 61 | E71: =SW!G70 -> 0 | I71: 0 | M71: 0 | N71: 0
B72: 62 | E72: =SW!G71 -> 0 | I72: 0 | M72: 0 | N72: 0
B73: 63 | E73: =SW!G72 -> 0 | I73: 0 | M73: 0 | N73: 0
B74: 64 | E74: =SW!G73 -> 0 | I74: 0 | M74: 0 | N74: 0
B75: 65 | E75: =SW!G74 -> 0 | I75: 0 | M75: 0 | N75: 0
B76: 66 | E76: =SW!G75 -> 0 | I76: =$I$10*F76 -> 0 | M76: =J76*$M$10 -> 0 | N76: =IFERROR(ROUND(AVERAGE(M76+I76),0),"") -> 0
B77: 67 | E77: =SW!G76 -> 0 | I77: 0 | M77: 0 | N77: 0
B78: 68 | E78: =SW!G77 -> 0 | I78: 0 | M78: 0 | N78: 0
B79: 69 | E79: =SW!G78 -> 0 | I79: 0 | M79: 0 | N79: 0
B80: 70 | E80: =SW!G79 -> 0 | I80: 0 | M80: 0 | N80: 0
B81: 71 | E81: =SW!G80 -> 0 | I81: 0 | M81: 0 | N81: 0
B82: 72 | E82: =SW!G81 -> 0 | I82: 0 | M82: 0 | N82: 0
B83: 73 | E83: =SW!G82 -> 0 | I83: 0 | M83: 0 | N83: 0
B84: 74 | E84: =SW!G83 -> 0 | I84: 0 | M84: 0 | N84: 0
B85: 75 | E85: =SW!G84 -> 0 | I85: 0 | M85: 0 | N85: 0
B86: 76 | E86: =SW!G85 -> 0 | I86: 0 | M86: 0 | N86: 0
B87: 77 | E87: =SW!G86 -> 0 | I87: 0 | M87: 0 | N87: 0
B88: 78 | E88: =SW!G87 -> 0 | I88: 0 | M88: 0 | N88: 0
B89: 79 | E89: =SW!G88 -> 0 | I89: 0 | M89: 0 | N89: 0
B90: 80 | E90: =SW!G89 -> 0 | I90: 0 | M90: 0 | N90: 0
B91: 81 | E91: =SW!G90 -> 0 | I91: 0 | M91: 0 | N91: 0
B92: 82 | E92: =SW!G91 -> 0 | I92: 0 | M92: 0 | N92: 0
B93: 83 | E93: =SW!G92 -> 0 | I93: 0 | M93: 0 | N93: 0
B94: 84 | E94: =SW!G93 -> 0 | I94: 0 | M94: 0 | N94: 0
B95: 85 | E95: =SW!G94 -> 0 | I95: 0 | M95: 0 | N95: 0
B96: 86 | E96: =SW!G95 -> 0 | I96: 0 | M96: 0 | N96: 0
B97: 87 | E97: =SW!G96 -> 0 | I97: 0 | M97: 0 | N97: 0
B98: 88 | E98: =SW!G97 -> 0 | I98: 0 | M98: 0 | N98: 0
B99: 89 | E99: =SW!G98 -> 0 | I99: 0 | M99: 0 | N99: 0

Sheet AH
B2: D A F T A R N I L A I
B4: MATA PELAJARAN | F4: : | G4: Alqur'an Hadits | O4: ↗
B5: KELAS | F5: : | G5: =UPPER(MN!D22) -> V B
B6: TAHUN PELAJARAN | F6: : | G6: =MN!D18 -> 2019 - 2020
B9: No | C9: No. Induk | D9: NISN | E9: Nama Siswa | F9: NILAI | N9: JUMLAH
F10: PG | I10: 0.5 | J10: ESSAY | M10: =100%-I10 -> 0.5
B11: 1 | E11: =SW!G10 -> ABD. ROCHMAN NAJA FATLAN PRATAMA | F11: 50 | G11: 50 | H11: 50 | I11: =$I$10*F11 -> 25 | J11: 70 | M11: =J11*$M$10 -> 35 | N11: =IFERROR(ROUND(AVERAGE(M11+I11),0),"") -> 60
B12: 2 | E12: =SW!G11 -> ABDURRAHMAN FAQIH | F12: 37 | G12: 37 | H12: 37 | I12: =$I$10*F12 -> 18.5 | J12: 55 | M12: =J12*$M$10 -> 27.5 | N12: =IFERROR(ROUND(AVERAGE(M12+I12),0),"") -> 46
B13: 3 | E13: =SW!G12 -> ACHMAD FARROIHUN MUSHOBIRONILLAH | F13: 63 | G13: 63 | H13: 63 | I13: 31.5 | J13: 70 | M13: 35 | N13: 67
B14: 4 | E14: =SW!G13 -> ACHMAD HASBI ASSIDDIQI | F14: 47 | G14: 47 | H14: 47 | I14: 23.5 | J14: 25 | M14: 12.5 | N14: 36
B15: 5 | E15: =SW!G14 -> ACHMAD REZA AKRAM ALAUDDIN | F15: 87 | G15: 87 | H15: 87 | I15: 43.5 | J15: 55 | M15: 27.5 | N15: 71
B16: 6 | E16: =SW!G15 -> ACHMAD YANI | F16: 73 | G16: 73 | H16: 73 | I16: 36.5 | J16: 40 | M16: 20 | N16: 57
B17: 7 | E17: =SW!G16 -> AKHMAD RIDWAN | F17: 50 | G17: 50 | H17: 50 | I17: 25 | J17: 70 | M17: 35 | N17: 60
B18: 8 | E18: =SW!G17 -> ANDREAN DWI YULIANO | F18: 37 | G18: 37 | H18: 37 | I18: 18.5 | J18: 55 | M18: 27.5 | N18: 46
B19: 9 | E19: =SW!G18 -> ASFAN FAKHRI BARANI | F19: 63 | G19: 63 | H19: 63 | I19: 31.5 | J19: 55 | M19: 27.5 | N19: 59
B20: 10 | E20: =SW!G19 -> DEVAN ADITYA SAPUTRA | F20: 60 | G20: 60 | H20: 60 | I20: 30 | J20: 55 | M20: 27.5 | N20: 58
B21: 11 | E21: =SW!G20 -> FAHRUL AHMAD FAHREZA | F21: 83 | G21: 83 | H21: 83 | I21: 41.5 | J21: 75 | M21: 37.5 | N21: 79
B22: 12 | E22: =SW!G21 -> FAUZIA AMELIA PUTRI | F22: 73 | G22: 73 | H22: 73 | I22: 36.5 | J22: 70 | M22: 35 | N22: 72
B23: 13 | E23: =SW!G22 -> FAZA AZIFAH SALSABILA | F23: 63 | G23: 63 | H23: 63 | I23: 31.5 | J23: 75 | M23: 37.5 | N23: 69
B24: 14 | E24: =SW!G23 -> HABIBIE NURUSSALAM | F24: 70 | G24: 70 | H24: 70 | I24: 35 | J24: 85 | M24: 42.5 | N24: 78
B25: 15 | E25: =SW!G24 -> HIMATURROSYIDAH | F25: 73 | G25: 73 | H25: 73 | I25: 36.5 | J25: 70 | M25: 35 | N25: 72
B26: 16 | E26: =SW!G25 -> IFKARINA NAILA SAUQYA | F26: 83 | G26: 83 | H26: 83 | I26: 41.5 | J26: 85 | M26: 42.5 | N26: 84
B27: 17 | E27: =SW!G26 -> KEISA AYU SASKIYAH | F27: 83 | G27: 83 | H27: 83 | I27: 41.5 | J27: 55 | M27: 27.5 | N27: 69
B28: 18 | E28: =SW!G27 -> MOCHAMMAD RENO FIRMANSYAH | F28: 23 | G28: 23 | H28: 23 | I28: 11.5 | J28: 40 | M28: 20 | N28: 32
B29: 19 | E29: =SW!G28 -> MOHAMAD NUR KHAFID KHABIBULLOH | F29: 83 | G29: 83 | H29: 83 | I29: 41.5 | J29: 55 | M29: 27.5 | N29: 69
B30: 20 | E30: =SW!G29 -> MOHAMMAD NAUFAL NAWWARUDDIN | F30: 37 | G30: 37 | H30: 37 | I30: 18.5 | J30: 40 | M30: 20 | N30: 39
B31: 21 | E31: =SW!G30 -> MUCHAMAD PRIMA PAMBUDI | F31: 67 | G31: 67 | H31: 67 | I31: 33.5 | J31: 85 | M31: 42.5 | N31: 76
B32: 22 | E32: =SW!G31 -> MUHAMMAD ALFAN FATHONI | F32: 60 | G32: 60 | H32: 60 | I32: 30 | J32: 55 | M32: 27.5 | N32: 58
B33: 23 | E33: =SW!G32 -> MUHAMMAD AMINULLAH MAULUDANI | F33: 30 | G33: 30 | H33: 30 | I33: 15 | J33: 40 | M33: 20 | N33: 35
B34: 24 | E34: =SW!G33 -> MUHAMMAD DAVIN LEVANTINO | F34: 80 | G34: 80 | H34: 80 | I34: 40 | J34: 55 | M34: 27.5 | N34: 68
B35: 25 | E35: =SW!G34 -> MUHAMMAD MAULANA PAHLEVY | F35: 73 | G35: 73 | H35: 73 | I35: 36.5 | J35: 55 | M35: 27.5 | N35: 64
B36: 26 | E36: =SW!G35 -> RADITYA NIRWANSYAH | F36: 43 | G36: 43 | H36: 43 | I36: 21.5 | J36: 70 | M36: 35 | N36: 57
B37: 27 | E37: =SW!G36 -> REVINA SRI UTARI | F37: 70 | G37: 70 | H37: 70 | I37: 35 | J37: 55 | M37: 27.5 | N37: 63
B38: 28 | E38: =SW!G37 -> REYHAN DWI ANDIKA | F38: 63 | G38: 63 | H38: 63 | I38: 31.5 | J38: 55 | M38: 27.5 | N38: 59
B39: 29 | E39: =SW!G38 -> RISKA LAURA TRIA OCTAVIA | F39: 80 | G39: 80 | H39: 80 | I39: 40 | J39: 70 | M39: 35 | N39: 75
B40: 30 | E40: =SW!G39 -> ROHMADONA DWI SAFITRI | F40: 93 | G40: 93 | H40: 93 | I40: 46.5 | J40: 70 | M40: 35 | N40: 82
B41: 31 | E41: =SW!G40 -> SALMAN ALFARIZI | F41: 30 | G41: 30 | H41: 30 | I41: 15 | J41: 55 | M41: 27.5 | N41: 43
B42: 32 | E42: =SW!G41 -> TAUFIQ KURROHMAN | F42: 23 | G42: 23 | H42: 23 | I42: 11.5 | J42: 70 | M42: 35 | N42: 47
B43: 33 | E43: =SW!G42 -> 0 | I43: 0 | M43: 0 | N43: 0
B44: 34 | E44: =SW!G43 -> 0 | I44: 0 | M44: 0 | N44: 0
B45: 35 | E45: =SW!G44 -> 0 | I45: 0 | M45: 0 | N45: 0
B46: 36 | E46: =SW!G45 -> 0 | I46: 0 | M46: 0 | N46: 0
B47: 37 | E47: =SW!G46 -> 0 | I47: 0 | M47: 0 | N47: 0
B48: 38 | E48: =SW!G47 -> 0 | I48: 0 | M48: 0 | N48: 0
B49: 39 | E49: =SW!G48 -> 0 | I49: 0 | M49: 0 | N49: 0
B50: 40 | E50: =SW!G49 -> 0 | I50: 0 | M50: 0 | N50: 0
B51: 41 | E51: =SW!G50 -> 0 | I51: 0 | M51: 0 | N51: 0
B52: 42 | E52: =SW!G51 -> 0 | I52: 0 | M52: 0 | N52: 0
B53: 43 | E53: =SW!G52 -> 0 | I53: 0 | M53: 0 | N53: 0
B54: 44 | E54: =SW!G53 -> 0 | I54: 0 | M54: 0 | N54: 0
B55: 45 | E55: =SW!G54 -> 0 | I55: 0 | M55: 0 | N55: 0
B56: 46 | E56: =SW!G55 -> 0 | I56: 0 | M56: 0 | N56: 0
B57: 47 | E57: =SW!G56 -> 0 | I57: 0 | M57: 0 | N57: 0
B58: 48 | E58: =SW!G57 -> 0 | I58: 0 | M58: 0 | N58: 0
B59: 49 | E59: =SW!G58 -> 0 | I59: 0 | M59: 0 | N59: 0
B60: 50 | E60: =SW!G59 -> 0 | I60: 0 | M60: 0 | N60: 0
B61: 51 | E61: =SW!G60 -> 0 | I61: 0 | M61: 0 | N61: 0
B62: 52 | E62: =SW!G61 -> 0 | I62: 0 | M62: 0 | N62: 0
B63: 53 | E63: =SW!G62 -> 0 | I63: 0 | M63: 0 | N63: 0
B64: 54 | E64: =SW!G63 -> 0 | I64: 0 | M64: 0 | N64: 0
B65: 55 | E65: =SW!G64 -> 0 | I65: 0 | M65: 0 | N65: 0
B66: 56 | E66: =SW!G65 -> 0 | I66: 0 | M66: 0 | N66: 0
B67: 57 | E67: =SW!G66 -> 0 | I67: 0 | M67: 0 | N67: 0
B68: 58 | E68: =SW!G67 -> 0 | I68: 0 | M68: 0 | N68: 0
B69: 59 | E69: =SW!G68 -> 0 | I69: 0 | M69: 0 | N69: 0
B70: 60 | E70: =SW!G69 -> 0 | I70: 0 | M70: 0 | N70: 0
B71: 61 | E71: =SW!G70 -> 0 | I71: 0 | M71: 0 | N71: 0
B72: 62 | E72: =SW!G71 -> 0 | I72: 0 | M72: 0 | N72: 0
B73: 63 | E73: =SW!G72 -> 0 | I73: 0 | M73: 0 | N73: 0
B74: 64 | E74: =SW!G73 -> 0 | I74: 0 | M74: 0 | N74: 0
B75: 65 | E75: =SW!G74 -> 0 | I75: 0 | M75: 0 | N75: 0
B76: 66 | E76: =SW!G75 -> 0 | I76: =$I$10*F76 -> 0 | M76: =J76*$M$10 -> 0 | N76: =IFERROR(ROUND(AVERAGE(M76+I76),0),"") -> 0
B77: 67 | E77: =SW!G76 -> 0 | I77: 0 | M77: 0 | N77: 0
B78: 68 | E78: =SW!G77 -> 0 | I78: 0 | M78: 0 | N78: 0
B79: 69 | E79: =SW!G78 -> 0 | I79: 0 | M79: 0 | N79: 0
B80: 70 | E80: =SW!G79 -> 0 | I80: 0 | M80: 0 | N80: 0
B81: 71 | E81: =SW!G80 -> 0 | I81: 0 | M81: 0 | N81: 0
B82: 72 | E82: =SW!G81 -> 0 | I82: 0 | M82: 0 | N82: 0
B83: 73 | E83: =SW!G82 -> 0 | I83: 0 | M83: 0 | N83: 0
B84: 74 | E84: =SW!G83 -> 0 | I84: 0 | M84: 0 | N84: 0
B85: 75 | E85: =SW!G84 -> 0 | I85: 0 | M85: 0 | N85: 0
B86: 76 | E86: =SW!G85 -> 0 | I86: 0 | M86: 0 | N86: 0
B87: 77 | E87: =SW!G86 -> 0 | I87: 0 | M87: 0 | N87: 0
B88: 78 | E88: =SW!G87 -> 0 | I88: 0 | M88: 0 | N88: 0
B89: 79 | E89: =SW!G88 -> 0 | I89: 0 | M89: 0 | N89: 0
B90: 80 | E90: =SW!G89 -> 0 | I90: 0 | M90: 0 | N90: 0
B91: 81 | E91: =SW!G90 -> 0 | I91: 0 | M91: 0 | N91: 0
B92: 82 | E92: =SW!G91 -> 0 | I92: 0 | M92: 0 | N92: 0
B93: 83 | E93: =SW!G92 -> 0 | I93: 0 | M93: 0 | N93: 0
B94: 84 | E94: =SW!G93 -> 0 | I94: 0 | M94: 0 | N94: 0
B95: 85 | E95: =SW!G94 -> 0 | I95: 0 | M95: 0 | N95: 0
B96: 86 | E96: =SW!G95 -> 0 | I96: 0 | M96: 0 | N96: 0
B97: 87 | E97: =SW!G96 -> 0 | I97: 0 | M97: 0 | N97: 0
B98: 88 | E98: =SW!G97 -> 0 | I98: 0 | M98: 0 | N98: 0
B99: 89 | E99: =SW!G98 -> 0 | I99: 0 | M99: 0 | N99: 0

Sheet FQ
B2: D A F T A R N I L A I
B4: MATA PELAJARAN | F4: : | G4: Fiqih | O4: ↗
B5: KELAS | F5: : | G5: =UPPER(MN!D22) -> V B
B6: TAHUN PELAJARAN | F6: : | G6: =MN!D18 -> 2019 - 2020
B9: No | C9: No. Induk | D9: NISN | E9: Nama Siswa | F9: NILAI | N9: JUMLAH
F10: PG | I10: 0.5 | J10: ESSAY | M10: =100%-I10 -> 0.5
B11: 1 | E11: =SW!G10 -> ABD. ROCHMAN NAJA FATLAN PRATAMA | F11: 77 | G11: 77 | H11: 77 | I11: =$I$10*F11 -> 38.5 | J11: 85 | M11: =J11*$M$10 -> 42.5 | N11: =IFERROR(ROUND(AVERAGE(M11+I11),0),"") -> 81
B12: 2 | E12: =SW!G11 -> ABDURRAHMAN FAQIH | F12: 37 | G12: 37 | H12: 37 | I12: =$I$10*F12 -> 18.5 | J12: 40 | M12: =J12*$M$10 -> 20 | N12: =IFERROR(ROUND(AVERAGE(M12+I12),0),"") -> 39
B13: 3 | E13: =SW!G12 -> ACHMAD FARROIHUN MUSHOBIRONILLAH | F13: 70 | G13: 70 | H13: 70 | I13: 35 | J13: 85 | M13: 42.5 | N13: 78
B14: 4 | E14: =SW!G13 -> ACHMAD HASBI ASSIDDIQI | F14: 43 | G14: 43 | H14: 43 | I14: 21.5 | J14: 40 | M14: 20 | N14: 42
B15: 5 | E15: =SW!G14 -> ACHMAD REZA AKRAM ALAUDDIN | F15: 73 | G15: 73 | H15: 73 | I15: 36.5 | J15: 75 | M15: 37.5 | N15: 74
B16: 6 | E16: =SW!G15 -> ACHMAD YANI | F16: 63 | G16: 63 | H16: 63 | I16: 31.5 | J16: 70 | M16: 35 | N16: 67
B17: 7 | E17: =SW!G16 -> AKHMAD RIDWAN | F17: 63 | G17: 63 | H17: 63 | I17: 31.5 | J17: 85 | M17: 42.5 | N17: 74
B18: 8 | E18: =SW!G17 -> ANDREAN DWI YULIANO | F18: 43 | G18: 43 | H18: 43 | I18: 21.5 | J18: 85 | M18: 42.5 | N18: 64
B19: 9 | E19: =SW!G18 -> ASFAN FAKHRI BARANI | F19: 87 | G19: 87 | H19: 87 | I19: 43.5 | J19: 70 | M19: 35 | N19: 79
B20: 10 | E20: =SW!G19 -> DEVAN ADITYA SAPUTRA | F20: 53 | G20: 53 | H20: 53 | I20: 26.5 | J20: 85 | M20: 42.5 | N20: 69
B21: 11 | E21: =SW!G20 -> FAHRUL AHMAD FAHREZA | F21: 63 | G21: 63 | H21: 63 | I21: 31.5 | J21: 70 | M21: 35 | N21: 67
B22: 12 | E22: =SW!G21 -> FAUZIA AMELIA PUTRI | F22: 67 | G22: 67 | H22: 67 | I22: 33.5 | J22: 100 | M22: 50 | N22: 84
B23: 13 | E23: =SW!G22 -> FAZA AZIFAH SALSABILA | F23: 60 | G23: 60 | H23: 60 | I23: 30 | J23: 70 | M23: 35 | N23: 65
B24: 14 | E24: =SW!G23 -> HABIBIE NURUSSALAM | F24: 63 | G24: 63 | H24: 63 | I24: 31.5 | J24: 70 | M24: 35 | N24: 67
B25: 15 | E25: =SW!G24 -> HIMATURROSYIDAH | F25: 73 | G25: 73 | H25: 73 | I25: 36.5 | J25: 75 | M25: 37.5 | N25: 74
B26: 16 | E26: =SW!G25 -> IFKARINA NAILA SAUQYA | F26: 67 | G26: 67 | H26: 67 | I26: 33.5 | J26: 85 | M26: 42.5 | N26: 76
B27: 17 | E27: =SW!G26 -> KEISA AYU SASKIYAH | F27: 67 | G27: 67 | H27: 67 | I27: 33.5 | J27: 70 | M27: 35 | N27: 69
B28: 18 | E28: =SW!G27 -> MOCHAMMAD RENO FIRMANSYAH | F28: 33 | G28: 33 | H28: 33 | I28: 16.5 | J28: 25 | M28: 12.5 | N28: 29
B29: 19 | E29: =SW!G28 -> MOHAMAD NUR KHAFID KHABIBULLOH | F29: 60 | G29: 60 | H29: 60 | I29: 30 | J29: 70 | M29: 35 | N29: 65
B30: 20 | E30: =SW!G29 -> MOHAMMAD NAUFAL NAWWARUDDIN | F30: 37 | G30: 37 | H30: 37 | I30: 18.5 | J30: 40 | M30: 20 | N30: 39
B31: 21 | E31: =SW!G30 -> MUCHAMAD PRIMA PAMBUDI | F31: 60 | G31: 60 | H31: 60 | I31: 30 | J31: 60 | M31: 30 | N31: 60
B32: 22 | E32: =SW!G31 -> MUHAMMAD ALFAN FATHONI | F32: 37 | G32: 37 | H32: 37 | I32: 18.5 | J32: 55 | M32: 27.5 | N32: 46
B33: 23 | E33: =SW!G32 -> MUHAMMAD AMINULLAH MAULUDANI | F33: 63 | G33: 63 | H33: 63 | I33: 31.5 | J33: 50 | M33: 25 | N33: 57
B34: 24 | E34: =SW!G33 -> MUHAMMAD DAVIN LEVANTINO | F34: 70 | G34: 70 | H34: 70 | I34: 35 | J34: 85 | M34: 42.5 | N34: 78
B35: 25 | E35: =SW!G34 -> MUHAMMAD MAULANA PAHLEVY | F35: 43 | G35: 43 | H35: 43 | I35: 21.5 | J35: 85 | M35: 42.5 | N35: 64
B36: 26 | E36: =SW!G35 -> RADITYA NIRWANSYAH | F36: 37 | G36: 37 | H36: 37 | I36: 18.5 | J36: 40 | M36: 20 | N36: 39
B37: 27 | E37: =SW!G36 -> REVINA SRI UTARI | F37: 47 | G37: 47 | H37: 47 | I37: 23.5 | J37: 55 | M37: 27.5 | N37: 51
B38: 28 | E38: =SW!G37 -> REYHAN DWI ANDIKA | F38: 43 | G38: 43 | H38: 43 | I38: 21.5 | J38: 55 | M38: 27.5 | N38: 49
B39: 29 | E39: =SW!G38 -> RISKA LAURA TRIA OCTAVIA | F39: 77 | G39: 77 | H39: 77 | I39: 38.5 | J39: 60 | M39: 30 | N39: 69
B40: 30 | E40: =SW!G39 -> ROHMADONA DWI SAFITRI | F40: 80 | G40: 80 | H40: 80 | I40: 40 | J40: 75 | M40: 37.5 | N40: 78
B41: 31 | E41: =SW!G40 -> SALMAN ALFARIZI | F41: 60 | G41: 60 | H41: 60 | I41: 30 | J41: 55 | M41: 27.5 | N41: 58
B42: 32 | E42: =SW!G41 -> TAUFIQ KURROHMAN | F42: 57 | G42: 57 | H42: 57 | I42: 28.5 | J42: 70 | M42: 35 | N42: 64
B43: 33 | E43: =SW!G42 -> 0 | I43: 0 | M43: 0 | N43: 0
B44: 34 | E44: =SW!G43 -> 0 | I44: 0 | M44: 0 | N44: 0
B45: 35 | E45: =SW!G44 -> 0 | I45: 0 | M45: 0 | N45: 0
B46: 36 | E46: =SW!G45 -> 0 | I46: 0 | M46: 0 | N46: 0
B47: 37 | E47: =SW!G46 -> 0 | I47: 0 | M47: 0 | N47: 0
B48: 38 | E48: =SW!G47 -> 0 | I48: 0 | M48: 0 | N48: 0
B49: 39 | E49: =SW!G48 -> 0 | I49: 0 | M49: 0 | N49: 0
B50: 40 | E50: =SW!G49 -> 0 | I50: 0 | M50: 0 | N50: 0
B51: 41 | E51: =SW!G50 -> 0 | I51: 0 | M51: 0 | N51: 0
B52: 42 | E52: =SW!G51 -> 0 | I52: 0 | M52: 0 | N52: 0
B53: 43 | E53: =SW!G52 -> 0 | I53: 0 | M53: 0 | N53: 0
B54: 44 | E54: =SW!G53 -> 0 | I54: 0 | M54: 0 | N54: 0
B55: 45 | E55: =SW!G54 -> 0 | I55: 0 | M55: 0 | N55: 0
B56: 46 | E56: =SW!G55 -> 0 | I56: 0 | M56: 0 | N56: 0
B57: 47 | E57: =SW!G56 -> 0 | I57: 0 | M57: 0 | N57: 0
B58: 48 | E58: =SW!G57 -> 0 | I58: 0 | M58: 0 | N58: 0
B59: 49 | E59: =SW!G58 -> 0 | I59: 0 | M59: 0 | N59: 0
B60: 50 | E60: =SW!G59 -> 0 | I60: 0 | M60: 0 | N60: 0
B61: 51 | E61: =SW!G60 -> 0 | I61: 0 | M61: 0 | N61: 0
B62: 52 | E62: =SW!G61 -> 0 | I62: 0 | M62: 0 | N62: 0
B63: 53 | E63: =SW!G62 -> 0 | I63: 0 | M63: 0 | N63: 0
B64: 54 | E64: =SW!G63 -> 0 | I64: 0 | M64: 0 | N64: 0
B65: 55 | E65: =SW!G64 -> 0 | I65: 0 | M65: 0 | N65: 0
B66: 56 | E66: =SW!G65 -> 0 | I66: 0 | M66: 0 | N66: 0
B67: 57 | E67: =SW!G66 -> 0 | I67: 0 | M67: 0 | N67: 0
B68: 58 | E68: =SW!G67 -> 0 | I68: 0 | M68: 0 | N68: 0
B69: 59 | E69: =SW!G68 -> 0 | I69: 0 | M69: 0 | N69: 0
B70: 60 | E70: =SW!G69 -> 0 | I70: 0 | M70: 0 | N70: 0
B71: 61 | E71: =SW!G70 -> 0 | I71: 0 | M71: 0 | N71: 0
B72: 62 | E72: =SW!G71 -> 0 | I72: 0 | M72: 0 | N72: 0
B73: 63 | E73: =SW!G72 -> 0 | I73: 0 | M73: 0 | N73: 0
B74: 64 | E74: =SW!G73 -> 0 | I74: 0 | M74: 0 | N74: 0
B75: 65 | E75: =SW!G74 -> 0 | I75: 0 | M75: 0 | N75: 0
B76: 66 | E76: =SW!G75 -> 0 | I76: =$I$10*F76 -> 0 | M76: =J76*$M$10 -> 0 | N76: =IFERROR(ROUND(AVERAGE(M76+I76),0),"") -> 0
B77: 67 | E77: =SW!G76 -> 0 | I77: 0 | M77: 0 | N77: 0
B78: 68 | E78: =SW!G77 -> 0 | I78: 0 | M78: 0 | N78: 0
B79: 69 | E79: =SW!G78 -> 0 | I79: 0 | M79: 0 | N79: 0
B80: 70 | E80: =SW!G79 -> 0 | I80: 0 | M80: 0 | N80: 0
B81: 71 | E81: =SW!G80 -> 0 | I81: 0 | M81: 0 | N81: 0
B82: 72 | E82: =SW!G81 -> 0 | I82: 0 | M82: 0 | N82: 0
B83: 73 | E83: =SW!G82 -> 0 | I83: 0 | M83: 0 | N83: 0
B84: 74 | E84: =SW!G83 -> 0 | I84: 0 | M84: 0 | N84: 0
B85: 75 | E85: =SW!G84 -> 0 | I85: 0 | M85: 0 | N85: 0
B86: 76 | E86: =SW!G85 -> 0 | I86: 0 | M86: 0 | N86: 0
B87: 77 | E87: =SW!G86 -> 0 | I87: 0 | M87: 0 | N87: 0
B88: 78 | E88: =SW!G87 -> 0 | I88: 0 | M88: 0 | N88: 0
B89: 79 | E89: =SW!G88 -> 0 | I89: 0 | M89: 0 | N89: 0
B90: 80 | E90: =SW!G89 -> 0 | I90: 0 | M90: 0 | N90: 0
B91: 81 | E91: =SW!G90 -> 0 | I91: 0 | M91: 0 | N91: 0
B92: 82 | E92: =SW!G91 -> 0 | I92: 0 | M92: 0 | N92: 0
B93: 83 | E93: =SW!G92 -> 0 | I93: 0 | M93: 0 | N93: 0
B94: 84 | E94: =SW!G93 -> 0 | I94: 0 | M94: 0 | N94: 0
B95: 85 | E95: =SW!G94 -> 0 | I95: 0 | M95: 0 | N95: 0
B96: 86 | E96: =SW!G95 -> 0 | I96: 0 | M96: 0 | N96: 0
B97: 87 | E97: =SW!G96 -> 0 | I97: 0 | M97: 0 | N97: 0
B98: 88 | E98: =SW!G97 -> 0 | I98: 0 | M98: 0 | N98: 0
B99: 89 | E99: =SW!G98 -> 0 | I99: 0 | M99: 0 | N99: 0

Sheet SKI
B2: D A F T A R N I L A I
B4: MATA PELAJARAN | F4: : | G4: Sejarah Kebudayaan Islam | O4: ↗
B5: KELAS | F5: : | G5: =UPPER(MN!D22) -> V B
B6: TAHUN PELAJARAN | F6: : | G6: =MN!D18 -> 2019 - 2020
B9: No | C9: No. Induk | D9: NISN | E9: Nama Siswa | F9: NILAI | N9: JUMLAH
F10: PG | I10: 0.5 | J10: ESSAY | M10: =100%-I10 -> 0.5
B11: 1 | E11: =SW!G10 -> ABD. ROCHMAN NAJA FATLAN PRATAMA | F11: 30 | G11: 30 | H11: 30 | I11: =$I$10*F11 -> 15 | J11: 60 | M11: =J11*$M$10 -> 30 | N11: =IFERROR(ROUND(AVERAGE(M11+I11),0),"") -> 45
B12: 2 | E12: =SW!G11 -> ABDURRAHMAN FAQIH | F12: 23 | G12: 23 | H12: 23 | I12: =$I$10*F12 -> 11.5 | J12: 60 | M12: =J12*$M$10 -> 30 | N12: =IFERROR(ROUND(AVERAGE(M12+I12),0),"") -> 42
B13: 3 | E13: =SW!G12 -> ACHMAD FARROIHUN MUSHOBIRONILLAH | F13: 37 | G13: 37 | H13: 37 | I13: 18.5 | J13: 70 | M13: 35 | N13: 54
B14: 4 | E14: =SW!G13 -> ACHMAD HASBI ASSIDDIQI | F14: 30 | G14: 30 | H14: 30 | I14: 15 | J14: 60 | M14: 30 | N14: 45
B15: 5 | E15: =SW!G14 -> ACHMAD REZA AKRAM ALAUDDIN | F15: 50 | G15: 50 | H15: 50 | I15: 25 | J15: 60 | M15: 30 | N15: 55
B16: 6 | E16: =SW!G15 -> ACHMAD YANI | F16: 37 | G16: 37 | H16: 37 | I16: 18.5 | J16: 70 | M16: 35 | N16: 54
B17: 7 | E17: =SW!G16 -> AKHMAD RIDWAN | F17: 37 | G17: 37 | H17: 37 | I17: 18.5 | J17: 60 | M17: 30 | N17: 49
B18: 8 | E18: =SW!G17 -> ANDREAN DWI YULIANO | F18: 27 | G18: 27 | H18: 27 | I18: 13.5 | J18: 60 | M18: 30 | N18: 44
B19: 9 | E19: =SW!G18 -> ASFAN FAKHRI BARANI | F19: 43 | G19: 43 | H19: 43 | I19: 21.5 | J19: 70 | M19: 35 | N19: 57
B20: 10 | E20: =SW!G19 -> DEVAN ADITYA SAPUTRA | F20: 20 | G20: 20 | H20: 20 | I20: 10 | J20: 70 | M20: 35 | N20: 45
B21: 11 | E21: =SW!G20 -> FAHRUL AHMAD FAHREZA | F21: 43 | G21: 43 | H21: 43 | I21: 21.5 | J21: 60 | M21: 30 | N21: 52
B22: 12 | E22: =SW!G21 -> FAUZIA AMELIA PUTRI | F22: 47 | G22: 47 | H22: 47 | I22: 23.5 | J22: 80 | M22: 40 | N22: 64
B23: 13 | E23: =SW!G22 -> FAZA AZIFAH SALSABILA | F23: 30 | G23: 30 | H23: 30 | I23: 15 | J23: 70 | M23: 35 | N23: 50
B24: 14 | E24: =SW!G23 -> HABIBIE NURUSSALAM | F24: 40 | G24: 40 | H24: 40 | I24: 20 | J24: 70 | M24: 35 | N24: 55
B25: 15 | E25: =SW!G24 -> HIMATURROSYIDAH | F25: 50 | G25: 50 | H25: 50 | I25: 25 | J25: 80 | M25: 40 | N25: 65
B26: 16 | E26: =SW!G25 -> IFKARINA NAILA SAUQYA | F26: 50 | G26: 50 | H26: 50 | I26: 25 | J26: 80 | M26: 40 | N26: 65
B27: 17 | E27: =SW!G26 -> KEISA AYU SASKIYAH | F27: 47 | G27: 47 | H27: 47 | I27: 23.5 | J27: 80 | M27: 40 | N27: 64
B28: 18 | E28: =SW!G27 -> MOCHAMMAD RENO FIRMANSYAH | F28: 30 | G28: 30 | H28: 30 | I28: 15 | J28: 50 | M28: 25 | N28: 40
B29: 19 | E29: =SW!G28 -> MOHAMAD NUR KHAFID KHABIBULLOH | F29: 53 | G29: 53 | H29: 53 | I29: 26.5 | J29: 60 | M29: 30 | N29: 57
B30: 20 | E30: =SW!G29 -> MOHAMMAD NAUFAL NAWWARUDDIN | F30: 33 | G30: 33 | H30: 33 | I30: 16.5 | J30: 50 | M30: 25 | N30: 42
B31: 21 | E31: =SW!G30 -> MUCHAMAD PRIMA PAMBUDI | F31: 43 | G31: 43 | H31: 43 | I31: 21.5 | J31: 60 | M31: 30 | N31: 52
B32: 22 | E32: =SW!G31 -> MUHAMMAD ALFAN FATHONI | F32: 23 | G32: 23 | H32: 23 | I32: 11.5 | J32: 70 | M32: 35 | N32: 47
B33: 23 | E33: =SW!G32 -> MUHAMMAD AMINULLAH MAULUDANI | F33: 33 | G33: 33 | H33: 33 | I33: 16.5 | J33: 50 | M33: 25 | N33: 42
B34: 24 | E34: =SW!G33 -> MUHAMMAD DAVIN LEVANTINO | F34: 33 | G34: 33 | H34: 33 | I34: 16.5 | J34: 70 | M34: 35 | N34: 52
B35: 25 | E35: =SW!G34 -> MUHAMMAD MAULANA PAHLEVY | F35: 17 | G35: 17 | H35: 17 | I35: 8.5 | J35: 60 | M35: 30 | N35: 39
B36: 26 | E36: =SW!G35 -> RADITYA NIRWANSYAH | F36: 23 | G36: 23 | H36: 23 | I36: 11.5 | J36: 50 | M36: 25 | N36: 37
B37: 27 | E37: =SW!G36 -> REVINA SRI UTARI | F37: 33 | G37: 33 | H37: 33 | I37: 16.5 | J37: 70 | M37: 35 | N37: 52
B38: 28 | E38: =SW!G37 -> REYHAN DWI ANDIKA | F38: 37 | G38: 37 | H38: 37 | I38: 18.5 | J38: 60 | M38: 30 | N38: 49
B39: 29 | E39: =SW!G38 -> RISKA LAURA TRIA OCTAVIA | F39: 33 | G39: 33 | H39: 33 | I39: 16.5 | J39: 70 | M39: 35 | N39: 52
B40: 30 | E40: =SW!G39 -> ROHMADONA DWI SAFITRI | F40: 33 | G40: 33 | H40: 33 | I40: 16.5 | J40: 80 | M40: 40 | N40: 57
B41: 31 | E41: =SW!G40 -> SALMAN ALFARIZI | F41: 17 | G41: 17 | H41: 17 | I41: 8.5 | J41: 60 | M41: 30 | N41: 39
B42: 32 | E42: =SW!G41 -> TAUFIQ KURROHMAN | F42: 33 | G42: 33 | H42: 33 | I42: 16.5 | J42: 50 | M42: 25 | N42: 42
B43: 33 | E43: =SW!G42 -> 0 | I43: 0 | M43: 0 | N43: 0
B44: 34 | E44: =SW!G43 -> 0 | I44: 0 | M44: 0 | N44: 0
B45: 35 | E45: =SW!G44 -> 0 | I45: 0 | M45: 0 | N45: 0
B46: 36 | E46: =SW!G45 -> 0 | I46: 0 | M46: 0 | N46: 0
B47: 37 | E47: =SW!G46 -> 0 | I47: 0 | M47: 0 | N47: 0
B48: 38 | E48: =SW!G47 -> 0 | I48: 0 | M48: 0 | N48: 0
B49: 39 | E49: =SW!G48 -> 0 | I49: 0 | M49: 0 | N49: 0
B50: 40 | E50: =SW!G49 -> 0 | I50: 0 | M50: 0 | N50: 0
B51: 41 | E51: =SW!G50 -> 0 | I51: 0 | M51: 0 | N51: 0
B52: 42 | E52: =SW!G51 -> 0 | I52: 0 | M52: 0 | N52: 0
B53: 43 | E53: =SW!G52 -> 0 | I53: 0 | M53: 0 | N53: 0
B54: 44 | E54: =SW!G53 -> 0 | I54: 0 | M54: 0 | N54: 0
B55: 45 | E55: =SW!G54 -> 0 | I55: 0 | M55: 0 | N55: 0
B56: 46 | E56: =SW!G55 -> 0 | I56: 0 | M56: 0 | N56: 0
B57: 47 | E57: =SW!G56 -> 0 | I57: 0 | M57: 0 | N57: 0
B58: 48 | E58: =SW!G57 -> 0 | I58: 0 | M58: 0 | N58: 0
B59: 49 | E59: =SW!G58 -> 0 | I59: 0 | M59: 0 | N59: 0
B60: 50 | E60: =SW!G59 -> 0 | I60: 0 | M60: 0 | N60: 0
B61: 51 | E61: =SW!G60 -> 0 | I61: 0 | M61: 0 | N61: 0
B62: 52 | E62: =SW!G61 -> 0 | I62: 0 | M62: 0 | N62: 0
B63: 53 | E63: =SW!G62 -> 0 | I63: 0 | M63: 0 | N63: 0
B64: 54 | E64: =SW!G63 -> 0 | I64: 0 | M64: 0 | N64: 0
B65: 55 | E65: =SW!G64 -> 0 | I65: 0 | M65: 0 | N65: 0
B66: 56 | E66: =SW!G65 -> 0 | I66: 0 | M66: 0 | N66: 0
B67: 57 | E67: =SW!G66 -> 0 | I67: 0 | M67: 0 | N67: 0
B68: 58 | E68: =SW!G67 -> 0 | I68: 0 | M68: 0 | N68: 0
B69: 59 | E69: =SW!G68 -> 0 | I69: 0 | M69: 0 | N69: 0
B70: 60 | E70: =SW!G69 -> 0 | I70: 0 | M70: 0 | N70: 0
B71: 61 | E71: =SW!G70 -> 0 | I71: 0 | M71: 0 | N71: 0
B72: 62 | E72: =SW!G71 -> 0 | I72: 0 | M72: 0 | N72: 0
B73: 63 | E73: =SW!G72 -> 0 | I73: 0 | M73: 0 | N73: 0
B74: 64 | E74: =SW!G73 -> 0 | I74: 0 | M74: 0 | N74: 0
B75: 65 | E75: =SW!G74 -> 0 | I75: 0 | M75: 0 | N75: 0
B76: 66 | E76: =SW!G75 -> 0 | I76: =$I$10*F76 -> 0 | M76: =J76*$M$10 -> 0 | N76: =IFERROR(ROUND(AVERAGE(M76+I76),0),"") -> 0
B77: 67 | E77: =SW!G76 -> 0 | I77: 0 | M77: 0 | N77: 0
B78: 68 | E78: =SW!G77 -> 0 | I78: 0 | M78: 0 | N78: 0
B79: 69 | E79: =SW!G78 -> 0 | I79: 0 | M79: 0 | N79: 0
B80: 70 | E80: =SW!G79 -> 0 | I80: 0 | M80: 0 | N80: 0
B81: 71 | E81: =SW!G80 -> 0 | I81: 0 | M81: 0 | N81: 0
B82: 72 | E82: =SW!G81 -> 0 | I82: 0 | M82: 0 | N82: 0
B83: 73 | E83: =SW!G82 -> 0 | I83: 0 | M83: 0 | N83: 0
B84: 74 | E84: =SW!G83 -> 0 | I84: 0 | M84: 0 | N84: 0
B85: 75 | E85: =SW!G84 -> 0 | I85: 0 | M85: 0 | N85: 0
B86: 76 | E86: =SW!G85 -> 0 | I86: 0 | M86: 0 | N86: 0
B87: 77 | E87: =SW!G86 -> 0 | I87: 0 | M87: 0 | N87: 0
B88: 78 | E88: =SW!G87 -> 0 | I88: 0 | M88: 0 | N88: 0
B89: 79 | E89: =SW!G88 -> 0 | I89: 0 | M89: 0 | N89: 0
B90: 80 | E90: =SW!G89 -> 0 | I90: 0 | M90: 0 | N90: 0
B91: 81 | E91: =SW!G90 -> 0 | I91: 0 | M91: 0 | N91: 0
B92: 82 | E92: =SW!G91 -> 0 | I92: 0 | M92: 0 | N92: 0
B93: 83 | E93: =SW!G92 -> 0 | I93: 0 | M93: 0 | N93: 0
B94: 84 | E94: =SW!G93 -> 0 | I94: 0 | M94: 0 | N94: 0
B95: 85 | E95: =SW!G94 -> 0 | I95: 0 | M95: 0 | N95: 0
B96: 86 | E96: =SW!G95 -> 0 | I96: 0 | M96: 0 | N96: 0
B97: 87 | E97: =SW!G96 -> 0 | I97: 0 | M97: 0 | N97: 0
B98: 88 | E98: =SW!G97 -> 0 | I98: 0 | M98: 0 | N98: 0
B99: 89 | E99: =SW!G98 -> 0 | I99: 0 | M99: 0 | N99: 0

Sheet BA
B2: D A F T A R N I L A I
B4: MATA PELAJARAN | F4: : | G4: Bahasa Arab | O4: ↗
B5: KELAS | F5: : | G5: =UPPER(MN!D22) -> V B
B6: TAHUN PELAJARAN | F6: : | G6: =MN!D18 -> 2019 - 2020
B9: No | C9: No. Induk | D9: NISN | E9: Nama Siswa | F9: NILAI | N9: JUMLAH
F10: PG | I10: 0.5 | J10: ESSAY | M10: =100%-I10 -> 0.5
B11: 1 | E11: =SW!G10 -> ABD. ROCHMAN NAJA FATLAN PRATAMA | F11: 30 | G11: 30 | H11: 30 | I11: =$I$10*F11 -> 15 | J11: 20 | M11: =J11*$M$10 -> 10 | N11: =IFERROR(ROUND(AVERAGE(M11+I11),0),"") -> 25
B12: 2 | E12: =SW!G11 -> ABDURRAHMAN FAQIH | F12: 20 | G12: 20 | H12: 20 | I12: =$I$10*F12 -> 10 | J12: 40 | M12: =J12*$M$10 -> 20 | N12: =IFERROR(ROUND(AVERAGE(M12+I12),0),"") -> 30
B13: 3 | E13: =SW!G12 -> ACHMAD FARROIHUN MUSHOBIRONILLAH | F13: 33 | G13: 33 | H13: 33 | I13: 16.5 | J13: 40 | M13: 20 | N13: 37
B14: 4 | E14: =SW!G13 -> ACHMAD HASBI ASSIDDIQI | F14: 23 | G14: 23 | H14: 23 | I14: 11.5 | J14: 40 | M14: 20 | N14: 32
B15: 5 | E15: =SW!G14 -> ACHMAD REZA AKRAM ALAUDDIN | F15: 27 | G15: 27 | H15: 27 | I15: 13.5 | J15: 60 | M15: 30 | N15: 44
B16: 6 | E16: =SW!G15 -> ACHMAD YANI | F16: 23 | G16: 23 | H16: 23 | I16: 11.5 | J16: 40 | M16: 20 | N16: 32
B17: 7 | E17: =SW!G16 -> AKHMAD RIDWAN | F17: 23 | G17: 23 | H17: 23 | I17: 11.5 | J17: 40 | M17: 20 | N17: 32
B18: 8 | E18: =SW!G17 -> ANDREAN DWI YULIANO | F18: 27 | G18: 27 | H18: 27 | I18: 13.5 | J18: 20 | M18: 10 | N18: 24
B19: 9 | E19: =SW!G18 -> ASFAN FAKHRI BARANI | F19: 47 | G19: 47 | H19: 47 | I19: 23.5 | J19: 60 | M19: 30 | N19: 54
B20: 10 | E20: =SW!G19 -> DEVAN ADITYA SAPUTRA | F20: 23 | G20: 23 | H20: 23 | I20: 11.5 | J20: 20 | M20: 10 | N20: 22
B21: 11 | E21: =SW!G20 -> FAHRUL AHMAD FAHREZA | F21: 27 | G21: 27 | H21: 27 | I21: 13.5 | J21: 40 | M21: 20 | N21: 34
B22: 12 | E22: =SW!G21 -> FAUZIA AMELIA PUTRI | F22: 60 | G22: 60 | H22: 60 | I22: 30 | J22: 60 | M22: 30 | N22: 60
B23: 13 | E23: =SW!G22 -> FAZA AZIFAH SALSABILA | F23: 40 | G23: 40 | H23: 40 | I23: 20 | J23: 60 | M23: 30 | N23: 50
B24: 14 | E24: =SW!G23 -> HABIBIE NURUSSALAM | F24: 40 | G24: 40 | H24: 40 | I24: 20 | J24: 20 | M24: 10 | N24: 30
B25: 15 | E25: =SW!G24 -> HIMATURROSYIDAH | F25: 47 | G25: 47 | H25: 47 | I25: 23.5 | J25: 60 | M25: 30 | N25: 54
B26: 16 | E26: =SW!G25 -> IFKARINA NAILA SAUQYA | F26: 30 | G26: 30 | H26: 30 | I26: 15 | J26: 60 | M26: 30 | N26: 45
B27: 17 | E27: =SW!G26 -> KEISA AYU SASKIYAH | F27: 33 | G27: 33 | H27: 33 | I27: 16.5 | J27: 60 | M27: 30 | N27: 47
B28: 18 | E28: =SW!G27 -> MOCHAMMAD RENO FIRMANSYAH | F28: 43 | G28: 43 | H28: 43 | I28: 21.5 | J28: 20 | M28: 10 | N28: 32
B29: 19 | E29: =SW!G28 -> MOHAMAD NUR KHAFID KHABIBULLOH | F29: 20 | G29: 20 | H29: 20 | I29: 10 | J29: 60 | M29: 30 | N29: 40
B30: 20 | E30: =SW!G29 -> MOHAMMAD NAUFAL NAWWARUDDIN | F30: 17 | G30: 17 | H30: 17 | I30: 8.5 | J30: 40 | M30: 20 | N30: 29
B31: 21 | E31: =SW!G30 -> MUCHAMAD PRIMA PAMBUDI | F31: 23 | G31: 23 | H31: 23 | I31: 11.5 | J31: 40 | M31: 20 | N31: 32
B32: 22 | E32: =SW!G31 -> MUHAMMAD ALFAN FATHONI | F32: 43 | G32: 43 | H32: 43 | I32: 21.5 | J32: 40 | M32: 20 | N32: 42
B33: 23 | E33: =SW!G32 -> MUHAMMAD AMINULLAH MAULUDANI | F33: 30 | G33: 30 | H33: 30 | I33: 15 | J33: 40 | M33: 20 | N33: 35
B34: 24 | E34: =SW!G33 -> MUHAMMAD DAVIN LEVANTINO | F34: 30 | G34: 30 | H34: 30 | I34: 15 | J34: 40 | M34: 20 | N34: 35
B35: 25 | E35: =SW!G34 -> MUHAMMAD MAULANA PAHLEVY | F35: 17 | G35: 17 | H35: 17 | I35: 8.5 | J35: 40 | M35: 20 | N35: 29
B36: 26 | E36: =SW!G35 -> RADITYA NIRWANSYAH | F36: 23 | G36: 23 | H36: 23 | I36: 11.5 | J36: 40 | M36: 20 | N36: 32
B37: 27 | E37: =SW!G36 -> REVINA SRI UTARI | F37: 17 | G37: 17 | H37: 17 | I37: 8.5 | J37: 40 | M37: 20 | N37: 29
B38: 28 | E38: =SW!G37 -> REYHAN DWI ANDIKA | F38: 13 | G38: 13 | H38: 13 | I38: 6.5 | J38: 20 | M38: 10 | N38: 17
B39: 29 | E39: =SW!G38 -> RISKA LAURA TRIA OCTAVIA | F39: 30 | I39: 15 | J39: 40 | M39: 20 | N39: 35
B40: 30 | E40: =SW!G39 -> ROHMADONA DWI SAFITRI | F40: 37 | G40: 37 | H40: 37 | I40: 18.5 | J40: 40 | M40: 20 | N40: 39
B41: 31 | E41: =SW!G40 -> SALMAN ALFARIZI | F41: 40 | G41: 40 | H41: 40 | I41: 20 | J41: 40 | M41: 20 | N41: 40
B42: 32 | E42: =SW!G41 -> TAUFIQ KURROHMAN | F42: 33 | G42: 33 | H42: 33 | I42: 16.5 | J42: 60 | M42: 30 | N42: 47
B43: 33 | E43: =SW!G42 -> 0 | I43: 0 | M43: 0 | N43: 0
B44: 34 | E44: =SW!G43 -> 0 | I44: 0 | M44: 0 | N44: 0
B45: 35 | E45: =SW!G44 -> 0 | I45: 0 | M45: 0 | N45: 0
B46: 36 | E46: =SW!G45 -> 0 | I46: 0 | M46: 0 | N46: 0
B47: 37 | E47: =SW!G46 -> 0 | I47: 0 | M47: 0 | N47: 0
B48: 38 | E48: =SW!G47 -> 0 | I48: 0 | M48: 0 | N48: 0
B49: 39 | E49: =SW!G48 -> 0 | I49: 0 | M49: 0 | N49: 0
B50: 40 | E50: =SW!G49 -> 0 | I50: 0 | M50: 0 | N50: 0
B51: 41 | E51: =SW!G50 -> 0 | I51: 0 | M51: 0 | N51: 0
B52: 42 | E52: =SW!G51 -> 0 | I52: 0 | M52: 0 | N52: 0
B53: 43 | E53: =SW!G52 -> 0 | I53: 0 | M53: 0 | N53: 0
B54: 44 | E54: =SW!G53 -> 0 | I54: 0 | M54: 0 | N54: 0
B55: 45 | E55: =SW!G54 -> 0 | I55: 0 | M55: 0 | N55: 0
B56: 46 | E56: =SW!G55 -> 0 | I56: 0 | M56: 0 | N56: 0
B57: 47 | E57: =SW!G56 -> 0 | I57: 0 | M57: 0 | N57: 0
B58: 48 | E58: =SW!G57 -> 0 | I58: 0 | M58: 0 | N58: 0
B59: 49 | E59: =SW!G58 -> 0 | I59: 0 | M59: 0 | N59: 0
B60: 50 | E60: =SW!G59 -> 0 | I60: 0 | M60: 0 | N60: 0
B61: 51 | E61: =SW!G60 -> 0 | I61: 0 | M61: 0 | N61: 0
B62: 52 | E62: =SW!G61 -> 0 | I62: 0 | M62: 0 | N62: 0
B63: 53 | E63: =SW!G62 -> 0 | I63: 0 | M63: 0 | N63: 0
B64: 54 | E64: =SW!G63 -> 0 | I64: 0 | M64: 0 | N64: 0
B65: 55 | E65: =SW!G64 -> 0 | I65: 0 | M65: 0 | N65: 0
B66: 56 | E66: =SW!G65 -> 0 | I66: 0 | M66: 0 | N66: 0
B67: 57 | E67: =SW!G66 -> 0 | I67: 0 | M67: 0 | N67: 0
B68: 58 | E68: =SW!G67 -> 0 | I68: 0 | M68: 0 | N68: 0
B69: 59 | E69: =SW!G68 -> 0 | I69: 0 | M69: 0 | N69: 0
B70: 60 | E70: =SW!G69 -> 0 | I70: 0 | M70: 0 | N70: 0
B71: 61 | E71: =SW!G70 -> 0 | I71: 0 | M71: 0 | N71: 0
B72: 62 | E72: =SW!G71 -> 0 | I72: 0 | M72: 0 | N72: 0
B73: 63 | E73: =SW!G72 -> 0 | I73: 0 | M73: 0 | N73: 0
B74: 64 | E74: =SW!G73 -> 0 | I74: 0 | M74: 0 | N74: 0
B75: 65 | E75: =SW!G74 -> 0 | I75: 0 | M75: 0 | N75: 0
B76: 66 | E76: =SW!G75 -> 0 | I76: =$I$10*F76 -> 0 | M76: =J76*$M$10 -> 0 | N76: =IFERROR(ROUND(AVERAGE(M76+I76),0),"") -> 0
B77: 67 | E77: =SW!G76 -> 0 | I77: 0 | M77: 0 | N77: 0
B78: 68 | E78: =SW!G77 -> 0 | I78: 0 | M78: 0 | N78: 0
B79: 69 | E79: =SW!G78 -> 0 | I79: 0 | M79: 0 | N79: 0
B80: 70 | E80: =SW!G79 -> 0 | I80: 0 | M80: 0 | N80: 0
B81: 71 | E81: =SW!G80 -> 0 | I81: 0 | M81: 0 | N81: 0
B82: 72 | E82: =SW!G81 -> 0 | I82: 0 | M82: 0 | N82: 0
B83: 73 | E83: =SW!G82 -> 0 | I83: 0 | M83: 0 | N83: 0
B84: 74 | E84: =SW!G83 -> 0 | I84: 0 | M84: 0 | N84: 0
B85: 75 | E85: =SW!G84 -> 0 | I85: 0 | M85: 0 | N85: 0
B86: 76 | E86: =SW!G85 -> 0 | I86: 0 | M86: 0 | N86: 0
B87: 77 | E87: =SW!G86 -> 0 | I87: 0 | M87: 0 | N87: 0
B88: 78 | E88: =SW!G87 -> 0 | I88: 0 | M88: 0 | N88: 0
B89: 79 | E89: =SW!G88 -> 0 | I89: 0 | M89: 0 | N89: 0
B90: 80 | E90: =SW!G89 -> 0 | I90: 0 | M90: 0 | N90: 0
B91: 81 | E91: =SW!G90 -> 0 | I91: 0 | M91: 0 | N91: 0
B92: 82 | E92: =SW!G91 -> 0 | I92: 0 | M92: 0 | N92: 0
B93: 83 | E93: =SW!G92 -> 0 | I93: 0 | M93: 0 | N93: 0
B94: 84 | E94: =SW!G93 -> 0 | I94: 0 | M94: 0 | N94: 0
B95: 85 | E95: =SW!G94 -> 0 | I95: 0 | M95: 0 | N95: 0
B96: 86 | E96: =SW!G95 -> 0 | I96: 0 | M96: 0 | N96: 0
B97: 87 | E97: =SW!G96 -> 0 | I97: 0 | M97: 0 | N97: 0
B98: 88 | E98: =SW!G97 -> 0 | I98: 0 | M98: 0 | N98: 0
B99: 89 | E99: =SW!G98 -> 0 | I99: 0 | M99: 0 | N99: 0

Sheet MLK1
B2: D A F T A R N I L A I
B4: MATA PELAJARAN | F4: : | G4: Nahwu / Shorof | O4: ↗
B5: KELAS | F5: : | G5: =UPPER(MN!D22) -> V B
B6: TAHUN PELAJARAN | F6: : | G6: =MN!D18 -> 2019 - 2020
B9: No | C9: No. Induk | D9: NISN | E9: Nama Siswa | F9: NILAI | N9: JUMLAH
F10: PG | I10: 0.5 | J10: ESSAY | M10: =100%-I10 -> 0.5
B11: 1 | E11: =SW!G10 -> ABD. ROCHMAN NAJA FATLAN PRATAMA | F11: 10 | I11: =$I$10*F11 -> 5 | J11: 10 | M11: =J11*$M$10 -> 5 | N11: =IFERROR(ROUND(AVERAGE(M11+I11),0),"") -> 10
B12: 2 | E12: =SW!G11 -> ABDURRAHMAN FAQIH | F12: 30 | I12: =$I$10*F12 -> 15 | J12: 30 | M12: =J12*$M$10 -> 15 | N12: =IFERROR(ROUND(AVERAGE(M12+I12),0),"") -> 30
B13: 3 | E13: =SW!G12 -> ACHMAD FARROIHUN MUSHOBIRONILLAH | F13: 30 | I13: 15 | J13: 30 | M13: 15 | N13: 30
B14: 4 | E14: =SW!G13 -> ACHMAD HASBI ASSIDDIQI | F14: 25 | I14: 12.5 | J14: 25 | M14: 12.5 | N14: 25
B15: 5 | E15: =SW!G14 -> ACHMAD REZA AKRAM ALAUDDIN | F15: 40 | I15: 20 | J15: 40 | M15: 20 | N15: 40
B16: 6 | E16: =SW!G15 -> ACHMAD YANI | F16: 25 | I16: 12.5 | J16: 25 | M16: 12.5 | N16: 25
B17: 7 | E17: =SW!G16 -> AKHMAD RIDWAN | F17: 20 | I17: 10 | J17: 20 | M17: 10 | N17: 20
B18: 8 | E18: =SW!G17 -> ANDREAN DWI YULIANO | F18: 10 | I18: 5 | J18: 10 | M18: 5 | N18: 10
B19: 9 | E19: =SW!G18 -> ASFAN FAKHRI BARANI | F19: 60 | I19: 30 | J19: 60 | M19: 30 | N19: 60
B20: 10 | E20: =SW!G19 -> DEVAN ADITYA SAPUTRA | F20: 20 | I20: 10 | J20: 20 | M20: 10 | N20: 20
B21: 11 | E21: =SW!G20 -> FAHRUL AHMAD FAHREZA | F21: 20 | I21: 10 | J21: 20 | M21: 10 | N21: 20
B22: 12 | E22: =SW!G21 -> FAUZIA AMELIA PUTRI | F22: 40 | I22: 20 | J22: 40 | M22: 20 | N22: 40
B23: 13 | E23: =SW!G22 -> FAZA AZIFAH SALSABILA | F23: 40 | I23: 20 | J23: 40 | M23: 20 | N23: 40
B24: 14 | E24: =SW!G23 -> HABIBIE NURUSSALAM | F24: 15 | I24: 7.5 | J24: 15 | M24: 7.5 | N24: 15
B25: 15 | E25: =SW!G24 -> HIMATURROSYIDAH | F25: 65 | I25: 32.5 | J25: 65 | M25: 32.5 | N25: 65
B26: 16 | E26: =SW!G25 -> IFKARINA NAILA SAUQYA | F26: 65 | I26: 32.5 | J26: 65 | M26: 32.5 | N26: 65
B27: 17 | E27: =SW!G26 -> KEISA AYU SASKIYAH | F27: 65 | I27: 32.5 | J27: 65 | M27: 32.5 | N27: 65
B28: 18 | E28: =SW!G27 -> MOCHAMMAD RENO FIRMANSYAH | F28: 20 | I28: 10 | J28: 20 | M28: 10 | N28: 20
B29: 19 | E29: =SW!G28 -> MOHAMAD NUR KHAFID KHABIBULLOH | F29: 50 | I29: 25 | J29: 50 | M29: 25 | N29: 50
B30: 20 | E30: =SW!G29 -> MOHAMMAD NAUFAL NAWWARUDDIN | F30: 20 | I30: 10 | J30: 20 | M30: 10 | N30: 20
B31: 21 | E31: =SW!G30 -> MUCHAMAD PRIMA PAMBUDI | F31: 25 | I31: 12.5 | J31: 25 | M31: 12.5 | N31: 25
B32: 22 | E32: =SW!G31 -> MUHAMMAD ALFAN FATHONI | F32: 30 | I32: 15 | J32: 30 | M32: 15 | N32: 30
B33: 23 | E33: =SW!G32 -> MUHAMMAD AMINULLAH MAULUDANI | F33: 20 | I33: 10 | J33: 20 | M33: 10 | N33: 20
B34: 24 | E34: =SW!G33 -> MUHAMMAD DAVIN LEVANTINO | F34: 30 | I34: 15 | J34: 30 | M34: 15 | N34: 30
B35: 25 | E35: =SW!G34 -> MUHAMMAD MAULANA PAHLEVY | F35: 20 | I35: 10 | J35: 20 | M35: 10 | N35: 20
B36: 26 | E36: =SW!G35 -> RADITYA NIRWANSYAH | F36: 20 | I36: 10 | J36: 20 | M36: 10 | N36: 20
B37: 27 | E37: =SW!G36 -> REVINA SRI UTARI | F37: 25 | I37: 12.5 | J37: 25 | M37: 12.5 | N37: 25
B38: 28 | E38: =SW!G37 -> REYHAN DWI ANDIKA | F38: 10 | I38: 5 | J38: 10 | M38: 5 | N38: 10
B39: 29 | E39: =SW!G38 -> RISKA LAURA TRIA OCTAVIA | F39: 65 | I39: 32.5 | J39: 65 | M39: 32.5 | N39: 65
B40: 30 | E40: =SW!G39 -> ROHMADONA DWI SAFITRI | F40: 30 | I40: 15 | J40: 30 | M40: 15 | N40: 30
B41: 31 | E41: =SW!G40 -> SALMAN ALFARIZI | F41: 25 | I41: 12.5 | J41: 25 | M41: 12.5 | N41: 25
B42: 32 | E42: =SW!G41 -> TAUFIQ KURROHMAN | F42: 25 | I42: 12.5 | J42: 25 | M42: 12.5 | N42: 25
B43: 33 | E43: =SW!G42 -> 0 | I43: 0 | M43: 0 | N43: 0
B44: 34 | E44: =SW!G43 -> 0 | I44: 0 | M44: 0 | N44: 0
B45: 35 | E45: =SW!G44 -> 0 | I45: 0 | M45: 0 | N45: 0
B46: 36 | E46: =SW!G45 -> 0 | I46: 0 | M46: 0 | N46: 0
B47: 37 | E47: =SW!G46 -> 0 | I47: 0 | M47: 0 | N47: 0
B48: 38 | E48: =SW!G47 -> 0 | I48: 0 | M48: 0 | N48: 0
B49: 39 | E49: =SW!G48 -> 0 | I49: 0 | M49: 0 | N49: 0
B50: 40 | E50: =SW!G49 -> 0 | I50: 0 | M50: 0 | N50: 0
B51: 41 | E51: =SW!G50 -> 0 | I51: 0 | M51: 0 | N51: 0
B52: 42 | E52: =SW!G51 -> 0 | I52: 0 | M52: 0 | N52: 0
B53: 43 | E53: =SW!G52 -> 0 | I53: 0 | M53: 0 | N53: 0
B54: 44 | E54: =SW!G53 -> 0 | I54: 0 | M54: 0 | N54: 0
B55: 45 | E55: =SW!G54 -> 0 | I55: 0 | M55: 0 | N55: 0
B56: 46 | E56: =SW!G55 -> 0 | I56: 0 | M56: 0 | N56: 0
B57: 47 | E57: =SW!G56 -> 0 | I57: 0 | M57: 0 | N57: 0
B58: 48 | E58: =SW!G57 -> 0 | I58: 0 | M58: 0 | N58: 0
B59: 49 | E59: =SW!G58 -> 0 | I59: 0 | M59: 0 | N59: 0
B60: 50 | E60: =SW!G59 -> 0 | I60: 0 | M60: 0 | N60: 0
B61: 51 | E61: =SW!G60 -> 0 | I61: 0 | M61: 0 | N61: 0
B62: 52 | E62: =SW!G61 -> 0 | I62: 0 | M62: 0 | N62: 0
B63: 53 | E63: =SW!G62 -> 0 | I63: 0 | M63: 0 | N63: 0
B64: 54 | E64: =SW!G63 -> 0 | I64: 0 | M64: 0 | N64: 0
B65: 55 | E65: =SW!G64 -> 0 | I65: 0 | M65: 0 | N65: 0
B66: 56 | E66: =SW!G65 -> 0 | I66: 0 | M66: 0 | N66: 0
B67: 57 | E67: =SW!G66 -> 0 | I67: 0 | M67: 0 | N67: 0
B68: 58 | E68: =SW!G67 -> 0 | I68: 0 | M68: 0 | N68: 0
B69: 59 | E69: =SW!G68 -> 0 | I69: 0 | M69: 0 | N69: 0
B70: 60 | E70: =SW!G69 -> 0 | I70: 0 | M70: 0 | N70: 0
B71: 61 | E71: =SW!G70 -> 0 | I71: 0 | M71: 0 | N71: 0
B72: 62 | E72: =SW!G71 -> 0 | I72: 0 | M72: 0 | N72: 0
B73: 63 | E73: =SW!G72 -> 0 | I73: 0 | M73: 0 | N73: 0
B74: 64 | E74: =SW!G73 -> 0 | I74: 0 | M74: 0 | N74: 0
B75: 65 | E75: =SW!G74 -> 0 | I75: 0 | M75: 0 | N75: 0
B76: 66 | E76: =SW!G75 -> 0 | I76: =$I$10*F76 -> 0 | M76: =J76*$M$10 -> 0 | N76: =IFERROR(ROUND(AVERAGE(M76+I76),0),"") -> 0
B77: 67 | E77: =SW!G76 -> 0 | I77: 0 | M77: 0 | N77: 0
B78: 68 | E78: =SW!G77 -> 0 | I78: 0 | M78: 0 | N78: 0
B79: 69 | E79: =SW!G78 -> 0 | I79: 0 | M79: 0 | N79: 0
B80: 70 | E80: =SW!G79 -> 0 | I80: 0 | M80: 0 | N80: 0
B81: 71 | E81: =SW!G80 -> 0 | I81: 0 | M81: 0 | N81: 0
B82: 72 | E82: =SW!G81 -> 0 | I82: 0 | M82: 0 | N82: 0
B83: 73 | E83: =SW!G82 -> 0 | I83: 0 | M83: 0 | N83: 0
B84: 74 | E84: =SW!G83 -> 0 | I84: 0 | M84: 0 | N84: 0
B85: 75 | E85: =SW!G84 -> 0 | I85: 0 | M85: 0 | N85: 0
B86: 76 | E86: =SW!G85 -> 0 | I86: 0 | M86: 0 | N86: 0
B87: 77 | E87: =SW!G86 -> 0 | I87: 0 | M87: 0 | N87: 0
B88: 78 | E88: =SW!G87 -> 0 | I88: 0 | M88: 0 | N88: 0
B89: 79 | E89: =SW!G88 -> 0 | I89: 0 | M89: 0 | N89: 0
B90: 80 | E90: =SW!G89 -> 0 | I90: 0 | M90: 0 | N90: 0
B91: 81 | E91: =SW!G90 -> 0 | I91: 0 | M91: 0 | N91: 0
B92: 82 | E92: =SW!G91 -> 0 | I92: 0 | M92: 0 | N92: 0
B93: 83 | E93: =SW!G92 -> 0 | I93: 0 | M93: 0 | N93: 0
B94: 84 | E94: =SW!G93 -> 0 | I94: 0 | M94: 0 | N94: 0
B95: 85 | E95: =SW!G94 -> 0 | I95: 0 | M95: 0 | N95: 0
B96: 86 | E96: =SW!G95 -> 0 | I96: 0 | M96: 0 | N96: 0
B97: 87 | E97: =SW!G96 -> 0 | I97: 0 | M97: 0 | N97: 0
B98: 88 | E98: =SW!G97 -> 0 | I98: 0 | M98: 0 | N98: 0
B99: 89 | E99: =SW!G98 -> 0 | I99: 0 | M99: 0 | N99: 0

Sheet MLK2
B2: D A F T A R N I L A I
B4: MATA PELAJARAN | F4: : | G4: - | O4: ↗
B5: KELAS | F5: : | G5: =UPPER(MN!D22) -> V B
B6: TAHUN PELAJARAN | F6: : | G6: =MN!D18 -> 2019 - 2020
B9: No | C9: No. Induk | D9: NISN | E9: Nama Siswa | F9: NILAI | N9: JUMLAH
F10: PG | I10: 1 | J10: ESSAY | M10: =100%-I10 -> 0
B11: 1 | E11: =SW!G10 -> ABD. ROCHMAN NAJA FATLAN PRATAMA | I11: =$I$10*F11 -> 0 | M11: =J11*$M$10 -> 0 | N11: =IFERROR(ROUND(AVERAGE(M11+I11),0),"") -> 0
B12: 2 | E12: =SW!G11 -> ABDURRAHMAN FAQIH | I12: =$I$10*F12 -> 0 | M12: =J12*$M$10 -> 0 | N12: =IFERROR(ROUND(AVERAGE(M12+I12),0),"") -> 0
B13: 3 | E13: =SW!G12 -> ACHMAD FARROIHUN MUSHOBIRONILLAH | I13: 0 | M13: 0 | N13: 0
B14: 4 | E14: =SW!G13 -> ACHMAD HASBI ASSIDDIQI | I14: 0 | M14: 0 | N14: 0
B15: 5 | E15: =SW!G14 -> ACHMAD REZA AKRAM ALAUDDIN | I15: 0 | M15: 0 | N15: 0
B16: 6 | E16: =SW!G15 -> ACHMAD YANI | I16: 0 | M16: 0 | N16: 0
B17: 7 | E17: =SW!G16 -> AKHMAD RIDWAN | I17: 0 | M17: 0 | N17: 0
B18: 8 | E18: =SW!G17 -> ANDREAN DWI YULIANO | I18: 0 | M18: 0 | N18: 0
B19: 9 | E19: =SW!G18 -> ASFAN FAKHRI BARANI | I19: 0 | M19: 0 | N19: 0
B20: 10 | E20: =SW!G19 -> DEVAN ADITYA SAPUTRA | I20: 0 | M20: 0 | N20: 0
B21: 11 | E21: =SW!G20 -> FAHRUL AHMAD FAHREZA | I21: 0 | M21: 0 | N21: 0
B22: 12 | E22: =SW!G21 -> FAUZIA AMELIA PUTRI | I22: 0 | M22: 0 | N22: 0
B23: 13 | E23: =SW!G22 -> FAZA AZIFAH SALSABILA | I23: 0 | M23: 0 | N23: 0
B24: 14 | E24: =SW!G23 -> HABIBIE NURUSSALAM | I24: 0 | M24: 0 | N24: 0
B25: 15 | E25: =SW!G24 -> HIMATURROSYIDAH | I25: 0 | M25: 0 | N25: 0
B26: 16 | E26: =SW!G25 -> IFKARINA NAILA SAUQYA | I26: 0 | M26: 0 | N26: 0
B27: 17 | E27: =SW!G26 -> KEISA AYU SASKIYAH | I27: 0 | M27: 0 | N27: 0
B28: 18 | E28: =SW!G27 -> MOCHAMMAD RENO FIRMANSYAH | I28: 0 | M28: 0 | N28: 0
B29: 19 | E29: =SW!G28 -> MOHAMAD NUR KHAFID KHABIBULLOH | I29: 0 | M29: 0 | N29: 0
B30: 20 | E30: =SW!G29 -> MOHAMMAD NAUFAL NAWWARUDDIN | I30: 0 | M30: 0 | N30: 0
B31: 21 | E31: =SW!G30 -> MUCHAMAD PRIMA PAMBUDI | I31: 0 | M31: 0 | N31: 0
B32: 22 | E32: =SW!G31 -> MUHAMMAD ALFAN FATHONI | I32: 0 | M32: 0 | N32: 0
B33: 23 | E33: =SW!G32 -> MUHAMMAD AMINULLAH MAULUDANI | I33: 0 | M33: 0 | N33: 0
B34: 24 | E34: =SW!G33 -> MUHAMMAD DAVIN LEVANTINO | I34: 0 | M34: 0 | N34: 0
B35: 25 | E35: =SW!G34 -> MUHAMMAD MAULANA PAHLEVY | I35: 0 | M35: 0 | N35: 0
B36: 26 | E36: =SW!G35 -> RADITYA NIRWANSYAH | I36: 0 | M36: 0 | N36: 0
B37: 27 | E37: =SW!G36 -> REVINA SRI UTARI | I37: 0 | M37: 0 | N37: 0
B38: 28 | E38: =SW!G37 -> REYHAN DWI ANDIKA | I38: 0 | M38: 0 | N38: 0
B39: 29 | E39: =SW!G38 -> RISKA LAURA TRIA OCTAVIA | I39: 0 | M39: 0 | N39: 0
B40: 30 | E40: =SW!G39 -> ROHMADONA DWI SAFITRI | I40: 0 | M40: 0 | N40: 0
B41: 31 | E41: =SW!G40 -> SALMAN ALFARIZI | I41: 0 | M41: 0 | N41: 0
B42: 32 | E42: =SW!G41 -> TAUFIQ KURROHMAN | I42: 0 | M42: 0 | N42: 0
B43: 33 | E43: =SW!G42 -> 0 | I43: 0 | M43: 0 | N43: 0
B44: 34 | E44: =SW!G43 -> 0 | I44: 0 | M44: 0 | N44: 0
B45: 35 | E45: =SW!G44 -> 0 | I45: 0 | M45: 0 | N45: 0
B46: 36 | E46: =SW!G45 -> 0 | I46: 0 | M46: 0 | N46: 0
B47: 37 | E47: =SW!G46 -> 0 | I47: 0 | M47: 0 | N47: 0
B48: 38 | E48: =SW!G47 -> 0 | I48: 0 | M48: 0 | N48: 0
B49: 39 | E49: =SW!G48 -> 0 | I49: 0 | M49: 0 | N49: 0
B50: 40 | E50: =SW!G49 -> 0 | I50: 0 | M50: 0 | N50: 0
B51: 41 | E51: =SW!G50 -> 0 | I51: 0 | M51: 0 | N51: 0
B52: 42 | E52: =SW!G51 -> 0 | I52: 0 | M52: 0 | N52: 0
B53: 43 | E53: =SW!G52 -> 0 | I53: 0 | M53: 0 | N53: 0
B54: 44 | E54: =SW!G53 -> 0 | I54: 0 | M54: 0 | N54: 0
B55: 45 | E55: =SW!G54 -> 0 | I55: 0 | M55: 0 | N55: 0
B56: 46 | E56: =SW!G55 -> 0 | I56: 0 | M56: 0 | N56: 0
B57: 47 | E57: =SW!G56 -> 0 | I57: 0 | M57: 0 | N57: 0
B58: 48 | E58: =SW!G57 -> 0 | I58: 0 | M58: 0 | N58: 0
B59: 49 | E59: =SW!G58 -> 0 | I59: 0 | M59: 0 | N59: 0
B60: 50 | E60: =SW!G59 -> 0 | I60: 0 | M60: 0 | N60: 0
B61: 51 | E61: =SW!G60 -> 0 | I61: 0 | M61: 0 | N61: 0
B62: 52 | E62: =SW!G61 -> 0 | I62: 0 | M62: 0 | N62: 0
B63: 53 | E63: =SW!G62 -> 0 | I63: 0 | M63: 0 | N63: 0
B64: 54 | E64: =SW!G63 -> 0 | I64: 0 | M64: 0 | N64: 0
B65: 55 | E65: =SW!G64 -> 0 | I65: 0 | M65: 0 | N65: 0
B66: 56 | E66: =SW!G65 -> 0 | I66: 0 | M66: 0 | N66: 0
B67: 57 | E67: =SW!G66 -> 0 | I67: 0 | M67: 0 | N67: 0
B68: 58 | E68: =SW!G67 -> 0 | I68: 0 | M68: 0 | N68: 0
B69: 59 | E69: =SW!G68 -> 0 | I69: 0 | M69: 0 | N69: 0
B70: 60 | E70: =SW!G69 -> 0 | I70: 0 | M70: 0 | N70: 0
B71: 61 | E71: =SW!G70 -> 0 | I71: 0 | M71: 0 | N71: 0
B72: 62 | E72: =SW!G71 -> 0 | I72: 0 | M72: 0 | N72: 0
B73: 63 | E73: =SW!G72 -> 0 | I73: 0 | M73: 0 | N73: 0
B74: 64 | E74: =SW!G73 -> 0 | I74: 0 | M74: 0 | N74: 0
B75: 65 | E75: =SW!G74 -> 0 | I75: 0 | M75: 0 | N75: 0
B76: 66 | E76: =SW!G75 -> 0 | I76: =$I$10*F76 -> 0 | M76: =J76*$M$10 -> 0 | N76: =IFERROR(ROUND(AVERAGE(M76+I76),0),"") -> 0
B77: 67 | E77: =SW!G76 -> 0 | I77: 0 | M77: 0 | N77: 0
B78: 68 | E78: =SW!G77 -> 0 | I78: 0 | M78: 0 | N78: 0
B79: 69 | E79: =SW!G78 -> 0 | I79: 0 | M79: 0 | N79: 0
B80: 70 | E80: =SW!G79 -> 0 | I80: 0 | M80: 0 | N80: 0
B81: 71 | E81: =SW!G80 -> 0 | I81: 0 | M81: 0 | N81: 0
B82: 72 | E82: =SW!G81 -> 0 | I82: 0 | M82: 0 | N82: 0
B83: 73 | E83: =SW!G82 -> 0 | I83: 0 | M83: 0 | N83: 0
B84: 74 | E84: =SW!G83 -> 0 | I84: 0 | M84: 0 | N84: 0
B85: 75 | E85: =SW!G84 -> 0 | I85: 0 | M85: 0 | N85: 0
B86: 76 | E86: =SW!G85 -> 0 | I86: 0 | M86: 0 | N86: 0
B87: 77 | E87: =SW!G86 -> 0 | I87: 0 | M87: 0 | N87: 0
B88: 78 | E88: =SW!G87 -> 0 | I88: 0 | M88: 0 | N88: 0
B89: 79 | E89: =SW!G88 -> 0 | I89: 0 | M89: 0 | N89: 0
B90: 80 | E90: =SW!G89 -> 0 | I90: 0 | M90: 0 | N90: 0
B91: 81 | E91: =SW!G90 -> 0 | I91: 0 | M91: 0 | N91: 0
B92: 82 | E92: =SW!G91 -> 0 | I92: 0 | M92: 0 | N92: 0
B93: 83 | E93: =SW!G92 -> 0 | I93: 0 | M93: 0 | N93: 0
B94: 84 | E94: =SW!G93 -> 0 | I94: 0 | M94: 0 | N94: 0
B95: 85 | E95: =SW!G94 -> 0 | I95: 0 | M95: 0 | N95: 0
B96: 86 | E96: =SW!G95 -> 0 | I96: 0 | M96: 0 | N96: 0
B97: 87 | E97: =SW!G96 -> 0 | I97: 0 | M97: 0 | N97: 0
B98: 88 | E98: =SW!G97 -> 0 | I98: 0 | M98: 0 | N98: 0
B99: 89 | E99: =SW!G98 -> 0 | I99: 0 | M99: 0 | N99: 0

Sheet MLK3
B2: D A F T A R N I L A I
B4: MATA PELAJARAN | F4: : | G4: - | O4: ↗
B5: KELAS | F5: : | G5: =UPPER(MN!D22) -> V B
B6: TAHUN PELAJARAN | F6: : | G6: =MN!D18 -> 2019 - 2020
B9: No | C9: No. Induk | D9: NISN | E9: Nama Siswa | F9: NILAI | N9: JUMLAH
F10: PG | I10: 1 | J10: ESSAY | M10: =100%-I10 -> 0
B11: 1 | E11: =SW!G10 -> ABD. ROCHMAN NAJA FATLAN PRATAMA | I11: =$I$10*F11 -> 0 | M11: =J11*$M$10 -> 0 | N11: =IFERROR(ROUND(AVERAGE(M11+I11),0),"") -> 0
B12: 2 | E12: =SW!G11 -> ABDURRAHMAN FAQIH | I12: =$I$10*F12 -> 0 | M12: =J12*$M$10 -> 0 | N12: =IFERROR(ROUND(AVERAGE(M12+I12),0),"") -> 0
B13: 3 | E13: =SW!G12 -> ACHMAD FARROIHUN MUSHOBIRONILLAH | I13: 0 | M13: 0 | N13: 0
B14: 4 | E14: =SW!G13 -> ACHMAD HASBI ASSIDDIQI | I14: 0 | M14: 0 | N14: 0
B15: 5 | E15: =SW!G14 -> ACHMAD REZA AKRAM ALAUDDIN | I15: 0 | M15: 0 | N15: 0
B16: 6 | E16: =SW!G15 -> ACHMAD YANI | I16: 0 | M16: 0 | N16: 0
B17: 7 | E17: =SW!G16 -> AKHMAD RIDWAN | I17: 0 | M17: 0 | N17: 0
B18: 8 | E18: =SW!G17 -> ANDREAN DWI YULIANO | I18: 0 | M18: 0 | N18: 0
B19: 9 | E19: =SW!G18 -> ASFAN FAKHRI BARANI | I19: 0 | M19: 0 | N19: 0
B20: 10 | E20: =SW!G19 -> DEVAN ADITYA SAPUTRA | I20: 0 | M20: 0 | N20: 0
B21: 11 | E21: =SW!G20 -> FAHRUL AHMAD FAHREZA | I21: 0 | M21: 0 | N21: 0
B22: 12 | E22: =SW!G21 -> FAUZIA AMELIA PUTRI | I22: 0 | M22: 0 | N22: 0
B23: 13 | E23: =SW!G22 -> FAZA AZIFAH SALSABILA | I23: 0 | M23: 0 | N23: 0
B24: 14 | E24: =SW!G23 -> HABIBIE NURUSSALAM | I24: 0 | M24: 0 | N24: 0
B25: 15 | E25: =SW!G24 -> HIMATURROSYIDAH | I25: 0 | M25: 0 | N25: 0
B26: 16 | E26: =SW!G25 -> IFKARINA NAILA SAUQYA | I26: 0 | M26: 0 | N26: 0
B27: 17 | E27: =SW!G26 -> KEISA AYU SASKIYAH | I27: 0 | M27: 0 | N27: 0
B28: 18 | E28: =SW!G27 -> MOCHAMMAD RENO FIRMANSYAH | I28: 0 | M28: 0 | N28: 0
B29: 19 | E29: =SW!G28 -> MOHAMAD NUR KHAFID KHABIBULLOH | I29: 0 | M29: 0 | N29: 0
B30: 20 | E30: =SW!G29 -> MOHAMMAD NAUFAL NAWWARUDDIN | I30: 0 | M30: 0 | N30: 0
B31: 21 | E31: =SW!G30 -> MUCHAMAD PRIMA PAMBUDI | I31: 0 | M31: 0 | N31: 0
B32: 22 | E32: =SW!G31 -> MUHAMMAD ALFAN FATHONI | I32: 0 | M32: 0 | N32: 0
B33: 23 | E33: =SW!G32 -> MUHAMMAD AMINULLAH MAULUDANI | I33: 0 | M33: 0 | N33: 0
B34: 24 | E34: =SW!G33 -> MUHAMMAD DAVIN LEVANTINO | I34: 0 | M34: 0 | N34: 0
B35: 25 | E35: =SW!G34 -> MUHAMMAD MAULANA PAHLEVY | I35: 0 | M35: 0 | N35: 0
B36: 26 | E36: =SW!G35 -> RADITYA NIRWANSYAH | I36: 0 | M36: 0 | N36: 0
B37: 27 | E37: =SW!G36 -> REVINA SRI UTARI | I37: 0 | M37: 0 | N37: 0
B38: 28 | E38: =SW!G37 -> REYHAN DWI ANDIKA | I38: 0 | M38: 0 | N38: 0
B39: 29 | E39: =SW!G38 -> RISKA LAURA TRIA OCTAVIA | I39: 0 | M39: 0 | N39: 0
B40: 30 | E40: =SW!G39 -> ROHMADONA DWI SAFITRI | I40: 0 | M40: 0 | N40: 0
B41: 31 | E41: =SW!G40 -> SALMAN ALFARIZI | I41: 0 | M41: 0 | N41: 0
B42: 32 | E42: =SW!G41 -> TAUFIQ KURROHMAN | I42: 0 | M42: 0 | N42: 0
B43: 33 | E43: =SW!G42 -> 0 | I43: 0 | M43: 0 | N43: 0
B44: 34 | E44: =SW!G43 -> 0 | I44: 0 | M44: 0 | N44: 0
B45: 35 | E45: =SW!G44 -> 0 | I45: 0 | M45: 0 | N45: 0
B46: 36 | E46: =SW!G45 -> 0 | I46: 0 | M46: 0 | N46: 0
B47: 37 | E47: =SW!G46 -> 0 | I47: 0 | M47: 0 | N47: 0
B48: 38 | E48: =SW!G47 -> 0 | I48: 0 | M48: 0 | N48: 0
B49: 39 | E49: =SW!G48 -> 0 | I49: 0 | M49: 0 | N49: 0
B50: 40 | E50: =SW!G49 -> 0 | I50: 0 | M50: 0 | N50: 0
B51: 41 | E51: =SW!G50 -> 0 | I51: 0 | M51: 0 | N51: 0
B52: 42 | E52: =SW!G51 -> 0 | I52: 0 | M52: 0 | N52: 0
B53: 43 | E53: =SW!G52 -> 0 | I53: 0 | M53: 0 | N53: 0
B54: 44 | E54: =SW!G53 -> 0 | I54: 0 | M54: 0 | N54: 0
B55: 45 | E55: =SW!G54 -> 0 | I55: 0 | M55: 0 | N55: 0
B56: 46 | E56: =SW!G55 -> 0 | I56: 0 | M56: 0 | N56: 0
B57: 47 | E57: =SW!G56 -> 0 | I57: 0 | M57: 0 | N57: 0
B58: 48 | E58: =SW!G57 -> 0 | I58: 0 | M58: 0 | N58: 0
B59: 49 | E59: =SW!G58 -> 0 | I59: 0 | M59: 0 | N59: 0
B60: 50 | E60: =SW!G59 -> 0 | I60: 0 | M60: 0 | N60: 0
B61: 51 | E61: =SW!G60 -> 0 | I61: 0 | M61: 0 | N61: 0
B62: 52 | E62: =SW!G61 -> 0 | I62: 0 | M62: 0 | N62: 0
B63: 53 | E63: =SW!G62 -> 0 | I63: 0 | M63: 0 | N63: 0
B64: 54 | E64: =SW!G63 -> 0 | I64: 0 | M64: 0 | N64: 0
B65: 55 | E65: =SW!G64 -> 0 | I65: 0 | M65: 0 | N65: 0
B66: 56 | E66: =SW!G65 -> 0 | I66: 0 | M66: 0 | N66: 0
B67: 57 | E67: =SW!G66 -> 0 | I67: 0 | M67: 0 | N67: 0
B68: 58 | E68: =SW!G67 -> 0 | I68: 0 | M68: 0 | N68: 0
B69: 59 | E69: =SW!G68 -> 0 | I69: 0 | M69: 0 | N69: 0
B70: 60 | E70: =SW!G69 -> 0 | I70: 0 | M70: 0 | N70: 0
B71: 61 | E71: =SW!G70 -> 0 | I71: 0 | M71: 0 | N71: 0
B72: 62 | E72: =SW!G71 -> 0 | I72: 0 | M72: 0 | N72: 0
B73: 63 | E73: =SW!G72 -> 0 | I73: 0 | M73: 0 | N73: 0
B74: 64 | E74: =SW!G73 -> 0 | I74: 0 | M74: 0 | N74: 0
B75: 65 | E75: =SW!G74 -> 0 | I75: 0 | M75: 0 | N75: 0
B76: 66 | E76: =SW!G75 -> 0 | I76: =$I$10*F76 -> 0 | M76: =J76*$M$10 -> 0 | N76: =IFERROR(ROUND(AVERAGE(M76+I76),0),"") -> 0
B77: 67 | E77: =SW!G76 -> 0 | I77: 0 | M77: 0 | N77: 0
B78: 68 | E78: =SW!G77 -> 0 | I78: 0 | M78: 0 | N78: 0
B79: 69 | E79: =SW!G78 -> 0 | I79: 0 | M79: 0 | N79: 0
B80: 70 | E80: =SW!G79 -> 0 | I80: 0 | M80: 0 | N80: 0
B81: 71 | E81: =SW!G80 -> 0 | I81: 0 | M81: 0 | N81: 0
B82: 72 | E82: =SW!G81 -> 0 | I82: 0 | M82: 0 | N82: 0
B83: 73 | E83: =SW!G82 -> 0 | I83: 0 | M83: 0 | N83: 0
B84: 74 | E84: =SW!G83 -> 0 | I84: 0 | M84: 0 | N84: 0
B85: 75 | E85: =SW!G84 -> 0 | I85: 0 | M85: 0 | N85: 0
B86: 76 | E86: =SW!G85 -> 0 | I86: 0 | M86: 0 | N86: 0
B87: 77 | E87: =SW!G86 -> 0 | I87: 0 | M87: 0 | N87: 0
B88: 78 | E88: =SW!G87 -> 0 | I88: 0 | M88: 0 | N88: 0
B89: 79 | E89: =SW!G88 -> 0 | I89: 0 | M89: 0 | N89: 0
B90: 80 | E90: =SW!G89 -> 0 | I90: 0 | M90: 0 | N90: 0
B91: 81 | E91: =SW!G90 -> 0 | I91: 0 | M91: 0 | N91: 0
B92: 82 | E92: =SW!G91 -> 0 | I92: 0 | M92: 0 | N92: 0
B93: 83 | E93: =SW!G92 -> 0 | I93: 0 | M93: 0 | N93: 0
B94: 84 | E94: =SW!G93 -> 0 | I94: 0 | M94: 0 | N94: 0
B95: 85 | E95: =SW!G94 -> 0 | I95: 0 | M95: 0 | N95: 0
B96: 86 | E96: =SW!G95 -> 0 | I96: 0 | M96: 0 | N96: 0
B97: 87 | E97: =SW!G96 -> 0 | I97: 0 | M97: 0 | N97: 0
B98: 88 | E98: =SW!G97 -> 0 | I98: 0 | M98: 0 | N98: 0
B99: 89 | E99: =SW!G98 -> 0 | I99: 0 | M99: 0 | N99: 0

Sheet REKAP
G3: LEMBAGA PENDIDIKAN MA'ARIF NU CABANG KABUPATEN LUMAJANG
G4: =UPPER("madrasah ibtidaiyah swasta "&MN!D6) -> MADRASAH IBTIDAIYAH SWASTA NURUL ISLAM LABRUK KIDUL
G5: =UPPER("TERAKREDITASI "&MN!D30) -> TERAKREDITASI A
G6: ="Jl. "&MN!D16 -> Jl. Raya Labruk Kidul No.65 Labruk Kidul | Y6: KEMENAG RI
C9: R E K A P I T U L A S I P E N I L A I A N T E N G A H S E M E S T E R
C11: Kelas | F11: : | G11: =MN!D22 -> V B | AE11: ↗
C12: Semester | F12: : | G12: =MN!D20 -> Ganjil | O12: =MN!H22 -> EXELLENT QURANIC SCHOOL
C13: Tahun Pelajaran | F13: : | G13: =MN!D18 -> 2019 - 2020
C14: Satuan Pendidikan | F14: : | G14: =UPPER("MIS. "&MN!D6) -> MIS. NURUL ISLAM LABRUK KIDUL
C16: No | D16: No. Induk | E16: NISN | F16: Nama Siswa | H16: Mata pelajaran | Z16: JUMLAH | AA16: RATA-RATA | AB16: RANGKING | AE16: view | AH16: ="PESAN WALI KELAS / GURU KELAS "&MN!D22 -> PESAN WALI KELAS / GURU KELAS V B
H17: Agama | M17: Umum | T17: Muatan Lokal
H18: Al-Qur'an Hadist | I18: Aqidah akhlaq | J18: Fiqih | K18: SKI | L18: Bhs. Arab | M18: Bhs. Indonesia | N18: Matematika | O18: IPA | P18: PPKn | Q18: IPS | R18: SBDP | S18: PJOK | T18: Bhs. Daerah | U18: Bhs. Inggris | V18: Aswaja | W18: =PROPER(MN!J12) -> Nahwu / Shorof | X18: =PROPER(MN!J14) -> - | Y18: =PROPER(MN!J16) -> - | AE18: cetak
B19: 1 | C19: =SW!C10 -> 1 | D19: =SW!D10 -> 4604 | E19: =SW!F10 -> 0 | F19: =SW!G10 -> ABD. ROCHMAN NAJA FATLAN PRATAMA | H19: =AH!N11 -> 60 | I19: =AA!N11 -> 59 | J19: =FQ!N11 -> 81 | K19: =SKI!N11 -> 45 | L19: =BA!N11 -> 25 | M19: =RTM!AP11 -> 43 | N19: =MTK!O11 -> 23.5 | O19: =RTM!AR11 -> 43 | P19: =RTM!AS11 -> 43 | Q19: =RTM!AT11 -> 43 | R19: =RTM!AU11 -> 43 | S19: =PJOK!N11 -> 47 | T19: =BD!N11 -> 32 | U19: =BIG!N11 -> 35 | V19: =ASWJ!N11 -> 60 | W19: ='MLK1'!N11 -> 10 | X19: ='MLK2'!N11 -> 0 | Y19: ='MLK3'!N11 -> 0 | Z19: =SUM(H19:Y19) -> 692.5 | AA19: =AVERAGE(H19:W19) -> 43.28125 | AB19: =RANK(Z19,$Z$19:$Z$107) -> 23 | AE19: =IF(C19="",0,"cetak") -> cetak | AH19: Pacu terus semangat belajarmu agar lebih meningkat prestasimu
B20: 2 | C20: =SW!C11 -> 2 | D20: =SW!D11 -> 4432 | E20: =SW!F11 -> 0094629929 | F20: =SW!G11 -> ABDURRAHMAN FAQIH | H20: =AH!N12 -> 46 | I20: =AA!N12 -> 40 | J20: =FQ!N12 -> 39 | K20: =SKI!N12 -> 42 | L20: =BA!N12 -> 30 | M20: =RTM!AP12 -> 37 | N20: =MTK!O12 -> 30 | O20: =RTM!AR12 -> 37 | P20: =RTM!AS12 -> 37 | Q20: =RTM!AT12 -> 37 | R20: =RTM!AU12 -> 37 | S20: =PJOK!N12 -> 39 | T20: =BD!N12 -> 43 | U20: =BIG!N12 -> 38 | V20: =ASWJ!N12 -> 54 | W20: ='MLK1'!N12 -> 30 | X20: ='MLK2'!N12 -> 0 | Y20: ='MLK3'!N12 -> 0 | Z20: =SUM(H20:Y20) -> 616 | AA20: =AVERAGE(H20:W20) -> 38.5 | AB20: =RANK(Z20,$Z$19:$Z$107) -> 28 | AE20: =IF(C20="",0,"cetak") -> cetak | AH20: Pacu terus semangat belajarmu agar lebih meningkat prestasimu
B21: 3 | C21: =SW!C12 -> 3 | D21: =SW!D12 -> 4400 | E21: =SW!F12 -> 0088902075 | F21: =SW!G12 -> ACHMAD FARROIHUN MUSHOBIRONILLAH | H21: =AH!N13 -> 67 | I21: =AA!N13 -> 60 | J21: =FQ!N13 -> 78 | K21: =SKI!N13 -> 54 | L21: =BA!N13 -> 37 | M21: =RTM!AP13 -> 52 | N21: =MTK!O13 -> 20 | O21: =RTM!AR13 -> 52 | P21: =RTM!AS13 -> 52 | Q21: =RTM!AT13 -> 52 | R21: =RTM!AU13 -> 52 | S21: =PJOK!N13 -> 44 | T21: =BD!N13 -> 51 | U21: =BIG!N13 -> 43 | V21: =ASWJ!N13 -> 58 | W21: ='MLK1'!N13 -> 30 | X21: ='MLK2'!N13 -> 0 | Y21: ='MLK3'!N13 -> 0 | Z21: 802 | AA21: =AVERAGE(H21:W21) -> 50.125 | AB21: 16 | AE21: cetak | AH21: Pacu terus semangat belajarmu agar lebih meningkat prestasimu
B22: 4 | C22: =SW!C13 -> 4 | D22: =SW!D13 -> 4433 | E22: =SW!F13 -> 0086573527 | F22: =SW!G13 -> ACHMAD HASBI ASSIDDIQI | H22: =AH!N14 -> 36 | I22: =AA!N14 -> 55 | J22: =FQ!N14 -> 42 | K22: =SKI!N14 -> 45 | L22: =BA!N14 -> 32 | M22: =RTM!AP14 -> 40 | N22: =MTK!O14 -> 27 | O22: =RTM!AR14 -> 40 | P22: =RTM!AS14 -> 40 | Q22: =RTM!AT14 -> 40 | R22: =RTM!AU14 -> 40 | S22: =PJOK!N14 -> 35 | T22: =BD!N14 -> 31 | U22: =BIG!N14 -> 25 | V22: =ASWJ!N14 -> 62 | W22: ='MLK1'!N14 -> 25 | X22: ='MLK2'!N14 -> 0 | Y22: ='MLK3'!N14 -> 0 | Z22: 615 | AA22: 38.4375 | AB22: 29 | AE22: cetak | AH22: Pacu terus semangat belajarmu agar lebih meningkat prestasimu
B23: 5 | C23: =SW!C14 -> 5 | D23: =SW!D14 -> 4401 | E23: =SW!F14 -> 0091876405 | F23: =SW!G14 -> ACHMAD REZA AKRAM ALAUDDIN | H23: =AH!N15 -> 71 | I23: =AA!N15 -> 84 | J23: =FQ!N15 -> 74 | K23: =SKI!N15 -> 55 | L23: =BA!N15 -> 44 | M23: =RTM!AP15 -> 65 | N23: =MTK!O15 -> 26.5 | O23: =RTM!AR15 -> 65 | P23: =RTM!AS15 -> 65 | Q23: =RTM!AT15 -> 65 | R23: =RTM!AU15 -> 65 | S23: =PJOK!N15 -> 54 | T23: =BD!N15 -> 48 | U23: =BIG!N15 -> 72 | V23: =ASWJ!N15 -> 64 | W23: ='MLK1'!N15 -> 40 | X23: ='MLK2'!N15 -> 0 | Y23: ='MLK3'!N15 -> 0 | Z23: 957.5 | AA23: 59.84375 | AB23: 4 | AE23: cetak | AH23: Tingkatkan prestasimu dan teruslah belajar
B24: 6 | C24: =SW!C15 -> 6 | D24: =SW!D15 -> 4434 | E24: =SW!F15 -> 0086607649 | F24: =SW!G15 -> ACHMAD YANI | H24: =AH!N16 -> 57 | I24: =AA!N16 -> 60 | J24: =FQ!N16 -> 67 | K24: =SKI!N16 -> 54 | L24: =BA!N16 -> 32 | M24: =RTM!AP16 -> 53 | N24: =MTK!O16 -> 12.5 | O24: =RTM!AR16 -> 53 | P24: =RTM!AS16 -> 53 | Q24: =RTM!AT16 -> 53 | R24: =RTM!AU16 -> 53 | S24: =PJOK!N16 -> 40 | T24: =BD!N16 -> 67 | U24: =BIG!N16 -> 45 | V24: =ASWJ!N16 -> 57 | W24: ='MLK1'!N16 -> 25 | X24: ='MLK2'!N16 -> 0 | Y24: ='MLK3'!N16 -> 0 | Z24: 781.5 | AA24: 48.84375 | AB24: 17 | AE24: cetak | AH24: Pacu terus semangat belajarmu agar lebih meningkat prestasimu
B25: 7 | C25: =SW!C16 -> 7 | D25: =SW!D16 -> 4437 | E25: =SW!F16 -> 0081576555 | F25: =SW!G16 -> AKHMAD RIDWAN | H25: =AH!N17 -> 60 | I25: =AA!N17 -> 64 | J25: =FQ!N17 -> 74 | K25: =SKI!N17 -> 49 | L25: =BA!N17 -> 32 | M25: =RTM!AP17 -> 61 | N25: =MTK!O17 -> 26.5 | O25: =RTM!AR17 -> 61 | P25: =RTM!AS17 -> 61 | Q25: =RTM!AT17 -> 61 | R25: =RTM!AU17 -> 61 | S25: =PJOK!N17 -> 52 | T25: =BD!N17 -> 58 | U25: =BIG!N17 -> 81 | V25: =ASWJ!N17 -> 64 | W25: ='MLK1'!N17 -> 20 | X25: ='MLK2'!N17 -> 0 | Y25: ='MLK3'!N17 -> 0 | Z25: 885.5 | AA25: 55.34375 | AB25: 8 | AE25: cetak | AH25: Tingkatkan prestasimu dan teruslah belajar
B26: 8 | C26: =SW!C17 -> 8 | D26: =SW!D17 -> 4439 | E26: =SW!F17 -> 0089018808 | F26: =SW!G17 -> ANDREAN DWI YULIANO | H26: =AH!N18 -> 46 | I26: =AA!N18 -> 72 | J26: =FQ!N18 -> 64 | K26: =SKI!N18 -> 44 | L26: =BA!N18 -> 24 | M26: =RTM!AP18 -> 45 | N26: =MTK!O18 -> 30 | O26: =RTM!AR18 -> 45 | P26: =RTM!AS18 -> 45 | Q26: =RTM!AT18 -> 45 | R26: =RTM!AU18 -> 45 | S26: =PJOK!N18 -> 34 | T26: =BD!N18 -> 64 | U26: =BIG!N18 -> 10 | V26: =ASWJ!N18 -> 46 | W26: ='MLK1'!N18 -> 10 | X26: ='MLK2'!N18 -> 0 | Y26: ='MLK3'!N18 -> 0 | Z26: 669 | AA26: 41.8125 | AB26: 25 | AE26: cetak | AH26: Pacu terus semangat belajarmu agar lebih meningkat prestasimu
B27: 9 | C27: =SW!C18 -> 9 | D27: =SW!D18 -> 4405 | E27: =SW!F18 -> 0087514073 | F27: =SW!G18 -> ASFAN FAKHRI BARANI | H27: =AH!N19 -> 59 | I27: =AA!N19 -> 75 | J27: =FQ!N19 -> 79 | K27: =SKI!N19 -> 57 | L27: =BA!N19 -> 54 | M27: =RTM!AP19 -> 57 | N27: =MTK!O19 -> 22.5 | O27: =RTM!AR19 -> 57 | P27: =RTM!AS19 -> 57 | Q27: =RTM!AT19 -> 57 | R27: =RTM!AU19 -> 57 | S27: =PJOK!N19 -> 64 | T27: =BD!N19 -> 59 | U27: =BIG!N19 -> 55 | V27: =ASWJ!N19 -> 56 | W27: ='MLK1'!N19 -> 60 | X27: ='MLK2'!N19 -> 0 | Y27: ='MLK3'!N19 -> 0 | Z27: 925.5 | AA27: 57.84375 | AB27: 7 | AE27: cetak | AH27: Tingkatkan prestasimu dan teruslah belajar
B28: 10 | C28: =SW!C19 -> 10 | D28: =SW!D19 -> 4406 | E28: =SW!F19 -> 0081007144 | F28: =SW!G19 -> DEVAN ADITYA SAPUTRA | H28: =AH!N20 -> 58 | I28: =AA!N20 -> 57 | J28: =FQ!N20 -> 69 | K28: =SKI!N20 -> 45 | L28: =BA!N20 -> 22 | M28: =RTM!AP20 -> 57 | N28: =MTK!O20 -> 26.5 | O28: =RTM!AR20 -> 57 | P28: =RTM!AS20 -> 57 | Q28: =RTM!AT20 -> 57 | R28: =RTM!AU20 -> 57 | S28: =PJOK!N20 -> 40 | T28: =BD!N20 -> 52 | U28: =BIG!N20 -> 84 | V28: =ASWJ!N20 -> 56 | W28: ='MLK1'!N20 -> 20 | X28: ='MLK2'!N20 -> 0 | Y28: ='MLK3'!N20 -> 0 | Z28: 814.5 | AA28: 50.90625 | AB28: 14 | AE28: cetak | AH28: Pacu terus semangat belajarmu agar lebih meningkat prestasimu
B29: 11 | C29: =SW!C20 -> 11 | D29: =SW!D20 -> 4409 | E29: =SW!F20 -> 0083758044 | F29: =SW!G20 -> FAHRUL AHMAD FAHREZA | H29: =AH!N21 -> 79 | I29: =AA!N21 -> 77 | J29: =FQ!N21 -> 67 | K29: =SKI!N21 -> 52 | L29: =BA!N21 -> 34 | M29: =RTM!AP21 -> 60 | N29: =MTK!O21 -> 22.5 | O29: =RTM!AR21 -> 60 | P29: =RTM!AS21 -> 60 | Q29: =RTM!AT21 -> 60 | R29: =RTM!AU21 -> 60 | S29: =PJOK!N21 -> 49 | T29: =BD!N21 -> 64 | U29: =BIG!N21 -> 60 | V29: =ASWJ!N21 -> 60 | W29: ='MLK1'!N21 -> 20 | X29: ='MLK2'!N21 -> 0 | Y29: ='MLK3'!N21 -> 0 | Z29: 884.5 | AA29: 55.28125 | AB29: 9 | AE29: cetak | AH29: Tingkatkan prestasimu dan teruslah belajar
B30: 12 | C30: =SW!C21 -> 12 | D30: =SW!D21 -> 4442 | E30: =SW!F21 -> 0094471054 | F30: =SW!G21 -> FAUZIA AMELIA PUTRI | H30: =AH!N22 -> 72 | I30: =AA!N22 -> 60 | J30: =FQ!N22 -> 84 | K30: =SKI!N22 -> 64 | L30: =BA!N22 -> 60 | M30: =RTM!AP22 -> 59 | N30: =MTK!O22 -> 30 | O30: =RTM!AR22 -> 59 | P30: =RTM!AS22 -> 59 | Q30: =RTM!AT22 -> 59 | R30: =RTM!AU22 -> 59 | S30: =PJOK!N22 -> 55 | T30: =BD!N22 -> 68 | U30: =BIG!N22 -> 61 | V30: =ASWJ!N22 -> 62 | W30: ='MLK1'!N22 -> 40 | X30: ='MLK2'!N22 -> 0 | Y30: ='MLK3'!N22 -> 0 | Z30: 951 | AA30: 59.4375 | AB30: 5 | AE30: cetak | AH30: Tingkatkan prestasimu dan teruslah belajar
B31: 13 | C31: =SW!C22 -> 13 | D31: =SW!D22 -> 4411 | E31: =SW!F22 -> 0097068634 | F31: =SW!G22 -> FAZA AZIFAH SALSABILA | H31: =AH!N23 -> 69 | I31: =AA!N23 -> 55 | J31: =FQ!N23 -> 65 | K31: =SKI!N23 -> 50 | L31: =BA!N23 -> 50 | M31: =RTM!AP23 -> 51 | N31: =MTK!O23 -> 20 | O31: =RTM!AR23 -> 51 | P31: =RTM!AS23 -> 51 | Q31: =RTM!AT23 -> 51 | R31: =RTM!AU23 -> 51 | S31: =PJOK!N23 -> 47 | T31: =BD!N23 -> 51 | U31: =BIG!N23 -> 53 | V31: =ASWJ!N23 -> 54 | W31: ='MLK1'!N23 -> 40 | X31: ='MLK2'!N23 -> 0 | Y31: ='MLK3'!N23 -> 0 | Z31: 809 | AA31: 50.5625 | AB31: 15 | AE31: cetak | AH31: Pacu terus semangat belajarmu agar lebih meningkat prestasimu
B32: 14 | C32: =SW!C23 -> 14 | D32: =SW!D23 -> 4443 | E32: =SW!F23 -> 0082570064 | F32: =SW!G23 -> HABIBIE NURUSSALAM | H32: =AH!N24 -> 78 | I32: =AA!N24 -> 69 | J32: =FQ!N24 -> 67 | K32: =SKI!N24 -> 55 | L32: =BA!N24 -> 30 | M32: =RTM!AP24 -> 56 | N32: =MTK!O24 -> 32.5 | O32: =RTM!AR24 -> 56 | P32: =RTM!AS24 -> 56 | Q32: =RTM!AT24 -> 56 | R32: =RTM!AU24 -> 56 | S32: =PJOK!N24 -> 60 | T32: =BD!N24 -> 43 | U32: =BIG!N24 -> 77 | V32: =ASWJ!N24 -> 57 | W32: ='MLK1'!N24 -> 15 | X32: ='MLK2'!N24 -> 0 | Y32: ='MLK3'!N24 -> 0 | Z32: 863.5 | AA32: 53.96875 | AB32: 11 | AE32: cetak | AH32: Pacu terus semangat belajarmu agar lebih meningkat prestasimu
B33: 15 | C33: =SW!C24 -> 15 | D33: =SW!D24 -> 4444 | E33: =SW!F24 -> 0084229361 | F33: =SW!G24 -> HIMATURROSYIDAH | H33: =AH!N25 -> 72 | I33: =AA!N25 -> 70 | J33: =FQ!N25 -> 74 | K33: =SKI!N25 -> 65 | L33: =BA!N25 -> 54 | M33: =RTM!AP25 -> 59 | N33: =MTK!O25 -> 20 | O33: =RTM!AR25 -> 59 | P33: =RTM!AS25 -> 59 | Q33: =RTM!AT25 -> 59 | R33: =RTM!AU25 -> 59 | S33: =PJOK!N25 -> 52 | T33: =BD!N25 -> 68 | U33: =BIG!N25 -> 50 | V33: =ASWJ!N25 -> 64 | W33: ='MLK1'!N25 -> 65 | X33: ='MLK2'!N25 -> 0 | Y33: ='MLK3'!N25 -> 0 | Z33: 949 | AA33: 59.3125 | AB33: 6 | AE33: cetak | AH33: Tingkatkan prestasimu dan teruslah belajar
B34: 16 | C34: =SW!C25 -> 16 | D34: =SW!D25 -> 4413 | E34: =SW!F25 -> 0095974067 | F34: =SW!G25 -> IFKARINA NAILA SAUQYA | H34: =AH!N26 -> 84 | I34: =AA!N26 -> 87 | J34: =FQ!N26 -> 76 | K34: =SKI!N26 -> 65 | L34: =BA!N26 -> 45 | M34: =RTM!AP26 -> 67 | N34: =MTK!O26 -> 36.5 | O34: =RTM!AR26 -> 67 | P34: =RTM!AS26 -> 67 | Q34: =RTM!AT26 -> 67 | R34: =RTM!AU26 -> 67 | S34: =PJOK!N26 -> 47 | T34: =BD!N26 -> 72 | U34: =BIG!N26 -> 62 | V34: =ASWJ!N26 -> 77 | W34: ='MLK1'!N26 -> 65 | X34: ='MLK2'!N26 -> 0 | Y34: ='MLK3'!N26 -> 0 | Z34: 1051.5 | AA34: 65.71875 | AB34: 1 | AE34: cetak | AH34: pertahankan prestasimu dan teruslah belajar
B35: 17 | C35: =SW!C26 -> 17 | D35: =SW!D26 -> 4446 | E35: =SW!F26 -> 0091718649 | F35: =SW!G26 -> KEISA AYU SASKIYAH | H35: =AH!N27 -> 69 | I35: =AA!N27 -> 50 | J35: =FQ!N27 -> 69 | K35: =SKI!N27 -> 64 | L35: =BA!N27 -> 47 | M35: =RTM!AP27 -> 47 | N35: =MTK!O27 -> 20 | O35: =RTM!AR27 -> 47 | P35: =RTM!AS27 -> 47 | Q35: =RTM!AT27 -> 47 | R35: =RTM!AU27 -> 47 | S35: =PJOK!N27 -> 45 | T35: =BD!N27 -> 68 | U35: =BIG!N27 -> 53 | V35: =ASWJ!N27 -> 59 | W35: ='MLK1'!N27 -> 65 | X35: ='MLK2'!N27 -> 0 | Y35: ='MLK3'!N27 -> 0 | Z35: 844 | AA35: 52.75 | AB35: 12 | AE35: cetak | AH35: Pacu terus semangat belajarmu agar lebih meningkat prestasimu
B36: 18 | C36: =SW!C27 -> 18 | D36: =SW!D27 -> 4448 | E36: =SW!F27 -> 0088340300 | F36: =SW!G27 -> MOCHAMMAD RENO FIRMANSYAH | H36: =AH!N28 -> 32 | I36: =AA!N28 -> 35 | J36: =FQ!N28 -> 29 | K36: =SKI!N28 -> 40 | L36: =BA!N28 -> 32 | M36: =RTM!AP28 -> 34 | N36: =MTK!O28 -> 22.5 | O36: =RTM!AR28 -> 34 | P36: =RTM!AS28 -> 34 | Q36: =RTM!AT28 -> 34 | R36: =RTM!AU28 -> 34 | S36: =PJOK!N28 -> 39 | T36: =BD!N28 -> 47 | U36: =BIG!N28 -> 20 | V36: =ASWJ!N28 -> 46 | W36: ='MLK1'!N28 -> 20 | X36: ='MLK2'!N28 -> 0 | Y36: ='MLK3'!N28 -> 0 | Z36: 532.5 | AA36: 33.28125 | AB36: 32 | AE36: cetak | AH36: Pacu terus semangat belajarmu agar lebih meningkat prestasimu
B37: 19 | C37: =SW!C28 -> 19 | D37: =SW!D28 -> 4416 | E37: =SW!F28 -> 0081395793 | F37: =SW!G28 -> MOHAMAD NUR KHAFID KHABIBULLOH | H37: =AH!N29 -> 69 | I37: =AA!N29 -> 52 | J37: =FQ!N29 -> 65 | K37: =SKI!N29 -> 57 | L37: =BA!N29 -> 40 | M37: =RTM!AP29 -> 57 | N37: =MTK!O29 -> 40 | O37: =RTM!AR29 -> 57 | P37: =RTM!AS29 -> 57 | Q37: =RTM!AT29 -> 57 | R37: =RTM!AU29 -> 57 | S37: =PJOK!N29 -> 59 | T37: =BD!N29 -> 62 | U37: =BIG!N29 -> 38 | V37: =ASWJ!N29 -> 65 | W37: ='MLK1'!N29 -> 50 | X37: ='MLK2'!N29 -> 0 | Y37: ='MLK3'!N29 -> 0 | Z37: 882 | AA37: 55.125 | AB37: 10 | AE37: cetak | AH37: Tingkatkan prestasimu dan teruslah belajar
B38: 20 | C38: =SW!C29 -> 20 | D38: =SW!D29 -> 4449 | E38: =SW!F29 -> 0096141985 | F38: =SW!G29 -> MOHAMMAD NAUFAL NAWWARUDDIN | H38: =AH!N30 -> 39 | I38: =AA!N30 -> 45 | J38: =FQ!N30 -> 39 | K38: =SKI!N30 -> 42 | L38: =BA!N30 -> 29 | M38: =RTM!AP30 -> 39 | N38: =MTK!O30 -> 30 | O38: =RTM!AR30 -> 39 | P38: =RTM!AS30 -> 39 | Q38: =RTM!AT30 -> 39 | R38: =RTM!AU30 -> 39 | S38: =PJOK!N30 -> 35 | T38: =BD!N30 -> 37 | U38: =BIG!N30 -> 25 | V38: =ASWJ!N30 -> 42 | W38: ='MLK1'!N30 -> 20 | X38: ='MLK2'!N30 -> 0 | Y38: ='MLK3'!N30 -> 0 | Z38: 578 | AA38: 36.125 | AB38: 31 | AE38: cetak | AH38: Pacu terus semangat belajarmu agar lebih meningkat prestasimu
B39: 21 | C39: =SW!C30 -> 21 | F39: =SW!G30 -> MUCHAMAD PRIMA PAMBUDI | H39: =AH!N31 -> 76 | I39: =AA!N31 -> 54 | J39: =FQ!N31 -> 60 | K39: =SKI!N31 -> 52 | L39: =BA!N31 -> 32 | M39: =RTM!AP31 -> 49 | N39: =MTK!O31 -> 22.5 | O39: =RTM!AR31 -> 49 | P39: =RTM!AS31 -> 49 | Q39: =RTM!AT31 -> 49 | R39: =RTM!AU31 -> 49 | S39: =PJOK!N31 -> 47 | T39: =BD!N31 -> 52 | U39: =BIG!N31 -> 36 | V39: =ASWJ!N31 -> 44 | W39: ='MLK1'!N31 -> 25 | X39: ='MLK2'!N31 -> 0 | Y39: ='MLK3'!N31 -> 0 | Z39: 745.5 | AA39: 46.59375 | AB39: 20 | AE39: cetak | AH39: Pacu terus semangat belajarmu agar lebih meningkat prestasimu
B40: 22 | C40: =SW!C31 -> 22 | F40: =SW!G31 -> MUHAMMAD ALFAN FATHONI | H40: =AH!N32 -> 58 | I40: =AA!N32 -> 42 | J40: =FQ!N32 -> 46 | K40: =SKI!N32 -> 47 | L40: =BA!N32 -> 42 | M40: =RTM!AP32 -> 47 | N40: =MTK!O32 -> 20 | O40: =RTM!AR32 -> 47 | P40: =RTM!AS32 -> 47 | Q40: =RTM!AT32 -> 47 | R40: =RTM!AU32 -> 47 | S40: =PJOK!N32 -> 47 | T40: =BD!N32 -> 58 | U40: =BIG!N32 -> 71 | V40: =ASWJ!N32 -> 52 | W40: ='MLK1'!N32 -> 30 | X40: ='MLK2'!N32 -> 0 | Y40: ='MLK3'!N32 -> 0 | Z40: 748 | AA40: 46.75 | AB40: 19 | AE40: cetak | AH40: Pacu terus semangat belajarmu agar lebih meningkat prestasimu
B41: 23 | C41: =SW!C32 -> 23 | F41: =SW!G32 -> MUHAMMAD AMINULLAH MAULUDANI | H41: =AH!N33 -> 35 | I41: =AA!N33 -> 39 | J41: =FQ!N33 -> 57 | K41: =SKI!N33 -> 42 | L41: =BA!N33 -> 35 | M41: =RTM!AP33 -> 37 | N41: =MTK!O33 -> 22.5 | O41: =RTM!AR33 -> 37 | P41: =RTM!AS33 -> 37 | Q41: =RTM!AT33 -> 37 | R41: =RTM!AU33 -> 37 | S41: =PJOK!N33 -> 49 | T41: =BD!N33 -> 30 | U41: =BIG!N33 -> 30 | V41: =ASWJ!N33 -> 44 | W41: ='MLK1'!N33 -> 20 | X41: ='MLK2'!N33 -> 0 | Y41: ='MLK3'!N33 -> 0 | Z41: 588.5 | AA41: 36.78125 | AB41: 30 | AE41: cetak | AH41: Pacu terus semangat belajarmu agar lebih meningkat prestasimu
B42: 24 | C42: =SW!C33 -> 24 | F42: =SW!G33 -> MUHAMMAD DAVIN LEVANTINO | H42: =AH!N34 -> 68 | I42: =AA!N34 -> 64 | J42: =FQ!N34 -> 78 | K42: =SKI!N34 -> 52 | L42: =BA!N34 -> 35 | M42: =RTM!AP34 -> 50 | N42: =MTK!O34 -> 33.5 | O42: =RTM!AR34 -> 50 | P42: =RTM!AS34 -> 50 | Q42: =RTM!AT34 -> 50 | R42: =RTM!AU34 -> 50 | S42: =PJOK!N34 -> 49 | T42: =BD!N34 -> 50 | U42: =BIG!N34 -> 74 | V42: =ASWJ!N34 -> 58 | W42: ='MLK1'!N34 -> 30 | X42: ='MLK2'!N34 -> 0 | Y42: ='MLK3'!N34 -> 0 | Z42: 841.5 | AA42: 52.59375 | AB42: 13 | AE42: cetak | AH42: Pacu terus semangat belajarmu agar lebih meningkat prestasimu
B43: 25 | C43: =SW!C34 -> 25 | F43: =SW!G34 -> MUHAMMAD MAULANA PAHLEVY | H43: =AH!N35 -> 64 | I43: =AA!N35 -> 55 | J43: =FQ!N35 -> 64 | K43: =SKI!N35 -> 39 | L43: =BA!N35 -> 29 | M43: =RTM!AP35 -> 48 | N43: =MTK!O35 -> 40 | O43: =RTM!AR35 -> 48 | P43: =RTM!AS35 -> 48 | Q43: =RTM!AT35 -> 48 | R43: =RTM!AU35 -> 48 | S43: =PJOK!N35 -> 45 | T43: =BD!N35 -> 48 | U43: =BIG!N35 -> 72 | V43: =ASWJ!N35 -> 48 | W43: ='MLK1'!N35 -> 20 | X43: ='MLK2'!N35 -> 0 | Y43: ='MLK3'!N35 -> 0 | Z43: 764 | AA43: 47.75 | AB43: 18 | AE43: cetak | AH43: Pacu terus semangat belajarmu agar lebih meningkat prestasimu
B44: 26 | C44: =SW!C35 -> 26 | F44: =SW!G35 -> RADITYA NIRWANSYAH | H44: =AH!N36 -> 57 | I44: =AA!N36 -> 37 | J44: =FQ!N36 -> 39 | K44: =SKI!N36 -> 37 | L44: =BA!N36 -> 32 | M44: =RTM!AP36 -> 38 | N44: =MTK!O36 -> 26.5 | O44: =RTM!AR36 -> 38 | P44: =RTM!AS36 -> 38 | Q44: =RTM!AT36 -> 38 | R44: =RTM!AU36 -> 38 | S44: =PJOK!N36 -> 45 | T44: =BD!N36 -> 40 | U44: =BIG!N36 -> 45 | V44: =ASWJ!N36 -> 52 | W44: ='MLK1'!N36 -> 20 | X44: ='MLK2'!N36 -> 0 | Y44: ='MLK3'!N36 -> 0 | Z44: 620.5 | AA44: 38.78125 | AB44: 26 | AE44: cetak | AH44: Pacu terus semangat belajarmu agar lebih meningkat prestasimu
B45: 27 | C45: =SW!C36 -> 27 | F45: =SW!G36 -> REVINA SRI UTARI | H45: =AH!N37 -> 63 | I45: =AA!N37 -> 45 | J45: =FQ!N37 -> 51 | K45: =SKI!N37 -> 52 | L45: =BA!N37 -> 29 | M45: =RTM!AP37 -> 47 | N45: =MTK!O37 -> 23.5 | O45: =RTM!AR37 -> 47 | P45: =RTM!AS37 -> 47 | Q45: =RTM!AT37 -> 47 | R45: =RTM!AU37 -> 47 | S45: =PJOK!N37 -> 40 | T45: =BD!N37 -> 47 | U45: =BIG!N37 -> 53 | V45: =ASWJ!N37 -> 54 | W45: ='MLK1'!N37 -> 25 | X45: ='MLK2'!N37 -> 0 | Y45: ='MLK3'!N37 -> 0 | Z45: 717.5 | AA45: 44.84375 | AB45: 21 | AE45: cetak | AH45: Pacu terus semangat belajarmu agar lebih meningkat prestasimu
B46: 28 | C46: =SW!C37 -> 28 | F46: =SW!G37 -> REYHAN DWI ANDIKA | H46: =AH!N38 -> 59 | I46: =AA!N38 -> 45 | J46: =FQ!N38 -> 49 | K46: =SKI!N38 -> 49 | L46: =BA!N38 -> 17 | M46: =RTM!AP38 -> 39 | N46: =MTK!O38 -> 22.5 | O46: =RTM!AR38 -> 39 | P46: =RTM!AS38 -> 39 | Q46: =RTM!AT38 -> 39 | R46: =RTM!AU38 -> 39 | S46: =PJOK!N38 -> 45 | T46: =BD!N38 -> 49 | U46: =BIG!N38 -> 30 | V46: =ASWJ!N38 -> 48 | W46: ='MLK1'!N38 -> 10 | X46: ='MLK2'!N38 -> 0 | Y46: ='MLK3'!N38 -> 0 | Z46: 618.5 | AA46: 38.65625 | AB46: 27 | AE46: cetak | AH46: Pacu terus semangat belajarmu agar lebih meningkat prestasimu
B47: 29 | C47: =SW!C38 -> 29 | F47: =SW!G38 -> RISKA LAURA TRIA OCTAVIA | H47: =AH!N39 -> 75 | I47: =AA!N39 -> 82 | J47: =FQ!N39 -> 69 | K47: =SKI!N39 -> 52 | L47: =BA!N39 -> 35 | M47: =RTM!AP39 -> 65 | N47: =MTK!O39 -> 30 | O47: =RTM!AR39 -> 65 | P47: =RTM!AS39 -> 65 | Q47: =RTM!AT39 -> 65 | R47: =RTM!AU39 -> 65 | S47: =PJOK!N39 -> 52 | T47: =BD!N39 -> 76 | U47: =BIG!N39 -> 75 | V47: =ASWJ!N39 -> 66 | W47: ='MLK1'!N39 -> 65 | X47: ='MLK2'!N39 -> 0 | Y47: ='MLK3'!N39 -> 0 | Z47: 1002 | AA47: 62.625 | AB47: 2 | AE47: cetak | AH47: Tingkatkan prestasimu dan teruslah belajar
B48: 30 | C48: =SW!C39 -> 30 | F48: =SW!G39 -> ROHMADONA DWI SAFITRI | H48: =AH!N40 -> 82 | I48: =AA!N40 -> 94 | J48: =FQ!N40 -> 78 | K48: =SKI!N40 -> 57 | L48: =BA!N40 -> 39 | M48: =RTM!AP40 -> 67 | N48: =MTK!O40 -> 30 | O48: =RTM!AR40 -> 67 | P48: =RTM!AS40 -> 67 | Q48: =RTM!AT40 -> 67 | R48: =RTM!AU40 -> 67 | S48: =PJOK!N40 -> 65 | T48: =BD!N40 -> 44 | U48: =BIG!N40 -> 60 | V48: =ASWJ!N40 -> 62 | W48: ='MLK1'!N40 -> 30 | X48: ='MLK2'!N40 -> 0 | Y48: ='MLK3'!N40 -> 0 | Z48: 976 | AA48: 61 | AB48: 3 | AE48: cetak | AH48: Tingkatkan prestasimu dan teruslah belajar
B49: 31 | C49: =SW!C40 -> 31 | F49: =SW!G40 -> SALMAN ALFARIZI | H49: =AH!N41 -> 43 | I49: =AA!N41 -> 35 | J49: =FQ!N41 -> 58 | K49: =SKI!N41 -> 39 | L49: =BA!N41 -> 40 | M49: =RTM!AP41 -> 42 | N49: =MTK!O41 -> 22.5 | O49: =RTM!AR41 -> 42 | P49: =RTM!AS41 -> 42 | Q49: =RTM!AT41 -> 42 | R49: =RTM!AU41 -> 42 | S49: =PJOK!N41 -> 47 | T49: =BD!N41 -> 55 | U49: =BIG!N41 -> 35 | V49: =ASWJ!N41 -> 60 | W49: ='MLK1'!N41 -> 25 | X49: ='MLK2'!N41 -> 0 | Y49: ='MLK3'!N41 -> 0 | Z49: 669.5 | AA49: 41.84375 | AB49: 24 | AE49: cetak | AH49: Pacu terus semangat belajarmu agar lebih meningkat prestasimu
B50: 32 | C50: =SW!C41 -> 32 | F50: =SW!G41 -> TAUFIQ KURROHMAN | H50: =AH!N42 -> 47 | I50: =AA!N42 -> 35 | J50: =FQ!N42 -> 64 | K50: =SKI!N42 -> 42 | L50: =BA!N42 -> 47 | M50: =RTM!AP42 -> 48 | N50: =MTK!O42 -> 17 | O50: =RTM!AR42 -> 48 | P50: =RTM!AS42 -> 48 | Q50: =RTM!AT42 -> 48 | R50: =RTM!AU42 -> 48 | S50: =PJOK!N42 -> 47 | T50: =BD!N42 -> 45 | U50: =BIG!N42 -> 42 | V50: =ASWJ!N42 -> 52 | W50: ='MLK1'!N42 -> 25 | X50: ='MLK2'!N42 -> 0 | Y50: ='MLK3'!N42 -> 0 | Z50: 703 | AA50: 43.9375 | AB50: 22 | AE50: cetak | AH50: Pacu terus semangat belajarmu agar lebih meningkat prestasimu
B51: 33 | C51: =SW!C42 ->  | F51: =SW!G42 -> 0 | H51: =AH!N43 -> 0 | I51: =AA!N43 -> 0 | J51: =FQ!N43 -> 0 | K51: =SKI!N43 -> 0 | L51: =BA!N43 -> 0 | M51: =RTM!AP43 ->  | N51: =MTK!O43 ->  | O51: =RTM!AR43 ->  | P51: =RTM!AS43 ->  | Q51: =RTM!AT43 ->  | R51: =RTM!AU43 ->  | S51: =PJOK!N43 -> 0 | T51: =BD!N43 -> 0 | U51: =BIG!N43 -> 0 | V51: =ASWJ!N43 -> 0 | W51: ='MLK1'!N43 -> 0 | X51: ='MLK2'!N43 -> 0 | Y51: ='MLK3'!N43 -> 0 | Z51: 0 | AA51: =IFERROR(ROUND(AVERAGE(H51:Y51),0),"") -> 0 | AE51: 0
B52: 34 | C52: =SW!C43 ->  | F52: =SW!G43 -> 0 | H52: =AH!N44 -> 0 | I52: =AA!N44 -> 0 | J52: =FQ!N44 -> 0 | K52: =SKI!N44 -> 0 | L52: =BA!N44 -> 0 | M52: =RTM!AP44 ->  | N52: =MTK!O44 ->  | O52: =RTM!AR44 ->  | P52: =RTM!AS44 ->  | Q52: =RTM!AT44 ->  | R52: =RTM!AU44 ->  | S52: =PJOK!N44 -> 0 | T52: =BD!N44 -> 0 | U52: =BIG!N44 -> 0 | V52: =ASWJ!N44 -> 0 | W52: ='MLK1'!N44 -> 0 | X52: ='MLK2'!N44 -> 0 | Y52: ='MLK3'!N44 -> 0 | Z52: 0 | AA52: 0 | AE52: 0
B53: 35 | C53: =SW!C44 ->  | F53: =SW!G44 -> 0 | H53: =AH!N45 -> 0 | I53: =AA!N45 -> 0 | J53: =FQ!N45 -> 0 | K53: =SKI!N45 -> 0 | L53: =BA!N45 -> 0 | M53: =RTM!AP45 ->  | N53: =MTK!O45 ->  | O53: =RTM!AR45 ->  | P53: =RTM!AS45 ->  | Q53: =RTM!AT45 ->  | R53: =RTM!AU45 ->  | S53: =PJOK!N45 -> 0 | T53: =BD!N45 -> 0 | U53: =BIG!N45 -> 0 | V53: =ASWJ!N45 -> 0 | W53: ='MLK1'!N45 -> 0 | X53: ='MLK2'!N45 -> 0 | Y53: ='MLK3'!N45 -> 0 | Z53: 0 | AA53: 0 | AB53: 33 | AE53: 0
B54: 36 | C54: =SW!C45 ->  | F54: =SW!G45 -> 0 | H54: =AH!N46 -> 0 | I54: =AA!N46 -> 0 | J54: =FQ!N46 -> 0 | K54: =SKI!N46 -> 0 | L54: =BA!N46 -> 0 | M54: =RTM!AP46 ->  | N54: =MTK!O46 ->  | O54: =RTM!AR46 ->  | P54: =RTM!AS46 ->  | Q54: =RTM!AT46 ->  | R54: =RTM!AU46 ->  | S54: =PJOK!N46 -> 0 | T54: =BD!N46 -> 0 | U54: =BIG!N46 -> 0 | V54: =ASWJ!N46 -> 0 | W54: ='MLK1'!N46 -> 0 | X54: ='MLK2'!N46 -> 0 | Y54: ='MLK3'!N46 -> 0 | Z54: 0 | AA54: 0 | AB54: 33 | AE54: 0
B55: 37 | C55: =SW!C46 ->  | F55: =SW!G46 -> 0 | H55: =AH!N47 -> 0 | I55: =AA!N47 -> 0 | J55: =FQ!N47 -> 0 | K55: =SKI!N47 -> 0 | L55: =BA!N47 -> 0 | M55: =RTM!AP47 ->  | N55: =MTK!O47 ->  | O55: =RTM!AR47 ->  | P55: =RTM!AS47 ->  | Q55: =RTM!AT47 ->  | R55: =RTM!AU47 ->  | S55: =PJOK!N47 -> 0 | T55: =BD!N47 -> 0 | U55: =BIG!N47 -> 0 | V55: =ASWJ!N47 -> 0 | W55: ='MLK1'!N47 -> 0 | X55: ='MLK2'!N47 -> 0 | Y55: ='MLK3'!N47 -> 0 | Z55: 0 | AA55: 0 | AB55: 33 | AE55: 0
B56: 38 | C56: =SW!C47 ->  | F56: =SW!G47 -> 0 | H56: =AH!N48 -> 0 | I56: =AA!N48 -> 0 | J56: =FQ!N48 -> 0 | K56: =SKI!N48 -> 0 | L56: =BA!N48 -> 0 | M56: =RTM!AP48 ->  | N56: =MTK!O48 ->  | O56: =RTM!AR48 ->  | P56: =RTM!AS48 ->  | Q56: =RTM!AT48 ->  | R56: =RTM!AU48 ->  | S56: =PJOK!N48 -> 0 | T56: =BD!N48 -> 0 | U56: =BIG!N48 -> 0 | V56: =ASWJ!N48 -> 0 | W56: ='MLK1'!N48 -> 0 | X56: ='MLK2'!N48 -> 0 | Y56: ='MLK3'!N48 -> 0 | Z56: 0 | AA56: 0 | AB56: 33 | AE56: 0
B57: 39 | C57: =SW!C48 ->  | F57: =SW!G48 -> 0 | H57: =AH!N49 -> 0 | I57: =AA!N49 -> 0 | J57: =FQ!N49 -> 0 | K57: =SKI!N49 -> 0 | L57: =BA!N49 -> 0 | M57: =RTM!AP49 ->  | N57: =MTK!O49 ->  | O57: =RTM!AR49 ->  | P57: =RTM!AS49 ->  | Q57: =RTM!AT49 ->  | R57: =RTM!AU49 ->  | S57: =PJOK!N49 -> 0 | T57: =BD!N49 -> 0 | U57: =BIG!N49 -> 0 | V57: =ASWJ!N49 -> 0 | W57: ='MLK1'!N49 -> 0 | X57: ='MLK2'!N49 -> 0 | Y57: ='MLK3'!N49 -> 0 | Z57: 0 | AA57: 0 | AB57: 33 | AE57: 0
B58: 40 | C58: =SW!C49 ->  | F58: =SW!G49 -> 0 | H58: =AH!N50 -> 0 | I58: =AA!N50 -> 0 | J58: =FQ!N50 -> 0 | K58: =SKI!N50 -> 0 | L58: =BA!N50 -> 0 | M58: =RTM!AP50 ->  | N58: =MTK!O50 ->  | O58: =RTM!AR50 ->  | P58: =RTM!AS50 ->  | Q58: =RTM!AT50 ->  | R58: =RTM!AU50 ->  | S58: =PJOK!N50 -> 0 | T58: =BD!N50 -> 0 | U58: =BIG!N50 -> 0 | V58: =ASWJ!N50 -> 0 | W58: ='MLK1'!N50 -> 0 | X58: ='MLK2'!N50 -> 0 | Y58: ='MLK3'!N50 -> 0 | Z58: 0 | AA58: 0 | AB58: 33 | AE58: 0
B59: 41 | C59: =SW!C50 ->  | F59: =SW!G50 -> 0 | H59: =AH!N51 -> 0 | I59: =AA!N51 -> 0 | J59: =FQ!N51 -> 0 | K59: =SKI!N51 -> 0 | L59: =BA!N51 -> 0 | M59: =RTM!AP51 ->  | N59: =MTK!O51 ->  | O59: =RTM!AR51 ->  | P59: =RTM!AS51 ->  | Q59: =RTM!AT51 ->  | R59: =RTM!AU51 ->  | S59: =PJOK!N51 -> 0 | T59: =BD!N51 -> 0 | U59: =BIG!N51 -> 0 | V59: =ASWJ!N51 -> 0 | W59: ='MLK1'!N51 -> 0 | X59: ='MLK2'!N51 -> 0 | Y59: ='MLK3'!N51 -> 0 | Z59: 0 | AA59: 0 | AB59: 33 | AE59: 0
B60: 42 | C60: =SW!C51 ->  | F60: =SW!G51 -> 0 | H60: =AH!N52 -> 0 | I60: =AA!N52 -> 0 | J60: =FQ!N52 -> 0 | K60: =SKI!N52 -> 0 | L60: =BA!N52 -> 0 | M60: =RTM!AP52 ->  | N60: =MTK!O52 ->  | O60: =RTM!AR52 ->  | P60: =RTM!AS52 ->  | Q60: =RTM!AT52 ->  | R60: =RTM!AU52 ->  | S60: =PJOK!N52 -> 0 | T60: =BD!N52 -> 0 | U60: =BIG!N52 -> 0 | V60: =ASWJ!N52 -> 0 | W60: ='MLK1'!N52 -> 0 | X60: ='MLK2'!N52 -> 0 | Y60: ='MLK3'!N52 -> 0 | Z60: 0 | AA60: 0 | AB60: 33 | AE60: 0
B61: 43 | C61: =SW!C52 ->  | F61: =SW!G52 -> 0 | H61: =AH!N53 -> 0 | I61: =AA!N53 -> 0 | J61: =FQ!N53 -> 0 | K61: =SKI!N53 -> 0 | L61: =BA!N53 -> 0 | M61: =RTM!AP53 ->  | N61: =MTK!O53 ->  | O61: =RTM!AR53 ->  | P61: =RTM!AS53 ->  | Q61: =RTM!AT53 ->  | R61: =RTM!AU53 ->  | S61: =PJOK!N53 -> 0 | T61: =BD!N53 -> 0 | U61: =BIG!N53 -> 0 | V61: =ASWJ!N53 -> 0 | W61: ='MLK1'!N53 -> 0 | X61: ='MLK2'!N53 -> 0 | Y61: ='MLK3'!N53 -> 0 | Z61: 0 | AA61: 0 | AB61: 33 | AE61: 0
B62: 44 | C62: =SW!C53 ->  | F62: =SW!G53 -> 0 | H62: =AH!N54 -> 0 | I62: =AA!N54 -> 0 | J62: =FQ!N54 -> 0 | K62: =SKI!N54 -> 0 | L62: =BA!N54 -> 0 | M62: =RTM!AP54 ->  | N62: =MTK!O54 ->  | O62: =RTM!AR54 ->  | P62: =RTM!AS54 ->  | Q62: =RTM!AT54 ->  | R62: =RTM!AU54 ->  | S62: =PJOK!N54 -> 0 | T62: =BD!N54 -> 0 | U62: =BIG!N54 -> 0 | V62: =ASWJ!N54 -> 0 | W62: ='MLK1'!N54 -> 0 | X62: ='MLK2'!N54 -> 0 | Y62: ='MLK3'!N54 -> 0 | Z62: 0 | AA62: 0 | AB62: 33 | AE62: 0
B63: 45 | C63: =SW!C54 ->  | F63: =SW!G54 -> 0 | H63: =AH!N55 -> 0 | I63: =AA!N55 -> 0 | J63: =FQ!N55 -> 0 | K63: =SKI!N55 -> 0 | L63: =BA!N55 -> 0 | M63: =RTM!AP55 ->  | N63: =MTK!O55 ->  | O63: =RTM!AR55 ->  | P63: =RTM!AS55 ->  | Q63: =RTM!AT55 ->  | R63: =RTM!AU55 ->  | S63: =PJOK!N55 -> 0 | T63: =BD!N55 -> 0 | U63: =BIG!N55 -> 0 | V63: =ASWJ!N55 -> 0 | W63: ='MLK1'!N55 -> 0 | X63: ='MLK2'!N55 -> 0 | Y63: ='MLK3'!N55 -> 0 | Z63: 0 | AA63: 0 | AB63: 33 | AE63: 0
B64: 46 | C64: =SW!C55 ->  | F64: =SW!G55 -> 0 | H64: =AH!N56 -> 0 | I64: =AA!N56 -> 0 | J64: =FQ!N56 -> 0 | K64: =SKI!N56 -> 0 | L64: =BA!N56 -> 0 | M64: =RTM!AP56 ->  | N64: =MTK!O56 ->  | O64: =RTM!AR56 ->  | P64: =RTM!AS56 ->  | Q64: =RTM!AT56 ->  | R64: =RTM!AU56 ->  | S64: =PJOK!N56 -> 0 | T64: =BD!N56 -> 0 | U64: =BIG!N56 -> 0 | V64: =ASWJ!N56 -> 0 | W64: ='MLK1'!N56 -> 0 | X64: ='MLK2'!N56 -> 0 | Y64: ='MLK3'!N56 -> 0 | Z64: 0 | AA64: 0 | AB64: 33 | AE64: 0
B65: 47 | C65: =SW!C56 ->  | F65: =SW!G56 -> 0 | H65: =AH!N57 -> 0 | I65: =AA!N57 -> 0 | J65: =FQ!N57 -> 0 | K65: =SKI!N57 -> 0 | L65: =BA!N57 -> 0 | M65: =RTM!AP57 ->  | N65: =MTK!O57 ->  | O65: =RTM!AR57 ->  | P65: =RTM!AS57 ->  | Q65: =RTM!AT57 ->  | R65: =RTM!AU57 ->  | S65: =PJOK!N57 -> 0 | T65: =BD!N57 -> 0 | U65: =BIG!N57 -> 0 | V65: =ASWJ!N57 -> 0 | W65: ='MLK1'!N57 -> 0 | X65: ='MLK2'!N57 -> 0 | Y65: ='MLK3'!N57 -> 0 | Z65: 0 | AA65: 0 | AB65: 33 | AE65: 0
B66: 48 | C66: =SW!C57 ->  | F66: =SW!G57 -> 0 | H66: =AH!N58 -> 0 | I66: =AA!N58 -> 0 | J66: =FQ!N58 -> 0 | K66: =SKI!N58 -> 0 | L66: =BA!N58 -> 0 | M66: =RTM!AP58 ->  | N66: =MTK!O58 ->  | O66: =RTM!AR58 ->  | P66: =RTM!AS58 ->  | Q66: =RTM!AT58 ->  | R66: =RTM!AU58 ->  | S66: =PJOK!N58 -> 0 | T66: =BD!N58 -> 0 | U66: =BIG!N58 -> 0 | V66: =ASWJ!N58 -> 0 | W66: ='MLK1'!N58 -> 0 | X66: ='MLK2'!N58 -> 0 | Y66: ='MLK3'!N58 -> 0 | Z66: 0 | AA66: 0 | AB66: 33 | AE66: 0
B67: 49 | C67: =SW!C58 ->  | F67: =SW!G58 -> 0 | H67: =AH!N59 -> 0 | I67: =AA!N59 -> 0 | J67: =FQ!N59 -> 0 | K67: =SKI!N59 -> 0 | L67: =BA!N59 -> 0 | M67: =RTM!AP59 ->  | N67: =MTK!O59 ->  | O67: =RTM!AR59 ->  | P67: =RTM!AS59 ->  | Q67: =RTM!AT59 ->  | R67: =RTM!AU59 ->  | S67: =PJOK!N59 -> 0 | T67: =BD!N59 -> 0 | U67: =BIG!N59 -> 0 | V67: =ASWJ!N59 -> 0 | W67: ='MLK1'!N59 -> 0 | X67: ='MLK2'!N59 -> 0 | Y67: ='MLK3'!N59 -> 0 | Z67: 0 | AA67: 0 | AB67: 33 | AE67: 0
B68: 50 | C68: =SW!C59 ->  | F68: =SW!G59 -> 0 | H68: =AH!N60 -> 0 | I68: =AA!N60 -> 0 | J68: =FQ!N60 -> 0 | K68: =SKI!N60 -> 0 | L68: =BA!N60 -> 0 | M68: =RTM!AP60 ->  | N68: =MTK!O60 ->  | O68: =RTM!AR60 ->  | P68: =RTM!AS60 ->  | Q68: =RTM!AT60 ->  | R68: =RTM!AU60 ->  | S68: =PJOK!N60 -> 0 | T68: =BD!N60 -> 0 | U68: =BIG!N60 -> 0 | V68: =ASWJ!N60 -> 0 | W68: ='MLK1'!N60 -> 0 | X68: ='MLK2'!N60 -> 0 | Y68: ='MLK3'!N60 -> 0 | Z68: 0 | AA68: 0 | AB68: 33 | AE68: 0
B69: 51 | C69: =SW!C60 ->  | F69: =SW!G60 -> 0 | H69: =AH!N61 -> 0 | I69: =AA!N61 -> 0 | J69: =FQ!N61 -> 0 | K69: =SKI!N61 -> 0 | L69: =BA!N61 -> 0 | M69: =RTM!AP61 ->  | N69: =MTK!O61 ->  | O69: =RTM!AR61 ->  | P69: =RTM!AS61 ->  | Q69: =RTM!AT61 ->  | R69: =RTM!AU61 ->  | S69: =PJOK!N61 -> 0 | T69: =BD!N61 -> 0 | U69: =BIG!N61 -> 0 | V69: =ASWJ!N61 -> 0 | W69: ='MLK1'!N61 -> 0 | X69: ='MLK2'!N61 -> 0 | Y69: ='MLK3'!N61 -> 0 | Z69: 0 | AA69: 0 | AB69: 33 | AE69: 0
B70: 52 | C70: =SW!C61 ->  | F70: =SW!G61 -> 0 | H70: =AH!N62 -> 0 | I70: =AA!N62 -> 0 | J70: =FQ!N62 -> 0 | K70: =SKI!N62 -> 0 | L70: =BA!N62 -> 0 | M70: =RTM!AP62 ->  | N70: =MTK!O62 ->  | O70: =RTM!AR62 ->  | P70: =RTM!AS62 ->  | Q70: =RTM!AT62 ->  | R70: =RTM!AU62 ->  | S70: =PJOK!N62 -> 0 | T70: =BD!N62 -> 0 | U70: =BIG!N62 -> 0 | V70: =ASWJ!N62 -> 0 | W70: ='MLK1'!N62 -> 0 | X70: ='MLK2'!N62 -> 0 | Y70: ='MLK3'!N62 -> 0 | Z70: 0 | AA70: 0 | AB70: 33 | AE70: 0
B71: 53 | C71: =SW!C62 ->  | F71: =SW!G62 -> 0 | H71: =AH!N63 -> 0 | I71: =AA!N63 -> 0 | J71: =FQ!N63 -> 0 | K71: =SKI!N63 -> 0 | L71: =BA!N63 -> 0 | M71: =RTM!AP63 ->  | N71: =MTK!O63 ->  | O71: =RTM!AR63 ->  | P71: =RTM!AS63 ->  | Q71: =RTM!AT63 ->  | R71: =RTM!AU63 ->  | S71: =PJOK!N63 -> 0 | T71: =BD!N63 -> 0 | U71: =BIG!N63 -> 0 | V71: =ASWJ!N63 -> 0 | W71: ='MLK1'!N63 -> 0 | X71: ='MLK2'!N63 -> 0 | Y71: ='MLK3'!N63 -> 0 | Z71: 0 | AA71: 0 | AB71: 33 | AE71: 0
B72: 54 | C72: =SW!C63 ->  | F72: =SW!G63 -> 0 | H72: =AH!N64 -> 0 | I72: =AA!N64 -> 0 | J72: =FQ!N64 -> 0 | K72: =SKI!N64 -> 0 | L72: =BA!N64 -> 0 | M72: =RTM!AP64 ->  | N72: =MTK!O64 ->  | O72: =RTM!AR64 ->  | P72: =RTM!AS64 ->  | Q72: =RTM!AT64 ->  | R72: =RTM!AU64 ->  | S72: =PJOK!N64 -> 0 | T72: =BD!N64 -> 0 | U72: =BIG!N64 -> 0 | V72: =ASWJ!N64 -> 0 | W72: ='MLK1'!N64 -> 0 | X72: ='MLK2'!N64 -> 0 | Y72: ='MLK3'!N64 -> 0 | Z72: 0 | AA72: 0 | AB72: 33 | AE72: 0
B73: 55 | C73: =SW!C64 ->  | F73: =SW!G64 -> 0 | H73: =AH!N65 -> 0 | I73: =AA!N65 -> 0 | J73: =FQ!N65 -> 0 | K73: =SKI!N65 -> 0 | L73: =BA!N65 -> 0 | M73: =RTM!AP65 ->  | N73: =MTK!O65 ->  | O73: =RTM!AR65 ->  | P73: =RTM!AS65 ->  | Q73: =RTM!AT65 ->  | R73: =RTM!AU65 ->  | S73: =PJOK!N65 -> 0 | T73: =BD!N65 -> 0 | U73: =BIG!N65 -> 0 | V73: =ASWJ!N65 -> 0 | W73: ='MLK1'!N65 -> 0 | X73: ='MLK2'!N65 -> 0 | Y73: ='MLK3'!N65 -> 0 | Z73: 0 | AA73: 0 | AB73: 33 | AE73: 0
B74: 56 | C74: =SW!C65 ->  | F74: =SW!G65 -> 0 | H74: =AH!N66 -> 0 | I74: =AA!N66 -> 0 | J74: =FQ!N66 -> 0 | K74: =SKI!N66 -> 0 | L74: =BA!N66 -> 0 | M74: =RTM!AP66 ->  | N74: =MTK!O66 ->  | O74: =RTM!AR66 ->  | P74: =RTM!AS66 ->  | Q74: =RTM!AT66 ->  | R74: =RTM!AU66 ->  | S74: =PJOK!N66 -> 0 | T74: =BD!N66 -> 0 | U74: =BIG!N66 -> 0 | V74: =ASWJ!N66 -> 0 | W74: ='MLK1'!N66 -> 0 | X74: ='MLK2'!N66 -> 0 | Y74: ='MLK3'!N66 -> 0 | Z74: 0 | AA74: 0 | AB74: 33 | AE74: 0
B75: 57 | C75: =SW!C66 ->  | F75: =SW!G66 -> 0 | H75: =AH!N67 -> 0 | I75: =AA!N67 -> 0 | J75: =FQ!N67 -> 0 | K75: =SKI!N67 -> 0 | L75: =BA!N67 -> 0 | M75: =RTM!AP67 ->  | N75: =MTK!O67 ->  | O75: =RTM!AR67 ->  | P75: =RTM!AS67 ->  | Q75: =RTM!AT67 ->  | R75: =RTM!AU67 ->  | S75: =PJOK!N67 -> 0 | T75: =BD!N67 -> 0 | U75: =BIG!N67 -> 0 | V75: =ASWJ!N67 -> 0 | W75: ='MLK1'!N67 -> 0 | X75: ='MLK2'!N67 -> 0 | Y75: ='MLK3'!N67 -> 0 | Z75: 0 | AA75: 0 | AB75: 33 | AE75: 0
B76: 58 | C76: =SW!C67 ->  | F76: =SW!G67 -> 0 | H76: =AH!N68 -> 0 | I76: =AA!N68 -> 0 | J76: =FQ!N68 -> 0 | K76: =SKI!N68 -> 0 | L76: =BA!N68 -> 0 | M76: =RTM!AP68 ->  | N76: =MTK!O68 ->  | O76: =RTM!AR68 ->  | P76: =RTM!AS68 ->  | Q76: =RTM!AT68 ->  | R76: =RTM!AU68 ->  | S76: =PJOK!N68 -> 0 | T76: =BD!N68 -> 0 | U76: =BIG!N68 -> 0 | V76: =ASWJ!N68 -> 0 | W76: ='MLK1'!N68 -> 0 | X76: ='MLK2'!N68 -> 0 | Y76: ='MLK3'!N68 -> 0 | Z76: 0 | AA76: 0 | AB76: 33 | AE76: 0
B77: 59 | C77: =SW!C68 ->  | F77: =SW!G68 -> 0 | H77: =AH!N69 -> 0 | I77: =AA!N69 -> 0 | J77: =FQ!N69 -> 0 | K77: =SKI!N69 -> 0 | L77: =BA!N69 -> 0 | M77: =RTM!AP69 ->  | N77: =MTK!O69 ->  | O77: =RTM!AR69 ->  | P77: =RTM!AS69 ->  | Q77: =RTM!AT69 ->  | R77: =RTM!AU69 ->  | S77: =PJOK!N69 -> 0 | T77: =BD!N69 -> 0 | U77: =BIG!N69 -> 0 | V77: =ASWJ!N69 -> 0 | W77: ='MLK1'!N69 -> 0 | X77: ='MLK2'!N69 -> 0 | Y77: ='MLK3'!N69 -> 0 | Z77: 0 | AA77: 0 | AB77: 33 | AE77: 0
B78: 60 | C78: =SW!C69 ->  | F78: =SW!G69 -> 0 | H78: =AH!N70 -> 0 | I78: =AA!N70 -> 0 | J78: =FQ!N70 -> 0 | K78: =SKI!N70 -> 0 | L78: =BA!N70 -> 0 | M78: =RTM!AP70 ->  | N78: =MTK!O70 ->  | O78: =RTM!AR70 ->  | P78: =RTM!AS70 ->  | Q78: =RTM!AT70 ->  | R78: =RTM!AU70 ->  | S78: =PJOK!N70 -> 0 | T78: =BD!N70 -> 0 | U78: =BIG!N70 -> 0 | V78: =ASWJ!N70 -> 0 | W78: ='MLK1'!N70 -> 0 | X78: ='MLK2'!N70 -> 0 | Y78: ='MLK3'!N70 -> 0 | Z78: 0 | AA78: 0 | AB78: 33 | AE78: 0
B79: 61 | C79: =SW!C70 ->  | F79: =SW!G70 -> 0 | H79: =AH!N71 -> 0 | I79: =AA!N71 -> 0 | J79: =FQ!N71 -> 0 | K79: =SKI!N71 -> 0 | L79: =BA!N71 -> 0 | M79: =RTM!AP71 ->  | N79: =MTK!O71 ->  | O79: =RTM!AR71 ->  | P79: =RTM!AS71 ->  | Q79: =RTM!AT71 ->  | R79: =RTM!AU71 ->  | S79: =PJOK!N71 -> 0 | T79: =BD!N71 -> 0 | U79: =BIG!N71 -> 0 | V79: =ASWJ!N71 -> 0 | W79: ='MLK1'!N71 -> 0 | X79: ='MLK2'!N71 -> 0 | Y79: ='MLK3'!N71 -> 0 | Z79: 0 | AA79: 0 | AB79: 33 | AE79: 0
B80: 62 | C80: =SW!C71 ->  | F80: =SW!G71 -> 0 | H80: =AH!N72 -> 0 | I80: =AA!N72 -> 0 | J80: =FQ!N72 -> 0 | K80: =SKI!N72 -> 0 | L80: =BA!N72 -> 0 | M80: =RTM!AP72 ->  | N80: =MTK!O72 ->  | O80: =RTM!AR72 ->  | P80: =RTM!AS72 ->  | Q80: =RTM!AT72 ->  | R80: =RTM!AU72 ->  | S80: =PJOK!N72 -> 0 | T80: =BD!N72 -> 0 | U80: =BIG!N72 -> 0 | V80: =ASWJ!N72 -> 0 | W80: ='MLK1'!N72 -> 0 | X80: ='MLK2'!N72 -> 0 | Y80: ='MLK3'!N72 -> 0 | Z80: 0 | AA80: 0 | AB80: 33 | AE80: 0
B81: 63 | C81: =SW!C72 ->  | F81: =SW!G72 -> 0 | H81: =AH!N73 -> 0 | I81: =AA!N73 -> 0 | J81: =FQ!N73 -> 0 | K81: =SKI!N73 -> 0 | L81: =BA!N73 -> 0 | M81: =RTM!AP73 ->  | N81: =MTK!O73 ->  | O81: =RTM!AR73 ->  | P81: =RTM!AS73 ->  | Q81: =RTM!AT73 ->  | R81: =RTM!AU73 ->  | S81: =PJOK!N73 -> 0 | T81: =BD!N73 -> 0 | U81: =BIG!N73 -> 0 | V81: =ASWJ!N73 -> 0 | W81: ='MLK1'!N73 -> 0 | X81: ='MLK2'!N73 -> 0 | Y81: ='MLK3'!N73 -> 0 | Z81: 0 | AA81: 0 | AB81: 33 | AE81: 0
B82: 64 | C82: =SW!C73 ->  | F82: =SW!G73 -> 0 | H82: =AH!N74 -> 0 | I82: =AA!N74 -> 0 | J82: =FQ!N74 -> 0 | K82: =SKI!N74 -> 0 | L82: =BA!N74 -> 0 | M82: =RTM!AP74 ->  | N82: =MTK!O74 ->  | O82: =RTM!AR74 ->  | P82: =RTM!AS74 ->  | Q82: =RTM!AT74 ->  | R82: =RTM!AU74 ->  | S82: =PJOK!N74 -> 0 | T82: =BD!N74 -> 0 | U82: =BIG!N74 -> 0 | V82: =ASWJ!N74 -> 0 | W82: ='MLK1'!N74 -> 0 | X82: ='MLK2'!N74 -> 0 | Y82: ='MLK3'!N74 -> 0 | Z82: 0 | AA82: 0 | AB82: 33 | AE82: 0
B83: 65 | C83: =SW!C74 ->  | F83: =SW!G74 -> 0 | H83: =AH!N75 -> 0 | I83: =AA!N75 -> 0 | J83: =FQ!N75 -> 0 | K83: =SKI!N75 -> 0 | L83: =BA!N75 -> 0 | M83: =RTM!AP75 ->  | N83: =MTK!O75 ->  | O83: =RTM!AR75 ->  | P83: =RTM!AS75 ->  | Q83: =RTM!AT75 ->  | R83: =RTM!AU75 ->  | S83: =PJOK!N75 -> 0 | T83: =BD!N75 -> 0 | U83: =BIG!N75 -> 0 | V83: =ASWJ!N75 -> 0 | W83: ='MLK1'!N75 -> 0 | X83: ='MLK2'!N75 -> 0 | Y83: ='MLK3'!N75 -> 0 | Z83: 0 | AA83: 0 | AB83: 33 | AE83: 0
B84: 66 | C84: =SW!C75 ->  | F84: =SW!G75 -> 0 | H84: =AH!N76 -> 0 | I84: =AA!N76 -> 0 | J84: =FQ!N76 -> 0 | K84: =SKI!N76 -> 0 | L84: =BA!N76 -> 0 | M84: =RTM!AP76 ->  | N84: =MTK!O76 ->  | O84: =RTM!AR76 ->  | P84: =RTM!AS76 ->  | Q84: =RTM!AT76 ->  | R84: =RTM!AU76 ->  | S84: =PJOK!N76 -> 0 | T84: =BD!N76 -> 0 | U84: =BIG!N76 -> 0 | V84: =ASWJ!N76 -> 0 | W84: ='MLK1'!N76 -> 0 | X84: ='MLK2'!N76 -> 0 | Y84: ='MLK3'!N76 -> 0 | Z84: =SUM(H84:Y84) -> 0 | AA84: =IFERROR(ROUND(AVERAGE(H84:Y84),0),"") -> 0 | AB84: =RANK(Z84,$Z$19:$Z$107) -> 33 | AE84: =IF(C84="",0,"cetak") -> 0
B85: 67 | C85: =SW!C76 ->  | F85: =SW!G76 -> 0 | H85: =AH!N77 -> 0 | I85: =AA!N77 -> 0 | J85: =FQ!N77 -> 0 | K85: =SKI!N77 -> 0 | L85: =BA!N77 -> 0 | M85: =RTM!AP77 ->  | N85: =MTK!O77 ->  | O85: =RTM!AR77 ->  | P85: =RTM!AS77 ->  | Q85: =RTM!AT77 ->  | R85: =RTM!AU77 ->  | S85: =PJOK!N77 -> 0 | T85: =BD!N77 -> 0 | U85: =BIG!N77 -> 0 | V85: =ASWJ!N77 -> 0 | W85: ='MLK1'!N77 -> 0 | X85: ='MLK2'!N77 -> 0 | Y85: ='MLK3'!N77 -> 0 | Z85: 0 | AA85: 0 | AB85: 33 | AE85: 0
B86: 68 | C86: =SW!C77 ->  | F86: =SW!G77 -> 0 | H86: =AH!N78 -> 0 | I86: =AA!N78 -> 0 | J86: =FQ!N78 -> 0 | K86: =SKI!N78 -> 0 | L86: =BA!N78 -> 0 | M86: =RTM!AP78 ->  | N86: =MTK!O78 ->  | O86: =RTM!AR78 ->  | P86: =RTM!AS78 ->  | Q86: =RTM!AT78 ->  | R86: =RTM!AU78 ->  | S86: =PJOK!N78 -> 0 | T86: =BD!N78 -> 0 | U86: =BIG!N78 -> 0 | V86: =ASWJ!N78 -> 0 | W86: ='MLK1'!N78 -> 0 | X86: ='MLK2'!N78 -> 0 | Y86: ='MLK3'!N78 -> 0 | Z86: 0 | AA86: 0 | AB86: 33 | AE86: 0
B87: 69 | C87: =SW!C78 ->  | F87: =SW!G78 -> 0 | H87: =AH!N79 -> 0 | I87: =AA!N79 -> 0 | J87: =FQ!N79 -> 0 | K87: =SKI!N79 -> 0 | L87: =BA!N79 -> 0 | M87: =RTM!AP79 ->  | N87: =MTK!O79 ->  | O87: =RTM!AR79 ->  | P87: =RTM!AS79 ->  | Q87: =RTM!AT79 ->  | R87: =RTM!AU79 ->  | S87: =PJOK!N79 -> 0 | T87: =BD!N79 -> 0 | U87: =BIG!N79 -> 0 | V87: =ASWJ!N79 -> 0 | W87: ='MLK1'!N79 -> 0 | X87: ='MLK2'!N79 -> 0 | Y87: ='MLK3'!N79 -> 0 | Z87: 0 | AA87: 0 | AB87: 33 | AE87: 0
B88: 70 | C88: =SW!C79 ->  | F88: =SW!G79 -> 0 | H88: =AH!N80 -> 0 | I88: =AA!N80 -> 0 | J88: =FQ!N80 -> 0 | K88: =SKI!N80 -> 0 | L88: =BA!N80 -> 0 | M88: =RTM!AP80 ->  | N88: =MTK!O80 ->  | O88: =RTM!AR80 ->  | P88: =RTM!AS80 ->  | Q88: =RTM!AT80 ->  | R88: =RTM!AU80 ->  | S88: =PJOK!N80 -> 0 | T88: =BD!N80 -> 0 | U88: =BIG!N80 -> 0 | V88: =ASWJ!N80 -> 0 | W88: ='MLK1'!N80 -> 0 | X88: ='MLK2'!N80 -> 0 | Y88: ='MLK3'!N80 -> 0 | Z88: 0 | AA88: 0 | AB88: 33 | AE88: 0
B89: 71 | C89: =SW!C80 ->  | F89: =SW!G80 -> 0 | H89: =AH!N81 -> 0 | I89: =AA!N81 -> 0 | J89: =FQ!N81 -> 0 | K89: =SKI!N81 -> 0 | L89: =BA!N81 -> 0 | M89: =RTM!AP81 ->  | N89: =MTK!O81 ->  | O89: =RTM!AR81 ->  | P89: =RTM!AS81 ->  | Q89: =RTM!AT81 ->  | R89: =RTM!AU81 ->  | S89: =PJOK!N81 -> 0 | T89: =BD!N81 -> 0 | U89: =BIG!N81 -> 0 | V89: =ASWJ!N81 -> 0 | W89: ='MLK1'!N81 -> 0 | X89: ='MLK2'!N81 -> 0 | Y89: ='MLK3'!N81 -> 0 | Z89: 0 | AA89: 0 | AB89: 33 | AE89: 0
B90: 72 | C90: =SW!C81 ->  | F90: =SW!G81 -> 0 | H90: =AH!N82 -> 0 | I90: =AA!N82 -> 0 | J90: =FQ!N82 -> 0 | K90: =SKI!N82 -> 0 | L90: =BA!N82 -> 0 | M90: =RTM!AP82 ->  | N90: =MTK!O82 ->  | O90: =RTM!AR82 ->  | P90: =RTM!AS82 ->  | Q90: =RTM!AT82 ->  | R90: =RTM!AU82 ->  | S90: =PJOK!N82 -> 0 | T90: =BD!N82 -> 0 | U90: =BIG!N82 -> 0 | V90: =ASWJ!N82 -> 0 | W90: ='MLK1'!N82 -> 0 | X90: ='MLK2'!N82 -> 0 | Y90: ='MLK3'!N82 -> 0 | Z90: 0 | AA90: 0 | AB90: 33 | AE90: 0
B91: 73 | C91: =SW!C82 ->  | F91: =SW!G82 -> 0 | H91: =AH!N83 -> 0 | I91: =AA!N83 -> 0 | J91: =FQ!N83 -> 0 | K91: =SKI!N83 -> 0 | L91: =BA!N83 -> 0 | M91: =RTM!AP83 ->  | N91: =MTK!O83 ->  | O91: =RTM!AR83 ->  | P91: =RTM!AS83 ->  | Q91: =RTM!AT83 ->  | R91: =RTM!AU83 ->  | S91: =PJOK!N83 -> 0 | T91: =BD!N83 -> 0 | U91: =BIG!N83 -> 0 | V91: =ASWJ!N83 -> 0 | W91: ='MLK1'!N83 -> 0 | X91: ='MLK2'!N83 -> 0 | Y91: ='MLK3'!N83 -> 0 | Z91: 0 | AA91: 0 | AB91: 33 | AE91: 0
B92: 74 | C92: =SW!C83 ->  | F92: =SW!G83 -> 0 | H92: =AH!N84 -> 0 | I92: =AA!N84 -> 0 | J92: =FQ!N84 -> 0 | K92: =SKI!N84 -> 0 | L92: =BA!N84 -> 0 | M92: =RTM!AP84 ->  | N92: =MTK!O84 ->  | O92: =RTM!AR84 ->  | P92: =RTM!AS84 ->  | Q92: =RTM!AT84 ->  | R92: =RTM!AU84 ->  | S92: =PJOK!N84 -> 0 | T92: =BD!N84 -> 0 | U92: =BIG!N84 -> 0 | V92: =ASWJ!N84 -> 0 | W92: ='MLK1'!N84 -> 0 | X92: ='MLK2'!N84 -> 0 | Y92: ='MLK3'!N84 -> 0 | Z92: 0 | AA92: 0 | AB92: 33 | AE92: 0
B93: 75 | C93: =SW!C84 ->  | F93: =SW!G84 -> 0 | H93: =AH!N85 -> 0 | I93: =AA!N85 -> 0 | J93: =FQ!N85 -> 0 | K93: =SKI!N85 -> 0 | L93: =BA!N85 -> 0 | M93: =RTM!AP85 ->  | N93: =MTK!O85 ->  | O93: =RTM!AR85 ->  | P93: =RTM!AS85 ->  | Q93: =RTM!AT85 ->  | R93: =RTM!AU85 ->  | S93: =PJOK!N85 -> 0 | T93: =BD!N85 -> 0 | U93: =BIG!N85 -> 0 | V93: =ASWJ!N85 -> 0 | W93: ='MLK1'!N85 -> 0 | X93: ='MLK2'!N85 -> 0 | Y93: ='MLK3'!N85 -> 0 | Z93: 0 | AA93: 0 | AB93: 33 | AE93: 0
B94: 76 | C94: =SW!C85 ->  | F94: =SW!G85 -> 0 | H94: =AH!N86 -> 0 | I94: =AA!N86 -> 0 | J94: =FQ!N86 -> 0 | K94: =SKI!N86 -> 0 | L94: =BA!N86 -> 0 | M94: =RTM!AP86 ->  | N94: =MTK!O86 ->  | O94: =RTM!AR86 ->  | P94: =RTM!AS86 ->  | Q94: =RTM!AT86 ->  | R94: =RTM!AU86 ->  | S94: =PJOK!N86 -> 0 | T94: =BD!N86 -> 0 | U94: =BIG!N86 -> 0 | V94: =ASWJ!N86 -> 0 | W94: ='MLK1'!N86 -> 0 | X94: ='MLK2'!N86 -> 0 | Y94: ='MLK3'!N86 -> 0 | Z94: 0 | AA94: 0 | AB94: 33 | AE94: 0
B95: 77 | C95: =SW!C86 ->  | F95: =SW!G86 -> 0 | H95: =AH!N87 -> 0 | I95: =AA!N87 -> 0 | J95: =FQ!N87 -> 0 | K95: =SKI!N87 -> 0 | L95: =BA!N87 -> 0 | M95: =RTM!AP87 ->  | N95: =MTK!O87 ->  | O95: =RTM!AR87 ->  | P95: =RTM!AS87 ->  | Q95: =RTM!AT87 ->  | R95: =RTM!AU87 ->  | S95: =PJOK!N87 -> 0 | T95: =BD!N87 -> 0 | U95: =BIG!N87 -> 0 | V95: =ASWJ!N87 -> 0 | W95: ='MLK1'!N87 -> 0 | X95: ='MLK2'!N87 -> 0 | Y95: ='MLK3'!N87 -> 0 | Z95: 0 | AA95: 0 | AB95: 33 | AE95: 0
B96: 78 | C96: =SW!C87 ->  | F96: =SW!G87 -> 0 | H96: =AH!N88 -> 0 | I96: =AA!N88 -> 0 | J96: =FQ!N88 -> 0 | K96: =SKI!N88 -> 0 | L96: =BA!N88 -> 0 | M96: =RTM!AP88 ->  | N96: =MTK!O88 ->  | O96: =RTM!AR88 ->  | P96: =RTM!AS88 ->  | Q96: =RTM!AT88 ->  | R96: =RTM!AU88 ->  | S96: =PJOK!N88 -> 0 | T96: =BD!N88 -> 0 | U96: =BIG!N88 -> 0 | V96: =ASWJ!N88 -> 0 | W96: ='MLK1'!N88 -> 0 | X96: ='MLK2'!N88 -> 0 | Y96: ='MLK3'!N88 -> 0 | Z96: 0 | AA96: 0 | AB96: 33 | AE96: 0
B97: 79 | C97: =SW!C88 ->  | F97: =SW!G88 -> 0 | H97: =AH!N89 -> 0 | I97: =AA!N89 -> 0 | J97: =FQ!N89 -> 0 | K97: =SKI!N89 -> 0 | L97: =BA!N89 -> 0 | M97: =RTM!AP89 ->  | N97: =MTK!O89 ->  | O97: =RTM!AR89 ->  | P97: =RTM!AS89 ->  | Q97: =RTM!AT89 ->  | R97: =RTM!AU89 ->  | S97: =PJOK!N89 -> 0 | T97: =BD!N89 -> 0 | U97: =BIG!N89 -> 0 | V97: =ASWJ!N89 -> 0 | W97: ='MLK1'!N89 -> 0 | X97: ='MLK2'!N89 -> 0 | Y97: ='MLK3'!N89 -> 0 | Z97: 0 | AA97: 0 | AB97: 33 | AE97: 0
B98: 80 | C98: =SW!C89 ->  | F98: =SW!G89 -> 0 | H98: =AH!N90 -> 0 | I98: =AA!N90 -> 0 | J98: =FQ!N90 -> 0 | K98: =SKI!N90 -> 0 | L98: =BA!N90 -> 0 | M98: =RTM!AP90 ->  | N98: =MTK!O90 ->  | O98: =RTM!AR90 ->  | P98: =RTM!AS90 ->  | Q98: =RTM!AT90 ->  | R98: =RTM!AU90 ->  | S98: =PJOK!N90 -> 0 | T98: =BD!N90 -> 0 | U98: =BIG!N90 -> 0 | V98: =ASWJ!N90 -> 0 | W98: ='MLK1'!N90 -> 0 | X98: ='MLK2'!N90 -> 0 | Y98: ='MLK3'!N90 -> 0 | Z98: 0 | AA98: 0 | AB98: 33 | AE98: 0
B99: 81 | C99: =SW!C90 ->  | F99: =SW!G90 -> 0 | H99: =AH!N91 -> 0 | I99: =AA!N91 -> 0 | J99: =FQ!N91 -> 0 | K99: =SKI!N91 -> 0 | L99: =BA!N91 -> 0 | M99: =RTM!AP91 ->  | N99: =MTK!O91 ->  | O99: =RTM!AR91 ->  | P99: =RTM!AS91 ->  | Q99: =RTM!AT91 ->  | R99: =RTM!AU91 ->  | S99: =PJOK!N91 -> 0 | T99: =BD!N91 -> 0 | U99: =BIG!N91 -> 0 | V99: =ASWJ!N91 -> 0 | W99: ='MLK1'!N91 -> 0 | X99: ='MLK2'!N91 -> 0 | Y99: ='MLK3'!N91 -> 0 | Z99: 0 | AA99: 0 | AB99: 33 | AE99: 0
B100: 82 | C100: =SW!C91 ->  | F100: =SW!G91 -> 0 | H100: =AH!N92 -> 0 | I100: =AA!N92 -> 0 | J100: =FQ!N92 -> 0 | K100: =SKI!N92 -> 0 | L100: =BA!N92 -> 0 | M100: =RTM!AP92 ->  | N100: =MTK!O92 ->  | O100: =RTM!AR92 ->  | P100: =RTM!AS92 ->  | Q100: =RTM!AT92 ->  | R100: =RTM!AU92 ->  | S100: =PJOK!N92 -> 0 | T100: =BD!N92 -> 0 | U100: =BIG!N92 -> 0 | V100: =ASWJ!N92 -> 0 | W100: ='MLK1'!N92 -> 0 | X100: ='MLK2'!N92 -> 0 | Y100: ='MLK3'!N92 -> 0 | Z100: 0 | AA100: 0 | AB100: 33 | AE100: 0
B101: 83 | C101: =SW!C92 ->  | F101: =SW!G92 -> 0 | H101: =AH!N93 -> 0 | I101: =AA!N93 -> 0 | J101: =FQ!N93 -> 0 | K101: =SKI!N93 -> 0 | L101: =BA!N93 -> 0 | M101: =RTM!AP93 ->  | N101: =MTK!O93 ->  | O101: =RTM!AR93 ->  | P101: =RTM!AS93 ->  | Q101: =RTM!AT93 ->  | R101: =RTM!AU93 ->  | S101: =PJOK!N93 -> 0 | T101: =BD!N93 -> 0 | U101: =BIG!N93 -> 0 | V101: =ASWJ!N93 -> 0 | W101: ='MLK1'!N93 -> 0 | X101: ='MLK2'!N93 -> 0 | Y101: ='MLK3'!N93 -> 0 | Z101: 0 | AA101: 0 | AB101: 33 | AE101: 0
B102: 84 | C102: =SW!C93 ->  | F102: =SW!G93 -> 0 | H102: =AH!N94 -> 0 | I102: =AA!N94 -> 0 | J102: =FQ!N94 -> 0 | K102: =SKI!N94 -> 0 | L102: =BA!N94 -> 0 | M102: =RTM!AP94 ->  | N102: =MTK!O94 ->  | O102: =RTM!AR94 ->  | P102: =RTM!AS94 ->  | Q102: =RTM!AT94 ->  | R102: =RTM!AU94 ->  | S102: =PJOK!N94 -> 0 | T102: =BD!N94 -> 0 | U102: =BIG!N94 -> 0 | V102: =ASWJ!N94 -> 0 | W102: ='MLK1'!N94 -> 0 | X102: ='MLK2'!N94 -> 0 | Y102: ='MLK3'!N94 -> 0 | Z102: 0 | AA102: 0 | AB102: 33 | AE102: 0
B103: 85 | C103: =SW!C94 ->  | F103: =SW!G94 -> 0 | H103: =AH!N95 -> 0 | I103: =AA!N95 -> 0 | J103: =FQ!N95 -> 0 | K103: =SKI!N95 -> 0 | L103: =BA!N95 -> 0 | M103: =RTM!AP95 ->  | N103: =MTK!O95 ->  | O103: =RTM!AR95 ->  | P103: =RTM!AS95 ->  | Q103: =RTM!AT95 ->  | R103: =RTM!AU95 ->  | S103: =PJOK!N95 -> 0 | T103: =BD!N95 -> 0 | U103: =BIG!N95 -> 0 | V103: =ASWJ!N95 -> 0 | W103: ='MLK1'!N95 -> 0 | X103: ='MLK2'!N95 -> 0 | Y103: ='MLK3'!N95 -> 0 | Z103: 0 | AA103: 0 | AB103: 33 | AE103: 0
B104: 86 | C104: =SW!C95 ->  | F104: =SW!G95 -> 0 | H104: =AH!N96 -> 0 | I104: =AA!N96 -> 0 | J104: =FQ!N96 -> 0 | K104: =SKI!N96 -> 0 | L104: =BA!N96 -> 0 | M104: =RTM!AP96 ->  | N104: =MTK!O96 ->  | O104: =RTM!AR96 ->  | P104: =RTM!AS96 ->  | Q104: =RTM!AT96 ->  | R104: =RTM!AU96 ->  | S104: =PJOK!N96 -> 0 | T104: =BD!N96 -> 0 | U104: =BIG!N96 -> 0 | V104: =ASWJ!N96 -> 0 | W104: ='MLK1'!N96 -> 0 | X104: ='MLK2'!N96 -> 0 | Y104: ='MLK3'!N96 -> 0 | Z104: 0 | AA104: 0 | AB104: 33 | AE104: 0
B105: 87 | C105: =SW!C96 ->  | F105: =SW!G96 -> 0 | H105: =AH!N97 -> 0 | I105: =AA!N97 -> 0 | J105: =FQ!N97 -> 0 | K105: =SKI!N97 -> 0 | L105: =BA!N97 -> 0 | M105: =RTM!AP97 ->  | N105: =MTK!O97 ->  | O105: =RTM!AR97 ->  | P105: =RTM!AS97 ->  | Q105: =RTM!AT97 ->  | R105: =RTM!AU97 ->  | S105: =PJOK!N97 -> 0 | T105: =BD!N97 -> 0 | U105: =BIG!N97 -> 0 | V105: =ASWJ!N97 -> 0 | W105: ='MLK1'!N97 -> 0 | X105: ='MLK2'!N97 -> 0 | Y105: ='MLK3'!N97 -> 0 | Z105: 0 | AA105: 0 | AB105: 33 | AE105: 0
B106: 88 | C106: =SW!C97 ->  | F106: =SW!G97 -> 0 | H106: =AH!N98 -> 0 | I106: =AA!N98 -> 0 | J106: =FQ!N98 -> 0 | K106: =SKI!N98 -> 0 | L106: =BA!N98 -> 0 | M106: =RTM!AP98 ->  | N106: =MTK!O98 ->  | O106: =RTM!AR98 ->  | P106: =RTM!AS98 ->  | Q106: =RTM!AT98 ->  | R106: =RTM!AU98 ->  | S106: =PJOK!N98 -> 0 | T106: =BD!N98 -> 0 | U106: =BIG!N98 -> 0 | V106: =ASWJ!N98 -> 0 | W106: ='MLK1'!N98 -> 0 | X106: ='MLK2'!N98 -> 0 | Y106: ='MLK3'!N98 -> 0 | Z106: 0 | AA106: 0 | AB106: 33 | AE106: 0
B107: 89 | C107: =SW!C98 ->  | F107: =SW!G98 -> 0 | H107: =AH!N99 -> 0 | I107: =AA!N99 -> 0 | J107: =FQ!N99 -> 0 | K107: =SKI!N99 -> 0 | L107: =BA!N99 -> 0 | M107: =RTM!AP99 ->  | N107: =MTK!O99 ->  | O107: =RTM!AR99 ->  | P107: =RTM!AS99 ->  | Q107: =RTM!AT99 ->  | R107: =RTM!AU99 ->  | S107: =PJOK!N99 -> 0 | T107: =BD!N99 -> 0 | U107: =BIG!N99 -> 0 | V107: =ASWJ!N99 -> 0 | W107: ='MLK1'!N99 -> 0 | X107: ='MLK2'!N99 -> 0 | Y107: ='MLK3'!N99 -> 0 | Z107: 0 | AA107: 0 | AB107: 33 | AE107: 0
C108: JUMLAH | H108: =SUM(H19:H107) -> 1950 | I108: =SUM(I19:I107) -> 1853 | J108: 2015 | K108: 1604 | L108: 1165 | M108: 1616 | N108: 829.5 | O108: =SUM(O19:O107) -> 1616 | P108: =SUM(P19:P107) -> 1616 | Q108: 1616 | R108: 1616 | S108: 1515 | T108: 1679 | U108: =SUM(U19:U107) -> 1610 | V108: =SUM(V19:V107) -> 1803 | W108: =SUM(W19:W107) -> 995 | X108: 0 | Y108: 0 | Z108: -
C109: RATA-RATA | H109: =IFERROR(ROUND(AVERAGE(H19:H107),0),"") -> 22 | I109: =IFERROR(ROUND(AVERAGE(I19:I107),0),"") -> 21 | J109: 23 | K109: 18 | L109: 13 | M109: 51 | N109: 26 | O109: 51 | P109: 51 | Q109: 51 | R109: 51 | S109: 17 | T109: 19 | U109: =IFERROR(ROUND(AVERAGE(U19:U107),0),"") -> 18 | V109: =IFERROR(ROUND(AVERAGE(V19:V107),0),"") -> 20 | W109: 11 | X109: 0 | Y109: 0
C110: NILAI TERTINGGI | H110: =MAX(H19:H107) -> 84 | I110: =MAX(I19:I107) -> 94 | J110: 84 | K110: 65 | L110: 60 | M110: 67 | N110: 40 | O110: 67 | P110: 67 | Q110: 67 | R110: 67 | S110: 65 | T110: 76 | U110: 84 | V110: 77 | W110: 65 | X110: 0 | Y110: 0
C111: NILAI TERENDAH | H111: =MIN(H19:H107) -> 0 | I111: =MIN(I19:I107) -> 0 | J111: 0 | K111: 0 | L111: 0 | M111: 34 | N111: 12.5 | O111: 34 | P111: 34 | Q111: 34 | R111: 34 | S111: 0 | T111: 0 | U111: 0 | V111: 0 | W111: 0 | X111: 0 | Y111: 0
U113: Lumajang, | W113: =MN!H24 -> 8 Nopember 2019
W114: =MN!J24 -> 1 Muharram 1440 H
D115: Mengetahui,
D116: Kepala Madrasah | U116: ="Wali Kelas "&UPPER(MN!D22) -> Wali Kelas V B
D121: =MN!D8 -> SAHRONI, S.Pd.I | U121: =MN!D24 -> CHAYUL MU'AFA, S.Ag
D122: ="NIP. "&MN!D10 -> NIP. - | U122: ="NIP. "&MN!D26 -> NIP. -

Sheet SW
C2: D A F T A R S I S W A
C4: KELAS | E4: : | F4: =UPPER(MN!D22) -> V B | J4: ↗
C5: TAPEL | E5: : | F5: =MN!D18 -> 2019 - 2020
C7: No | D7: No. Induk | E7: NISN | G7: Nama Siswa | H7: Jenis Kelamin | I7: TTL | K7: Nama Ortu
A10: 1 | B10: 0 | C10: =IF(G10<>"",B10+1&"","") -> 1 | D10: 4604 | G10: ABD. ROCHMAN NAJA FATLAN PRATAMA | H10: LAKI-LAKI | I10: SIDOARJO | J10: 2008-11-14 | K10: mukhamad ilham
A11: 2 | C11: =IF(G11<>"",C10+1&"","") -> 2 | D11: 4432 | E11: 0094629929 | F11: 0094629929 | G11: ABDURRAHMAN FAQIH | H11: LAKI-LAKI | I11: LUMAJANG | J11: 2009-01-16 | K11: NUR KHOLIQ
A12: 3 | C12: =IF(G12<>"",C11+1&"","") -> 3 | D12: 4400 | E12: 0088902075 | F12: 0088902075 | G12: ACHMAD FARROIHUN MUSHOBIRONILLAH | H12: LAKI-LAKI | I12: LUMAJANG | J12: 2008-12-16 | K12: ACH KAMALI ALFAN
